Workbook

Sheet CV Rotina <2A - procedência
E1: AO NASCER | I1: MENOR DE 1 ANO | W1: 1 ANO
A2: Regional | B2: Município | C2: ¹População < 1 ano e 1 ano anual | D2: ²População < 1 ano e 1 ano proporcional | E2: Doses Aplicadas HB < 30 dias | F2: Cobertura Vacinal HB até 30 dias | G2: Doses Aplicadas BCG | H2: Cobertura Vacinal BCG | I2: Doses Aplicadas Pentavalente | J2: Cobertura Vacinal Pentavalente | K2: Doses Aplicadas Poliomielite | L2: Cobertura Vacinal Poliomielite | M2: Doses Aplicadas Pneumo 10 | N2: Cobertura Vacinal Pneumo 10 | O2: Doses Aplicadas Rotavírus | P2: Cobertura Vacinal Rotavírus | Q2: Doses Aplicadas Meningo C | R2: Cobertura Vacinal Meningo C | S2: Doses Aplicadas Febre Amarela | T2: Cobertura Vacinal Febre Amarela | U2: Doses Aplicadas COVID-19 | V2: Cobertura Vacinal COVID-19 | W2: Doses Aplicadas Hepatite A | X2: Cobertura Vacinal Hepatite A | Y2: Doses Aplicadas de Tríplice Viral | Z2: Cobertura Vacinal Tríplice Viral | AA2: Doses Aplicadas Varicela | AB2: Cobertura Varicela | AE2: VACINAS QUE ATINGIRAM A META DE CV | AF2: HOMOGENEIDADE ENTRE AS 11 VACINAS | AG2: VACINAS DO PQA-VS QUE ATINGIRAM A META DE CV | AH2: HOMOGENEIDADE ENTRE AS VACINAS DO PQA-VS
A3: Metropolitana | B3: Afonso Cláudio | C3: 384 | D3: 126 | E3: 99 | F3: =E3/D3 -> 0.7857142857 | G3: 99 | H3: =G3/D3 -> 0.7857142857 | I3: 125 | J3: =I3/D3 -> 0.9920634921 | K3: 125 | L3: =K3/D3 -> 0.9920634921 | M3: 104 | N3: =M3/D3 -> 0.8253968254 | O3: 108 | P3: =O3/D3 -> 0.8571428571 | Q3: 122 | R3: =Q3/D3 -> 0.9682539683 | S3: 109 | T3: =S3/D3 -> 0.8650793651 | U3: 0 | V3: =U3/D3 -> 0 | W3: 99 | X3: =W3/D3 -> 0.7857142857 | Y3: 139 | Z3: =Y3/D3 -> 1.103174603 | AA3: 71 | AB3: =AA3/D3 -> 0.5634920635 | AE3: =cálculos1!P2 -> 4 | AF3: =AE3*0.11 -> 0.44 | AG3: =cálculos1!Q2 -> 3 | AH3: =AG3*0.25 -> 0.75 | AJ3: LEGENDA / HOMOGENEIDADE PQA-VS
A4: Norte | B4: Água Doce do Norte | C4: 170 | D4: 61 | E4: 19 | F4: 0.3114754098 | G4: 27 | H4: 0.4426229508 | I4: 54 | J4: 0.8852459016 | K4: 56 | L4: 0.9180327869 | M4: 50 | N4: 0.8196721311 | O4: 46 | P4: 0.7540983607 | Q4: 52 | R4: 0.8524590164 | S4: 48 | T4: 0.7868852459 | U4: 0 | V4: 0 | W4: 46 | X4: 0.7540983607 | Y4: 46 | Z4: 0.7540983607 | AA4: 26 | AB4: 0.4262295082 | AE4: =cálculos1!P3 -> 0 | AF4: =AE4*0.11 -> 0 | AG4: =cálculos1!Q3 -> 0 | AH4: =AG4*0.25 -> 0 | AJ4: PERCENTUAL | AK4: Nº DE MUNICÍPIOS
A5: Central | B5: Águia Branca | C5: 149 | D5: 39 | E5: 32 | F5: 0.8205128205 | G5: 34 | H5: 0.8717948718 | I5: 62 | J5: 1.58974359 | K5: 61 | L5: 1.564102564 | M5: 52 | N5: 1.333333333 | O5: 53 | P5: 1.358974359 | Q5: 65 | R5: 1.666666667 | S5: 46 | T5: 1.179487179 | U5: 0 | V5: 0 | W5: 35 | X5: 0.8974358974 | Y5: 34 | Z5: 0.8717948718 | AA5: 22 | AB5: 0.5641025641 | AE5: =cálculos1!P4 -> 6 | AF5: 0.66 | AG5: =cálculos1!Q4 -> 3 | AH5: 0.75 | AJ5: 0 | AK5: =COUNTIF($AH$3:$AH$80,"=0") -> 18
A6: Sul | B6: Alegre | C6: 327 | D6: 93 | E6: 72 | F6: 0.7741935484 | G6: 74 | H6: 0.7956989247 | I6: 109 | J6: 1.172043011 | K6: 116 | L6: 1.247311828 | M6: 113 | N6: 1.215053763 | O6: 108 | P6: 1.161290323 | Q6: 109 | R6: 1.172043011 | S6: 109 | T6: 1.172043011 | U6: 1 | V6: 0.01075268817 | W6: 85 | X6: 0.9139784946 | Y6: 95 | Z6: 1.021505376 | AA6: 45 | AB6: 0.4838709677 | AE6: =cálculos1!P5 -> 7 | AF6: 0.77 | AG6: =cálculos1!Q5 -> 4 | AH6: 1 | AJ6: 0.25 | AK6: =COUNTIF($AH$3:$AH$80,"=0,25") -> 10
A7: Sul | B7: Alfredo Chaves | C7: 146 | D7: 46 | E7: 9 | F7: 0.1956521739 | G7: 27 | H7: 0.5869565217 | I7: 53 | J7: 1.152173913 | K7: 51 | L7: 1.108695652 | M7: 59 | N7: 1.282608696 | O7: 62 | P7: 1.347826087 | Q7: 62 | R7: 1.347826087 | S7: 46 | T7: 1 | U7: 0 | V7: 0 | W7: 47 | X7: 1.02173913 | Y7: 50 | Z7: 1.086956522 | AA7: 43 | AB7: 0.9347826087 | AE7: =cálculos1!P6 -> 8 | AF7: 0.88 | AG7: =cálculos1!Q6 -> 4 | AH7: 1 | AJ7: 0.5 | AK7: =COUNTIF($AH$3:$AH$80,"=0,5") -> 8
A8: Central | B8: Alto Rio Novo | C8: 80 | D8: 21 | E8: 4 | F8: 0.1904761905 | G8: 10 | H8: 0.4761904762 | I8: 35 | J8: 1.666666667 | K8: 33 | L8: 1.571428571 | M8: 33 | N8: 1.571428571 | O8: 34 | P8: 1.619047619 | Q8: 37 | R8: 1.761904762 | S8: 29 | T8: 1.380952381 | U8: 0 | V8: 0 | W8: 34 | X8: 1.619047619 | Y8: 32 | Z8: 1.523809524 | AA8: 22 | AB8: 1.047619048 | AE8: =cálculos1!P7 -> 9 | AF8: 0.99 | AG8: =cálculos1!Q7 -> 4 | AH8: 1 | AJ8: 0.75 | AK8: =COUNTIF($AH$3:$AH$80,"=0,75") -> 12
A9: Sul | B9: Anchieta | C9: 365 | D9: 109 | E9: 9 | F9: 0.08256880734 | G9: 76 | H9: 0.6972477064 | I9: 129 | J9: 1.183486239 | K9: 131 | L9: 1.201834862 | M9: 143 | N9: 1.311926606 | O9: 140 | P9: 1.28440367 | Q9: 138 | R9: 1.266055046 | S9: 85 | T9: 0.7798165138 | U9: 5 | V9: 0.04587155963 | W9: 109 | X9: 1 | Y9: 129 | Z9: 1.183486239 | AA9: 78 | AB9: 0.7155963303 | AE9: =cálculos1!P8 -> 7 | AF9: 0.77 | AG9: =cálculos1!Q8 -> 4 | AH9: 1 | AJ9: 1 | AK9: =COUNTIF($AH$3:$AH$80,"=1,0") -> 30
A10: Sul | B10: Apiacá | C10: 64 | D10: 20 | E10: 11 | F10: 0.55 | G10: 14 | H10: 0.7 | I10: 16 | J10: 0.8 | K10: 17 | L10: 0.85 | M10: 24 | N10: 1.2 | O10: 23 | P10: 1.15 | Q10: 18 | R10: 0.9 | S10: 20 | T10: 1 | U10: 0 | V10: 0 | W10: 9 | X10: 0.45 | Y10: 17 | Z10: 0.85 | AA10: 6 | AB10: 0.3 | AE10: =cálculos1!P9 -> 3 | AF10: 0.33 | AG10: =cálculos1!Q9 -> 1 | AH10: 0.25
A11: Metropolitana | B11: Aracruz | C11: 1456 | D11: 490 | E11: 448 | F11: 0.9142857143 | G11: 459 | H11: 0.9367346939 | I11: 435 | J11: 0.887755102 | K11: 437 | L11: 0.8918367347 | M11: 447 | N11: 0.912244898 | O11: 446 | P11: 0.9102040816 | Q11: 453 | R11: 0.9244897959 | S11: 411 | T11: 0.8387755102 | U11: 16 | V11: 0.03265306122 | W11: 454 | X11: 0.9265306122 | Y11: 529 | Z11: 1.079591837 | AA11: 347 | AB11: 0.7081632653 | AE11: =cálculos1!P10 -> 3 | AF11: 0.33 | AG11: =cálculos1!Q10 -> 1 | AH11: 0.25
A12: Sul | B12: Atilio Vivacqua | C12: 133 | D12: 42 | E12: 0 | F12: 0 | G12: 0 | H12: 0 | I12: 42 | J12: 1 | K12: 41 | L12: 0.9761904762 | M12: 40 | N12: 0.9523809524 | O12: 40 | P12: 0.9523809524 | Q12: 42 | R12: 1 | S12: 37 | T12: 0.880952381 | U12: 0 | V12: 0 | W12: 34 | X12: 0.8095238095 | Y12: 49 | Z12: 1.166666667 | AA12: 35 | AB12: 0.8333333333 | AE12: =cálculos1!P11 -> 6 | AF12: 0.66 | AG12: =cálculos1!Q11 -> 4 | AH12: 1 | AJ12: LEGENDA / HOMOGENEIDADE 11 VACINAS
A13: Central | B13: Baixo Guandu | C13: 364 | D13: 105 | E13: 27 | F13: 0.2571428571 | G13: 72 | H13: 0.6857142857 | I13: 146 | J13: 1.39047619 | K13: 147 | L13: 1.4 | M13: 142 | N13: 1.352380952 | O13: 139 | P13: 1.323809524 | Q13: 139 | R13: 1.323809524 | S13: 104 | T13: 0.9904761905 | U13: 0 | V13: 0 | W13: 123 | X13: 1.171428571 | Y13: 170 | Z13: 1.619047619 | AA13: 95 | AB13: 0.9047619048 | AE13: =cálculos1!P12 -> 8 | AF13: 0.88 | AG13: =cálculos1!Q12 -> 4 | AH13: 1 | AJ13: PERCENTUAL | AK13: Nº DE MUNICÍPIOS
A14: Norte | B14: Barra de São Francisco | C14: 534 | D14: 166 | E14: 121 | F14: 0.7289156627 | G14: 130 | H14: 0.7831325301 | I14: 158 | J14: 0.9518072289 | K14: 155 | L14: 0.9337349398 | M14: 176 | N14: 1.060240964 | O14: 170 | P14: 1.024096386 | Q14: 170 | R14: 1.024096386 | S14: 167 | T14: 1.006024096 | U14: 0 | V14: 0 | W14: 136 | X14: 0.8192771084 | Y14: 198 | Z14: 1.192771084 | AA14: 139 | AB14: 0.8373493976 | AE14: =cálculos1!P13 -> 6 | AF14: 0.66 | AG14: =cálculos1!Q13 -> 3 | AH14: 0.75 | AJ14: 0 | AK14: =COUNTIF($AF$3:$AF$80,"=0") -> 11
A15: Norte | B15: Boa Esperança | C15: 199 | D15: 72 | E15: 5 | F15: 0.06944444444 | G15: 28 | H15: 0.3888888889 | I15: 50 | J15: 0.6944444444 | K15: 59 | L15: 0.8194444444 | M15: 63 | N15: 0.875 | O15: 68 | P15: 0.9444444444 | Q15: 60 | R15: 0.8333333333 | S15: 52 | T15: 0.7222222222 | U15: 1 | V15: 0.01388888889 | W15: 44 | X15: 0.6111111111 | Y15: 74 | Z15: 1.027777778 | AA15: 53 | AB15: 0.7361111111 | AE15: =cálculos1!P14 -> 2 | AF15: 0.22 | AG15: =cálculos1!Q14 -> 1 | AH15: 0.25 | AJ15: 0.1 | AK15: =COUNTIFS($AF$3:$AF$80,">=0,10",$AF$3:$AF$80,"<0,20") -> 13
A16: Sul | B16: Bom Jesus do Norte | C16: 83 | D16: 23 | E16: 21 | F16: 0.9130434783 | G16: 31 | H16: 1.347826087 | I16: 49 | J16: 2.130434783 | K16: 47 | L16: 2.043478261 | M16: 38 | N16: 1.652173913 | O16: 37 | P16: 1.608695652 | Q16: 40 | R16: 1.739130435 | S16: 40 | T16: 1.739130435 | U16: 4 | V16: 0.1739130435 | W16: 10 | X16: 0.4347826087 | Y16: 50 | Z16: 2.173913043 | AA16: 17 | AB16: 0.7391304348 | AE16: =cálculos1!P15 -> 8 | AF16: 0.88 | AG16: =cálculos1!Q15 -> 4 | AH16: 1 | AJ16: 0.2 | AK16: =COUNTIFS($AF$3:$AF$80,">=0,20",$AF$3:$AF$80,"<0,30") -> 2
A17: Metropolitana | B17: Brejetuba | C17: 212 | D17: 70 | E17: 13 | F17: 0.1857142857 | G17: 59 | H17: 0.8428571429 | I17: 68 | J17: 0.9714285714 | K17: 68 | L17: 0.9714285714 | M17: 64 | N17: 0.9142857143 | O17: 67 | P17: 0.9571428571 | Q17: 59 | R17: 0.8428571429 | S17: 70 | T17: 1 | U17: 0 | V17: 0 | W17: 57 | X17: 0.8142857143 | Y17: 64 | Z17: 0.9142857143 | AA17: 43 | AB17: 0.6142857143 | AE17: =cálculos1!P16 -> 4 | AF17: 0.44 | AG17: =cálculos1!Q16 -> 2 | AH17: 0.5 | AJ17: 0.3 | AK17: =COUNTIFS($AF$3:$AF$80,">=0,30",$AF$3:$AF$80,"<0,40") -> 7
A18: Sul | B18: Cachoeiro de Itapemirim | C18: 2473 | D18: 863 | E18: 1762 | F18: 2.041714948 | G18: 1733 | H18: 2.00811124 | I18: 732 | J18: 0.8482039397 | K18: 721 | L18: 0.8354577057 | M18: 698 | N18: 0.808806489 | O18: 688 | P18: 0.7972190035 | Q18: 705 | R18: 0.8169177289 | S18: 561 | T18: 0.6500579374 | U18: 5 | V18: 0.005793742758 | W18: 599 | X18: 0.6940903824 | Y18: 789 | Z18: 0.9142526072 | AA18: 349 | AB18: 0.4044032445 | AE18: =cálculos1!P17 -> 1 | AF18: 0.11 | AG18: =cálculos1!Q17 -> 0 | AH18: 0 | AJ18: 0.4 | AK18: =COUNTIFS($AF$3:$AF$80,">=0,40",$AF$3:$AF$80,"<0,50") -> 8
A19: Metropolitana | B19: Cariacica | C19: 4917 | D19: 1679 | E19: 871 | F19: 0.5187611674 | G19: 888 | H19: 0.5288862418 | I19: 1460 | J19: 0.8695652174 | K19: 1438 | L19: 0.8564621799 | M19: 1453 | N19: 0.8653960691 | O19: 1384 | P19: 0.8243001787 | Q19: 1415 | R19: 0.8427635497 | S19: 1197 | T19: 0.7129243597 | U19: 34 | V19: 0.0202501489 | W19: 798 | X19: =W19/D19 -> 0.4752829065 | Y19: 1528 | Z19: 0.9100655152 | AA19: 748 | AB19: 0.4455032758 | AE19: =cálculos1!P18 -> 0 | AF19: 0 | AG19: =cálculos1!Q18 -> 0 | AH19: 0 | AJ19: 0.5 | AK19: =COUNTIFS($AF$3:$AF$80,">=0,50",$AF$3:$AF$80,"<0,60") -> 4
A20: Sul | B20: Castelo | C20: 454 | D20: 160 | E20: 82 | F20: 0.5125 | G20: 92 | H20: 0.575 | I20: 133 | J20: 0.83125 | K20: 133 | L20: 0.83125 | M20: 132 | N20: 0.825 | O20: 128 | P20: 0.8 | Q20: 124 | R20: 0.775 | S20: 137 | T20: 0.85625 | U20: 0 | V20: 0 | W20: 69 | X20: 0.43125 | Y20: 161 | Z20: 1.00625 | AA20: 88 | AB20: 0.55 | AE20: =cálculos1!P19 -> 1 | AF20: 0.11 | AG20: =cálculos1!Q19 -> 1 | AH20: 0.25 | AJ20: 0.6 | AK20: =COUNTIFS($AF$3:$AF$80,">=0,60",$AF$3:$AF$80,"<0,70") -> 12
A21: Central | B21: Colatina | C21: 1532 | D21: 496 | E21: 1326 | F21: 2.673387097 | G21: 1158 | H21: 2.334677419 | I21: 473 | J21: 0.9536290323 | K21: 461 | L21: 0.9294354839 | M21: 419 | N21: 0.8447580645 | O21: 415 | P21: 0.8366935484 | Q21: 431 | R21: 0.8689516129 | S21: 390 | T21: 0.7862903226 | U21: 5 | V21: 0.01008064516 | W21: 189 | X21: 0.3810483871 | Y21: 472 | Z21: 0.9516129032 | AA21: 261 | AB21: 0.5262096774 | AE21: =cálculos1!P20 -> 3 | AF21: 0.33 | AG21: =cálculos1!Q20 -> 2 | AH21: 0.5 | AJ21: 0.7 | AK21: =COUNTIFS($AF$3:$AF$80,">=0,70",$AF$3:$AF$80,"<0,80") -> 12
A22: Norte | B22: Conceição da Barra | C22: 389 | D22: 136 | E22: 6 | F22: 0.04411764706 | G22: 10 | H22: 0.07352941176 | I22: 109 | J22: 0.8014705882 | K22: 109 | L22: 0.8014705882 | M22: 123 | N22: 0.9044117647 | O22: 120 | P22: 0.8823529412 | Q22: 114 | R22: 0.8382352941 | S22: 126 | T22: 0.9264705882 | U22: 0 | V22: 0 | W22: 80 | X22: 0.5882352941 | Y22: 132 | Z22: 0.9705882353 | AA22: 80 | AB22: 0.5882352941 | AE22: =cálculos1!P21 -> 1 | AF22: 0.11 | AG22: =cálculos1!Q21 -> 1 | AH22: 0.25 | AJ22: 0.8 | AK22: =COUNTIFS($AF$3:$AF$80,">=0,80",$AF$3:$AF$80,"<0,90") -> 6
A23: Metropolitana | B23: Conceição do Castelo | C23: 168 | D23: 60 | E23: 0 | F23: 0 | G23: 0 | H23: 0 | I23: 47 | J23: 0.7833333333 | K23: 46 | L23: 0.7666666667 | M23: 40 | N23: 0.6666666667 | O23: 39 | P23: 0.65 | Q23: 46 | R23: 0.7666666667 | S23: 58 | T23: 0.9666666667 | U23: 0 | V23: 0 | W23: 42 | X23: 0.7 | Y23: 38 | Z23: 0.6333333333 | AA23: 32 | AB23: 0.5333333333 | AE23: =cálculos1!P22 -> 1 | AF23: 0.11 | AG23: =cálculos1!Q22 -> 0 | AH23: 0 | AJ23: 0.9 | AK23: =COUNTIFS($AF$3:$AF$80,">=0,90",$AF$3:$AF$80,"<1,0") -> 3
A24: Sul | B24: Divino de São Lourenço | C24: 65 | D24: 21 | E24: 22 | F24: 1.047619048 | G24: 20 | H24: 0.9523809524 | I24: 27 | J24: 1.285714286 | K24: 27 | L24: 1.285714286 | M24: 24 | N24: 1.142857143 | O24: 24 | P24: 1.142857143 | Q24: 29 | R24: 1.380952381 | S24: 20 | T24: 0.9523809524 | U24: 0 | V24: 0 | W24: 20 | X24: 0.9523809524 | Y24: 13 | Z24: 0.619047619 | AA24: 17 | AB24: 0.8095238095 | AE24: =cálculos1!P23 -> 8 | AF24: 0.88 | AG24: =cálculos1!Q23 -> 3 | AH24: 0.75 | AJ24: 1 | AK24: =COUNTIF($AF$3:$AF$80,">=1,0") -> 0
A25: Metropolitana | B25: Domingos Martins | C25: 411 | D25: 133 | E25: 8 | F25: 0.06015037594 | G25: 23 | H25: 0.1729323308 | I25: 107 | J25: 0.8045112782 | K25: 105 | L25: 0.7894736842 | M25: 140 | N25: 1.052631579 | O25: 134 | P25: 1.007518797 | Q25: 131 | R25: 0.984962406 | S25: 125 | T25: 0.9398496241 | U25: 3 | V25: 0.02255639098 | W25: 73 | X25: 0.5488721805 | Y25: 140 | Z25: 1.052631579 | AA25: 134 | AB25: 1.007518797 | AE25: =cálculos1!P24 -> 5 | AF25: 0.55 | AG25: =cálculos1!Q24 -> 2 | AH25: 0.5
A26: Sul | B26: Dores do Rio Preto | C26: 97 | D26: 36 | E26: 10 | F26: 0.2777777778 | G26: 23 | H26: 0.6388888889 | I26: 36 | J26: 1 | K26: 39 | L26: 1.083333333 | M26: 40 | N26: 1.111111111 | O26: 38 | P26: 1.055555556 | Q26: 40 | R26: 1.111111111 | S26: 32 | T26: 0.8888888889 | U26: 1 | V26: 0.02777777778 | W26: 19 | X26: 0.5277777778 | Y26: 39 | Z26: 1.083333333 | AA26: 17 | AB26: 0.4722222222 | AE26: =cálculos1!P25 -> 6 | AF26: 0.66 | AG26: =cálculos1!Q25 -> 4 | AH26: 1
A27: Norte | B27: Ecoporanga | C27: 256 | D27: 89 | E27: 51 | F27: 0.5730337079 | G27: 50 | H27: 0.5617977528 | I27: 92 | J27: 1.033707865 | K27: 91 | L27: 1.02247191 | M27: 72 | N27: 0.808988764 | O27: 70 | P27: 0.7865168539 | Q27: 72 | R27: 0.808988764 | S27: 77 | T27: 0.8651685393 | U27: 0 | V27: 0 | W27: 61 | X27: 0.6853932584 | Y27: 89 | Z27: 1 | AA27: 71 | AB27: 0.797752809 | AE27: =cálculos1!P26 -> 3 | AF27: 0.33 | AG27: =cálculos1!Q26 -> 3 | AH27: 0.75
A28: Metropolitana | B28: Fundão | C28: 220 | D28: 81 | E28: 4 | F28: 0.04938271605 | G28: 33 | H28: 0.4074074074 | I28: 79 | J28: 0.975308642 | K28: 78 | L28: 0.962962963 | M28: 77 | N28: 0.950617284 | O28: 80 | P28: 0.987654321 | Q28: 74 | R28: 0.9135802469 | S28: 67 | T28: 0.8271604938 | U28: 2 | V28: 0.02469135802 | W28: 71 | X28: 0.8765432099 | Y28: 59 | Z28: 0.7283950617 | AA28: 65 | AB28: 0.8024691358 | AE28: =cálculos1!P27 -> 4 | AF28: 0.44 | AG28: =cálculos1!Q27 -> 3 | AH28: 0.75
A29: Central | B29: Governador Lindenberg | C29: 147 | D29: 52 | E29: 8 | F29: 0.1538461538 | G29: 13 | H29: 0.25 | I29: 41 | J29: 0.7884615385 | K29: 38 | L29: 0.7307692308 | M29: 43 | N29: 0.8269230769 | O29: 44 | P29: 0.8461538462 | Q29: 42 | R29: 0.8076923077 | S29: 44 | T29: 0.8461538462 | U29: 1 | V29: 0.01923076923 | W29: 38 | X29: 0.7307692308 | Y29: 36 | Z29: 0.6923076923 | AA29: 31 | AB29: 0.5961538462 | AE29: =cálculos1!P28 -> 0 | AF29: 0 | AG29: =cálculos1!Q28 -> 0 | AH29: 0
A30: Sul | B30: Guaçuí | C30: 406 | D30: 131 | E30: 60 | F30: 0.4580152672 | G30: 76 | H30: 0.5801526718 | I30: 145 | J30: 1.106870229 | K30: 140 | L30: 1.06870229 | M30: 129 | N30: 0.9847328244 | O30: 119 | P30: 0.9083969466 | Q30: 127 | R30: 0.9694656489 | S30: 115 | T30: 0.8778625954 | U30: 0 | V30: 0 | W30: 105 | X30: 0.8015267176 | Y30: 146 | Z30: 1.114503817 | AA30: 70 | AB30: 0.534351145 | AE30: =cálculos1!P29 -> 6 | AF30: 0.66 | AG30: =cálculos1!Q29 -> 4 | AH30: 1
A31: Metropolitana | B31: Guarapari | C31: 1741 | D31: 578 | E31: 418 | F31: 0.723183391 | G31: 483 | H31: 0.8356401384 | I31: 494 | J31: 0.8546712803 | K31: 475 | L31: 0.821799308 | M31: 503 | N31: 0.8702422145 | O31: 481 | P31: 0.8321799308 | Q31: 494 | R31: 0.8546712803 | S31: 367 | T31: 0.6349480969 | U31: 2 | V31: 0.003460207612 | W31: 381 | X31: 0.6591695502 | Y31: 493 | Z31: 0.8529411765 | AA31: 321 | AB31: 0.5553633218 | AE31: =cálculos1!P30 -> 0 | AF31: 0 | AG31: =cálculos1!Q30 -> 0 | AH31: 0
A32: Metropolitana | B32: Ibatiba | C32: 361 | D32: 112 | E32: 61 | F32: 0.5446428571 | G32: 116 | H32: 1.035714286 | I32: 128 | J32: 1.142857143 | K32: 126 | L32: 1.125 | M32: 121 | N32: 1.080357143 | O32: 111 | P32: 0.9910714286 | Q32: 135 | R32: 1.205357143 | S32: 105 | T32: 0.9375 | U32: 5 | V32: 0.04464285714 | W32: 88 | X32: 0.7857142857 | Y32: 109 | Z32: 0.9732142857 | AA32: 29 | AB32: 0.2589285714 | AE32: =cálculos1!P31 -> 7 | AF32: 0.77 | AG32: =cálculos1!Q31 -> 4 | AH32: 1
A33: Metropolitana | B33: Ibiraçu | C33: 153 | D33: 58 | E33: 10 | F33: 0.1724137931 | G33: 9 | H33: 0.1551724138 | I33: 42 | J33: 0.724137931 | K33: 41 | L33: 0.7068965517 | M33: 39 | N33: 0.6724137931 | O33: 37 | P33: 0.6379310345 | Q33: 44 | R33: 0.7586206897 | S33: 48 | T33: 0.8275862069 | U33: 3 | V33: 0.05172413793 | W33: 26 | X33: 0.4482758621 | Y33: 40 | Z33: 0.6896551724 | AA33: 28 | AB33: 0.4827586207 | AE33: =cálculos1!P32 -> 0 | AF33: 0 | AG33: =cálculos1!Q32 -> 0 | AH33: 0
A34: Sul | B34: Ibitirama | C34: 127 | D34: 37 | E34: 21 | F34: 0.5675675676 | G34: 28 | H34: 0.7567567568 | I34: 38 | J34: 1.027027027 | K34: 39 | L34: 1.054054054 | M34: 41 | N34: 1.108108108 | O34: 43 | P34: 1.162162162 | Q34: 35 | R34: 0.9459459459 | S34: 25 | T34: 0.6756756757 | U34: 0 | V34: 0 | W34: 31 | X34: 0.8378378378 | Y34: 50 | Z34: 1.351351351 | AA34: 33 | AB34: 0.8918918919 | AE34: =cálculos1!P33 -> 5 | AF34: 0.55 | AG34: =cálculos1!Q33 -> 4 | AH34: 1
A35: Sul | B35: Iconha | C35: 115 | D35: 36 | E35: 3 | F35: =E35/D35 -> 0.08333333333 | G35: 16 | H35: =G35/D35 -> 0.4444444444 | I35: 39 | J35: =I35/D35 -> 1.083333333 | K35: 37 | L35: =K35/D35 -> 1.027777778 | M35: 39 | N35: =M35/D35 -> 1.083333333 | O35: 40 | P35: =O35/D35 -> 1.111111111 | Q35: 37 | R35: =Q35/D35 -> 1.027777778 | S35: 48 | T35: =S35/D35 -> 1.333333333 | U35: 1 | V35: =U35/D35 -> 0.02777777778 | W35: 27 | X35: =W35/D35 -> 0.75 | Y35: 57 | Z35: =Y35/D35 -> 1.583333333 | AA35: 11 | AB35: =AA35/D35 -> 0.3055555556 | AE35: =cálculos1!P34 -> 7 | AF35: 0.77 | AG35: =cálculos1!Q34 -> 4 | AH35: 1
A36: Sul | B36: Irupi | C36: 195 | D36: 59 | E36: 33 | F36: 0.5593220339 | G36: 41 | H36: 0.6949152542 | I36: 72 | J36: 1.220338983 | K36: 71 | L36: 1.203389831 | M36: 83 | N36: 1.406779661 | O36: 78 | P36: 1.322033898 | Q36: 82 | R36: 1.389830508 | S36: 55 | T36: 0.9322033898 | U36: 4 | V36: 0.06779661017 | W36: 61 | X36: 1.033898305 | Y36: 94 | Z36: 1.593220339 | AA36: 21 | AB36: 0.3559322034 | AE36: =cálculos1!P35 -> 7 | AF36: 0.77 | AG36: =cálculos1!Q35 -> 4 | AH36: 1
A37: Metropolitana | B37: Itaguaçu | C37: 129 | D37: 37 | E37: 2 | F37: 0.05405405405 | G37: 33 | H37: 0.8918918919 | I37: 40 | J37: 1.081081081 | K37: 40 | L37: 1.081081081 | M37: 41 | N37: 1.108108108 | O37: 41 | P37: 1.108108108 | Q37: 43 | R37: 1.162162162 | S37: 46 | T37: 1.243243243 | U37: 0 | V37: 0 | W37: 50 | X37: 1.351351351 | Y37: 48 | Z37: 1.297297297 | AA37: 46 | AB37: 1.243243243 | AE37: =cálculos1!P36 -> 9 | AF37: 0.99 | AG37: =cálculos1!Q36 -> 4 | AH37: 1
A38: Sul | B38: Itapemirim | C38: 543 | D38: 157 | E38: 340 | F38: 2.165605096 | G38: 83 | H38: 0.5286624204 | I38: 148 | J38: 0.9426751592 | K38: 145 | L38: 0.923566879 | M38: 176 | N38: 1.121019108 | O38: 158 | P38: 1.006369427 | Q38: 143 | R38: 0.9108280255 | S38: 95 | T38: 0.6050955414 | U38: 0 | V38: 0 | W38: 133 | X38: 0.847133758 | Y38: 175 | Z38: 1.114649682 | AA38: 95 | AB38: 0.6050955414 | AE38: =cálculos1!P37 -> 3 | AF38: 0.33 | AG38: =cálculos1!Q37 -> 2 | AH38: 0.5
A39: Metropolitana | B39: Itarana | C39: 143 | D39: 51 | E39: 4 | F39: 0.07843137255 | G39: 45 | H39: 0.8823529412 | I39: 42 | J39: 0.8235294118 | K39: 43 | L39: 0.8431372549 | M39: 38 | N39: 0.7450980392 | O39: 40 | P39: 0.7843137255 | Q39: 35 | R39: 0.6862745098 | S39: 52 | T39: 1.019607843 | U39: 0 | V39: 0 | W39: 12 | X39: 0.2352941176 | Y39: 42 | Z39: 0.8235294118 | AA39: 38 | AB39: 0.7450980392 | AE39: =cálculos1!P38 -> 1 | AF39: 0.11 | AG39: =cálculos1!Q38 -> 0 | AH39: 0
A40: Sul | B40: Iúna | C40: 481 | D40: 154 | E40: 88 | F40: 0.5714285714 | G40: 104 | H40: 0.6753246753 | I40: 159 | J40: 1.032467532 | K40: 156 | L40: 1.012987013 | M40: 161 | N40: 1.045454545 | O40: 160 | P40: 1.038961039 | Q40: 160 | R40: 1.038961039 | S40: 141 | T40: 0.9155844156 | U40: 1 | V40: 0.006493506494 | W40: 88 | X40: 0.5714285714 | Y40: 158 | Z40: 1.025974026 | AA40: 87 | AB40: 0.5649350649 | AE40: =cálculos1!P39 -> 6 | AF40: 0.66 | AG40: =cálculos1!Q39 -> 4 | AH40: 1
A41: Norte | B41: Jaguaré | C41: 487 | D41: 154 | E41: 132 | F41: 0.8571428571 | G41: 109 | H41: 0.7077922078 | I41: 151 | J41: 0.9805194805 | K41: 160 | L41: 1.038961039 | M41: 156 | N41: 1.012987013 | O41: 154 | P41: 1 | Q41: 150 | R41: 0.974025974 | S41: 156 | T41: 1.012987013 | U41: 3 | V41: 0.01948051948 | W41: 108 | X41: 0.7012987013 | Y41: 162 | Z41: 1.051948052 | AA41: 97 | AB41: 0.6298701299 | AE41: =cálculos1!P40 -> 7 | AF41: 0.77 | AG41: =cálculos1!Q40 -> 4 | AH41: 1
A42: Sul | B42: Jerônimo Monteiro | C42: 160 | D42: 49 | E42: 5 | F42: 0.1020408163 | G42: 6 | H42: 0.1224489796 | I42: 63 | J42: 1.285714286 | K42: 63 | L42: 1.285714286 | M42: 48 | N42: 0.9795918367 | O42: 50 | P42: 1.020408163 | Q42: 47 | R42: 0.9591836735 | S42: 48 | T42: 0.9795918367 | U42: 2 | V42: 0.04081632653 | W42: 33 | X42: 0.6734693878 | Y42: 47 | Z42: 0.9591836735 | AA42: 18 | AB42: 0.3673469388 | AE42: =cálculos1!P41 -> 7 | AF42: 0.77 | AG42: =cálculos1!Q41 -> 4 | AH42: 1
A43: Metropolitana | B43: João Neiva | C43: 180 | D43: 59 | E43: 10 | F43: 0.1694915254 | G43: 18 | H43: 0.3050847458 | I43: 61 | J43: 1.033898305 | K43: 60 | L43: 1.016949153 | M43: 58 | N43: 0.9830508475 | O43: 55 | P43: 0.9322033898 | Q43: 56 | R43: 0.9491525424 | S43: 62 | T43: 1.050847458 | U43: 1 | V43: 0.01694915254 | W43: 43 | X43: 0.7288135593 | Y43: 70 | Z43: 1.186440678 | AA43: 32 | AB43: 0.5423728814 | AE43: =cálculos1!P42 -> 6 | AF43: 0.66 | AG43: =cálculos1!Q42 -> 4 | AH43: 1
A44: Metropolitana | B44: Laranja da Terra | C44: 98 | D44: 37 | E44: 0 | F44: 0 | G44: 23 | H44: 0.6216216216 | I44: 35 | J44: 0.9459459459 | K44: 36 | L44: 0.972972973 | M44: 25 | N44: 0.6756756757 | O44: 26 | P44: 0.7027027027 | Q44: 31 | R44: 0.8378378378 | S44: 43 | T44: 1.162162162 | U44: 5 | V44: 0.1351351351 | W44: 30 | X44: 0.8108108108 | Y44: 53 | Z44: 1.432432432 | AA44: 30 | AB44: 0.8108108108 | AE44: =cálculos1!P43 -> 3 | AF44: 0.33 | AG44: =cálculos1!Q43 -> 2 | AH44: 0.5
A45: Central | B45: Linhares | C45: 2574 | D45: 863 | E45: 929 | F45: 1.076477404 | G45: 963 | H45: 1.115874855 | I45: 722 | J45: 0.8366164542 | K45: 717 | L45: 0.8308227115 | M45: 696 | N45: 0.8064889919 | O45: 714 | P45: 0.8273464658 | Q45: 670 | R45: 0.7763615295 | S45: 636 | T45: 0.7369640788 | U45: 0 | V45: 0 | W45: 444 | X45: 0.5144843569 | Y45: 713 | Z45: 0.8261877173 | AA45: 444 | AB45: 0.5144843569 | AE45: =cálculos1!P44 -> 1 | AF45: 0.11 | AG45: =cálculos1!Q44 -> 0 | AH45: 0
A46: Central | B46: Mantenópolis | C46: 156 | D46: 51 | E46: 15 | F46: 0.2941176471 | G46: 26 | H46: 0.5098039216 | I46: 52 | J46: 1.019607843 | K46: 57 | L46: 1.117647059 | M46: 42 | N46: 0.8235294118 | O46: 40 | P46: 0.7843137255 | Q46: 39 | R46: 0.7647058824 | S46: 49 | T46: 0.9607843137 | U46: 0 | V46: 0 | W46: 43 | X46: 0.8431372549 | Y46: 56 | Z46: 1.098039216 | AA46: 34 | AB46: 0.6666666667 | AE46: =cálculos1!P45 -> 4 | AF46: 0.44 | AG46: =cálculos1!Q45 -> 3 | AH46: 0.75
A47: Sul | B47: Marataízes | C47: 556 | D47: 206 | E47: 5 | F47: 0.02427184466 | G47: 83 | H47: 0.4029126214 | I47: 185 | J47: 0.8980582524 | K47: 190 | L47: 0.9223300971 | M47: 179 | N47: 0.8689320388 | O47: 176 | P47: 0.854368932 | Q47: 187 | R47: 0.9077669903 | S47: 139 | T47: 0.6747572816 | U47: 0 | V47: 0 | W47: 187 | X47: 0.9077669903 | Y47: 196 | Z47: 0.9514563107 | AA47: 112 | AB47: 0.5436893204 | AE47: =cálculos1!P46 -> 1 | AF47: 0.11 | AG47: =cálculos1!Q46 -> 1 | AH47: 0.25
A48: Metropolitana | B48: Marechal Floriano | C48: 237 | D48: 88 | E48: 18 | F48: 0.2045454545 | G48: 19 | H48: 0.2159090909 | I48: 54 | J48: 0.6136363636 | K48: 55 | L48: 0.625 | M48: 79 | N48: 0.8977272727 | O48: 77 | P48: 0.875 | Q48: 70 | R48: 0.7954545455 | S48: 54 | T48: 0.6136363636 | U48: 2 | V48: 0.02272727273 | W48: 64 | X48: 0.7272727273 | Y48: 79 | Z48: 0.8977272727 | AA48: 54 | AB48: 0.6136363636 | AE48: =cálculos1!P47 -> 0 | AF48: 0 | AG48: =cálculos1!Q47 -> 0 | AH48: 0
A49: Central | B49: Marilândia | C49: 157 | D49: 37 | E49: 11 | F49: 0.2972972973 | G49: 21 | H49: 0.5675675676 | I49: 49 | J49: 1.324324324 | K49: 49 | L49: 1.324324324 | M49: 45 | N49: 1.216216216 | O49: 49 | P49: 1.324324324 | Q49: 55 | R49: 1.486486486 | S49: 45 | T49: 1.216216216 | U49: 0 | V49: 0 | W49: 40 | X49: 1.081081081 | Y49: 48 | Z49: 1.297297297 | AA49: 43 | AB49: 1.162162162 | AE49: =cálculos1!P48 -> 9 | AF49: 0.99 | AG49: =cálculos1!Q48 -> 4 | AH49: 1
A50: Sul | B50: Mimoso do Sul | C50: 254 | D50: 71 | E50: 15 | F50: 0.2112676056 | G50: 16 | H50: 0.2253521127 | I50: 68 | J50: 0.9577464789 | K50: 67 | L50: 0.9436619718 | M50: 69 | N50: 0.9718309859 | O50: 66 | P50: 0.9295774648 | Q50: 67 | R50: 0.9436619718 | S50: 58 | T50: 0.8169014085 | U50: 0 | V50: 0 | W50: 48 | X50: 0.676056338 | Y50: 68 | Z50: 0.9577464789 | AA50: 42 | AB50: 0.5915492958 | AE50: =cálculos1!P49 -> 4 | AF50: 0.44 | AG50: =cálculos1!Q49 -> 3 | AH50: 0.75
A51: Norte | B51: Montanha | C51: 259 | D51: 77 | E51: 22 | F51: 0.2857142857 | G51: 24 | H51: 0.3116883117 | I51: 101 | J51: 1.311688312 | K51: 103 | L51: 1.337662338 | M51: 82 | N51: 1.064935065 | O51: 82 | P51: 1.064935065 | Q51: 87 | R51: 1.12987013 | S51: 84 | T51: 1.090909091 | U51: 1 | V51: 0.01298701299 | W51: 84 | X51: 1.090909091 | Y51: 88 | Z51: 1.142857143 | AA51: 66 | AB51: 0.8571428571 | AE51: =cálculos1!P50 -> 8 | AF51: 0.88 | AG51: =cálculos1!Q50 -> 4 | AH51: 1
A52: Norte | B52: Mucurici | C52: 73 | D52: 19 | E52: 3 | F52: 0.1578947368 | G52: 4 | H52: 0.2105263158 | I52: 29 | J52: 1.526315789 | K52: 29 | L52: 1.526315789 | M52: 30 | N52: 1.578947368 | O52: 29 | P52: 1.526315789 | Q52: 26 | R52: 1.368421053 | S52: 33 | T52: 1.736842105 | U52: 0 | V52: 0 | W52: 13 | X52: 0.6842105263 | Y52: 31 | Z52: 1.631578947 | AA52: 12 | AB52: 0.6315789474 | AE52: =cálculos1!P51 -> 7 | AF52: 0.77 | AG52: =cálculos1!Q51 -> 4 | AH52: 1
A53: Sul | B53: Muniz Freire | C53: 221 | D53: 72 | E53: 45 | F53: 0.625 | G53: 47 | H53: 0.6527777778 | I53: 80 | J53: 1.111111111 | K53: 75 | L53: 1.041666667 | M53: 76 | N53: 1.055555556 | O53: 76 | P53: 1.055555556 | Q53: 75 | R53: 1.041666667 | S53: 82 | T53: 1.138888889 | U53: 0 | V53: 0 | W53: 64 | X53: 0.8888888889 | Y53: 94 | Z53: 1.305555556 | AA53: 41 | AB53: 0.5694444444 | AE53: =cálculos1!P52 -> 7 | AF53: 0.77 | AG53: =cálculos1!Q52 -> 4 | AH53: 1
A54: Sul | B54: Muqui | C54: 165 | D54: 43 | E54: 2 | F54: 0.04651162791 | G54: 7 | H54: 0.1627906977 | I54: 66 | J54: 1.534883721 | K54: 67 | L54: 1.558139535 | M54: 50 | N54: 1.162790698 | O54: 48 | P54: 1.11627907 | Q54: 57 | R54: 1.325581395 | S54: 49 | T54: 1.139534884 | U54: 4 | V54: 0.09302325581 | W54: 32 | X54: 0.7441860465 | Y54: 47 | Z54: 1.093023256 | AA54: 35 | AB54: 0.8139534884 | AE54: =cálculos1!P53 -> 7 | AF54: 0.77 | AG54: =cálculos1!Q53 -> 4 | AH54: 1
A55: Norte | B55: Nova Venécia | C55: 683 | D55: 225 | E55: 26 | F55: 0.1155555556 | G55: 125 | H55: 0.5555555556 | I55: 227 | J55: 1.008888889 | K55: 227 | L55: 1.008888889 | M55: 180 | N55: 0.8 | O55: 176 | P55: 0.7822222222 | Q55: 195 | R55: 0.8666666667 | S55: 224 | T55: 0.9955555556 | U55: 0 | V55: 0 | W55: 163 | X55: 0.7244444444 | Y55: 218 | Z55: 0.9688888889 | AA55: 154 | AB55: 0.6844444444 | AE55: =cálculos1!P54 -> 4 | AF55: 0.44 | AG55: =cálculos1!Q54 -> 3 | AH55: 0.75
A56: Central | B56: Pancas | C56: 208 | D56: 56 | E56: 14 | F56: 0.25 | G56: 30 | H56: 0.5357142857 | I56: 77 | J56: 1.375 | K56: 76 | L56: 1.357142857 | M56: 73 | N56: 1.303571429 | O56: 71 | P56: 1.267857143 | Q56: 76 | R56: 1.357142857 | S56: 64 | T56: 1.142857143 | U56: 1 | V56: 0.01785714286 | W56: 52 | X56: 0.9285714286 | Y56: 62 | Z56: 1.107142857 | AA56: 73 | AB56: 1.303571429 | AE56: =cálculos1!P55 -> 8 | AF56: 0.88 | AG56: =cálculos1!Q55 -> 4 | AH56: 1
A57: Norte | B57: Pedro Canário | C57: 335 | D57: 129 | E57: 7 | F57: 0.05426356589 | G57: 7 | H57: 0.05426356589 | I57: 106 | J57: 0.8217054264 | K57: 109 | L57: 0.8449612403 | M57: 90 | N57: 0.6976744186 | O57: 88 | P57: 0.6821705426 | Q57: 92 | R57: 0.7131782946 | S57: 106 | T57: 0.8217054264 | U57: 0 | V57: 0 | W57: 63 | X57: 0.488372093 | Y57: 126 | Z57: 0.976744186 | AA57: 80 | AB57: 0.6201550388 | AE57: =cálculos1!P56 -> 1 | AF57: 0.11 | AG57: =cálculos1!Q56 -> 1 | AH57: 0.25
A58: Norte | B58: Pinheiros | C58: 330 | D58: 109 | E58: 5 | F58: 0.04587155963 | G58: 5 | H58: 0.04587155963 | I58: 116 | J58: 1.064220183 | K58: 115 | L58: 1.055045872 | M58: 106 | N58: 0.9724770642 | O58: 104 | P58: 0.9541284404 | Q58: 102 | R58: 0.9357798165 | S58: 107 | T58: 0.9816513761 | U58: 0 | V58: 0 | W58: 70 | X58: 0.6422018349 | Y58: 104 | Z58: 0.9541284404 | AA58: 44 | AB58: 0.4036697248 | AE58: =cálculos1!P57 -> 6 | AF58: 0.66 | AG58: =cálculos1!Q57 -> 4 | AH58: 1
A59: Sul | B59: Piúma | C59: 292 | D59: 83 | E59: 3 | F59: 0.03614457831 | G59: 62 | H59: 0.7469879518 | I59: 91 | J59: 1.096385542 | K59: 91 | L59: 1.096385542 | M59: 92 | N59: 1.108433735 | O59: 83 | P59: 1 | Q59: 71 | R59: 0.8554216867 | S59: 62 | T59: 0.7469879518 | U59: 1 | V59: 0.01204819277 | W59: 72 | X59: 0.8674698795 | Y59: 99 | Z59: 1.192771084 | AA59: 49 | AB59: 0.5903614458 | AE59: =cálculos1!P58 -> 5 | AF59: 0.55 | AG59: =cálculos1!Q58 -> 4 | AH59: 1
A60: Norte | B60: Ponto Belo | C60: 81 | D60: 21 | E60: 6 | F60: 0.2857142857 | G60: 4 | H60: 0.1904761905 | I60: 16 | J60: 0.7619047619 | K60: 16 | L60: 0.7619047619 | M60: 23 | N60: 1.095238095 | O60: 22 | P60: 1.047619048 | Q60: 15 | R60: 0.7142857143 | S60: 26 | T60: 1.238095238 | U60: 0 | V60: 0 | W60: 13 | X60: 0.619047619 | Y60: 24 | Z60: 1.142857143 | AA60: 16 | AB60: 0.7619047619 | AE60: =cálculos1!P59 -> 4 | AF60: 0.44 | AG60: =cálculos1!Q59 -> 2 | AH60: 0.5
A61: Sul | B61: Presidente Kennedy | C61: 193 | D61: 73 | E61: 2 | F61: 0.02739726027 | G61: 8 | H61: 0.1095890411 | I61: 60 | J61: 0.8219178082 | K61: 63 | L61: 0.8630136986 | M61: 42 | N61: 0.5753424658 | O61: 41 | P61: 0.5616438356 | Q61: 51 | R61: 0.698630137 | S61: 51 | T61: 0.698630137 | U61: 0 | V61: 0 | W61: 47 | X61: 0.6438356164 | Y61: 82 | Z61: 1.123287671 | AA61: 34 | AB61: 0.4657534247 | AE61: =cálculos1!P60 -> 1 | AF61: 0.11 | AG61: =cálculos1!Q60 -> 1 | AH61: 0.25
A62: Central | B62: Rio Bananal | C62: 297 | D62: 99 | E62: 27 | F62: 0.2727272727 | G62: 21 | H62: 0.2121212121 | I62: 98 | J62: 0.9898989899 | K62: 98 | L62: 0.9898989899 | M62: 90 | N62: 0.9090909091 | O62: 95 | P62: 0.9595959596 | Q62: 83 | R62: 0.8383838384 | S62: 104 | T62: 1.050505051 | U62: 5 | V62: 0.05050505051 | W62: 73 | X62: 0.7373737374 | Y62: 105 | Z62: 1.060606061 | AA62: 73 | AB62: 0.7373737374 | AE62: =cálculos1!P61 -> 5 | AF62: 0.55 | AG62: =cálculos1!Q61 -> 3 | AH62: 0.75
A63: Sul | B63: Rio Novo do Sul | C63: 121 | D63: 35 | E63: 1 | F63: 0.02857142857 | G63: 13 | H63: 0.3714285714 | I63: 49 | J63: 1.4 | K63: 49 | L63: 1.4 | M63: 37 | N63: 1.057142857 | O63: 38 | P63: 1.085714286 | Q63: 43 | R63: 1.228571429 | S63: 33 | T63: 0.9428571429 | U63: 0 | V63: 0 | W63: 26 | X63: 0.7428571429 | Y63: 39 | Z63: 1.114285714 | AA63: 35 | AB63: 1 | AE63: =cálculos1!P62 -> 7 | AF63: 0.77 | AG63: =cálculos1!Q62 -> 4 | AH63: 1
A64: Metropolitana | B64: Santa Leopoldina | C64: 100 | D64: 32 | E64: 1 | F64: 0.03125 | G64: 5 | H64: 0.15625 | I64: 33 | J64: 1.03125 | K64: 33 | L64: 1.03125 | M64: 37 | N64: 1.15625 | O64: 38 | P64: 1.1875 | Q64: 39 | R64: 1.21875 | S64: 37 | T64: 1.15625 | U64: 0 | V64: 0 | W64: 30 | X64: 0.9375 | Y64: 42 | Z64: 1.3125 | AA64: 13 | AB64: 0.40625 | AE64: =cálculos1!P63 -> 7 | AF64: 0.77 | AG64: =cálculos1!Q63 -> 4 | AH64: 1
A65: Metropolitana | B65: Santa Maria de Jetibá | C65: 667 | D65: 234 | E65: 143 | F65: 0.6111111111 | G65: 171 | H65: 0.7307692308 | I65: 185 | J65: 0.7905982906 | K65: 185 | L65: 0.7905982906 | M65: 197 | N65: 0.8418803419 | O65: 202 | P65: 0.8632478632 | Q65: 191 | R65: 0.8162393162 | S65: 181 | T65: 0.7735042735 | U65: 2 | V65: 0.008547008547 | W65: 209 | X65: 0.8931623932 | Y65: 232 | Z65: 0.9914529915 | AA65: 124 | AB65: 0.5299145299 | AE65: =cálculos1!P64 -> 1 | AF65: 0.11 | AG65: =cálculos1!Q64 -> 1 | AH65: 0.25
A66: Metropolitana | B66: Santa Teresa | C66: 293 | D66: 87 | E66: 218 | F66: 2.505747126 | G66: 76 | H66: 0.8735632184 | I66: 104 | J66: 1.195402299 | K66: 104 | L66: 1.195402299 | M66: 88 | N66: 1.011494253 | O66: 85 | P66: 0.9770114943 | Q66: 83 | R66: 0.9540229885 | S66: 77 | T66: 0.8850574713 | U66: 0 | V66: 0 | W66: 67 | X66: 0.7701149425 | Y66: 84 | Z66: 0.9655172414 | AA66: 65 | AB66: 0.7471264368 | AE66: =cálculos1!P65 -> 6 | AF66: 0.66 | AG66: =cálculos1!Q65 -> 4 | AH66: 1
A67: Central | B67: São Domingos do Norte | C67: 125 | D67: 44 | E67: 9 | F67: =E67/D67 -> 0.2045454545 | G67: 18 | H67: =G67/D67 -> 0.4090909091 | I67: 36 | J67: =I67/D67 -> 0.8181818182 | K67: 36 | L67: =K67/D67 -> 0.8181818182 | M67: 39 | N67: =M67/D67 -> 0.8863636364 | O67: 39 | P67: =O67/D67 -> 0.8863636364 | Q67: 33 | R67: =Q67/D67 -> 0.75 | S67: 43 | T67: =S67/D67 -> 0.9772727273 | U67: 0 | V67: =U67/D67 -> 0 | W67: 17 | X67: =W67/D67 -> 0.3863636364 | Y67: 22 | Z67: =Y67/D67 -> 0.5 | AA67: 21 | AB67: =AA67/D67 -> 0.4772727273 | AE67: =cálculos1!P66 -> 1 | AF67: 0.11 | AG67: =cálculos1!Q66 -> 0 | AH67: 0
A68: Central | B68: São Gabriel da Palha | C68: 430 | D68: 132 | E68: 36 | F68: 0.2727272727 | G68: 81 | H68: 0.6136363636 | I68: 137 | J68: 1.037878788 | K68: 139 | L68: 1.053030303 | M68: 142 | N68: 1.075757576 | O68: 135 | P68: 1.022727273 | Q68: 129 | R68: 0.9772727273 | S68: 122 | T68: 0.9242424242 | U68: 1 | V68: 0.007575757576 | W68: 75 | X68: 0.5681818182 | Y68: 130 | Z68: 0.9848484848 | AA68: 84 | AB68: 0.6363636364 | AE68: =cálculos1!P67 -> 6 | AF68: =AE68*0.11 -> 0.66 | AG68: =cálculos1!Q67 -> 4 | AH68: =AG68*0.25 -> 1
A69: Sul | B69: São José do Calçado | C69: 106 | D69: 39 | E69: 26 | F69: 0.6666666667 | G69: 29 | H69: 0.7435897436 | I69: 53 | J69: 1.358974359 | K69: 52 | L69: 1.333333333 | M69: 35 | N69: 0.8974358974 | O69: 32 | P69: 0.8205128205 | Q69: 43 | R69: 1.102564103 | S69: 31 | T69: 0.7948717949 | U69: 0 | V69: 0 | W69: 32 | X69: 0.8205128205 | Y69: 46 | Z69: 1.179487179 | AA69: 27 | AB69: 0.6923076923 | AE69: =cálculos1!P68 -> 4 | AF69: 0.44 | AG69: =cálculos1!Q68 -> 3 | AH69: 0.75
A70: Norte | B70: São Mateus | C70: 1931 | D70: 650 | E70: 921 | F70: 1.416923077 | G70: 879 | H70: 1.352307692 | I70: 608 | J70: 0.9353846154 | K70: 594 | L70: 0.9138461538 | M70: 565 | N70: 0.8692307692 | O70: 529 | P70: 0.8138461538 | Q70: 499 | R70: 0.7676923077 | S70: 440 | T70: 0.6769230769 | U70: 3 | V70: 0.004615384615 | W70: 409 | X70: 0.6292307692 | Y70: 508 | Z70: 0.7815384615 | AA70: 292 | AB70: 0.4492307692 | AE70: =cálculos1!P69 -> 1 | AF70: 0.11 | AG70: =cálculos1!Q69 -> 0 | AH70: 0
A71: Central | B71: São Roque do Canaã | C71: 122 | D71: 50 | E71: 18 | F71: 0.36 | G71: 20 | H71: 0.4 | I71: 33 | J71: 0.66 | K71: 32 | L71: 0.64 | M71: 25 | N71: 0.5 | O71: 28 | P71: 0.56 | Q71: 30 | R71: 0.6 | S71: 43 | T71: 0.86 | U71: 1 | V71: 0.02 | W71: 23 | X71: 0.46 | Y71: 45 | Z71: 0.9 | AA71: 28 | AB71: 0.56 | AE71: =cálculos1!P70 -> 0 | AF71: 0 | AG71: =cálculos1!Q70 -> 0 | AH71: 0
A72: Metropolitana | B72: Serra | C72: 7437 | D72: 2622 | E72: 2989 | F72: 1.139969489 | G72: 2872 | H72: 1.095347063 | I72: 2092 | J72: 0.7978642258 | K72: 2096 | L72: 0.7993897788 | M72: 2038 | N72: 0.7772692601 | O72: 1997 | P72: 0.7616323417 | Q72: 2014 | R72: 0.768115942 | S72: 1757 | T72: 0.6700991609 | U72: 23 | V72: 0.008771929825 | W72: 1041 | X72: 0.3970251716 | Y72: 2016 | Z72: 0.7688787185 | AA72: 825 | AB72: 0.3146453089 | AE72: =cálculos1!P71 -> 1 | AF72: 0.11 | AG72: =cálculos1!Q71 -> 0 | AH72: 0
A73: Central | B73: Sooretama | C73: 432 | D73: 150 | E73: 9 | F73: 0.06 | G73: 6 | H73: 0.04 | I73: 138 | J73: 0.92 | K73: 138 | L73: 0.92 | M73: 117 | N73: 0.78 | O73: 115 | P73: 0.7666666667 | Q73: 111 | R73: 0.74 | S73: 125 | T73: 0.8333333333 | U73: 0 | V73: 0 | W73: 119 | X73: 0.7933333333 | Y73: 127 | Z73: 0.8466666667 | AA73: 69 | AB73: 0.46 | AE73: =cálculos1!P72 -> 0 | AF73: 0 | AG73: =cálculos1!Q72 -> 0 | AH73: 0
A74: Sul | B74: Vargem Alta | C74: 256 | D74: 89 | E74: 2 | F74: 0.02247191011 | G74: 8 | H74: 0.08988764045 | I74: 72 | J74: 0.808988764 | K74: 72 | L74: 0.808988764 | M74: 79 | N74: 0.8876404494 | O74: 81 | P74: 0.9101123596 | Q74: 82 | R74: 0.9213483146 | S74: 79 | T74: 0.8876404494 | U74: 1 | V74: 0.01123595506 | W74: 72 | X74: 0.808988764 | Y74: 94 | Z74: 1.056179775 | AA74: 51 | AB74: 0.5730337079 | AE74: =cálculos1!P73 -> 2 | AF74: 0.22 | AG74: =cálculos1!Q73 -> 1 | AH74: 0.25
A75: Metropolitana | B75: Venda Nova do Imigrante | C75: 406 | D75: 130 | E75: 14 | F75: 0.1076923077 | G75: 130 | H75: 1 | I75: 135 | J75: 1.038461538 | K75: 135 | L75: 1.038461538 | M75: 116 | N75: 0.8923076923 | O75: 114 | P75: 0.8769230769 | Q75: 124 | R75: 0.9538461538 | S75: 128 | T75: 0.9846153846 | U75: 3 | V75: 0.02307692308 | W75: 75 | X75: 0.5769230769 | Y75: 139 | Z75: 1.069230769 | AA75: 63 | AB75: 0.4846153846 | AE75: =cálculos1!P74 -> 6 | AF75: 0.66 | AG75: =cálculos1!Q74 -> 3 | AH75: 0.75
A76: Metropolitana | B76: Viana | C76: 1005 | D76: 360 | E76: 68 | F76: 0.1888888889 | G76: 68 | H76: 0.1888888889 | I76: 306 | J76: 0.85 | K76: 294 | L76: 0.8166666667 | M76: 280 | N76: 0.7777777778 | O76: 264 | P76: 0.7333333333 | Q76: 300 | R76: 0.8333333333 | S76: 220 | T76: 0.6111111111 | U76: 3 | V76: 0.008333333333 | W76: 203 | X76: 0.5638888889 | Y76: 301 | Z76: 0.8361111111 | AA76: 127 | AB76: 0.3527777778 | AE76: =cálculos1!P75 -> 0 | AF76: 0 | AG76: =cálculos1!Q75 -> 0 | AH76: 0
A77: Norte | B77: Vila Pavão | C77: 88 | D77: 34 | E77: 9 | F77: 0.2647058824 | G77: 15 | H77: 0.4411764706 | I77: 33 | J77: 0.9705882353 | K77: 32 | L77: 0.9411764706 | M77: 29 | N77: 0.8529411765 | O77: 29 | P77: 0.8529411765 | Q77: 27 | R77: 0.7941176471 | S77: 42 | T77: 1.235294118 | U77: 0 | V77: =U77/D77 -> 0 | W77: 30 | X77: 0.8823529412 | Y77: 51 | Z77: 1.5 | AA77: 29 | AB77: 0.8529411765 | AE77: =cálculos1!P76 -> 3 | AF77: 0.33 | AG77: =cálculos1!Q76 -> 2 | AH77: 0.5
A78: Central | B78: Vila Valério | C78: 241 | D78: 79 | E78: 11 | F78: 0.1392405063 | G78: 24 | H78: 0.3037974684 | I78: 59 | J78: 0.746835443 | K78: 59 | L78: 0.746835443 | M78: 60 | N78: 0.7594936709 | O78: 66 | P78: 0.835443038 | Q78: 72 | R78: 0.9113924051 | S78: 66 | T78: 0.835443038 | U78: 0 | V78: =U78/D78 -> 0 | W78: 47 | X78: 0.5949367089 | Y78: 54 | Z78: 0.6835443038 | AA78: 48 | AB78: 0.6075949367 | AE78: =cálculos1!P77 -> 0 | AF78: 0 | AG78: =cálculos1!Q77 -> 0 | AH78: 0
A79: Metropolitana | B79: Vila Velha | C79: 5756 | D79: 1942 | E79: 1461 | F79: 0.7523171988 | G79: 1452 | H79: 0.7476828012 | I79: 1539 | J79: 0.7924819773 | K79: 1532 | L79: 0.7888774459 | M79: 1537 | N79: 0.7914521112 | O79: 1562 | P79: 0.8043254377 | Q79: 1538 | R79: 0.7919670443 | S79: 1312 | T79: 0.675592173 | U79: 33 | V79: =U79/D79 -> 0.01699279094 | W79: 824 | X79: 0.4243048404 | Y79: 1605 | Z79: 0.8264675592 | AA79: 778 | AB79: 0.4006179197 | AE79: =cálculos1!P78 -> 0 | AF79: 0 | AG79: =cálculos1!Q78 -> 0 | AH79: 0
A80: Metropolitana | B80: Vitória | C80: 3725 | D80: 1218 | E80: 2134 | F80: 1.752052545 | G80: 2306 | H80: 1.893267652 | I80: 1284 | J80: 1.054187192 | K80: 1285 | L80: 1.05500821 | M80: 1069 | N80: 0.8776683087 | O80: 1116 | P80: 0.9162561576 | Q80: 1189 | R80: 0.9761904762 | S80: 913 | T80: 0.749589491 | U80: 44 | V80: =U80/D80 -> 0.03612479475 | W80: 1172 | X80: 0.9622331691 | Y80: 1133 | Z80: 0.9302134647 | AA80: 601 | AB80: 0.4934318555 | AE80: =cálculos1!P79 -> 6 | AF80: 0.66 | AG80: =cálculos1!Q79 -> 2 | AH80: 0.5
B82: Total Norte | C82: =SUMIF($A$3:$A$80,"Norte",C$3:C$80) -> 5815 | D82: =SUMIF($A$3:$A$80,"Norte",D$3:D$80) -> 1942 | E82: =SUMIF($A$3:$A$80,"Norte",E$3:E$80) -> 1333 | F82: =E82/D82 -> 0.6864057673 | G82: =SUMIF($A$3:$A$80,"Norte",G$3:G$80) -> 1417 | H82: =G82/D82 -> 0.7296601442 | I82: =SUMIF($A$3:$A$80,"Norte",I$3:I$80) -> 1850 | J82: =I82/D82 -> 0.9526261586 | K82: =SUMIF($A$3:$A$80,"Norte",K$3:K$80) -> 1855 | L82: =K82/D82 -> 0.9552008239 | M82: =SUMIF($A$3:$A$80,"Norte",M$3:M$80) -> 1745 | N82: =M82/D82 -> 0.8985581874 | O82: =SUMIF($A$3:$A$80,"Norte",O$3:O$80) -> 1687 | P82: =O82/D82 -> 0.86869207 | Q82: =SUMIF($A$3:$A$80,"Norte",Q$3:Q$80) -> 1661 | R82: =Q82/D82 -> 0.8553038105 | S82: =SUMIF($A$3:$A$80,"Norte",S$3:S$80) -> 1688 | T82: =S82/D82 -> 0.8692070031 | U82: =SUMIF($A$3:$A$80,"Norte",U$3:U$80) -> 8 | V82: =U82/D82 -> 0.00411946447 | W82: =SUMIF($A$3:$A$80,"Norte",W$3:W$80) -> 1320 | X82: =W82/D82 -> 0.6797116375 | Y82: =SUMIF($A$3:$A$80,"Norte",Y$3:Y$80) -> 1851 | Z82: =Y82/D82 -> 0.9531410917 | AA82: =SUMIF($A$3:$A$80,"Norte",AA$3:AA$80) -> 1159 | AB82: =AA82/D82 -> 0.596807415 | AE82: =cálculos1!P81 -> 3 | AF82: =AE82*0.11 -> 0.33 | AG82: =cálculos1!Q81 -> 3 | AH82: 0.75
B83: Total Central | C83: =SUMIF($A$3:$A$80,"Central",C$3:C$80) -> 7014 | D83: =SUMIF($A$3:$A$80,"Central",D$3:D$80) -> 2274 | E83: =SUMIF($A$3:$A$80,"Central",E$3:E$80) -> 2476 | F83: =E83/D83 -> 1.088830255 | G83: =SUMIF($A$3:$A$80,"Central",G$3:G$80) -> 2497 | H83: =G83/D83 -> 1.098065084 | I83: =SUMIF($A$3:$A$80,"Central",I$3:I$80) -> 2158 | J83: =I83/D83 -> 0.9489885664 | K83: =SUMIF($A$3:$A$80,"Central",K$3:K$80) -> 2141 | L83: =K83/D83 -> 0.9415127529 | M83: =SUMIF($A$3:$A$80,"Central",M$3:M$80) -> 2018 | N83: =M83/D83 -> 0.8874230431 | O83: =SUMIF($A$3:$A$80,"Central",O$3:O$80) -> 2037 | P83: =O83/D83 -> 0.8957783641 | Q83: =SUMIF($A$3:$A$80,"Central",Q$3:Q$80) -> 2012 | R83: =Q83/D83 -> 0.8847845207 | S83: =SUMIF($A$3:$A$80,"Central",S$3:S$80) -> 1910 | T83: =S83/D83 -> 0.8399296394 | U83: =SUMIF($A$3:$A$80,"Central",U$3:U$80) -> 14 | V83: =U83/D83 -> 0.006156552331 | W83: =SUMIF($A$3:$A$80,"Central",W$3:W$80) -> 1352 | X83: =W83/D83 -> 0.5945470536 | Y83: =SUMIF($A$3:$A$80,"Central",Y$3:Y$80) -> 2106 | Z83: =Y83/D83 -> 0.926121372 | AA83: =SUMIF($A$3:$A$80,"Central",AA$3:AA$80) -> 1348 | AB83: =AA83/D83 -> 0.5927880387 | AE83: =cálculos1!P82 -> 1 | AF83: =AE83*0.11 -> 0.11 | AG83: =cálculos1!Q82 -> 0 | AH83: 0
B84: Total Metropolitana | C84: =SUMIF($A$3:$A$80,"Metropolitana",C$3:C$80) -> 30199 | D84: =SUMIF($A$3:$A$80,"Metropolitana",D$3:D$80) -> 10284 | E84: =SUMIF($A$3:$A$80,"Metropolitana",E$3:E$80) -> 8994 | F84: =E84/D84 -> 0.8745624271 | G84: =SUMIF($A$3:$A$80,"Metropolitana",G$3:G$80) -> 9387 | H84: =G84/D84 -> 0.9127771295 | I84: =SUMIF($A$3:$A$80,"Metropolitana",I$3:I$80) -> 8895 | J84: =I84/D84 -> 0.8649358226 | K84: =SUMIF($A$3:$A$80,"Metropolitana",K$3:K$80) -> 8837 | L84: =K84/D84 -> 0.8592959938 | M84: =SUMIF($A$3:$A$80,"Metropolitana",M$3:M$80) -> 8591 | N84: =M84/D84 -> 0.8353753403 | O84: =SUMIF($A$3:$A$80,"Metropolitana",O$3:O$80) -> 8504 | P84: =O84/D84 -> 0.826915597 | Q84: =SUMIF($A$3:$A$80,"Metropolitana",Q$3:Q$80) -> 8686 | R84: =Q84/D84 -> 0.8446129911 | S84: =SUMIF($A$3:$A$80,"Metropolitana",S$3:S$80) -> 7439 | T84: =S84/D84 -> 0.7233566706 | U84: =SUMIF($A$3:$A$80,"Metropolitana",U$3:U$80) -> 181 | V84: =U84/D84 -> 0.01760015558 | W84: =SUMIF($A$3:$A$80,"Metropolitana",W$3:W$80) -> 5909 | X84: =W84/D84 -> 0.5745818748 | Y84: =SUMIF($A$3:$A$80,"Metropolitana",Y$3:Y$80) -> 8983 | Z84: =Y84/D84 -> 0.8734928044 | AA84: =SUMIF($A$3:$A$80,"Metropolitana",AA$3:AA$80) -> 4614 | AB84: =AA84/D84 -> 0.4486581097 | AE84: =cálculos1!P83 -> 1 | AF84: 0.11 | AG84: =cálculos1!Q83 -> 0 | AH84: 0
B85: Total Sul | C85: =SUMIF($A$3:$A$80,"sul",C$3:C$80) -> 8398 | D85: =SUMIF($A$3:$A$80,"sul",D$3:D$80) -> 2747 | E85: =SUMIF($A$3:$A$80,"Sul",E$3:E$80) -> 2649 | F85: =E85/D85 -> 0.9643247179 | G85: =SUMIF($A$3:$A$80,"Sul",G$3:G$80) -> 2717 | H85: =G85/D85 -> 0.9890789953 | I85: =SUMIF($A$3:$A$80,"Sul",I$3:I$80) -> 2714 | J85: =I85/D85 -> 0.9879868948 | K85: =SUMIF($A$3:$A$80,"Sul",K$3:K$80) -> 2700 | L85: =K85/D85 -> 0.9828904259 | M85: =SUMIF($A$3:$A$80,"Sul",M$3:M$80) -> 2647 | N85: =M85/D85 -> 0.9635966509 | O85: =SUMIF($A$3:$A$80,"Sul",O$3:O$80) -> 2577 | P85: =O85/D85 -> 0.9381143065 | Q85: =SUMIF($A$3:$A$80,"Sul",Q$3:Q$80) -> 2614 | R85: =Q85/D85 -> 0.9515835457 | S85: =SUMIF($A$3:$A$80,"Sul",S$3:S$80) -> 2198 | T85: =S85/D85 -> 0.8001456134 | U85: =SUMIF($A$3:$A$80,"Sul",U$3:U$80) -> 30 | V85: =U85/D85 -> 0.01092100473 | W85: =SUMIF($A$3:$A$80,"Sul",W$3:W$80) -> 2059 | X85: =W85/D85 -> 0.7495449581 | Y85: =SUMIF($A$3:$A$80,"Sul",Y$3:Y$80) -> 2884 | Z85: =Y85/D85 -> 1.049872588 | AA85: =SUMIF($A$3:$A$80,"Sul",AA$3:AA$80) -> 1456 | AB85: =AA85/D85 -> 0.530032763 | AE85: =cálculos1!P84 -> 7 | AF85: 0.77 | AG85: =cálculos1!Q84 -> 4 | AH85: 1
B86: Total Espírito Santo | C86: =SUM(C3:C80) -> 51426 | D86: =SUM(D3:D80) -> 17247 | E86: =SUM(E82:E85) -> 15452 | F86: =E86/D86 -> 0.8959239288 | G86: =SUM(G82:G85) -> 16018 | H86: =G86/D86 -> 0.9287412304 | I86: =SUM(I82:I85) -> 15617 | J86: =I86/D86 -> 0.90549081 | K86: =SUM(K82:K85) -> 15533 | L86: =K86/D86 -> 0.9006203978 | M86: =SUM(M82:M85) -> 15001 | N86: =M86/D86 -> 0.8697744535 | O86: =SUM(O82:O85) -> 14805 | P86: =O86/D86 -> 0.8584101583 | Q86: =SUM(Q82:Q85) -> 14973 | R86: =Q86/D86 -> 0.8681509828 | S86: =SUM(S82:S85) -> 13235 | T86: =S86/D86 -> 0.7673798342 | U86: =SUM(U82:U85) -> 233 | V86: =U86/D86 -> 0.01350959587 | W86: =SUM(W82:W85) -> 10640 | X86: =W86/D86 -> 0.6169188844 | Y86: =SUM(Y82:Y85) -> 15824 | Z86: =Y86/D86 -> 0.9174928973 | AA86: =SUM(AA82:AA85) -> 8577 | AB86: =AA86/D86 -> 0.4973038789 | AE86: =cálculos1!P85 -> 1 | AF86: 0.11 | AG86: =cálculos1!Q85 -> 0 | AH86: 0
E87: =COUNTIF(F3:F80,">=0,95") -> 9 | G87: =COUNTIF(H3:H80,">=0,9") -> 11 | I87: =COUNTIF(J3:J80,">=0,95") -> 46 | K87: =COUNTIF(L3:L80,">=0,95") -> 43 | M87: =COUNTIF(N3:N80,">=0,95") -> 39 | O87: =COUNTIF(P3:P80,">=0,9") -> 45 | Q87: =COUNTIF(R3:R80,">=0,95") -> 34 | S87: =COUNTIF(T3:T80,">=0,95") -> 33 | U87: =COUNTIF(V3:V80,">=0,95") -> 0 | W87: =COUNTIF(X3:X80,">=0,95") -> 10 | Y87: =COUNTIF(Z3:Z80,">=0,95") -> 54 | AA87: =COUNTIF(AB3:AB80,">=0,95") -> 6
B88: HOMOGENEIDADE ENTRE MUNICÍPIOS | E88: =E87/78 -> 0.1153846154 | G88: =G87/78 -> 0.141025641 | I88: =I87/78 -> 0.5897435897 | K88: =K87/78 -> 0.5512820513 | M88: =M87/78 -> 0.5 | O88: =O87/78 -> 0.5769230769 | Q88: =Q87/78 -> 0.4358974359 | S88: =S87/78 -> 0.4230769231 | U88: =U87/78 -> 0 | W88: =W87/78 -> 0.1282051282 | Y88: =Y87/78 -> 0.6923076923 | AA88: =AA87/78 -> 0.07692307692
A90: FonteVacina e Confia, em 09 de Maio de 2024.**
A91: **Dados referente às doses aplicadas no período de Abril de 2024
A92: Cobertura Calculada por município de procedência da vacinação
A93: 1 População anual extraída do MS/SVS/DASIS - SINASC/DASIS/SVS/MS 2023 (hoje preliminares) referente ao período de março a dezembro de 2023 e SINASC/DASIS/SVS/MS 2024 referente ao período de janeiro a fevereiro de 2024.
A95: ² População proporcional extraída do MS/SVS/DASIS - SINASC/DASIS/SVS/MS 2023 (hoje preliminares) referente ao período de março e abril de 2023 somada a população extraída do SINASC/DASIS/SVS/MS 2024 referente ao período de janeiro e fevereiro de 2024.
A97: Observações:
A98: Imunobiológicos que foram recebidos parcialmente pelo estado no mês da análise, sendo distribuídos em quantidades reduzidas às regionais e municípios: Varicela, Febre Amarela e HPV Quadrivalente.
A99: Imunobiológicos que não foram recebidos pelo estado no mês da análise, não sendo possível a distribuição às regionais e municípios: Meningo C, Hepatite A (CRIE), HIB, Hepatite A Rotina Pediátrica, DTPa (CRIE).
A100: Imunobiológicos com indisponibilidade de aquisição e distribuição no mês da análise: Tetra Viral.

Sheet CV Rotina <2A - residência
E1: AO NASCER | I1: MENOR DE 1 ANO | W1: 1 ANO
A2: Regional | B2: Município | C2: ¹População < 1 ano e 1 ano anual | D2: ²População < 1 ano e 1 ano proporcional | E2: Doses Aplicadas HB < 30 dias | F2: Cobertura Vacinal HB até 30 dias | G2: Doses Aplicadas BCG | H2: Cobertura Vacinal BCG | I2: Doses Aplicadas Pentavalente | J2: Cobertura Vacinal Pentavalente | K2: Doses Aplicadas Poliomielite | L2: Cobertura Vacinal Poliomielite | M2: Doses Aplicadas Pneumo 10 | N2: Cobertura Vacinal Pneumo 10 | O2: Doses Aplicadas Rotavírus | P2: Cobertura Vacinal Rotavírus | Q2: Doses Aplicadas Meningo C | R2: Cobertura Vacinal Meningo C | S2: Doses Aplicadas Febre Amarela | T2: Cobertura Vacinal Febre Amarela | U2: Doses Aplicadas COVID-19 | V2: Cobertura Vacinal COVID-19 | W2: Doses Aplicadas Hepatite A | X2: Cobertura Vacinal Hepatite A | Y2: Doses Aplicadas de Tríplice Viral | Z2: Cobertura Vacinal Tríplice Viral | AA2: Doses Aplicadas Varicela | AB2: Cobertura Varicela | AE2: VACINAS QUE ATINGIRAM A META DE CV | AF2: HOMOGENEIDADE ENTRE AS 10 VACINAS | AG2: VACINAS DO PQA-VS QUE ATINGIRAM A META DE CV | AH2: HOMOGENEIDADE ENTRE AS VACINAS DO PQA-VS
A3: Metropolitana | B3: Afonso Cláudio | C3: 384 | D3: 126 | E3: 101 | F3: =E3/D3 -> 0.8015873016 | G3: 108 | H3: =G3/D3 -> 0.8571428571 | I3: 134 | J3: =I3/D3 -> 1.063492063 | K3: 134 | L3: =K3/D3 -> 1.063492063 | M3: 116 | N3: =M3/D3 -> 0.9206349206 | O3: 120 | P3: =O3/D3 -> 0.9523809524 | Q3: 127 | R3: =Q3/D3 -> 1.007936508 | S3: 115 | T3: =S3/D3 -> 0.9126984127 | U3: 0 | V3: =U3/D3 -> 0 | W3: 108 | X3: =W3/D3 -> 0.8571428571 | Y3: 151 | Z3: =Y3/D3 -> 1.198412698 | AA3: 76 | AB3: =AA3/D3 -> 0.6031746032 | AE3: =cálculos2!P2 -> 5 | AF3: =AE3*0.1 -> 0.5 | AG3: =cálculos2!Q2 -> 3 | AH3: =AG3*0.25 -> 0.75 | AJ3: LEGENDA / HOMOGENEIDADE PQA-VS
A4: Norte | B4: Água Doce do Norte | C4: 170 | D4: 61 | E4: 68 | F4: 1.114754098 | G4: 71 | H4: =G4/D4 -> 1.163934426 | I4: 55 | J4: =I4/D4 -> 0.9016393443 | K4: 57 | L4: =K4/D4 -> 0.9344262295 | M4: 53 | N4: =M4/D4 -> 0.868852459 | O4: 49 | P4: =O4/D4 -> 0.8032786885 | Q4: 57 | R4: =Q4/D4 -> 0.9344262295 | S4: 50 | T4: =S4/D4 -> 0.8196721311 | U4: 0 | V4: =U4/D4 -> 0 | W4: 42 | X4: =W4/D4 -> 0.6885245902 | Y4: 47 | Z4: =Y4/D4 -> 0.7704918033 | AA4: 22 | AB4: =AA4/D4 -> 0.3606557377 | AE4: =cálculos2!P3 -> 1 | AF4: =AE4*0.1 -> 0.1 | AG4: =cálculos2!Q3 -> 0 | AH4: =AG4*0.25 -> 0 | AJ4: PERCENTUAL | AK4: Nº DE MUNICÍPIOS
A5: Central | B5: Águia Branca | C5: 149 | D5: 39 | E5: 51 | F5: 1.307692308 | G5: 53 | H5: 1.358974359 | I5: 61 | J5: 1.564102564 | K5: 61 | L5: 1.564102564 | M5: 53 | N5: 1.358974359 | O5: 52 | P5: 1.333333333 | Q5: 63 | R5: 1.615384615 | S5: 47 | T5: 1.205128205 | U5: 0 | V5: 0 | W5: 35 | X5: 0.8974358974 | Y5: 38 | Z5: 0.9743589744 | AA5: 22 | AB5: 0.5641025641 | AE5: =cálculos2!P4 -> 8 | AF5: 0.8 | AG5: =cálculos2!Q4 -> 4 | AH5: 1 | AJ5: 0 | AK5: =COUNTIF($AH$3:$AH$80,"=0") -> 21
A6: Sul | B6: Alegre | C6: 327 | D6: 93 | E6: 103 | F6: 1.107526882 | G6: 102 | H6: 1.096774194 | I6: 101 | J6: 1.086021505 | K6: 107 | L6: 1.150537634 | M6: 110 | N6: 1.182795699 | O6: 107 | P6: 1.150537634 | Q6: 105 | R6: 1.129032258 | S6: 108 | T6: 1.161290323 | U6: 1 | V6: 0.01075268817 | W6: 80 | X6: 0.8602150538 | Y6: 101 | Z6: 1.086021505 | AA6: 44 | AB6: 0.4731182796 | AE6: =cálculos2!P5 -> 8 | AF6: 0.8 | AG6: =cálculos2!Q5 -> 4 | AH6: 1 | AJ6: 0.25 | AK6: =COUNTIF($AH$3:$AH$80,"=0,25") -> 12
A7: Sul | B7: Alfredo Chaves | C7: 146 | D7: 46 | E7: 30 | F7: 0.652173913 | G7: 33 | H7: 0.7173913043 | I7: 52 | J7: 1.130434783 | K7: 50 | L7: 1.086956522 | M7: 57 | N7: 1.239130435 | O7: 60 | P7: 1.304347826 | Q7: 61 | R7: 1.326086957 | S7: 48 | T7: 1.043478261 | U7: 0 | V7: 0 | W7: 41 | X7: 0.8913043478 | Y7: 49 | Z7: 1.065217391 | AA7: 36 | AB7: 0.7826086957 | AE7: =cálculos2!P6 -> 7 | AF7: 0.7 | AG7: =cálculos2!Q6 -> 4 | AH7: 1 | AJ7: 0.5 | AK7: =COUNTIF($AH$3:$AH$80,"=0,5") -> 7
A8: Central | B8: Alto Rio Novo | C8: 80 | D8: 21 | E8: 21 | F8: 1 | G8: 22 | H8: 1.047619048 | I8: 33 | J8: 1.571428571 | K8: 32 | L8: 1.523809524 | M8: 31 | N8: 1.476190476 | O8: 32 | P8: 1.523809524 | Q8: 31 | R8: 1.476190476 | S8: 26 | T8: 1.238095238 | U8: 0 | V8: 0 | W8: 25 | X8: 1.19047619 | Y8: 31 | Z8: 1.476190476 | AA8: 16 | AB8: 0.7619047619 | AE8: =cálculos2!P7 -> 9 | AF8: 0.9 | AG8: =cálculos2!Q7 -> 4 | AH8: 1 | AJ8: 0.75 | AK8: =COUNTIF($AH$3:$AH$80,"=0,75") -> 7
A9: Sul | B9: Anchieta | C9: 365 | D9: 109 | E9: 114 | F9: 1.04587156 | G9: 120 | H9: 1.100917431 | I9: 134 | J9: 1.229357798 | K9: 136 | L9: 1.247706422 | M9: 136 | N9: 1.247706422 | O9: 136 | P9: 1.247706422 | Q9: 137 | R9: 1.256880734 | S9: 93 | T9: 0.8532110092 | U9: 5 | V9: 0.04587155963 | W9: 105 | X9: 0.9633027523 | Y9: 131 | Z9: 1.201834862 | AA9: 78 | AB9: 0.7155963303 | AE9: =cálculos2!P8 -> 8 | AF9: 0.8 | AG9: =cálculos2!Q8 -> 4 | AH9: 1 | AJ9: 1 | AK9: =COUNTIF($AH$3:$AH$80,"=1,0") -> 31
A10: Sul | B10: Apiacá | C10: 64 | D10: 20 | E10: 14 | F10: 0.7 | G10: 20 | H10: 1 | I10: 17 | J10: 0.85 | K10: 17 | L10: 0.85 | M10: 22 | N10: 1.1 | O10: 21 | P10: 1.05 | Q10: 17 | R10: 0.85 | S10: 20 | T10: 1 | U10: 0 | V10: 0 | W10: 4 | X10: 0.2 | Y10: 15 | Z10: 0.75 | AA10: 4 | AB10: 0.2 | AE10: =cálculos2!P9 -> 4 | AF10: 0.4 | AG10: =cálculos2!Q9 -> 1 | AH10: 0.25
A11: Metropolitana | B11: Aracruz | C11: 1456 | D11: 490 | E11: 484 | F11: 0.987755102 | G11: 480 | H11: 0.9795918367 | I11: 426 | J11: 0.8693877551 | K11: 428 | L11: 0.8734693878 | M11: 444 | N11: 0.906122449 | O11: 443 | P11: 0.9040816327 | Q11: 443 | R11: 0.9040816327 | S11: 400 | T11: 0.8163265306 | U11: 12 | V11: 0.02448979592 | W11: 430 | X11: 0.8775510204 | Y11: 517 | Z11: 1.055102041 | AA11: 334 | AB11: 0.6816326531 | AE11: =cálculos2!P10 -> 3 | AF11: 0.3 | AG11: =cálculos2!Q10 -> 1 | AH11: 0.25
A12: Sul | B12: Atilio Vivacqua | C12: 133 | D12: 42 | E12: 40 | F12: 0.9523809524 | G12: 38 | H12: 0.9047619048 | I12: 38 | J12: 0.9047619048 | K12: 37 | L12: 0.880952381 | M12: 39 | N12: 0.9285714286 | O12: 39 | P12: 0.9285714286 | Q12: 42 | R12: 1 | S12: 32 | T12: 0.7619047619 | U12: 0 | V12: 0 | W12: 30 | X12: 0.7142857143 | Y12: 43 | Z12: 1.023809524 | AA12: 31 | AB12: 0.7380952381 | AE12: =cálculos2!P11 -> 4 | AF12: 0.4 | AG12: =cálculos2!Q11 -> 1 | AH12: 0.25 | AJ12: LEGENDA / HOMOGENEIDADE 10 VACINAS
A13: Central | B13: Baixo Guandu | C13: 364 | D13: 105 | E13: 103 | F13: 0.980952381 | G13: 130 | H13: 1.238095238 | I13: 141 | J13: 1.342857143 | K13: 142 | L13: 1.352380952 | M13: 133 | N13: 1.266666667 | O13: 131 | P13: 1.247619048 | Q13: 137 | R13: 1.304761905 | S13: 107 | T13: 1.019047619 | U13: 0 | V13: 0 | W13: 120 | X13: 1.142857143 | Y13: 164 | Z13: 1.561904762 | AA13: 96 | AB13: 0.9142857143 | AE13: =cálculos2!P12 -> 9 | AF13: 0.9 | AG13: =cálculos2!Q12 -> 4 | AH13: 1 | AJ13: PERCENTUAL | AK13: Nº DE MUNICÍPIOS
A14: Norte | B14: Barra de São Francisco | C14: 534 | D14: 166 | E14: 162 | F14: 0.9759036145 | G14: 157 | H14: 0.9457831325 | I14: 164 | J14: 0.9879518072 | K14: 159 | L14: 0.9578313253 | M14: 172 | N14: 1.036144578 | O14: 166 | P14: 1 | Q14: 176 | R14: 1.060240964 | S14: 170 | T14: 1.024096386 | U14: 0 | V14: 0 | W14: 143 | X14: 0.8614457831 | Y14: 195 | Z14: 1.174698795 | AA14: 140 | AB14: 0.843373494 | AE14: =cálculos2!P13 -> 8 | AF14: 0.8 | AG14: =cálculos2!Q13 -> 4 | AH14: 1 | AJ14: 0 | AK14: =COUNTIF($AF$3:$AF$80,"=0") -> 12
A15: Norte | B15: Boa Esperança | C15: 199 | D15: 72 | E15: 40 | F15: 0.5555555556 | G15: 57 | H15: 0.7916666667 | I15: 51 | J15: 0.7083333333 | K15: 61 | L15: 0.8472222222 | M15: 68 | N15: 0.9444444444 | O15: 71 | P15: 0.9861111111 | Q15: 64 | R15: 0.8888888889 | S15: 57 | T15: 0.7916666667 | U15: 1 | V15: 0.01388888889 | W15: 44 | X15: 0.6111111111 | Y15: 73 | Z15: 1.013888889 | AA15: 49 | AB15: 0.6805555556 | AE15: =cálculos2!P14 -> 2 | AF15: 0.2 | AG15: =cálculos2!Q14 -> 1 | AH15: 0.25 | AJ15: 0.1 | AK15: =COUNTIFS($AF$3:$AF$80,">=0,10",$AF$3:$AF$80,"<0,20") -> 11
A16: Sul | B16: Bom Jesus do Norte | C16: 83 | D16: 23 | E16: 22 | F16: 0.9565217391 | G16: 25 | H16: 1.086956522 | I16: 47 | J16: 2.043478261 | K16: 45 | L16: 1.956521739 | M16: 36 | N16: 1.565217391 | O16: 35 | P16: 1.52173913 | Q16: 35 | R16: 1.52173913 | S16: 38 | T16: 1.652173913 | U16: 4 | V16: 0.1739130435 | W16: 5 | X16: 0.2173913043 | Y16: 35 | Z16: 1.52173913 | AA16: 5 | AB16: 0.2173913043 | AE16: =cálculos2!P15 -> 8 | AF16: 0.8 | AG16: =cálculos2!Q15 -> 4 | AH16: 1 | AJ16: 0.2 | AK16: =COUNTIFS($AF$3:$AF$80,">=0,20",$AF$3:$AF$80,"<0,30") -> 8
A17: Metropolitana | B17: Brejetuba | C17: 212 | D17: 70 | E17: 26 | F17: 0.3714285714 | G17: 70 | H17: 1 | I17: 67 | J17: 0.9571428571 | K17: 67 | L17: 0.9571428571 | M17: 60 | N17: 0.8571428571 | O17: 62 | P17: 0.8857142857 | Q17: 57 | R17: 0.8142857143 | S17: 69 | T17: 0.9857142857 | U17: 0 | V17: 0 | W17: 59 | X17: 0.8428571429 | Y17: 66 | Z17: 0.9428571429 | AA17: 41 | AB17: 0.5857142857 | AE17: =cálculos2!P16 -> 4 | AF17: 0.4 | AG17: =cálculos2!Q16 -> 2 | AH17: 0.5 | AJ17: 0.3 | AK17: =COUNTIFS($AF$3:$AF$80,">=0,30",$AF$3:$AF$80,"<0,40") -> 4
A18: Sul | B18: Cachoeiro de Itapemirim | C18: 2473 | D18: 863 | E18: 947 | F18: 1.097334878 | G18: 953 | H18: 1.10428737 | I18: 734 | J18: 0.8505214368 | K18: 721 | L18: 0.8354577057 | M18: 692 | N18: 0.8018539977 | O18: 682 | P18: 0.7902665122 | Q18: 691 | R18: 0.8006952491 | S18: 586 | T18: 0.6790266512 | U18: 5 | V18: 0.005793742758 | W18: 614 | X18: 0.7114716107 | Y18: 810 | Z18: 0.9385863268 | AA18: 372 | AB18: 0.4310544612 | AE18: =cálculos2!P17 -> 1 | AF18: 0.1 | AG18: =cálculos2!Q17 -> 0 | AH18: 0 | AJ18: 0.4 | AK18: =COUNTIFS($AF$3:$AF$80,">=0,40",$AF$3:$AF$80,"<0,50") -> 7
A19: Metropolitana | B19: Cariacica | C19: 4917 | D19: 1679 | E19: 1458 | F19: 0.8683740322 | G19: 1459 | H19: 0.8689696248 | I19: 1506 | J19: 0.8969624777 | K19: 1481 | L19: 0.8820726623 | M19: 1476 | N19: 0.8790946992 | O19: 1409 | P19: 0.839189994 | Q19: 1436 | R19: 0.8552709946 | S19: 1199 | T19: 0.714115545 | U19: 32 | V19: 0.01905896367 | W19: 853 | X19: 0.5080405003 | Y19: 1523 | Z19: 0.9070875521 | AA19: 764 | AB19: 0.4550327576 | AE19: =cálculos2!P18 -> 0 | AF19: 0 | AG19: =cálculos2!Q18 -> 0 | AH19: 0 | AJ19: 0.5 | AK19: =COUNTIFS($AF$3:$AF$80,">=0,50",$AF$3:$AF$80,"<0,60") -> 3
A20: Sul | B20: Castelo | C20: 454 | D20: 160 | E20: 132 | F20: 0.825 | G20: 131 | H20: 0.81875 | I20: 140 | J20: 0.875 | K20: 141 | L20: 0.88125 | M20: 137 | N20: 0.85625 | O20: 132 | P20: 0.825 | Q20: 130 | R20: 0.8125 | S20: 134 | T20: 0.8375 | U20: 0 | V20: 0 | W20: 70 | X20: 0.4375 | Y20: 155 | Z20: 0.96875 | AA20: 84 | AB20: 0.525 | AE20: =cálculos2!P19 -> 1 | AF20: 0.1 | AG20: =cálculos2!Q19 -> 1 | AH20: 0.25 | AJ20: 0.6 | AK20: =COUNTIFS($AF$3:$AF$80,">=0,60",$AF$3:$AF$80,"<0,70") -> 6
A21: Central | B21: Colatina | C21: 1532 | D21: 496 | E21: 538 | F21: 1.084677419 | G21: 528 | H21: 1.064516129 | I21: 484 | J21: 0.9758064516 | K21: 471 | L21: 0.9495967742 | M21: 426 | N21: 0.8588709677 | O21: 429 | P21: 0.8649193548 | Q21: 452 | R21: 0.9112903226 | S21: 406 | T21: 0.8185483871 | U21: 5 | V21: 0.01008064516 | W21: 220 | X21: 0.4435483871 | Y21: 482 | Z21: 0.9717741935 | AA21: 284 | AB21: 0.5725806452 | AE21: =cálculos2!P20 -> 3 | AF21: 0.3 | AG21: =cálculos2!Q20 -> 2 | AH21: 0.5 | AJ21: 0.7 | AK21: =COUNTIFS($AF$3:$AF$80,">=0,70",$AF$3:$AF$80,"<0,80") -> 10
A22: Norte | B22: Conceição da Barra | C22: 389 | D22: 136 | E22: 68 | F22: 0.5 | G22: 68 | H22: 0.5 | I22: 108 | J22: 0.7941176471 | K22: 110 | L22: 0.8088235294 | M22: 123 | N22: 0.9044117647 | O22: 116 | P22: 0.8529411765 | Q22: 113 | R22: 0.8308823529 | S22: 128 | T22: 0.9411764706 | U22: 0 | V22: 0 | W22: 80 | X22: 0.5882352941 | Y22: 132 | Z22: 0.9705882353 | AA22: 78 | AB22: 0.5735294118 | AE22: =cálculos2!P21 -> 1 | AF22: 0.1 | AG22: =cálculos2!Q21 -> 1 | AH22: 0.25 | AJ22: 0.8 | AK22: =COUNTIFS($AF$3:$AF$80,">=0,80",$AF$3:$AF$80,"<0,90") -> 11
A23: Metropolitana | B23: Conceição do Castelo | C23: 168 | D23: 60 | E23: 13 | F23: 0.2166666667 | G23: 48 | H23: 0.8 | I23: 43 | J23: 0.7166666667 | K23: 41 | L23: 0.6833333333 | M23: 35 | N23: 0.5833333333 | O23: 34 | P23: 0.5666666667 | Q23: 38 | R23: 0.6333333333 | S23: 51 | T23: 0.85 | U23: 0 | V23: 0 | W23: 37 | X23: 0.6166666667 | Y23: 42 | Z23: 0.7 | AA23: 28 | AB23: 0.4666666667 | AE23: =cálculos2!P22 -> 0 | AF23: 0 | AG23: =cálculos2!Q22 -> 0 | AH23: 0 | AJ23: 0.9 | AK23: =COUNTIFS($AF$3:$AF$80,">=0,90",$AF$3:$AF$80,"<1,0") -> 4
A24: Sul | B24: Divino de São Lourenço | C24: 65 | D24: 21 | E24: 26 | F24: 1.238095238 | G24: 26 | H24: 1.238095238 | I24: 25 | J24: 1.19047619 | K24: 25 | L24: 1.19047619 | M24: 27 | N24: 1.285714286 | O24: 27 | P24: 1.285714286 | Q24: 26 | R24: 1.238095238 | S24: 19 | T24: 0.9047619048 | U24: 0 | V24: 0 | W24: 17 | X24: 0.8095238095 | Y24: 13 | Z24: 0.619047619 | AA24: 13 | AB24: 0.619047619 | AE24: =cálculos2!P23 -> 6 | AF24: 0.6 | AG24: =cálculos2!Q23 -> 3 | AH24: 0.75 | AJ24: 1 | AK24: =COUNTIF($AF$3:$AF$80,">=1,0") -> 2
A25: Metropolitana | B25: Domingos Martins | C25: 411 | D25: 133 | E25: 102 | F25: 0.7669172932 | G25: 123 | H25: 0.9248120301 | I25: 112 | J25: 0.8421052632 | K25: 111 | L25: 0.8345864662 | M25: 132 | N25: 0.992481203 | O25: 128 | P25: 0.962406015 | Q25: 125 | R25: 0.9398496241 | S25: 122 | T25: 0.9172932331 | U25: 3 | V25: 0.02255639098 | W25: 84 | X25: 0.6315789474 | Y25: 141 | Z25: 1.060150376 | AA25: 136 | AB25: 1.022556391 | AE25: =cálculos2!P24 -> 5 | AF25: 0.5 | AG25: =cálculos2!Q24 -> 2 | AH25: 0.5
A26: Sul | B26: Dores do Rio Preto | C26: 97 | D26: 36 | E26: 16 | F26: 0.4444444444 | G26: 20 | H26: 0.5555555556 | I26: 32 | J26: 0.8888888889 | K26: 35 | L26: 0.9722222222 | M26: 36 | N26: 1 | O26: 34 | P26: 0.9444444444 | Q26: 36 | R26: 1 | S26: 30 | T26: 0.8333333333 | U26: 1 | V26: 0.02777777778 | W26: 16 | X26: 0.4444444444 | Y26: 34 | Z26: 0.9444444444 | AA26: 13 | AB26: 0.3611111111 | AE26: =cálculos2!P25 -> 4 | AF26: 0.4 | AG26: =cálculos2!Q25 -> 2 | AH26: 0.5
A27: Norte | B27: Ecoporanga | C27: 256 | D27: 89 | E27: 105 | F27: 1.179775281 | G27: 105 | H27: 1.179775281 | I27: 94 | J27: 1.056179775 | K27: 92 | L27: 1.033707865 | M27: 75 | N27: 0.8426966292 | O27: 73 | P27: 0.8202247191 | Q27: 74 | R27: 0.8314606742 | S27: 79 | T27: 0.8876404494 | U27: 0 | V27: 0 | W27: 62 | X27: 0.6966292135 | Y27: 84 | Z27: 0.9438202247 | AA27: 71 | AB27: 0.797752809 | AE27: =cálculos2!P26 -> 3 | AF27: 0.3 | AG27: =cálculos2!Q26 -> 2 | AH27: 0.5
A28: Metropolitana | B28: Fundão | C28: 220 | D28: 81 | E28: 60 | F28: 0.7407407407 | G28: 63 | H28: 0.7777777778 | I28: 83 | J28: 1.024691358 | K28: 81 | L28: 1 | M28: 68 | N28: 0.8395061728 | O28: 70 | P28: 0.8641975309 | Q28: 72 | R28: 0.8888888889 | S28: 68 | T28: 0.8395061728 | U28: 1 | V28: 0.01234567901 | W28: 65 | X28: 0.8024691358 | Y28: 67 | Z28: 0.8271604938 | AA28: 59 | AB28: 0.7283950617 | AE28: =cálculos2!P27 -> 2 | AF28: 0.2 | AG28: =cálculos2!Q27 -> 2 | AH28: 0.5
A29: Central | B29: Governador Lindenberg | C29: 147 | D29: 52 | E29: 36 | F29: 0.6923076923 | G29: 36 | H29: 0.6923076923 | I29: 45 | J29: 0.8653846154 | K29: 43 | L29: 0.8269230769 | M29: 45 | N29: 0.8653846154 | O29: 46 | P29: 0.8846153846 | Q29: 44 | R29: 0.8461538462 | S29: 50 | T29: 0.9615384615 | U29: 1 | V29: 0.01923076923 | W29: 33 | X29: 0.6346153846 | Y29: 32 | Z29: 0.6153846154 | AA29: 31 | AB29: 0.5961538462 | AE29: =cálculos2!P28 -> 1 | AF29: 0.1 | AG29: =cálculos2!Q28 -> 0 | AH29: 0
A30: Sul | B30: Guaçuí | C30: 406 | D30: 131 | E30: 103 | F30: 0.786259542 | G30: 114 | H30: 0.8702290076 | I30: 149 | J30: 1.13740458 | K30: 145 | L30: 1.106870229 | M30: 133 | N30: 1.015267176 | O30: 123 | P30: 0.9389312977 | Q30: 136 | R30: 1.038167939 | S30: 114 | T30: 0.8702290076 | U30: 0 | V30: 0 | W30: 112 | X30: 0.8549618321 | Y30: 144 | Z30: 1.099236641 | AA30: 77 | AB30: 0.5877862595 | AE30: =cálculos2!P29 -> 6 | AF30: 0.6 | AG30: =cálculos2!Q29 -> 4 | AH30: 1
A31: Metropolitana | B31: Guarapari | C31: 1741 | D31: 578 | E31: 480 | F31: 0.830449827 | G31: 540 | H31: 0.9342560554 | I31: 504 | J31: 0.8719723183 | K31: 487 | L31: 0.8425605536 | M31: 519 | N31: 0.8979238754 | O31: 504 | P31: 0.8719723183 | Q31: 507 | R31: 0.8771626298 | S31: 382 | T31: 0.660899654 | U31: 2 | V31: 0.003460207612 | W31: 382 | X31: 0.660899654 | Y31: 490 | Z31: 0.8477508651 | AA31: 313 | AB31: 0.5415224913 | AE31: =cálculos2!P30 -> 1 | AF31: 0.1 | AG31: =cálculos2!Q30 -> 0 | AH31: 0
A32: Metropolitana | B32: Ibatiba | C32: 361 | D32: 112 | E32: 68 | F32: 0.6071428571 | G32: 127 | H32: 1.133928571 | I32: 128 | J32: 1.142857143 | K32: 127 | L32: 1.133928571 | M32: 119 | N32: 1.0625 | O32: 110 | P32: 0.9821428571 | Q32: 134 | R32: 1.196428571 | S32: 104 | T32: 0.9285714286 | U32: 4 | V32: 0.03571428571 | W32: 82 | X32: 0.7321428571 | Y32: 110 | Z32: 0.9821428571 | AA32: 33 | AB32: 0.2946428571 | AE32: =cálculos2!P31 -> 7 | AF32: 0.7 | AG32: =cálculos2!Q31 -> 4 | AH32: 1
A33: Metropolitana | B33: Ibiraçu | C33: 153 | D33: 58 | E33: 44 | F33: 0.7586206897 | G33: 43 | H33: 0.7413793103 | I33: 43 | J33: 0.7413793103 | K33: 41 | L33: 0.7068965517 | M33: 39 | N33: 0.6724137931 | O33: 37 | P33: 0.6379310345 | Q33: 44 | R33: 0.7586206897 | S33: 47 | T33: 0.8103448276 | U33: 3 | V33: 0.05172413793 | W33: 25 | X33: 0.4310344828 | Y33: 41 | Z33: 0.7068965517 | AA33: 21 | AB33: 0.3620689655 | AE33: =cálculos2!P32 -> 0 | AF33: 0 | AG33: =cálculos2!Q32 -> 0 | AH33: 0
A34: Sul | B34: Ibitirama | C34: 127 | D34: 37 | E34: 37 | F34: 1 | G34: 41 | H34: 1.108108108 | I34: 37 | J34: 1 | K34: 37 | L34: 1 | M34: 38 | N34: 1.027027027 | O34: 40 | P34: 1.081081081 | Q34: 36 | R34: 0.972972973 | S34: 23 | T34: 0.6216216216 | U34: 0 | V34: 0 | W34: 29 | X34: 0.7837837838 | Y34: 42 | Z34: 1.135135135 | AA34: 28 | AB34: 0.7567567568 | AE34: =cálculos2!P33 -> 7 | AF34: 0.7 | AG34: =cálculos2!Q33 -> 4 | AH34: 1
A35: Sul | B35: Iconha | C35: 115 | D35: 36 | E35: 31 | F35: =E35/D35 -> 0.8611111111 | G35: 28 | H35: 0.7777777778 | I35: 39 | J35: 1.083333333 | K35: 36 | L35: 1 | M35: 42 | N35: 1.166666667 | O35: 42 | P35: 1.166666667 | Q35: 33 | R35: 0.9166666667 | S35: 42 | T35: 1.166666667 | U35: 1 | V35: 0.02777777778 | W35: 28 | X35: 0.7777777778 | Y35: 59 | Z35: 1.638888889 | AA35: 17 | AB35: 0.4722222222 | AE35: =cálculos2!P34 -> 6 | AF35: 0.6 | AG35: =cálculos2!Q34 -> 4 | AH35: 1
A36: Sul | B36: Irupi | C36: 195 | D36: 59 | E36: 48 | F36: 0.813559322 | G36: 55 | H36: 0.9322033898 | I36: 68 | J36: 1.152542373 | K36: 67 | L36: 1.13559322 | M36: 77 | N36: 1.305084746 | O36: 72 | P36: 1.220338983 | Q36: 78 | R36: 1.322033898 | S36: 57 | T36: 0.9661016949 | U36: 5 | V36: 0.08474576271 | W36: 58 | X36: 0.9830508475 | Y36: 94 | Z36: 1.593220339 | AA36: 26 | AB36: 0.4406779661 | AE36: =cálculos2!P35 -> 9 | AF36: 0.9 | AG36: =cálculos2!Q35 -> 4 | AH36: 1
A37: Metropolitana | B37: Itaguaçu | C37: 129 | D37: 37 | E37: 48 | F37: 1.297297297 | G37: 50 | H37: 1.351351351 | I37: 42 | J37: 1.135135135 | K37: 41 | L37: 1.108108108 | M37: 40 | N37: 1.081081081 | O37: 40 | P37: 1.081081081 | Q37: 45 | R37: 1.216216216 | S37: 42 | T37: 1.135135135 | U37: 0 | V37: 0 | W37: 47 | X37: 1.27027027 | Y37: 48 | Z37: 1.297297297 | AA37: 43 | AB37: 1.162162162 | AE37: =cálculos2!P36 -> 10 | AF37: 1 | AG37: =cálculos2!Q36 -> 4 | AH37: 1
A38: Sul | B38: Itapemirim | C38: 543 | D38: 157 | E38: 142 | F38: 0.9044585987 | G38: 146 | H38: 0.9299363057 | I38: 154 | J38: 0.9808917197 | K38: 153 | L38: 0.974522293 | M38: 179 | N38: 1.140127389 | O38: 160 | P38: 1.01910828 | Q38: 155 | R38: 0.9872611465 | S38: 108 | T38: 0.6878980892 | U38: 0 | V38: 0 | W38: 155 | X38: 0.9872611465 | Y38: 178 | Z38: 1.133757962 | AA38: 100 | AB38: 0.6369426752 | AE38: =cálculos2!P37 -> 8 | AF38: 0.8 | AG38: =cálculos2!Q37 -> 4 | AH38: 1
A39: Metropolitana | B39: Itarana | C39: 143 | D39: 51 | E39: 51 | F39: 1 | G39: 56 | H39: 1.098039216 | I39: 40 | J39: 0.7843137255 | K39: 41 | L39: 0.8039215686 | M39: 37 | N39: 0.7254901961 | O39: 37 | P39: 0.7254901961 | Q39: 34 | R39: 0.6666666667 | S39: 53 | T39: 1.039215686 | U39: 0 | V39: 0 | W39: 19 | X39: 0.3725490196 | Y39: 40 | Z39: 0.7843137255 | AA39: 36 | AB39: 0.7058823529 | AE39: =cálculos2!P38 -> 2 | AF39: 0.2 | AG39: =cálculos2!Q38 -> 0 | AH39: 0
A40: Sul | B40: Iúna | C40: 481 | D40: 154 | E40: 104 | F40: 0.6753246753 | G40: 105 | H40: 0.6818181818 | I40: 159 | J40: 1.032467532 | K40: 155 | L40: 1.006493506 | M40: 162 | N40: 1.051948052 | O40: 160 | P40: 1.038961039 | Q40: 157 | R40: 1.019480519 | S40: 142 | T40: 0.9220779221 | U40: 0 | V40: 0 | W40: 91 | X40: 0.5909090909 | Y40: 162 | Z40: 1.051948052 | AA40: 81 | AB40: 0.525974026 | AE40: =cálculos2!P39 -> 6 | AF40: 0.6 | AG40: =cálculos2!Q39 -> 4 | AH40: 1
A41: Norte | B41: Jaguaré | C41: 487 | D41: 154 | E41: 161 | F41: 1.045454545 | G41: 143 | H41: 0.9285714286 | I41: 157 | J41: 1.019480519 | K41: 166 | L41: 1.077922078 | M41: 157 | N41: 1.019480519 | O41: 153 | P41: 0.9935064935 | Q41: 150 | R41: 0.974025974 | S41: 150 | T41: 0.974025974 | U41: 3 | V41: 0.01948051948 | W41: 105 | X41: 0.6818181818 | Y41: 155 | Z41: 1.006493506 | AA41: 94 | AB41: 0.6103896104 | AE41: =cálculos2!P40 -> 8 | AF41: 0.8 | AG41: =cálculos2!Q40 -> 4 | AH41: 1
A42: Sul | B42: Jerônimo Monteiro | C42: 160 | D42: 49 | E42: 50 | F42: 1.020408163 | G42: 51 | H42: 1.040816327 | I42: 64 | J42: 1.306122449 | K42: 64 | L42: 1.306122449 | M42: 54 | N42: 1.102040816 | O42: 54 | P42: 1.102040816 | Q42: 47 | R42: 0.9591836735 | S42: 50 | T42: 1.020408163 | U42: 2 | V42: 0.04081632653 | W42: 29 | X42: 0.5918367347 | Y42: 47 | Z42: 0.9591836735 | AA42: 18 | AB42: 0.3673469388 | AE42: =cálculos2!P41 -> 8 | AF42: 0.8 | AG42: =cálculos2!Q41 -> 4 | AH42: 1
A43: Metropolitana | B43: João Neiva | C43: 180 | D43: 59 | E43: 45 | F43: 0.7627118644 | G43: 45 | H43: 0.7627118644 | I43: 59 | J43: 1 | K43: 57 | L43: 0.9661016949 | M43: 59 | N43: 1 | O43: 58 | P43: 0.9830508475 | Q43: 55 | R43: 0.9322033898 | S43: 57 | T43: 0.9661016949 | U43: 1 | V43: 0.01694915254 | W43: 38 | X43: 0.6440677966 | Y43: 67 | Z43: 1.13559322 | AA43: 30 | AB43: 0.5084745763 | AE43: =cálculos2!P42 -> 6 | AF43: 0.6 | AG43: =cálculos2!Q42 -> 4 | AH43: 1
A44: Metropolitana | B44: Laranja da Terra | C44: 98 | D44: 37 | E44: 27 | F44: 0.7297297297 | G44: 28 | H44: 0.7567567568 | I44: 29 | J44: 0.7837837838 | K44: 29 | L44: 0.7837837838 | M44: 22 | N44: 0.5945945946 | O44: 23 | P44: 0.6216216216 | Q44: 27 | R44: 0.7297297297 | S44: 40 | T44: 1.081081081 | U44: 5 | V44: 0.1351351351 | W44: 29 | X44: 0.7837837838 | Y44: 50 | Z44: 1.351351351 | AA44: 28 | AB44: 0.7567567568 | AE44: =cálculos2!P43 -> 2 | AF44: 0.2 | AG44: =cálculos2!Q43 -> 1 | AH44: 0.25
A45: Central | B45: Linhares | C45: 2574 | D45: 863 | E45: 720 | F45: 0.8342989571 | G45: 734 | H45: 0.8505214368 | I45: 735 | J45: 0.8516801854 | K45: 732 | L45: 0.8482039397 | M45: 704 | N45: 0.8157589803 | O45: 733 | P45: 0.8493626883 | Q45: 686 | R45: 0.7949015064 | S45: 658 | T45: 0.7624565469 | U45: 1 | V45: 0.001158748552 | W45: 458 | X45: 0.5307068366 | Y45: 747 | Z45: 0.865585168 | AA45: 445 | AB45: 0.5156431054 | AE45: =cálculos2!P44 -> 0 | AF45: 0 | AG45: =cálculos2!Q44 -> 0 | AH45: 0
A46: Central | B46: Mantenópolis | C46: 156 | D46: 51 | E46: 46 | F46: 0.9019607843 | G46: 55 | H46: 1.078431373 | I46: 49 | J46: 0.9607843137 | K46: 53 | L46: 1.039215686 | M46: 42 | N46: 0.8235294118 | O46: 40 | P46: 0.7843137255 | Q46: 40 | R46: 0.7843137255 | S46: 48 | T46: 0.9411764706 | U46: 0 | V46: 0 | W46: 41 | X46: 0.8039215686 | Y46: 54 | Z46: 1.058823529 | AA46: 34 | AB46: 0.6666666667 | AE46: =cálculos2!P45 -> 4 | AF46: 0.4 | AG46: =cálculos2!Q45 -> 3 | AH46: 0.75
A47: Sul | B47: Marataízes | C47: 556 | D47: 206 | E47: 191 | F47: 0.927184466 | G47: 178 | H47: 0.8640776699 | I47: 171 | J47: 0.8300970874 | K47: 175 | L47: 0.8495145631 | M47: 175 | N47: 0.8495145631 | O47: 172 | P47: 0.8349514563 | Q47: 179 | R47: 0.8689320388 | S47: 124 | T47: 0.6019417476 | U47: 0 | V47: 0 | W47: 153 | X47: 0.7427184466 | Y47: 180 | Z47: 0.8737864078 | AA47: 96 | AB47: 0.4660194175 | AE47: =cálculos2!P46 -> 0 | AF47: 0 | AG47: =cálculos2!Q46 -> 0 | AH47: 0
A48: Metropolitana | B48: Marechal Floriano | C48: 237 | D48: 88 | E48: 56 | F48: 0.6363636364 | G48: 59 | H48: 0.6704545455 | I48: 57 | J48: 0.6477272727 | K48: 58 | L48: 0.6590909091 | M48: 77 | N48: 0.875 | O48: 76 | P48: 0.8636363636 | Q48: 72 | R48: 0.8181818182 | S48: 50 | T48: 0.5681818182 | U48: 2 | V48: 0.02272727273 | W48: 55 | X48: 0.625 | Y48: 80 | Z48: 0.9090909091 | AA48: 47 | AB48: 0.5340909091 | AE48: =cálculos2!P47 -> 0 | AF48: 0 | AG48: =cálculos2!Q47 -> 0 | AH48: 0
A49: Central | B49: Marilândia | C49: 157 | D49: 37 | E49: 48 | F49: 1.297297297 | G49: 49 | H49: 1.324324324 | I49: 57 | J49: 1.540540541 | K49: 57 | L49: 1.540540541 | M49: 48 | N49: 1.297297297 | O49: 49 | P49: 1.324324324 | Q49: 59 | R49: 1.594594595 | S49: 47 | T49: 1.27027027 | U49: 0 | V49: 0 | W49: 42 | X49: 1.135135135 | Y49: 51 | Z49: 1.378378378 | AA49: 43 | AB49: 1.162162162 | AE49: =cálculos2!P48 -> 10 | AF49: 1 | AG49: =cálculos2!Q48 -> 4 | AH49: 1
A50: Sul | B50: Mimoso do Sul | C50: 254 | D50: 71 | E50: 68 | F50: 0.9577464789 | G50: 70 | H50: 0.985915493 | I50: 79 | J50: 1.112676056 | K50: 79 | L50: 1.112676056 | M50: 80 | N50: 1.126760563 | O50: 77 | P50: 1.084507042 | Q50: 78 | R50: 1.098591549 | S50: 59 | T50: 0.8309859155 | U50: 0 | V50: 0 | W50: 54 | X50: 0.7605633803 | Y50: 71 | Z50: 1 | AA50: 44 | AB50: 0.6197183099 | AE50: =cálculos2!P49 -> 7 | AF50: 0.7 | AG50: =cálculos2!Q49 -> 4 | AH50: 1
A51: Norte | B51: Montanha | C51: 259 | D51: 77 | E51: 47 | F51: 0.6103896104 | G51: 46 | H51: 0.5974025974 | I51: 97 | J51: 1.25974026 | K51: 99 | L51: 1.285714286 | M51: 81 | N51: 1.051948052 | O51: 82 | P51: 1.064935065 | Q51: 82 | R51: 1.064935065 | S51: 80 | T51: 1.038961039 | U51: 1 | V51: 0.01298701299 | W51: 79 | X51: 1.025974026 | Y51: 84 | Z51: 1.090909091 | AA51: 64 | AB51: 0.8311688312 | AE51: =cálculos2!P50 -> 8 | AF51: 0.8 | AG51: =cálculos2!Q50 -> 4 | AH51: 1
A52: Norte | B52: Mucurici | C52: 73 | D52: 19 | E52: 11 | F52: 0.5789473684 | G52: 12 | H52: 0.6315789474 | I52: 28 | J52: 1.473684211 | K52: 28 | L52: 1.473684211 | M52: 30 | N52: 1.578947368 | O52: 30 | P52: 1.578947368 | Q52: 24 | R52: 1.263157895 | S52: 32 | T52: 1.684210526 | U52: 0 | V52: 0 | W52: 16 | X52: 0.8421052632 | Y52: 31 | Z52: 1.631578947 | AA52: 15 | AB52: 0.7894736842 | AE52: =cálculos2!P51 -> 7 | AF52: 0.7 | AG52: =cálculos2!Q51 -> 4 | AH52: 1
A53: Sul | B53: Muniz Freire | C53: 221 | D53: 72 | E53: 61 | F53: 0.8472222222 | G53: 64 | H53: 0.8888888889 | I53: 83 | J53: 1.152777778 | K53: 78 | L53: 1.083333333 | M53: 77 | N53: 1.069444444 | O53: 74 | P53: 1.027777778 | Q53: 76 | R53: 1.055555556 | S53: 81 | T53: 1.125 | U53: 0 | V53: 0 | W53: 62 | X53: 0.8611111111 | Y53: 86 | Z53: 1.194444444 | AA53: 39 | AB53: 0.5416666667 | AE53: =cálculos2!P52 -> 7 | AF53: 0.7 | AG53: =cálculos2!Q52 -> 4 | AH53: 1
A54: Sul | B54: Muqui | C54: 165 | D54: 43 | E54: 43 | F54: 1 | G54: 43 | H54: 1 | I54: 63 | J54: 1.465116279 | K54: 64 | L54: 1.488372093 | M54: 45 | N54: 1.046511628 | O54: 43 | P54: 1 | Q54: 54 | R54: 1.255813953 | S54: 48 | T54: 1.11627907 | U54: 4 | V54: 0.09302325581 | W54: 32 | X54: 0.7441860465 | Y54: 53 | Z54: 1.23255814 | AA54: 32 | AB54: 0.7441860465 | AE54: =cálculos2!P53 -> 8 | AF54: 0.8 | AG54: =cálculos2!Q53 -> 4 | AH54: 1
A55: Norte | B55: Nova Venécia | C55: 683 | D55: 225 | E55: 112 | F55: 0.4977777778 | G55: 199 | H55: 0.8844444444 | I55: 243 | J55: 1.08 | K55: 244 | L55: 1.084444444 | M55: 198 | N55: 0.88 | O55: 190 | P55: 0.8444444444 | Q55: 212 | R55: 0.9422222222 | S55: 215 | T55: 0.9555555556 | U55: 0 | V55: 0 | W55: 165 | X55: 0.7333333333 | Y55: 216 | Z55: 0.96 | AA55: 153 | AB55: 0.68 | AE55: =cálculos2!P54 -> 4 | AF55: 0.4 | AG55: =cálculos2!Q54 -> 3 | AH55: 0.75
A56: Central | B56: Pancas | C56: 208 | D56: 56 | E56: 68 | F56: 1.214285714 | G56: 62 | H56: 1.107142857 | I56: 85 | J56: 1.517857143 | K56: 84 | L56: 1.5 | M56: 80 | N56: 1.428571429 | O56: 77 | P56: 1.375 | Q56: 82 | R56: 1.464285714 | S56: 65 | T56: 1.160714286 | U56: 1 | V56: 0.01785714286 | W56: 50 | X56: 0.8928571429 | Y56: 68 | Z56: 1.214285714 | AA56: 75 | AB56: 1.339285714 | AE56: =cálculos2!P55 -> 9 | AF56: 0.9 | AG56: =cálculos2!Q55 -> 4 | AH56: 1
A57: Norte | B57: Pedro Canário | C57: 335 | D57: 129 | E57: 62 | F57: 0.480620155 | G57: 66 | H57: 0.511627907 | I57: 108 | J57: 0.8372093023 | K57: 109 | L57: 0.8449612403 | M57: 88 | N57: 0.6821705426 | O57: 84 | P57: 0.6511627907 | Q57: 88 | R57: 0.6821705426 | S57: 103 | T57: 0.7984496124 | U57: 0 | V57: 0 | W57: 66 | X57: 0.511627907 | Y57: 133 | Z57: 1.031007752 | AA57: 83 | AB57: 0.6434108527 | AE57: =cálculos2!P56 -> 1 | AF57: 0.1 | AG57: =cálculos2!Q56 -> 1 | AH57: 0.25
A58: Norte | B58: Pinheiros | C58: 330 | D58: 109 | E58: 49 | F58: 0.4495412844 | G58: 47 | H58: 0.4311926606 | I58: 109 | J58: 1 | K58: 108 | L58: 0.9908256881 | M58: 97 | N58: 0.8899082569 | O58: 93 | P58: 0.8532110092 | Q58: 96 | R58: 0.880733945 | S58: 101 | T58: 0.9266055046 | U58: 0 | V58: 0 | W58: 72 | X58: 0.6605504587 | Y58: 107 | Z58: 0.9816513761 | AA58: 44 | AB58: 0.4036697248 | AE58: =cálculos2!P57 -> 3 | AF58: 0.3 | AG58: =cálculos2!Q57 -> 3 | AH58: 0.75
A59: Sul | B59: Piúma | C59: 292 | D59: 83 | E59: 85 | F59: 1.024096386 | G59: 83 | H59: 1 | I59: 94 | J59: 1.13253012 | K59: 93 | L59: 1.120481928 | M59: 96 | N59: 1.156626506 | O59: 87 | P59: 1.048192771 | Q59: 79 | R59: 0.9518072289 | S59: 64 | T59: 0.7710843373 | U59: 2 | V59: 0.02409638554 | W59: 75 | X59: 0.9036144578 | Y59: 107 | Z59: 1.289156627 | AA59: 54 | AB59: 0.6506024096 | AE59: =cálculos2!P58 -> 7 | AF59: 0.7 | AG59: =cálculos2!Q58 -> 4 | AH59: 1
A60: Norte | B60: Ponto Belo | C60: 81 | D60: 21 | E60: 13 | F60: 0.619047619 | G60: 13 | H60: 0.619047619 | I60: 13 | J60: 0.619047619 | K60: 13 | L60: 0.619047619 | M60: 23 | N60: 1.095238095 | O60: 22 | P60: 1.047619048 | Q60: 16 | R60: 0.7619047619 | S60: 26 | T60: 1.238095238 | U60: 0 | V60: 0 | W60: 13 | X60: 0.619047619 | Y60: 22 | Z60: 1.047619048 | AA60: 15 | AB60: 0.7142857143 | AE60: =cálculos2!P59 -> 4 | AF60: 0.4 | AG60: =cálculos2!Q59 -> 2 | AH60: 0.5
A61: Sul | B61: Presidente Kennedy | C61: 193 | D61: 73 | E61: 76 | F61: 1.04109589 | G61: 79 | H61: 1.082191781 | I61: 62 | J61: 0.8493150685 | K61: 66 | L61: 0.904109589 | M61: 43 | N61: 0.5890410959 | O61: 45 | P61: 0.6164383562 | Q61: 53 | R61: 0.7260273973 | S61: 51 | T61: 0.698630137 | U61: 0 | V61: 0 | W61: 52 | X61: 0.7123287671 | Y61: 81 | Z61: 1.109589041 | AA61: 39 | AB61: 0.5342465753 | AE61: =cálculos2!P60 -> 2 | AF61: 0.2 | AG61: =cálculos2!Q60 -> 1 | AH61: 0.25
A62: Central | B62: Rio Bananal | C62: 297 | D62: 99 | E62: 86 | F62: 0.8686868687 | G62: 87 | H62: 0.8787878788 | I62: 90 | J62: 0.9090909091 | K62: 90 | L62: 0.9090909091 | M62: 79 | N62: 0.797979798 | O62: 86 | P62: 0.8686868687 | Q62: 80 | R62: 0.8080808081 | S62: 99 | T62: 1 | U62: 5 | V62: 0.05050505051 | W62: 70 | X62: 0.7070707071 | Y62: 96 | Z62: 0.9696969697 | AA62: 68 | AB62: 0.6868686869 | AE62: =cálculos2!P61 -> 2 | AF62: 0.2 | AG62: =cálculos2!Q61 -> 1 | AH62: 0.25
A63: Sul | B63: Rio Novo do Sul | C63: 121 | D63: 35 | E63: 30 | F63: 0.8571428571 | G63: 29 | H63: 0.8285714286 | I63: 42 | J63: 1.2 | K63: 41 | L63: 1.171428571 | M63: 36 | N63: 1.028571429 | O63: 38 | P63: 1.085714286 | Q63: 39 | R63: 1.114285714 | S63: 37 | T63: 1.057142857 | U63: 0 | V63: 0 | W63: 20 | X63: 0.5714285714 | Y63: 38 | Z63: 1.085714286 | AA63: 29 | AB63: 0.8285714286 | AE63: =cálculos2!P62 -> 7 | AF63: 0.7 | AG63: =cálculos2!Q62 -> 4 | AH63: 1
A64: Metropolitana | B64: Santa Leopoldina | C64: 100 | D64: 32 | E64: 15 | F64: 0.46875 | G64: 11 | H64: 0.34375 | I64: 37 | J64: 1.15625 | K64: 37 | L64: 1.15625 | M64: 36 | N64: 1.125 | O64: 37 | P64: 1.15625 | Q64: 39 | R64: 1.21875 | S64: 36 | T64: 1.125 | U64: 0 | V64: 0 | W64: 29 | X64: 0.90625 | Y64: 49 | Z64: 1.53125 | AA64: 14 | AB64: 0.4375 | AE64: =cálculos2!P63 -> 7 | AF64: 0.7 | AG64: =cálculos2!Q63 -> 4 | AH64: 1
A65: Metropolitana | B65: Santa Maria de Jetibá | C65: 667 | D65: 234 | E65: 183 | F65: 0.7820512821 | G65: 198 | H65: 0.8461538462 | I65: 175 | J65: 0.7478632479 | K65: 176 | L65: 0.7521367521 | M65: 196 | N65: 0.8376068376 | O65: 199 | P65: 0.8504273504 | Q65: 186 | R65: 0.7948717949 | S65: 168 | T65: 0.7179487179 | U65: 3 | V65: 0.01282051282 | W65: 196 | X65: 0.8376068376 | Y65: 222 | Z65: 0.9487179487 | AA65: 122 | AB65: 0.5213675214 | AE65: =cálculos2!P64 -> 0 | AF65: 0 | AG65: =cálculos2!Q64 -> 0 | AH65: 0
A66: Metropolitana | B66: Santa Teresa | C66: 293 | D66: 87 | E66: 91 | F66: 1.045977011 | G66: 98 | H66: 1.126436782 | I66: 108 | J66: 1.24137931 | K66: 107 | L66: 1.229885057 | M66: 94 | N66: 1.08045977 | O66: 95 | P66: 1.091954023 | Q66: 90 | R66: 1.034482759 | S66: 90 | T66: 1.034482759 | U66: 0 | V66: 0 | W66: 70 | X66: 0.8045977011 | Y66: 91 | Z66: 1.045977011 | AA66: 66 | AB66: 0.7586206897 | AE66: =cálculos2!P65 -> 8 | AF66: 0.8 | AG66: =cálculos2!Q65 -> 4 | AH66: 1
A67: Central | B67: São Domingos do Norte | C67: 125 | D67: 44 | E67: 40 | F67: =E67/D67 -> 0.9090909091 | G67: 39 | H67: 0.8863636364 | I67: 38 | J67: 0.8636363636 | K67: 38 | L67: 0.8636363636 | M67: 39 | N67: 0.8863636364 | O67: 37 | P67: 0.8409090909 | Q67: 35 | R67: 0.7954545455 | S67: 37 | T67: 0.8409090909 | U67: 0 | V67: 0 | W67: 18 | X67: 0.4090909091 | Y67: 23 | Z67: 0.5227272727 | AA67: 21 | AB67: 0.4772727273 | AE67: =cálculos2!P66 -> 0 | AF67: 0 | AG67: =cálculos2!Q66 -> 0 | AH67: 0
A68: Central | B68: São Gabriel da Palha | C68: 430 | D68: 132 | E68: 128 | F68: 0.9696969697 | G68: 144 | H68: =G68/D68 -> 1.090909091 | I68: 129 | J68: =I68/D68 -> 0.9772727273 | K68: 130 | L68: =K68/D68 -> 0.9848484848 | M68: 138 | N68: =M68/D68 -> 1.045454545 | O68: 138 | P68: =O68/D68 -> 1.045454545 | Q68: 129 | R68: =Q68/D68 -> 0.9772727273 | S68: 118 | T68: =S68/D68 -> 0.8939393939 | U68: 1 | V68: =U68/D68 -> 0.007575757576 | W68: 65 | X68: =W68/D68 -> 0.4924242424 | Y68: 126 | Z68: =Y68/D68 -> 0.9545454545 | AA68: 74 | AB68: =AA68/D68 -> 0.5606060606 | AE68: =cálculos2!P67 -> 7 | AF68: =AE68*0.1 -> 0.7 | AG68: =cálculos2!Q67 -> 4 | AH68: =AG68*0.25 -> 1
A69: Sul | B69: São José do Calçado | C69: 106 | D69: 39 | E69: 40 | F69: 1.025641026 | G69: 43 | H69: 1.102564103 | I69: 51 | J69: 1.307692308 | K69: 50 | L69: 1.282051282 | M69: 37 | N69: 0.9487179487 | O69: 33 | P69: 0.8461538462 | Q69: 43 | R69: 1.102564103 | S69: 32 | T69: 0.8205128205 | U69: 0 | V69: 0 | W69: 32 | X69: 0.8205128205 | Y69: 44 | Z69: 1.128205128 | AA69: 27 | AB69: 0.6923076923 | AE69: =cálculos2!P68 -> 5 | AF69: 0.5 | AG69: =cálculos2!Q68 -> 3 | AH69: 0.75
A70: Norte | B70: São Mateus | C70: 1931 | D70: 650 | E70: 730 | F70: 1.123076923 | G70: 695 | H70: 1.069230769 | I70: 603 | J70: 0.9276923077 | K70: 589 | L70: 0.9061538462 | M70: 567 | N70: 0.8723076923 | O70: 545 | P70: 0.8384615385 | Q70: 504 | R70: 0.7753846154 | S70: 452 | T70: 0.6953846154 | U70: 3 | V70: 0.004615384615 | W70: 409 | X70: 0.6292307692 | Y70: 506 | Z70: 0.7784615385 | AA70: 290 | AB70: 0.4461538462 | AE70: =cálculos2!P69 -> 1 | AF70: 0.1 | AG70: =cálculos2!Q69 -> 0 | AH70: 0
A71: Central | B71: São Roque do Canaã | C71: 122 | D71: 50 | E71: 58 | F71: 1.16 | G71: 56 | H71: 1.12 | I71: 29 | J71: 0.58 | K71: 28 | L71: 0.56 | M71: 24 | N71: 0.48 | O71: 26 | P71: 0.52 | Q71: 27 | R71: 0.54 | S71: 37 | T71: 0.74 | U71: 1 | V71: 0.02 | W71: 24 | X71: 0.48 | Y71: 43 | Z71: 0.86 | AA71: 27 | AB71: 0.54 | AE71: =cálculos2!P70 -> 1 | AF71: 0.1 | AG71: =cálculos2!Q70 -> 0 | AH71: 0
A72: Metropolitana | B72: Serra | C72: 7437 | D72: 2622 | E72: 2325 | F72: 0.8867276888 | G72: 2299 | H72: 0.8768115942 | I72: 2128 | J72: 0.8115942029 | K72: 2133 | L72: 0.8135011442 | M72: 2049 | N72: 0.7814645309 | O72: 2008 | P72: 0.7658276125 | Q72: 2036 | R72: 0.7765064836 | S72: 1770 | T72: 0.6750572082 | U72: 25 | V72: 0.009534706331 | W72: 1138 | X72: 0.4340198322 | Y72: 2064 | Z72: 0.7871853547 | AA72: 896 | AB72: 0.3417238749 | AE72: =cálculos2!P71 -> 0 | AF72: 0 | AG72: =cálculos2!Q71 -> 0 | AH72: 0
A73: Central | B73: Sooretama | C73: 432 | D73: 150 | E73: 124 | F73: 0.8266666667 | G73: 124 | H73: 0.8266666667 | I73: 137 | J73: 0.9133333333 | K73: 138 | L73: 0.92 | M73: 115 | N73: 0.7666666667 | O73: 112 | P73: 0.7466666667 | Q73: 107 | R73: 0.7133333333 | S73: 116 | T73: 0.7733333333 | U73: 0 | V73: 0 | W73: 111 | X73: 0.74 | Y73: 122 | Z73: 0.8133333333 | AA73: 77 | AB73: 0.5133333333 | AE73: =cálculos2!P72 -> 0 | AF73: 0 | AG73: =cálculos2!Q72 -> 0 | AH73: 0
A74: Sul | B74: Vargem Alta | C74: 256 | D74: 89 | E74: 86 | F74: 0.9662921348 | G74: 86 | H74: 0.9662921348 | I74: 75 | J74: 0.8426966292 | K74: 75 | L74: 0.8426966292 | M74: 79 | N74: 0.8876404494 | O74: 79 | P74: 0.8876404494 | Q74: 82 | R74: 0.9213483146 | S74: 74 | T74: 0.8314606742 | U74: 1 | V74: 0.01123595506 | W74: 74 | X74: 0.8314606742 | Y74: 93 | Z74: 1.04494382 | AA74: 52 | AB74: 0.5842696629 | AE74: =cálculos2!P73 -> 2 | AF74: 0.2 | AG74: =cálculos2!Q73 -> 1 | AH74: 0.25
A75: Metropolitana | B75: Venda Nova do Imigrante | C75: 406 | D75: 130 | E75: 31 | F75: 0.2384615385 | G75: 102 | H75: 0.7846153846 | I75: 128 | J75: 0.9846153846 | K75: 128 | L75: 0.9846153846 | M75: 117 | N75: 0.9 | O75: 118 | P75: 0.9076923077 | Q75: 127 | R75: 0.9769230769 | S75: 125 | T75: 0.9615384615 | U75: 3 | V75: 0.02307692308 | W75: 82 | X75: 0.6307692308 | Y75: 124 | Z75: 0.9538461538 | AA75: 67 | AB75: 0.5153846154 | AE75: =cálculos2!P74 -> 6 | AF75: 0.6 | AG75: =cálculos2!Q74 -> 3 | AH75: 0.75
A76: Metropolitana | B76: Viana | C76: 1005 | D76: 360 | E76: 270 | F76: 0.75 | G76: 262 | H76: 0.7277777778 | I76: 307 | J76: 0.8527777778 | K76: 299 | L76: 0.8305555556 | M76: 286 | N76: 0.7944444444 | O76: 269 | P76: 0.7472222222 | Q76: 284 | R76: 0.7888888889 | S76: 225 | T76: 0.625 | U76: 4 | V76: 0.01111111111 | W76: 206 | X76: 0.5722222222 | Y76: 312 | Z76: 0.8666666667 | AA76: 130 | AB76: 0.3611111111 | AE76: =cálculos2!P75 -> 0 | AF76: 0 | AG76: =cálculos2!Q75 -> 0 | AH76: 0
A77: Norte | B77: Vila Pavão | C77: 88 | D77: 34 | E77: 27 | F77: 0.7941176471 | G77: 29 | H77: 0.8529411765 | I77: 31 | J77: 0.9117647059 | K77: 31 | L77: 0.9117647059 | M77: 30 | N77: 0.8823529412 | O77: 29 | P77: 0.8529411765 | Q77: 26 | R77: 0.7647058824 | S77: 39 | T77: 1.147058824 | U77: 0 | V77: 0 | W77: 28 | X77: 0.8235294118 | Y77: 44 | Z77: 1.294117647 | AA77: 23 | AB77: 0.6764705882 | AE77: =cálculos2!P76 -> 2 | AF77: 0.2 | AG77: =cálculos2!Q76 -> 1 | AH77: 0.25
A78: Central | B78: Vila Valério | C78: 241 | D78: 79 | E78: 64 | F78: 0.8101265823 | G78: 72 | H78: 0.9113924051 | I78: 64 | J78: 0.8101265823 | K78: 65 | L78: 0.8227848101 | M78: 62 | N78: 0.7848101266 | O78: 66 | P78: 0.835443038 | Q78: 71 | R78: 0.8987341772 | S78: 67 | T78: 0.8481012658 | U78: 0 | V78: 0 | W78: 46 | X78: 0.582278481 | Y78: 53 | Z78: 0.6708860759 | AA78: 48 | AB78: 0.6075949367 | AE78: =cálculos2!P77 -> 1 | AF78: 0.1 | AG78: =cálculos2!Q77 -> 0 | AH78: 0
A79: Metropolitana | B79: Vila Velha | C79: 5756 | D79: 1942 | E79: 1612 | F79: 0.8300720906 | G79: 1598 | H79: 0.8228630278 | I79: 1579 | J79: 0.8130792997 | K79: 1573 | L79: 0.8099897013 | M79: 1549 | N79: 0.7976313079 | O79: 1565 | P79: 0.8058702369 | Q79: 1566 | R79: 0.8063851699 | S79: 1322 | T79: 0.6807415036 | U79: 32 | V79: 0.01647785788 | W79: 848 | X79: 0.4366632338 | Y79: 1608 | Z79: 0.8280123584 | AA79: 778 | AB79: 0.4006179197 | AE79: =cálculos2!P78 -> 0 | AF79: 0 | AG79: =cálculos2!Q78 -> 0 | AH79: 0
A80: Metropolitana | B80: Vitória | C80: 3725 | D80: 1218 | E80: 1396 | F80: 1.146141215 | G80: 1517 | H80: 1.245484401 | I80: 1080 | J80: 0.8866995074 | K80: 1082 | L80: 0.8883415435 | M80: 965 | N80: 0.7922824302 | O80: 994 | P80: 0.816091954 | Q80: 1048 | R80: 0.8604269294 | S80: 838 | T80: 0.6880131363 | U80: 44 | V80: 0.03612479475 | W80: 971 | X80: 0.7972085386 | Y80: 1014 | Z80: 0.8325123153 | AA80: 503 | AB80: 0.4129720854 | AE80: =cálculos2!P79 -> 1 | AF80: 0.1 | AG80: =cálculos2!Q79 -> 0 | AH80: 0
B82: Total Norte | C82: =SUMIF($A$3:$A$80,"Norte",C$3:C$80) -> 5815 | D82: =SUMIF($A$3:$A$80,"Norte",D$3:D$80) -> 1942 | E82: =SUMIF($A$3:$A$80,"Norte",E$3:E$80) -> 1655 | F82: =E82/D82 -> 0.8522142122 | G82: =SUMIF($A$3:$A$80,"Norte",G$3:G$80) -> 1708 | H82: =G82/D82 -> 0.8795056643 | I82: =SUMIF($A$3:$A$80,"Norte",I$3:I$80) -> 1861 | J82: =I82/D82 -> 0.9582904222 | K82: =SUMIF($A$3:$A$80,"Norte",K$3:K$80) -> 1866 | L82: =K82/D82 -> 0.9608650875 | M82: =SUMIF($A$3:$A$80,"Norte",M$3:M$80) -> 1762 | N82: =M82/D82 -> 0.9073120494 | O82: =SUMIF($A$3:$A$80,"Norte",O$3:O$80) -> 1703 | P82: =O82/D82 -> 0.876930999 | Q82: =SUMIF($A$3:$A$80,"Norte",Q$3:Q$80) -> 1682 | R82: =Q82/D82 -> 0.8661174047 | S82: =SUMIF($A$3:$A$80,"Norte",S$3:S$80) -> 1682 | T82: =S82/D82 -> 0.8661174047 | U82: =SUMIF($A$3:$A$80,"Norte",U$3:U$80) -> 8 | V82: =U82/D82 -> 0.00411946447 | W82: =SUMIF($A$3:$A$80,"Norte",W$3:W$80) -> 1324 | X82: =W82/D82 -> 0.6817713697 | Y82: =SUMIF($A$3:$A$80,"Norte",Y$3:Y$80) -> 1829 | Z82: =Y82/D82 -> 0.9418125644 | AA82: =SUMIF($A$3:$A$80,"Norte",AA$3:AA$80) -> 1141 | AB82: =AA82/D82 -> 0.58753862 | AE82: =cálculos1!P81 -> 3 | AF82: 0.3 | AG82: =cálculos1!Q81 -> 3 | AH82: 0.75
B83: Total Central | C83: =SUMIF($A$3:$A$80,"Central",C$3:C$80) -> 7014 | D83: =SUMIF($A$3:$A$80,"Central",D$3:D$80) -> 2274 | E83: =SUMIF($A$3:$A$80,"Central",E$3:E$80) -> 2131 | F83: =E83/D83 -> 0.9371152155 | G83: =SUMIF($A$3:$A$80,"Central",G$3:G$80) -> 2191 | H83: =G83/D83 -> 0.9635004398 | I83: =SUMIF($A$3:$A$80,"Central",I$3:I$80) -> 2177 | J83: =I83/D83 -> 0.9573438874 | K83: =SUMIF($A$3:$A$80,"Central",K$3:K$80) -> 2164 | L83: =K83/D83 -> 0.9516270888 | M83: =SUMIF($A$3:$A$80,"Central",M$3:M$80) -> 2019 | N83: =M83/D83 -> 0.8878627968 | O83: =SUMIF($A$3:$A$80,"Central",O$3:O$80) -> 2054 | P83: =O83/D83 -> 0.9032541777 | Q83: =SUMIF($A$3:$A$80,"Central",Q$3:Q$80) -> 2043 | R83: =Q83/D83 -> 0.8984168865 | S83: =SUMIF($A$3:$A$80,"Central",S$3:S$80) -> 1928 | T83: =S83/D83 -> 0.8478452067 | U83: =SUMIF($A$3:$A$80,"Central",U$3:U$80) -> 15 | V83: =U83/D83 -> 0.006596306069 | W83: =SUMIF($A$3:$A$80,"Central",W$3:W$80) -> 1358 | X83: =W83/D83 -> 0.5971855761 | Y83: =SUMIF($A$3:$A$80,"Central",Y$3:Y$80) -> 2130 | Z83: =Y83/D83 -> 0.9366754617 | AA83: =SUMIF($A$3:$A$80,"Central",AA$3:AA$80) -> 1361 | AB83: =AA83/D83 -> 0.5985048373 | AE83: =cálculos1!P82 -> 1 | AF83: 0.1 | AG83: =cálculos1!Q82 -> 0 | AH83: 0
B84: Total Metropolitana | C84: =SUMIF($A$3:$A$80,"Metropolitana",C$3:C$80) -> 30199 | D84: =SUMIF($A$3:$A$80,"Metropolitana",D$3:D$80) -> 10284 | E84: =SUMIF($A$3:$A$80,"Metropolitana",E$3:E$80) -> 8986 | F84: =E84/D84 -> 0.8737845196 | G84: =SUMIF($A$3:$A$80,"Metropolitana",G$3:G$80) -> 9384 | H84: =G84/D84 -> 0.9124854142 | I84: =SUMIF($A$3:$A$80,"Metropolitana",I$3:I$80) -> 8815 | J84: =I84/D84 -> 0.8571567483 | K84: =SUMIF($A$3:$A$80,"Metropolitana",K$3:K$80) -> 8759 | L84: =K84/D84 -> 0.8517113963 | M84: =SUMIF($A$3:$A$80,"Metropolitana",M$3:M$80) -> 8535 | N84: =M84/D84 -> 0.8299299883 | O84: =SUMIF($A$3:$A$80,"Metropolitana",O$3:O$80) -> 8436 | P84: =O84/D84 -> 0.8203033839 | Q84: =SUMIF($A$3:$A$80,"Metropolitana",Q$3:Q$80) -> 8592 | R84: =Q84/D84 -> 0.8354725788 | S84: =SUMIF($A$3:$A$80,"Metropolitana",S$3:S$80) -> 7373 | T84: =S84/D84 -> 0.7169389343 | U84: =SUMIF($A$3:$A$80,"Metropolitana",U$3:U$80) -> 176 | V84: =U84/D84 -> 0.01711396344 | W84: =SUMIF($A$3:$A$80,"Metropolitana",W$3:W$80) -> 5853 | X84: =W84/D84 -> 0.5691365228 | Y84: =SUMIF($A$3:$A$80,"Metropolitana",Y$3:Y$80) -> 8917 | Z84: =Y84/D84 -> 0.8670750681 | AA84: =SUMIF($A$3:$A$80,"Metropolitana",AA$3:AA$80) -> 4565 | AB84: =AA84/D84 -> 0.4438934267 | AE84: =cálculos1!P83 -> 1 | AF84: 0.1 | AG84: =cálculos1!Q83 -> 0 | AH84: 0
B85: Total Sul | C85: =SUMIF($A$3:$A$80,"sul",C$3:C$80) -> 8398 | D85: =SUMIF($A$3:$A$80,"sul",D$3:D$80) -> 2747 | E85: =SUMIF($A$3:$A$80,"Sul",E$3:E$80) -> 2639 | F85: =E85/D85 -> 0.960684383 | G85: =SUMIF($A$3:$A$80,"Sul",G$3:G$80) -> 2683 | H85: =G85/D85 -> 0.9767018566 | I85: =SUMIF($A$3:$A$80,"Sul",I$3:I$80) -> 2710 | J85: =I85/D85 -> 0.9865307608 | K85: =SUMIF($A$3:$A$80,"Sul",K$3:K$80) -> 2692 | L85: =K85/D85 -> 0.979978158 | M85: =SUMIF($A$3:$A$80,"Sul",M$3:M$80) -> 2645 | N85: =M85/D85 -> 0.9628685839 | O85: =SUMIF($A$3:$A$80,"Sul",O$3:O$80) -> 2572 | P85: =O85/D85 -> 0.9362941391 | Q85: =SUMIF($A$3:$A$80,"Sul",Q$3:Q$80) -> 2605 | R85: =Q85/D85 -> 0.9483072443 | S85: =SUMIF($A$3:$A$80,"Sul",S$3:S$80) -> 2214 | T85: =S85/D85 -> 0.8059701493 | U85: =SUMIF($A$3:$A$80,"Sul",U$3:U$80) -> 31 | V85: =U85/D85 -> 0.01128503822 | W85: =SUMIF($A$3:$A$80,"Sul",W$3:W$80) -> 2038 | X85: =W85/D85 -> 0.7419002548 | Y85: =SUMIF($A$3:$A$80,"Sul",Y$3:Y$80) -> 2865 | Z85: =Y85/D85 -> 1.042955952 | AA85: =SUMIF($A$3:$A$80,"Sul",AA$3:AA$80) -> 1439 | AB85: =AA85/D85 -> 0.5238441937 | AE85: =cálculos1!P84 -> 7 | AF85: 0.7 | AG85: =cálculos1!Q84 -> 4 | AH85: 1
B86: Total Espírito Santo | C86: =SUM(C3:C80) -> 51426 | D86: =SUM(D3:D80) -> 17247 | E86: =SUM(E82:E85) -> 15411 | F86: =E86/D86 -> 0.8935467038 | G86: =SUM(G82:G85) -> 15966 | H86: =G86/D86 -> 0.9257262133 | I86: =SUM(I82:I85) -> 15563 | J86: =I86/D86 -> 0.9023598307 | K86: =SUM(K82:K85) -> 15481 | L86: =K86/D86 -> 0.8976053806 | M86: =SUM(M82:M85) -> 14961 | N86: =M86/D86 -> 0.8674552096 | O86: =SUM(O82:O85) -> 14765 | P86: =O86/D86 -> 0.8560909144 | Q86: =SUM(Q82:Q85) -> 14922 | R86: =Q86/D86 -> 0.8651939468 | S86: =SUM(S82:S85) -> 13197 | T86: =S86/D86 -> 0.7651765524 | U86: =SUM(U82:U85) -> 230 | V86: =U86/D86 -> 0.01333565258 | W86: =SUM(W82:W85) -> 10573 | X86: =W86/D86 -> 0.6130341509 | Y86: =SUM(Y82:Y85) -> 15741 | Z86: =Y86/D86 -> 0.9126804662 | AA86: =SUM(AA82:AA85) -> 8506 | AB86: =AA86/D86 -> 0.493187221 | AE86: =cálculos1!P85 -> 1 | AF86: 0.1 | AG86: =cálculos1!Q85 -> 0 | AH86: 0
E87: =COUNTIF(F3:F80,">=0,95") -> 32 | G87: =COUNTIF(H3:H80,">=0,9") -> 41 | I87: =COUNTIF(J3:J80,">=0,95") -> 42 | K87: =COUNTIF(L3:L80,">=0,95") -> 42 | M87: =COUNTIF(N3:N80,">=0,95") -> 36 | O87: =COUNTIF(P3:P80,">=0,9") -> 41 | Q87: =COUNTIF(R3:R80,">=0,95") -> 35 | S87: =COUNTIF(T3:T80,">=0,95") -> 32 | U87: =COUNTIF(V3:V80,">=0,95") -> 0 | W87: =COUNTIF(X3:X80,">=0,95") -> 8 | Y87: =COUNTIF(Z3:Z80,">=0,95") -> 51 | AA87: =COUNTIF(AB3:AB80,">=0,95") -> 4
B88: HOMOGENEIDADE ENTRE MUNICÍPIOS | E88: =E87/78 -> 0.4102564103 | G88: =G87/78 -> 0.5256410256 | I88: =I87/78 -> 0.5384615385 | K88: =K87/78 -> 0.5384615385 | M88: =M87/78 -> 0.4615384615 | O88: =O87/78 -> 0.5256410256 | Q88: =Q87/78 -> 0.4487179487 | S88: =S87/78 -> 0.4102564103 | U88: =U87/78 -> 0 | W88: =W87/78 -> 0.1025641026 | Y88: =Y87/78 -> 0.6538461538 | AA88: =AA87/78 -> 0.05128205128
A90: FonteVacina e Confia, em 09 de Maio de 2024.**
A91: **Dados referente às doses aplicadas no período de Abril de 2024
A92: Cobertura Calculada por município de residência do cidadão (no Vacina e Confia, a origem da informação é o endereço que consta no cadastro do cidadão preenchido manualmente por meio do autocadastro ou pelo cadastro realizado por um profissional de saúde no momento do atendimento).
A94: 1 População anual extraída do MS/SVS/DASIS - SINASC/DASIS/SVS/MS 2023 (hoje preliminares) referente ao período de março a dezembro de 2023 e SINASC/DASIS/SVS/MS 2024 referente ao período de janeiro a fevereiro de 2024.
A96: ² População proporcional extraída do MS/SVS/DASIS - SINASC/DASIS/SVS/MS 2023 (hoje preliminares) referente ao período de março e abril de 2023 somada a população extraída do SINASC/DASIS/SVS/MS 2024 referente ao período de janeiro e fevereiro de 2024.
A98: Observações:
A99: Imunobiológicos que foram recebidos parcialmente pelo estado no mês da análise, sendo distribuídos em quantidades reduzidas às regionais e municípios: Varicela, Febre Amarela e HPV Quadrivalente.
A100: Imunobiológicos que não foram recebidos pelo estado no mês da análise, não sendo possível a distribuição às regionais e municípios: Meningo C, Hepatite A (CRIE), HIB, Hepatite A Rotina Pediátrica, DTPa (CRIE).
A101: Imunobiológicos com indisponibilidade de aquisição e distribuição no mês da análise: Tetra Viral.

Sheet CV REF 1A e 4A - procedência
G1: D2 | K1: REFORÇOS 1 ANO | S1: REFORÇOS 4 ANOS
A2: Regional | B2: Município | C2: ¹População 1 ano anual | D2: ²População 1 ano proporcional | E2: ³População 4 anos anual | F2: ³População 4 anos proporcional | G2: DOSES APLICADAS D2 TRÍPLICE VIRAL | H2: COBERTURA D2 TRÍPLICE VIRAL | I2: DOSES APLICADAS D2 VARICELA | J2: COBERTURA D2 VARICELA | K2: DOSES APLICADAS REF PNEUMO | L2: COBERTURA REF PNEUMO | M2: DOSES APLICADAS REF MENINGO | N2: COBERTURA REF MENINGO | O2: DOSES APLICADAS R1 POLIO | P2: COBERTURA R1 POLIO | Q2: DOSES APLICADAS R1 TRÍPLICE BACTERIANA | R2: COBERTURA R1 TRÍPLICE BACTERIANA | S2: DOSES APLICADAS REF FEBRE AMARELA | T2: COBERTURA REF FEBRE AMARELA | U2: DOSES APLICADAS R2 POLIO | V2: COBERTURA R2 POLIO | W2: DOSES APLICADAS R2 TRÍPLICE BACTERIANA | X2: COBERTURA R2 TRÍPLICE BACTERIANA
A3: Metropolitana | B3: Afonso Cláudio | C3: 384 | D3: 126 | E3: 416 | F3: =E3/12*4 -> 138.6666667 | G3: 110 | H3: =G3/D3 -> 0.873015873 | I3: 65 | J3: =I3/F3 -> 0.46875 | K3: 132 | L3: =K3/D3 -> 1.047619048 | M3: 132 | N3: =M3/D3 -> 1.047619048 | O3: 118 | P3: =O3/D3 -> 0.9365079365 | Q3: 118 | R3: =Q3/D3 -> 0.9365079365 | S3: 84 | T3: =S3/F3 -> 0.6057692308 | U3: 87 | V3: =U3/F3 -> 0.6274038462 | W3: 87 | X3: =W3/F3 -> 0.6274038462
A4: Norte | B4: Água Doce do Norte | C4: 170 | D4: 61 | E4: 151 | F4: =E4/12*4 -> 50.33333333 | G4: 35 | H4: 0.5737704918 | I4: 32 | J4: 0.6357615894 | K4: 49 | L4: 0.8032786885 | M4: 50 | N4: 0.8196721311 | O4: 38 | P4: 0.6229508197 | Q4: 45 | R4: 0.737704918 | S4: 42 | T4: 0.8344370861 | U4: 45 | V4: 0.8940397351 | W4: 41 | X4: 0.8145695364
A5: Central | B5: Águia Branca | C5: 149 | D5: 39 | E5: 129 | F5: 43 | G5: 24 | H5: 0.6153846154 | I5: 21 | J5: 0.488372093 | K5: 32 | L5: 0.8205128205 | M5: 33 | N5: 0.8461538462 | O5: 33 | P5: 0.8461538462 | Q5: 35 | R5: 0.8974358974 | S5: 33 | T5: 0.7674418605 | U5: 39 | V5: 0.9069767442 | W5: 41 | X5: 0.9534883721
A6: Sul | B6: Alegre | C6: 327 | D6: 93 | E6: 372 | F6: 124 | G6: 81 | H6: 0.8709677419 | I6: 88 | J6: 0.7096774194 | K6: 94 | L6: 1.010752688 | M6: 94 | N6: 1.010752688 | O6: 83 | P6: 0.8924731183 | Q6: 89 | R6: 0.9569892473 | S6: 109 | T6: 0.8790322581 | U6: 109 | V6: 0.8790322581 | W6: 118 | X6: 0.9516129032
A7: Sul | B7: Alfredo Chaves | C7: 146 | D7: 46 | E7: 138 | F7: 46 | G7: 44 | H7: 0.9565217391 | I7: 33 | J7: 0.7173913043 | K7: 48 | L7: 1.043478261 | M7: 50 | N7: 1.086956522 | O7: 42 | P7: 0.9130434783 | Q7: 43 | R7: 0.9347826087 | S7: 32 | T7: 0.6956521739 | U7: 35 | V7: 0.7608695652 | W7: 34 | X7: 0.7391304348
A8: Central | B8: Alto Rio Novo | C8: 80 | D8: 21 | E8: 102 | F8: 34 | G8: 30 | H8: 1.428571429 | I8: 17 | J8: 0.5 | K8: 32 | L8: 1.523809524 | M8: 32 | N8: 1.523809524 | O8: 34 | P8: 1.619047619 | Q8: 31 | R8: 1.476190476 | S8: 22 | T8: 0.6470588235 | U8: 22 | V8: 0.6470588235 | W8: 22 | X8: 0.6470588235
A9: Sul | B9: Anchieta | C9: 365 | D9: 109 | E9: 390 | F9: 130 | G9: 107 | H9: 0.9816513761 | I9: 80 | J9: 0.6153846154 | K9: 130 | L9: 1.19266055 | M9: 135 | N9: 1.23853211 | O9: 123 | P9: 1.128440367 | Q9: 128 | R9: 1.174311927 | S9: 103 | T9: 0.7923076923 | U9: 134 | V9: 1.030769231 | W9: 148 | X9: 1.138461538
A10: Sul | B10: Apiacá | C10: 64 | D10: 20 | E10: 90 | F10: 30 | G10: 9 | H10: 0.45 | I10: 21 | J10: 0.7 | K10: 18 | L10: 0.9 | M10: 19 | N10: 0.95 | O10: 10 | P10: 0.5 | Q10: 9 | R10: 0.45 | S10: 3 | T10: 0.1 | U10: 26 | V10: 0.8666666667 | W10: 24 | X10: 0.8
A11: Metropolitana | B11: Aracruz | C11: 1456 | D11: 490 | E11: 1420 | F11: 473.3333333 | G11: 437 | H11: 0.8918367347 | I11: 322 | J11: 0.6802816901 | K11: 510 | L11: 1.040816327 | M11: 537 | N11: 1.095918367 | O11: 476 | P11: 0.9714285714 | Q11: 483 | R11: 0.9857142857 | S11: 326 | T11: 0.6887323944 | U11: 416 | V11: 0.8788732394 | W11: 442 | X11: 0.9338028169
A12: Sul | B12: Atilio Vivacqua | C12: 133 | D12: 42 | E12: 138 | F12: 46 | G12: 40 | H12: 0.9523809524 | I12: 20 | J12: 0.4347826087 | K12: 53 | L12: 1.261904762 | M12: 54 | N12: 1.285714286 | O12: 49 | P12: 1.166666667 | Q12: 50 | R12: 1.19047619 | S12: 34 | T12: 0.7391304348 | U12: 40 | V12: 0.8695652174 | W12: 40 | X12: 0.8695652174
A13: Central | B13: Baixo Guandu | C13: 364 | D13: 105 | E13: 427 | F13: 142.3333333 | G13: 110 | H13: 1.047619048 | I13: 70 | J13: 0.4918032787 | K13: 150 | L13: 1.428571429 | M13: 149 | N13: 1.419047619 | O13: 130 | P13: 1.238095238 | Q13: 134 | R13: 1.276190476 | S13: 105 | T13: 0.737704918 | U13: 140 | V13: 0.9836065574 | W13: 132 | X13: 0.9274004684
A14: Norte | B14: Barra de São Francisco | C14: 534 | D14: 166 | E14: 589 | F14: 196.3333333 | G14: 159 | H14: 0.9578313253 | I14: 117 | J14: 0.5959252971 | K14: 188 | L14: 1.13253012 | M14: 191 | N14: 1.15060241 | O14: 164 | P14: 0.9879518072 | Q14: 170 | R14: 1.024096386 | S14: 149 | T14: 0.7589134126 | U14: 148 | V14: 0.753820034 | W14: 149 | X14: 0.7589134126
A15: Norte | B15: Boa Esperança | C15: 199 | D15: 72 | E15: 200 | F15: 66.66666667 | G15: 53 | H15: 0.7361111111 | I15: 42 | J15: 0.63 | K15: 75 | L15: 1.041666667 | M15: 77 | N15: 1.069444444 | O15: 61 | P15: 0.8472222222 | Q15: 57 | R15: 0.7916666667 | S15: 38 | T15: 0.57 | U15: 48 | V15: 0.72 | W15: 50 | X15: 0.75
A16: Sul | B16: Bom Jesus do Norte | C16: 83 | D16: 23 | E16: 146 | F16: 48.66666667 | G16: 30 | H16: 1.304347826 | I16: 17 | J16: 0.3493150685 | K16: 48 | L16: 2.086956522 | M16: 49 | N16: 2.130434783 | O16: 34 | P16: 1.47826087 | Q16: 34 | R16: 1.47826087 | S16: 33 | T16: 0.6780821918 | U16: 43 | V16: 0.8835616438 | W16: 41 | X16: 0.8424657534
A17: Metropolitana | B17: Brejetuba | C17: 212 | D17: 70 | E17: 169 | F17: 56.33333333 | G17: 60 | H17: 0.8571428571 | I17: 44 | J17: 0.7810650888 | K17: 60 | L17: 0.8571428571 | M17: 64 | N17: 0.9142857143 | O17: 58 | P17: 0.8285714286 | Q17: 60 | R17: 0.8571428571 | S17: 58 | T17: 1.029585799 | U17: 61 | V17: 1.082840237 | W17: 61 | X17: 1.082840237
A18: Sul | B18: Cachoeiro de Itapemirim | C18: 2473 | D18: 863 | E18: 2417 | F18: 805.6666667 | G18: 602 | H18: 0.697566628 | I18: 369 | J18: 0.4580057923 | K18: 786 | L18: 0.9107763615 | M18: 817 | N18: 0.9466975666 | O18: 717 | P18: 0.8308227115 | Q18: 710 | R18: 0.8227114716 | S18: 450 | T18: 0.5585436492 | U18: 613 | V18: 0.760860571 | W18: 646 | X18: 0.8018204386
A19: Metropolitana | B19: Cariacica | C19: 4917 | D19: 1679 | E19: 5005 | F19: 1668.333333 | G19: 1034 | H19: 0.6158427635 | I19: 859 | J19: 0.5148851149 | K19: 1539 | L19: 0.9166170339 | M19: 1586 | N19: 0.9446098868 | O19: 1310 | P19: 0.7802263252 | Q19: 1308 | R19: 0.77903514 | S19: 1192 | T19: 0.7144855145 | U19: 1546 | V19: 0.9266733267 | W19: 1513 | X19: 0.9068931069
A20: Sul | B20: Castelo | C20: 454 | D20: 160 | E20: 399 | F20: 133 | G20: 123 | H20: 0.76875 | I20: 70 | J20: 0.5263157895 | K20: 154 | L20: 0.9625 | M20: 156 | N20: 0.975 | O20: 136 | P20: 0.85 | Q20: 136 | R20: 0.85 | S20: 96 | T20: 0.7218045113 | U20: 112 | V20: 0.8421052632 | W20: 112 | X20: 0.8421052632
A21: Central | B21: Colatina | C21: 1532 | D21: 496 | E21: 1561 | F21: 520.3333333 | G21: 329 | H21: 0.6633064516 | I21: 184 | J21: 0.3536194747 | K21: 437 | L21: 0.8810483871 | M21: 468 | N21: 0.9435483871 | O21: 370 | P21: 0.7459677419 | Q21: 379 | R21: 0.7641129032 | S21: 257 | T21: 0.4939141576 | U21: 348 | V21: 0.66880205 | W21: 357 | X21: 0.6860986547
A22: Norte | B22: Conceição da Barra | C22: 389 | D22: 136 | E22: 391 | F22: 130.3333333 | G22: 108 | H22: 0.7941176471 | I22: 94 | J22: 0.7212276215 | K22: 124 | L22: 0.9117647059 | M22: 127 | N22: 0.9338235294 | O22: 121 | P22: 0.8897058824 | Q22: 115 | R22: 0.8455882353 | S22: 105 | T22: 0.8056265985 | U22: 140 | V22: 1.074168798 | W22: 142 | X22: 1.089514066
A23: Metropolitana | B23: Conceição do Castelo | C23: 168 | D23: 60 | E23: 144 | F23: 48 | G23: 42 | H23: 0.7 | I23: 24 | J23: 0.5 | K23: 31 | L23: 0.5166666667 | M23: 33 | N23: 0.55 | O23: 44 | P23: 0.7333333333 | Q23: 43 | R23: 0.7166666667 | S23: 36 | T23: 0.75 | U23: 38 | V23: 0.7916666667 | W23: 39 | X23: 0.8125
A24: Sul | B24: Divino de São Lourenço | C24: 65 | D24: 21 | E24: 68 | F24: 22.66666667 | G24: 19 | H24: 0.9047619048 | I24: 15 | J24: 0.6617647059 | K24: 16 | L24: 0.7619047619 | M24: 16 | N24: 0.7619047619 | O24: 21 | P24: 1 | Q24: 20 | R24: 0.9523809524 | S24: 30 | T24: 1.323529412 | U24: 21 | V24: 0.9264705882 | W24: 21 | X24: 0.9264705882
A25: Metropolitana | B25: Domingos Martins | C25: 411 | D25: 133 | E25: 411 | F25: 137 | G25: 144 | H25: 1.082706767 | I25: 119 | J25: 0.8686131387 | K25: 137 | L25: 1.030075188 | M25: 127 | N25: 0.954887218 | O25: 145 | P25: 1.090225564 | Q25: 144 | R25: 1.082706767 | S25: 112 | T25: 0.8175182482 | U25: 139 | V25: 1.01459854 | W25: 141 | X25: 1.02919708
A26: Sul | B26: Dores do Rio Preto | C26: 97 | D26: 36 | E26: 92 | F26: 30.66666667 | G26: 21 | H26: 0.5833333333 | I26: 14 | J26: 0.4565217391 | K26: 41 | L26: 1.138888889 | M26: 42 | N26: 1.166666667 | O26: 27 | P26: 0.75 | Q26: 24 | R26: 0.6666666667 | S26: 17 | T26: 0.5543478261 | U26: 23 | V26: 0.75 | W26: 24 | X26: 0.7826086957
A27: Norte | B27: Ecoporanga | C27: 256 | D27: 89 | E27: 283 | F27: 94.33333333 | G27: 74 | H27: 0.8314606742 | I27: 62 | J27: 0.6572438163 | K27: 84 | L27: 0.9438202247 | M27: 88 | N27: 0.9887640449 | O27: 72 | P27: 0.808988764 | Q27: 71 | R27: 0.797752809 | S27: 65 | T27: 0.6890459364 | U27: 69 | V27: 0.7314487633 | W27: 72 | X27: 0.7632508834
A28: Metropolitana | B28: Fundão | C28: 220 | D28: 81 | E28: 218 | F28: 72.66666667 | G28: 58 | H28: 0.7160493827 | I28: 54 | J28: 0.7431192661 | K28: 71 | L28: 0.8765432099 | M28: 76 | N28: 0.9382716049 | O28: 69 | P28: 0.8518518519 | Q28: 64 | R28: 0.7901234568 | S28: 46 | T28: 0.6330275229 | U28: 56 | V28: 0.7706422018 | W28: 52 | X28: 0.7155963303
A29: Central | B29: Governador Lindenberg | C29: 147 | D29: 52 | E29: 142 | F29: 47.33333333 | G29: 34 | H29: 0.6538461538 | I29: 31 | J29: 0.6549295775 | K29: 41 | L29: 0.7884615385 | M29: 42 | N29: 0.8076923077 | O29: 37 | P29: 0.7115384615 | Q29: 37 | R29: 0.7115384615 | S29: 30 | T29: 0.6338028169 | U29: 33 | V29: 0.6971830986 | W29: 33 | X29: 0.6971830986
A30: Sul | B30: Guaçuí | C30: 406 | D30: 131 | E30: 407 | F30: 135.6666667 | G30: 132 | H30: 1.007633588 | I30: 42 | J30: 0.3095823096 | K30: 139 | L30: 1.061068702 | M30: 148 | N30: 1.129770992 | O30: 134 | P30: 1.022900763 | Q30: 123 | R30: 0.9389312977 | S30: 94 | T30: 0.6928746929 | U30: 88 | V30: 0.6486486486 | W30: 83 | X30: 0.6117936118
A31: Metropolitana | B31: Guarapari | C31: 1741 | D31: 578 | E31: 1557 | F31: 519 | G31: 368 | H31: 0.6366782007 | I31: 268 | J31: 0.5163776493 | K31: 539 | L31: 0.9325259516 | M31: 537 | N31: 0.9290657439 | O31: 453 | P31: 0.7837370242 | Q31: 473 | R31: 0.8183391003 | S31: 313 | T31: 0.6030828516 | U31: 418 | V31: 0.8053949904 | W31: 470 | X31: 0.9055876686
A32: Metropolitana | B32: Ibatiba | C32: 361 | D32: 112 | E32: 354 | F32: 118 | G32: 70 | H32: 0.625 | I32: 38 | J32: 0.3220338983 | K32: 104 | L32: 0.9285714286 | M32: 113 | N32: 1.008928571 | O32: 111 | P32: 0.9910714286 | Q32: 113 | R32: 1.008928571 | S32: 82 | T32: 0.6949152542 | U32: 98 | V32: 0.8305084746 | W32: 99 | X32: 0.8389830508
A33: Metropolitana | B33: Ibiraçu | C33: 153 | D33: 58 | E33: 160 | F33: 53.33333333 | G33: 24 | H33: 0.4137931034 | I33: 34 | J33: 0.6375 | K33: 39 | L33: 0.6724137931 | M33: 40 | N33: 0.6896551724 | O33: 24 | P33: 0.4137931034 | Q33: 23 | R33: 0.3965517241 | S33: 30 | T33: 0.5625 | U33: 35 | V33: 0.65625 | W33: 36 | X33: 0.675
A34: Sul | B34: Ibitirama | C34: 127 | D34: 37 | E34: 148 | F34: 49.33333333 | G34: 35 | H34: 0.9459459459 | I34: 12 | J34: 0.2432432432 | K34: 44 | L34: 1.189189189 | M34: 46 | N34: 1.243243243 | O34: 38 | P34: 1.027027027 | Q34: 35 | R34: 0.9459459459 | S34: 10 | T34: 0.2027027027 | U34: 17 | V34: 0.3445945946 | W34: 12 | X34: 0.2432432432
A35: Sul | B35: Iconha | C35: 115 | D35: 36 | E35: 156 | F35: 52 | G35: 41 | H35: =G35/D35 -> 1.138888889 | I35: 13 | J35: =I35/F35 -> 0.25 | K35: 56 | L35: =K35/D35 -> 1.555555556 | M35: 57 | N35: =M35/D35 -> 1.583333333 | O35: 35 | P35: =O35/D35 -> 0.9722222222 | Q35: 35 | R35: =Q35/D35 -> 0.9722222222 | S35: 40 | T35: =S35/F35 -> 0.7692307692 | U35: 41 | V35: =U35/F35 -> 0.7884615385 | W35: 39 | X35: =W35/F35 -> 0.75
A36: Sul | B36: Irupi | C36: 195 | D36: 59 | E36: 200 | F36: 66.66666667 | G36: 44 | H36: 0.7457627119 | I36: 39 | J36: 0.585 | K36: 88 | L36: 1.491525424 | M36: 89 | N36: 1.508474576 | O36: 62 | P36: 1.050847458 | Q36: 61 | R36: 1.033898305 | S36: 64 | T36: 0.96 | U36: 69 | V36: 1.035 | W36: 76 | X36: 1.14
A37: Metropolitana | B37: Itaguaçu | C37: 129 | D37: 37 | E37: 154 | F37: 51.33333333 | G37: 57 | H37: 1.540540541 | I37: 22 | J37: 0.4285714286 | K37: 43 | L37: 1.162162162 | M37: 46 | N37: 1.243243243 | O37: 50 | P37: 1.351351351 | Q37: 49 | R37: 1.324324324 | S37: 35 | T37: 0.6818181818 | U37: 39 | V37: 0.7597402597 | W37: 41 | X37: 0.7987012987
A38: Sul | B38: Itapemirim | C38: 543 | D38: 157 | E38: 556 | F38: 185.3333333 | G38: 105 | H38: 0.6687898089 | I38: 80 | J38: 0.4316546763 | K38: 175 | L38: 1.114649682 | M38: 185 | N38: 1.178343949 | O38: 153 | P38: 0.974522293 | Q38: 157 | R38: 1 | S38: 71 | T38: 0.3830935252 | U38: 161 | V38: 0.868705036 | W38: 156 | X38: 0.8417266187
A39: Metropolitana | B39: Itarana | C39: 143 | D39: 51 | E39: 128 | F39: 42.66666667 | G39: 34 | H39: 0.6666666667 | I39: 38 | J39: 0.890625 | K39: 40 | L39: 0.7843137255 | M39: 40 | N39: 0.7843137255 | O39: 35 | P39: 0.6862745098 | Q39: 34 | R39: 0.6666666667 | S39: 35 | T39: 0.8203125 | U39: 37 | V39: 0.8671875 | W39: 33 | X39: 0.7734375
A40: Sul | B40: Iúna | C40: 481 | D40: 154 | E40: 410 | F40: 136.6666667 | G40: 114 | H40: 0.7402597403 | I40: 81 | J40: 0.5926829268 | K40: 155 | L40: 1.006493506 | M40: 166 | N40: 1.077922078 | O40: 117 | P40: 0.7597402597 | Q40: 118 | R40: 0.7662337662 | S40: 97 | T40: 0.7097560976 | U40: 132 | V40: 0.9658536585 | W40: 132 | X40: 0.9658536585
A41: Norte | B41: Jaguaré | C41: 487 | D41: 154 | E41: 445 | F41: 148.3333333 | G41: 139 | H41: 0.9025974026 | I41: 80 | J41: 0.5393258427 | K41: 158 | L41: 1.025974026 | M41: 158 | N41: 1.025974026 | O41: 146 | P41: 0.9480519481 | Q41: 150 | R41: 0.974025974 | S41: 110 | T41: 0.7415730337 | U41: 134 | V41: 0.9033707865 | W41: 161 | X41: 1.085393258
A42: Sul | B42: Jerônimo Monteiro | C42: 160 | D42: 49 | E42: 157 | F42: 52.33333333 | G42: 39 | H42: 0.7959183673 | I42: 12 | J42: 0.2292993631 | K42: 56 | L42: 1.142857143 | M42: 56 | N42: 1.142857143 | O42: 47 | P42: 0.9591836735 | Q42: 48 | R42: 0.9795918367 | S42: 32 | T42: 0.6114649682 | U42: 39 | V42: 0.7452229299 | W42: 40 | X42: 0.7643312102
A43: Metropolitana | B43: João Neiva | C43: 180 | D43: 59 | E43: 142 | F43: 47.33333333 | G43: 38 | H43: 0.6440677966 | I43: 25 | J43: 0.5281690141 | K43: 63 | L43: 1.06779661 | M43: 66 | N43: 1.118644068 | O43: 43 | P43: 0.7288135593 | Q43: 43 | R43: 0.7288135593 | S43: 36 | T43: 0.7605633803 | U43: 38 | V43: 0.8028169014 | W43: 38 | X43: 0.8028169014
A44: Metropolitana | B44: Laranja da Terra | C44: 98 | D44: 37 | E44: 133 | F44: 44.33333333 | G44: 31 | H44: 0.8378378378 | I44: 33 | J44: 0.7443609023 | K44: 52 | L44: 1.405405405 | M44: 52 | N44: 1.405405405 | O44: 32 | P44: 0.8648648649 | Q44: 31 | R44: 0.8378378378 | S44: 31 | T44: 0.6992481203 | U44: 32 | V44: 0.7218045113 | W44: 32 | X44: 0.7218045113
A45: Central | B45: Linhares | C45: 2574 | D45: 863 | E45: 2452 | F45: 817.3333333 | G45: 583 | H45: 0.6755504056 | I45: 379 | J45: 0.4637030995 | K45: 679 | L45: 0.7867902665 | M45: 673 | N45: 0.7798377752 | O45: 649 | P45: 0.75202781 | Q45: 684 | R45: 0.7925840093 | S45: 519 | T45: 0.6349918434 | U45: 668 | V45: 0.8172920065 | W45: 710 | X45: 0.8686786297
A46: Central | B46: Mantenópolis | C46: 156 | D46: 51 | E46: 166 | F46: 55.33333333 | G46: 41 | H46: 0.8039215686 | I46: 29 | J46: 0.5240963855 | K46: 60 | L46: 1.176470588 | M46: 56 | N46: 1.098039216 | O46: 46 | P46: 0.9019607843 | Q46: 48 | R46: 0.9411764706 | S46: 35 | T46: 0.6325301205 | U46: 49 | V46: 0.8855421687 | W46: 48 | X46: 0.8674698795
A47: Sul | B47: Marataízes | C47: 556 | D47: 206 | E47: 579 | F47: 193 | G47: 157 | H47: 0.7621359223 | I47: 97 | J47: 0.5025906736 | K47: 208 | L47: 1.009708738 | M47: 206 | N47: 1 | O47: 183 | P47: 0.8883495146 | Q47: 192 | R47: 0.932038835 | S47: 97 | T47: 0.5025906736 | U47: 166 | V47: 0.8601036269 | W47: 170 | X47: 0.8808290155
A48: Metropolitana | B48: Marechal Floriano | C48: 237 | D48: 88 | E48: 236 | F48: 78.66666667 | G48: 58 | H48: 0.6590909091 | I48: 56 | J48: 0.7118644068 | K48: 77 | L48: 0.875 | M48: 74 | N48: 0.8409090909 | O48: 63 | P48: 0.7159090909 | Q48: 58 | R48: 0.6590909091 | S48: 44 | T48: 0.5593220339 | U48: 53 | V48: 0.6737288136 | W48: 50 | X48: 0.6355932203
A49: Central | B49: Marilândia | C49: 157 | D49: 37 | E49: 164 | F49: 54.66666667 | G49: 42 | H49: 1.135135135 | I49: 36 | J49: 0.6585365854 | K49: 43 | L49: 1.162162162 | M49: 45 | N49: 1.216216216 | O49: 40 | P49: 1.081081081 | Q49: 39 | R49: 1.054054054 | S49: 41 | T49: 0.75 | U49: 43 | V49: 0.7865853659 | W49: 44 | X49: 0.8048780488
A50: Sul | B50: Mimoso do Sul | C50: 254 | D50: 71 | E50: 276 | F50: 92 | G50: 37 | H50: 0.5211267606 | I50: 59 | J50: 0.6413043478 | K50: 63 | L50: 0.8873239437 | M50: 67 | N50: 0.9436619718 | O50: 52 | P50: 0.7323943662 | Q50: 53 | R50: 0.7464788732 | S50: 63 | T50: 0.6847826087 | U50: 67 | V50: 0.7282608696 | W50: 68 | X50: 0.7391304348
A51: Norte | B51: Montanha | C51: 259 | D51: 77 | E51: 278 | F51: 92.66666667 | G51: 76 | H51: 0.987012987 | I51: 59 | J51: 0.6366906475 | K51: 81 | L51: 1.051948052 | M51: 84 | N51: 1.090909091 | O51: 83 | P51: 1.077922078 | Q51: 85 | R51: 1.103896104 | S51: 76 | T51: 0.8201438849 | U51: 86 | V51: 0.928057554 | W51: 88 | X51: 0.9496402878
A52: Norte | B52: Mucurici | C52: 73 | D52: 19 | E52: 97 | F52: 32.33333333 | G52: 13 | H52: 0.6842105263 | I52: 20 | J52: 0.618556701 | K52: 31 | L52: 1.631578947 | M52: 31 | N52: 1.631578947 | O52: 13 | P52: 0.6842105263 | Q52: 13 | R52: 0.6842105263 | S52: 21 | T52: 0.6494845361 | U52: 24 | V52: 0.7422680412 | W52: 24 | X52: 0.7422680412
A53: Sul | B53: Muniz Freire | C53: 221 | D53: 72 | E53: 275 | F53: 91.66666667 | G53: 77 | H53: 1.069444444 | I53: 27 | J53: 0.2945454545 | K53: 90 | L53: 1.25 | M53: 88 | N53: 1.222222222 | O53: 77 | P53: 1.069444444 | Q53: 75 | R53: 1.041666667 | S53: 75 | T53: 0.8181818182 | U53: 74 | V53: 0.8072727273 | W53: 68 | X53: 0.7418181818
A54: Sul | B54: Muqui | C54: 165 | D54: 43 | E54: 152 | F54: 50.66666667 | G54: 39 | H54: 0.9069767442 | I54: 41 | J54: 0.8092105263 | K54: 47 | L54: 1.093023256 | M54: 46 | N54: 1.069767442 | O54: 36 | P54: 0.8372093023 | Q54: 35 | R54: 0.8139534884 | S54: 41 | T54: 0.8092105263 | U54: 42 | V54: 0.8289473684 | W54: 42 | X54: 0.8289473684
A55: Norte | B55: Nova Venécia | C55: 683 | D55: 225 | E55: 656 | F55: 218.6666667 | G55: 205 | H55: 0.9111111111 | I55: 104 | J55: 0.4756097561 | K55: 208 | L55: 0.9244444444 | M55: 216 | N55: 0.96 | O55: 201 | P55: 0.8933333333 | Q55: 211 | R55: 0.9377777778 | S55: 136 | T55: 0.6219512195 | U55: 171 | V55: 0.7820121951 | W55: 175 | X55: 0.800304878
A56: Central | B56: Pancas | C56: 208 | D56: 56 | E56: 244 | F56: 81.33333333 | G56: 72 | H56: 1.285714286 | I56: 39 | J56: 0.4795081967 | K56: 66 | L56: 1.178571429 | M56: 70 | N56: 1.25 | O56: 73 | P56: 1.303571429 | Q56: 74 | R56: 1.321428571 | S56: 60 | T56: 0.737704918 | U56: 59 | V56: 0.7254098361 | W56: 61 | X56: 0.75
A57: Norte | B57: Pedro Canário | C57: 335 | D57: 129 | E57: 338 | F57: 112.6666667 | G57: 96 | H57: 0.7441860465 | I57: 84 | J57: 0.7455621302 | K57: 122 | L57: 0.9457364341 | M57: 121 | N57: 0.9379844961 | O57: 115 | P57: 0.8914728682 | Q57: 120 | R57: 0.9302325581 | S57: 102 | T57: 0.9053254438 | U57: 111 | V57: 0.9852071006 | W57: 114 | X57: 1.01183432
A58: Norte | B58: Pinheiros | C58: 330 | D58: 109 | E58: 383 | F58: 127.6666667 | G58: 63 | H58: 0.5779816514 | I58: 64 | J58: 0.501305483 | K58: 100 | L58: 0.9174311927 | M58: 96 | N58: 0.880733945 | O58: 69 | P58: 0.6330275229 | Q58: 68 | R58: 0.623853211 | S58: 83 | T58: 0.6501305483 | U58: 100 | V58: 0.7832898172 | W58: 100 | X58: 0.7832898172
A59: Sul | B59: Piúma | C59: 292 | D59: 83 | E59: 311 | F59: 103.6666667 | G59: 59 | H59: 0.7108433735 | I59: 41 | J59: 0.3954983923 | K59: 98 | L59: 1.180722892 | M59: 92 | N59: 1.108433735 | O59: 90 | P59: 1.084337349 | Q59: 90 | R59: 1.084337349 | S59: 47 | T59: 0.4533762058 | U59: 75 | V59: 0.7234726688 | W59: 86 | X59: 0.8295819936
A60: Norte | B60: Ponto Belo | C60: 81 | D60: 21 | E60: 85 | F60: 28.33333333 | G60: 14 | H60: 0.6666666667 | I60: 16 | J60: 0.5647058824 | K60: 21 | L60: 1 | M60: 22 | N60: 1.047619048 | O60: 14 | P60: 0.6666666667 | Q60: 13 | R60: 0.619047619 | S60: 15 | T60: 0.5294117647 | U60: 15 | V60: 0.5294117647 | W60: 16 | X60: 0.5647058824
A61: Sul | B61: Presidente Kennedy | C61: 193 | D61: 73 | E61: 239 | F61: 79.66666667 | G61: 66 | H61: 0.904109589 | I61: 32 | J61: 0.4016736402 | K61: 82 | L61: 1.123287671 | M61: 83 | N61: 1.136986301 | O61: 63 | P61: 0.8630136986 | Q61: 63 | R61: 0.8630136986 | S61: 56 | T61: 0.7029288703 | U61: 72 | V61: 0.9037656904 | W61: 72 | X61: 0.9037656904
A62: Central | B62: Rio Bananal | C62: 297 | D62: 99 | E62: 229 | F62: 76.33333333 | G62: 88 | H62: 0.8888888889 | I62: 62 | J62: 0.8122270742 | K62: 98 | L62: 0.9898989899 | M62: 108 | N62: 1.090909091 | O62: 95 | P62: 0.9595959596 | Q62: 92 | R62: 0.9292929293 | S62: 77 | T62: 1.008733624 | U62: 78 | V62: 1.021834061 | W62: 75 | X62: 0.9825327511
A63: Sul | B63: Rio Novo do Sul | C63: 121 | D63: 35 | E63: 144 | F63: 48 | G63: 35 | H63: 1 | I63: 31 | J63: 0.6458333333 | K63: 43 | L63: 1.228571429 | M63: 44 | N63: 1.257142857 | O63: 36 | P63: 1.028571429 | Q63: 37 | R63: 1.057142857 | S63: 27 | T63: 0.5625 | U63: 36 | V63: 0.75 | W63: 38 | X63: 0.7916666667
A64: Metropolitana | B64: Santa Leopoldina | C64: 100 | D64: 32 | E64: 155 | F64: 51.66666667 | G64: 22 | H64: 0.6875 | I64: 15 | J64: 0.2903225806 | K64: 43 | L64: 1.34375 | M64: 43 | N64: 1.34375 | O64: 27 | P64: 0.84375 | Q64: 28 | R64: 0.875 | S64: 27 | T64: 0.5225806452 | U64: 32 | V64: 0.6193548387 | W64: 34 | X64: 0.6580645161
A65: Metropolitana | B65: Santa Maria de Jetibá | C65: 667 | D65: 234 | E65: 685 | F65: 228.3333333 | G65: 186 | H65: 0.7948717949 | I65: 98 | J65: 0.4291970803 | K65: 226 | L65: 0.9658119658 | M65: 235 | N65: 1.004273504 | O65: 219 | P65: 0.9358974359 | Q65: 209 | R65: 0.8931623932 | S65: 145 | T65: 0.6350364964 | U65: 184 | V65: 0.8058394161 | W65: 185 | X65: 0.8102189781
A66: Metropolitana | B66: Santa Teresa | C66: 293 | D66: 87 | E66: 260 | F66: 86.66666667 | G66: 64 | H66: 0.7356321839 | I66: 59 | J66: 0.6807692308 | K66: 80 | L66: 0.9195402299 | M66: 87 | N66: 1 | O66: 66 | P66: 0.7586206897 | Q66: 65 | R66: 0.7471264368 | S66: 67 | T66: 0.7730769231 | U66: 67 | V66: 0.7730769231 | W66: 63 | X66: 0.7269230769
A67: Central | B67: São Domingos do Norte | C67: 125 | D67: 44 | E67: 117 | F67: 39 | G67: 20 | H67: =G67/D67 -> 0.4545454545 | I67: 16 | J67: =I67/F67 -> 0.4102564103 | K67: 26 | L67: =K67/D67 -> 0.5909090909 | M67: 25 | N67: =M67/D67 -> 0.5681818182 | O67: 19 | P67: =O67/D67 -> 0.4318181818 | Q67: 19 | R67: =Q67/D67 -> 0.4318181818 | S67: 28 | T67: =S67/F67 -> 0.7179487179 | U67: 26 | V67: =U67/F67 -> 0.6666666667 | W67: 27 | X67: =W67/F67 -> 0.6923076923
A68: Central | B68: São Gabriel da Palha | C68: 430 | D68: 132 | E68: 426 | F68: =E68/12*4 -> 142 | G68: 106 | H68: 0.803030303 | I68: 78 | J68: 0.5492957746 | K68: 124 | L68: 0.9393939394 | M68: 128 | N68: 0.9696969697 | O68: 112 | P68: 0.8484848485 | Q68: 111 | R68: 0.8409090909 | S68: 125 | T68: 0.8802816901 | U68: 119 | V68: 0.838028169 | W68: 120 | X68: 0.8450704225
A69: Sul | B69: São José do Calçado | C69: 106 | D69: 39 | E69: 150 | F69: 50 | G69: 39 | H69: 1 | I69: 19 | J69: 0.38 | K69: 46 | L69: 1.179487179 | M69: 46 | N69: 1.179487179 | O69: 43 | P69: 1.102564103 | Q69: 40 | R69: 1.025641026 | S69: 46 | T69: 0.92 | U69: 48 | V69: 0.96 | W69: 46 | X69: 0.92
A70: Norte | B70: São Mateus | C70: 1931 | D70: 650 | E70: 1766 | F70: 588.6666667 | G70: 323 | H70: 0.4969230769 | I70: 329 | J70: 0.5588901472 | K70: 533 | L70: 0.82 | M70: 521 | N70: 0.8015384615 | O70: 454 | P70: 0.6984615385 | Q70: 442 | R70: 0.68 | S70: 388 | T70: 0.6591166478 | U70: 479 | V70: 0.8137032843 | W70: 471 | X70: 0.8001132503
A71: Central | B71: São Roque do Canaã | C71: 122 | D71: 50 | E71: 100 | F71: 33.33333333 | G71: 35 | H71: 0.7 | I71: 34 | J71: 1.02 | K71: 42 | L71: 0.84 | M71: 47 | N71: 0.94 | O71: 33 | P71: 0.66 | Q71: 32 | R71: 0.64 | S71: 36 | T71: 1.08 | U71: 37 | V71: 1.11 | W71: 38 | X71: 1.14
A72: Metropolitana | B72: Serra | C72: 7437 | D72: 2622 | E72: 7550 | F72: 2516.666667 | G72: 1466 | H72: 0.5591151793 | I72: 1014 | J72: 0.4029139073 | K72: 2037 | L72: 0.7768878719 | M72: 2065 | N72: 0.7875667429 | O72: 1853 | P72: 0.7067124333 | Q72: 1852 | R72: 0.706331045 | S72: 1960 | T72: 0.778807947 | U72: 2217 | V72: 0.8809271523 | W72: 2193 | X72: 0.8713907285
A73: Central | B73: Sooretama | C73: 432 | D73: 150 | E73: 415 | F73: 138.3333333 | G73: 107 | H73: 0.7133333333 | I73: 81 | J73: 0.5855421687 | K73: 122 | L73: 0.8133333333 | M73: 120 | N73: 0.8 | O73: 126 | P73: 0.84 | Q73: 126 | R73: 0.84 | S73: 144 | T73: 1.040963855 | U73: 133 | V73: 0.9614457831 | W73: 141 | X73: 1.019277108
A74: Sul | B74: Vargem Alta | C74: 256 | D74: 89 | E74: 278 | F74: 92.66666667 | G74: 69 | H74: 0.7752808989 | I74: 50 | J74: 0.5395683453 | K74: 98 | L74: 1.101123596 | M74: 97 | N74: 1.08988764 | O74: 79 | P74: 0.8876404494 | Q74: 83 | R74: 0.9325842697 | S74: 65 | T74: 0.7014388489 | U74: 77 | V74: 0.8309352518 | W74: 78 | X74: 0.8417266187
A75: Metropolitana | B75: Venda Nova do Imigrante | C75: 406 | D75: 130 | E75: 328 | F75: 109.3333333 | G75: 104 | H75: 0.8 | I75: 45 | J75: 0.4115853659 | K75: 139 | L75: 1.069230769 | M75: 142 | N75: 1.092307692 | O75: 107 | P75: 0.8230769231 | Q75: 107 | R75: 0.8230769231 | S75: 58 | T75: 0.5304878049 | U75: 63 | V75: 0.5762195122 | W75: 67 | X75: 0.612804878
A76: Metropolitana | B76: Viana | C76: 1005 | D76: 360 | E76: 1064 | F76: 354.6666667 | G76: 139 | H76: 0.3861111111 | I76: 139 | J76: 0.3919172932 | K76: 319 | L76: 0.8861111111 | M76: 325 | N76: 0.9027777778 | O76: 236 | P76: 0.6555555556 | Q76: 241 | R76: 0.6694444444 | S76: 230 | T76: 0.6484962406 | U76: 288 | V76: 0.8120300752 | W76: 298 | X76: 0.8402255639
A77: Norte | B77: Vila Pavão | C77: 88 | D77: 34 | E77: 127 | F77: 42.33333333 | G77: 33 | H77: 0.9705882353 | I77: 21 | J77: 0.4960629921 | K77: 44 | L77: 1.294117647 | M77: 47 | N77: 1.382352941 | O77: 33 | P77: 0.9705882353 | Q77: 31 | R77: 0.9117647059 | S77: 43 | T77: 1.015748031 | U77: 46 | V77: 1.086614173 | W77: 45 | X77: 1.062992126
A78: Central | B78: Vila Valério | C78: 241 | D78: 79 | E78: 169 | F78: 56.33333333 | G78: 56 | H78: 0.7088607595 | I78: 37 | J78: 0.6568047337 | K78: 57 | L78: 0.7215189873 | M78: 53 | N78: 0.6708860759 | O78: 66 | P78: 0.835443038 | Q78: 69 | R78: 0.8734177215 | S78: 45 | T78: 0.798816568 | U78: 68 | V78: 1.207100592 | W78: 64 | X78: 1.136094675
A79: Metropolitana | B79: Vila Velha | C79: 5756 | D79: 1942 | E79: 5675 | F79: 1891.666667 | G79: 1188 | H79: 0.6117404737 | I79: 753 | J79: 0.398061674 | K79: 1560 | L79: 0.8032955716 | M79: 1642 | N79: 0.8455200824 | O79: 1347 | P79: 0.6936148301 | Q79: 1340 | R79: 0.6900102987 | S79: 1385 | T79: 0.7321585903 | U79: 1501 | V79: 0.7934801762 | W79: 1462 | X79: 0.7728634361
A80: Metropolitana | B80: Vitória | C80: 3725 | D80: 1218 | E80: 3833 | F80: 1277.666667 | G80: 722 | H80: 0.5927750411 | I80: 528 | J80: 0.4132533264 | K80: 1045 | L80: 0.8579638752 | M80: 1106 | N80: 0.908045977 | O80: 1062 | P80: 0.8719211823 | Q80: 1048 | R80: 0.8604269294 | S80: 901 | T80: 0.7051917558 | U80: 1139 | V80: 0.8914688234 | W80: 1153 | X80: 0.9024262979
B82: Total Norte | C82: =SUMIF($A$3:$A$80,"Norte",C$3:C$80) -> 5815 | D82: =SUMIF($A$3:$A$80,"Norte",D$3:D$80) -> 1942 | E82: =SUMIF($A$3:$A$80,"Norte",E$3:E$80) -> 5789 | F82: =SUMIF($A$3:$A$80,"Norte",F$3:F$80) -> 1929.666667 | G82: =SUMIF($A$3:$A$80,"Norte",G$3:G$80) -> 1391 | H82: =G82/D82 -> 0.7162718847 | I82: =SUMIF($A$3:$A$80,"Norte",I$3:I$80) -> 1124 | J82: =I82/F82 -> 0.5824840214 | K82: =SUMIF($A$3:$A$80,"Norte",K$3:K$80) -> 1818 | L82: =K82/D82 -> 0.9361483007 | M82: =SUMIF($A$3:$A$80,"Norte",M$3:M$80) -> 1829 | N82: =M82/D82 -> 0.9418125644 | O82: =SUMIF($A$3:$A$80,"Norte",O$3:O$80) -> 1584 | P82: =O82/D82 -> 0.815653965 | Q82: =SUMIF($A$3:$A$80,"Norte",Q$3:Q$80) -> 1591 | R82: =Q82/D82 -> 0.8192584964 | S82: =SUMIF($A$3:$A$80,"Norte",S$3:S$80) -> 1373 | T82: =S82/F82 -> 0.7115218518 | U82: =SUMIF($A$3:$A$80,"Norte",U$3:U$80) -> 1616 | V82: =U82/F82 -> 0.8374503368 | W82: =SUMIF($A$3:$A$80,"Norte",W$3:W$80) -> 1648 | X82: =W82/F82 -> 0.8540335118
B83: Total Central | C83: =SUMIF($A$3:$A$80,"Central",C$3:C$80) -> 7014 | D83: =SUMIF($A$3:$A$80,"Central",D$3:D$80) -> 2274 | E83: =SUMIF($A$3:$A$80,"Central",E$3:E$80) -> 6843 | F83: =SUMIF($A$3:$A$80,"Central",F$3:F$80) -> 2281 | G83: =SUMIF($A$3:$A$80,"Central",G$3:G$80) -> 1677 | H83: =G83/D83 -> 0.7374670185 | I83: =SUMIF($A$3:$A$80,"Central",I$3:I$80) -> 1114 | J83: =I83/F83 -> 0.4883822885 | K83: =SUMIF($A$3:$A$80,"Central",K$3:K$80) -> 2009 | L83: =K83/D83 -> 0.8834652595 | M83: =SUMIF($A$3:$A$80,"Central",M$3:M$80) -> 2049 | N83: =M83/D83 -> 0.901055409 | O83: =SUMIF($A$3:$A$80,"Central",O$3:O$80) -> 1863 | P83: =O83/D83 -> 0.8192612137 | Q83: =SUMIF($A$3:$A$80,"Central",Q$3:Q$80) -> 1910 | R83: =Q83/D83 -> 0.8399296394 | S83: =SUMIF($A$3:$A$80,"Central",S$3:S$80) -> 1557 | T83: =S83/F83 -> 0.6825953529 | U83: =SUMIF($A$3:$A$80,"Central",U$3:U$80) -> 1862 | V83: =U83/F83 -> 0.8163086366 | W83: =SUMIF($A$3:$A$80,"Central",W$3:W$80) -> 1913 | X83: =W83/F83 -> 0.8386672512
B84: Total Metropolitana | C84: =SUMIF($A$3:$A$80,"Metropolitana",C$3:C$80) -> 30199 | D84: =SUMIF($A$3:$A$80,"Metropolitana",D$3:D$80) -> 10284 | E84: =SUMIF($A$3:$A$80,"Metropolitana",E$3:E$80) -> 30197 | F84: =SUMIF($A$3:$A$80,"Metropolitana",F$3:F$80) -> 10065.66667 | G84: =SUMIF($A$3:$A$80,"Metropolitana",G$3:G$80) -> 6456 | H84: =G84/D84 -> 0.6277712952 | I84: =SUMIF($A$3:$A$80,"Metropolitana",I$3:I$80) -> 4652 | J84: =I84/F84 -> 0.4621651157 | K84: =SUMIF($A$3:$A$80,"Metropolitana",K$3:K$80) -> 8886 | L84: =K84/D84 -> 0.8640606768 | M84: =SUMIF($A$3:$A$80,"Metropolitana",M$3:M$80) -> 9168 | N84: =M84/D84 -> 0.8914819137 | O84: =SUMIF($A$3:$A$80,"Metropolitana",O$3:O$80) -> 7948 | P84: =O84/D84 -> 0.7728510307 | Q84: =SUMIF($A$3:$A$80,"Metropolitana",Q$3:Q$80) -> 7934 | R84: =Q84/D84 -> 0.7714896927 | S84: =SUMIF($A$3:$A$80,"Metropolitana",S$3:S$80) -> 7233 | T84: =S84/F84 -> 0.718581316 | U84: =SUMIF($A$3:$A$80,"Metropolitana",U$3:U$80) -> 8584 | V84: =U84/F84 -> 0.852799947 | W84: =SUMIF($A$3:$A$80,"Metropolitana",W$3:W$80) -> 8589 | X84: =W84/F84 -> 0.8532966851
B85: Total Sul | C85: =SUMIF($A$3:$A$80,"sul",C$3:C$80) -> 8398 | D85: =SUMIF($A$3:$A$80,"sul",D$3:D$80) -> 2747 | E85: =SUMIF($A$3:$A$80,"sul",E$3:E$80) -> 8688 | F85: =SUMIF($A$3:$A$80,"sul",F$3:F$80) -> 2896 | G85: =SUMIF($A$3:$A$80,"sul",G$3:G$80) -> 2164 | H85: =G85/D85 -> 0.7877684747 | I85: =SUMIF($A$3:$A$80,"sul",I$3:I$80) -> 1403 | J85: =I85/F85 -> 0.484461326 | K85: =SUMIF($A$3:$A$80,"sul",K$3:K$80) -> 2876 | L85: =K85/D85 -> 1.04696032 | M85: =SUMIF($A$3:$A$80,"sul",M$3:M$80) -> 2948 | N85: =M85/D85 -> 1.073170732 | O85: =SUMIF($A$3:$A$80,"sul",O$3:O$80) -> 2487 | P85: =O85/D85 -> 0.9053512923 | Q85: =SUMIF($A$3:$A$80,"sul",Q$3:Q$80) -> 2488 | R85: =Q85/D85 -> 0.9057153258 | S85: =SUMIF($A$3:$A$80,"sul",S$3:S$80) -> 1832 | T85: =S85/F85 -> 0.6325966851 | U85: =SUMIF($A$3:$A$80,"sul",U$3:U$80) -> 2360 | V85: =U85/F85 -> 0.8149171271 | W85: =SUMIF($A$3:$A$80,"sul",W$3:W$80) -> 2414 | X85: =W85/F85 -> 0.8335635359
B86: Total Espírito Santo | C86: =SUM(C3:C80) -> 51426 | D86: =SUM(D3:D80) -> 17247 | E86: =SUM(E3:E80) -> 51517 | F86: =SUM(F3:F80) -> 17172.33333 | G86: =SUM(G3:G80) -> 11688 | H86: =G86/D86 -> 0.6776830753 | I86: =SUM(I3:I80) -> 8293 | J86: =I86/F86 -> 0.4829279655 | K86: =SUM(K3:K80) -> 15589 | L86: =K86/D86 -> 0.9038673392 | M86: =SUM(M3:M80) -> 15994 | N86: =M86/D86 -> 0.927349684 | O86: =SUM(O3:O80) -> 13882 | P86: =O86/D86 -> 0.8048936047 | Q86: =SUM(Q3:Q80) -> 13923 | R86: =Q86/D86 -> 0.8072708297 | S86: =SUM(S3:S80) -> 11995 | T86: =S86/F86 -> 0.6985072889 | U86: =SUM(U3:U80) -> 14422 | V86: =U86/F86 -> 0.8398392764 | W86: =SUM(W3:W80) -> 14564 | X86: =W86/F86 -> 0.8481083914
A90: FonteVacina e Confia, em 09 de Maio de 2024.**
A91: **Dados referente às doses aplicadas no período de Abril de 2024
A92: Cobertura Calculada por município de procedência da vacinação
A93: 1 População anual extraída do MS/SVS/DASIS - SINASC/DASIS/SVS/MS 2023 (hoje preliminares) referente ao período de março a dezembro de 2023 e SINASC/DASIS/SVS/MS 2024 referente ao período de janeiro a fevereiro de 2024.
A95: ² População proporcional extraída do MS/SVS/DASIS - SINASC/DASIS/SVS/MS 2023 (hoje preliminares) referente ao período de março e abril de 2023 somada a população extraída do SINASC/DASIS/SVS/MS 2024 referente ao período de janeiro e fevereiro de 2024.
A96: ³ População anual e proporcional extraída do Censo IBGE 2022.
A98: Observações:
A99: Imunobiológicos que foram recebidos parcialmente pelo estado no mês da análise, sendo distribuídos em quantidades reduzidas às regionais e municípios: Varicela, Febre Amarela e HPV Quadrivalente.
A100: Imunobiológicos que não foram recebidos pelo estado no mês da análise, não sendo possível a distribuição às regionais e municípios: Meningo C, Hepatite A (CRIE), HIB, Hepatite A Rotina Pediátrica, DTPa (CRIE).
A101: Imunobiológicos com indisponibilidade de aquisição e distribuição no mês da análise: Tetra Viral.

Sheet CV REF 1A e 4A - residência
G1: D2 | K1: REFORÇOS 1 ANO | S1: REFORÇOS 4 ANOS
A2: Regional | B2: Município | C2: ¹População 1 ano anual | D2: ²População 1 ano proporcional | E2: ³População 4 anos anual | F2: ³População 4 anos proporcional | G2: DOSES APLICADAS D2 TRÍPLICE VIRAL | H2: COBERTURA D2 TRÍPLICE VIRAL | I2: DOSES APLICADAS D2 VARICELA | J2: COBERTURA D2 VARICELA | K2: DOSES APLICADAS REF PNEUMO | L2: COBERTURA REF PNEUMO | M2: DOSES APLICADAS REF MENINGO | N2: COBERTURA REF MENINGO | O2: DOSES APLICADAS R1 POLIO | P2: COBERTURA R1 POLIO | Q2: DOSES APLICADAS R1 TRÍPLICE BACTERIANA | R2: COBERTURA R1 TRÍPLICE BACTERIANA | S2: DOSES APLICADAS REF FEBRE AMARELA | T2: COBERTURA REF FEBRE AMARELA | U2: DOSES APLICADAS R2 POLIO | V2: COBERTURA R2 POLIO | W2: DOSES APLICADAS R2 TRÍPLICE BACTERIANA | X2: COBERTURA R2 TRÍPLICE BACTERIANA
A3: Metropolitana | B3: Afonso Cláudio | C3: 384 | D3: 126 | E3: 416 | F3: =E3/12*4 -> 138.6666667 | G3: 117 | H3: =G3/D3 -> 0.9285714286 | I3: 71 | J3: =I3/F3 -> 0.5120192308 | K3: 145 | L3: =K3/D3 -> 1.150793651 | M3: 144 | N3: =M3/D3 -> 1.142857143 | O3: 129 | P3: =O3/D3 -> 1.023809524 | Q3: 131 | R3: =Q3/D3 -> 1.03968254 | S3: 87 | T3: =S3/F3 -> 0.6274038462 | U3: 95 | V3: =U3/F3 -> 0.6850961538 | W3: 95 | X3: =W3/F3 -> 0.6850961538
A4: Norte | B4: Água Doce do Norte | C4: 170 | D4: 61 | E4: 151 | F4: =E4/12*4 -> 50.33333333 | G4: 31 | H4: 0.5081967213 | I4: 29 | J4: 0.5761589404 | K4: 51 | L4: 0.8360655738 | M4: 51 | N4: 0.8360655738 | O4: 36 | P4: 0.5901639344 | Q4: 41 | R4: 0.6721311475 | S4: 38 | T4: 0.7549668874 | U4: 40 | V4: 0.7947019868 | W4: 36 | X4: 0.7152317881
A5: Central | B5: Águia Branca | C5: 149 | D5: 39 | E5: 129 | F5: 43 | G5: 27 | H5: 0.6923076923 | I5: 21 | J5: 0.488372093 | K5: 36 | L5: 0.9230769231 | M5: 38 | N5: 0.9743589744 | O5: 36 | P5: 0.9230769231 | Q5: 38 | R5: 0.9743589744 | S5: 27 | T5: 0.6279069767 | U5: 33 | V5: 0.7674418605 | W5: 35 | X5: 0.8139534884
A6: Sul | B6: Alegre | C6: 327 | D6: 93 | E6: 372 | F6: 124 | G6: 79 | H6: 0.8494623656 | I6: 83 | J6: 0.6693548387 | K6: 96 | L6: 1.032258065 | M6: 97 | N6: 1.043010753 | O6: 80 | P6: 0.8602150538 | Q6: 86 | R6: 0.9247311828 | S6: 109 | T6: 0.8790322581 | U6: 113 | V6: 0.9112903226 | W6: 120 | X6: 0.9677419355
A7: Sul | B7: Alfredo Chaves | C7: 146 | D7: 46 | E7: 138 | F7: 46 | G7: 38 | H7: 0.8260869565 | I7: 35 | J7: 0.7608695652 | K7: 49 | L7: 1.065217391 | M7: 52 | N7: 1.130434783 | O7: 43 | P7: 0.9347826087 | Q7: 42 | R7: 0.9130434783 | S7: 36 | T7: 0.7826086957 | U7: 41 | V7: 0.8913043478 | W7: 37 | X7: 0.8043478261
A8: Central | B8: Alto Rio Novo | C8: 80 | D8: 21 | E8: 102 | F8: 34 | G8: 23 | H8: 1.095238095 | I8: 17 | J8: 0.5 | K8: 31 | L8: 1.476190476 | M8: 30 | N8: 1.428571429 | O8: 25 | P8: 1.19047619 | Q8: 22 | R8: 1.047619048 | S8: 25 | T8: 0.7352941176 | U8: 24 | V8: 0.7058823529 | W8: 23 | X8: 0.6764705882
A9: Sul | B9: Anchieta | C9: 365 | D9: 109 | E9: 390 | F9: 130 | G9: 100 | H9: 0.9174311927 | I9: 83 | J9: 0.6384615385 | K9: 130 | L9: 1.19266055 | M9: 132 | N9: 1.211009174 | O9: 118 | P9: 1.082568807 | Q9: 123 | R9: 1.128440367 | S9: 102 | T9: 0.7846153846 | U9: 134 | V9: 1.030769231 | W9: 146 | X9: 1.123076923
A10: Sul | B10: Apiacá | C10: 64 | D10: 20 | E10: 90 | F10: 30 | G10: 4 | H10: 0.2 | I10: 20 | J10: 0.6666666667 | K10: 15 | L10: 0.75 | M10: 16 | N10: 0.8 | O10: 5 | P10: 0.25 | Q10: 5 | R10: 0.25 | S10: 6 | T10: 0.2 | U10: 27 | V10: 0.9 | W10: 26 | X10: 0.8666666667
A11: Metropolitana | B11: Aracruz | C11: 1456 | D11: 490 | E11: 1420 | F11: 473.3333333 | G11: 407 | H11: 0.8306122449 | I11: 298 | J11: 0.6295774648 | K11: 491 | L11: 1.002040816 | M11: 520 | N11: 1.06122449 | O11: 464 | P11: 0.9469387755 | Q11: 466 | R11: 0.9510204082 | S11: 307 | T11: 0.6485915493 | U11: 394 | V11: 0.8323943662 | W11: 415 | X11: 0.8767605634
A12: Sul | B12: Atilio Vivacqua | C12: 133 | D12: 42 | E12: 138 | F12: 46 | G12: 37 | H12: 0.880952381 | I12: 19 | J12: 0.4130434783 | K12: 45 | L12: 1.071428571 | M12: 47 | N12: 1.119047619 | O12: 45 | P12: 1.071428571 | Q12: 46 | R12: 1.095238095 | S12: 33 | T12: 0.7173913043 | U12: 38 | V12: 0.8260869565 | W12: 37 | X12: 0.8043478261
A13: Central | B13: Baixo Guandu | C13: 364 | D13: 105 | E13: 427 | F13: 142.3333333 | G13: 115 | H13: 1.095238095 | I13: 70 | J13: 0.4918032787 | K13: 144 | L13: 1.371428571 | M13: 145 | N13: 1.380952381 | O13: 129 | P13: 1.228571429 | Q13: 133 | R13: 1.266666667 | S13: 98 | T13: 0.6885245902 | U13: 136 | V13: 0.9555035129 | W13: 128 | X13: 0.8992974239
A14: Norte | B14: Barra de São Francisco | C14: 534 | D14: 166 | E14: 589 | F14: 196.3333333 | G14: 161 | H14: 0.9698795181 | I14: 109 | J14: 0.5551782683 | K14: 185 | L14: 1.114457831 | M14: 186 | N14: 1.120481928 | O14: 162 | P14: 0.9759036145 | Q14: 169 | R14: 1.018072289 | S14: 146 | T14: 0.7436332767 | U14: 143 | V14: 0.7283531409 | W14: 144 | X14: 0.7334465195
A15: Norte | B15: Boa Esperança | C15: 199 | D15: 72 | E15: 200 | F15: 66.66666667 | G15: 51 | H15: 0.7083333333 | I15: 43 | J15: 0.645 | K15: 74 | L15: 1.027777778 | M15: 76 | N15: 1.055555556 | O15: 59 | P15: 0.8194444444 | Q15: 53 | R15: 0.7361111111 | S15: 38 | T15: 0.57 | U15: 50 | V15: 0.75 | W15: 51 | X15: 0.765
A16: Sul | B16: Bom Jesus do Norte | C16: 83 | D16: 23 | E16: 146 | F16: 48.66666667 | G16: 13 | H16: 0.5652173913 | I16: 8 | J16: 0.1643835616 | K16: 34 | L16: 1.47826087 | M16: 34 | N16: 1.47826087 | O16: 16 | P16: 0.6956521739 | Q16: 15 | R16: 0.652173913 | S16: 16 | T16: 0.3287671233 | U16: 23 | V16: 0.4726027397 | W16: 21 | X16: 0.4315068493
A17: Metropolitana | B17: Brejetuba | C17: 212 | D17: 70 | E17: 169 | F17: 56.33333333 | G17: 67 | H17: 0.9571428571 | I17: 40 | J17: 0.7100591716 | K17: 62 | L17: 0.8857142857 | M17: 64 | N17: 0.9142857143 | O17: 65 | P17: 0.9285714286 | Q17: 68 | R17: 0.9714285714 | S17: 56 | T17: 0.9940828402 | U17: 59 | V17: 1.047337278 | W17: 60 | X17: 1.065088757
A18: Sul | B18: Cachoeiro de Itapemirim | C18: 2473 | D18: 863 | E18: 2417 | F18: 805.6666667 | G18: 612 | H18: 0.7091541136 | I18: 377 | J18: 0.4679354572 | K18: 808 | L18: 0.9362688297 | M18: 827 | N18: 0.9582850521 | O18: 736 | P18: 0.852838934 | Q18: 728 | R18: 0.8435689455 | S18: 463 | T18: 0.5746793546 | U18: 636 | V18: 0.7894083575 | W18: 663 | X18: 0.8229209764
A19: Metropolitana | B19: Cariacica | C19: 4917 | D19: 1679 | E19: 5005 | F19: 1668.333333 | G19: 1041 | H19: 0.6200119119 | I19: 855 | J19: 0.5124875125 | K19: 1544 | L19: 0.919594997 | M19: 1578 | N19: 0.9398451459 | O19: 1338 | P19: 0.7969029184 | Q19: 1330 | R19: 0.7921381775 | S19: 1191 | T19: 0.7138861139 | U19: 1534 | V19: 0.9194805195 | W19: 1504 | X19: 0.9014985015
A20: Sul | B20: Castelo | C20: 454 | D20: 160 | E20: 399 | F20: 133 | G20: 122 | H20: 0.7625 | I20: 72 | J20: 0.5413533835 | K20: 146 | L20: 0.9125 | M20: 149 | N20: 0.93125 | O20: 130 | P20: 0.8125 | Q20: 131 | R20: 0.81875 | S20: 92 | T20: 0.6917293233 | U20: 109 | V20: 0.8195488722 | W20: 111 | X20: 0.8345864662
A21: Central | B21: Colatina | C21: 1532 | D21: 496 | E21: 1561 | F21: 520.3333333 | G21: 355 | H21: 0.7157258065 | I21: 180 | J21: 0.3459320948 | K21: 439 | L21: 0.8850806452 | M21: 474 | N21: 0.9556451613 | O21: 389 | P21: 0.7842741935 | Q21: 395 | R21: 0.7963709677 | S21: 247 | T21: 0.4746957079 | U21: 337 | V21: 0.6476617553 | W21: 345 | X21: 0.6630365151
A22: Norte | B22: Conceição da Barra | C22: 389 | D22: 136 | E22: 391 | F22: 130.3333333 | G22: 105 | H22: 0.7720588235 | I22: 87 | J22: 0.6675191816 | K22: 129 | L22: 0.9485294118 | M22: 133 | N22: 0.9779411765 | O22: 123 | P22: 0.9044117647 | Q22: 115 | R22: 0.8455882353 | S22: 99 | T22: 0.7595907928 | U22: 142 | V22: 1.089514066 | W22: 144 | X22: 1.104859335
A23: Metropolitana | B23: Conceição do Castelo | C23: 168 | D23: 60 | E23: 144 | F23: 48 | G23: 35 | H23: 0.5833333333 | I23: 22 | J23: 0.4583333333 | K23: 35 | L23: 0.5833333333 | M23: 38 | N23: 0.6333333333 | O23: 40 | P23: 0.6666666667 | Q23: 38 | R23: 0.6333333333 | S23: 34 | T23: 0.7083333333 | U23: 35 | V23: 0.7291666667 | W23: 37 | X23: 0.7708333333
A24: Sul | B24: Divino de São Lourenço | C24: 65 | D24: 21 | E24: 68 | F24: 22.66666667 | G24: 14 | H24: 0.6666666667 | I24: 12 | J24: 0.5294117647 | K24: 14 | L24: 0.6666666667 | M24: 15 | N24: 0.7142857143 | O24: 18 | P24: 0.8571428571 | Q24: 18 | R24: 0.8571428571 | S24: 26 | T24: 1.147058824 | U24: 20 | V24: 0.8823529412 | W24: 19 | X24: 0.8382352941
A25: Metropolitana | B25: Domingos Martins | C25: 411 | D25: 133 | E25: 411 | F25: 137 | G25: 141 | H25: 1.060150376 | I25: 109 | J25: 0.795620438 | K25: 137 | L25: 1.030075188 | M25: 127 | N25: 0.954887218 | O25: 142 | P25: 1.067669173 | Q25: 142 | R25: 1.067669173 | S25: 106 | T25: 0.7737226277 | U25: 129 | V25: 0.9416058394 | W25: 131 | X25: 0.9562043796
A26: Sul | B26: Dores do Rio Preto | C26: 97 | D26: 36 | E26: 92 | F26: 30.66666667 | G26: 19 | H26: 0.5277777778 | I26: 11 | J26: 0.3586956522 | K26: 36 | L26: 1 | M26: 37 | N26: 1.027777778 | O26: 23 | P26: 0.6388888889 | Q26: 20 | R26: 0.5555555556 | S26: 13 | T26: 0.4239130435 | U26: 15 | V26: 0.4891304348 | W26: 16 | X26: 0.5217391304
A27: Norte | B27: Ecoporanga | C27: 256 | D27: 89 | E27: 283 | F27: 94.33333333 | G27: 78 | H27: 0.8764044944 | I27: 61 | J27: 0.6466431095 | K27: 84 | L27: 0.9438202247 | M27: 88 | N27: 0.9887640449 | O27: 80 | P27: 0.8988764045 | Q27: 78 | R27: 0.8764044944 | S27: 62 | T27: 0.6572438163 | U27: 67 | V27: 0.7102473498 | W27: 70 | X27: 0.74204947
A28: Metropolitana | B28: Fundão | C28: 220 | D28: 81 | E28: 218 | F28: 72.66666667 | G28: 58 | H28: 0.7160493827 | I28: 38 | J28: 0.5229357798 | K28: 69 | L28: 0.8518518519 | M28: 75 | N28: 0.9259259259 | O28: 65 | P28: 0.8024691358 | Q28: 65 | R28: 0.8024691358 | S28: 36 | T28: 0.495412844 | U28: 44 | V28: 0.6055045872 | W28: 43 | X28: 0.5917431193
A29: Central | B29: Governador Lindenberg | C29: 147 | D29: 52 | E29: 142 | F29: 47.33333333 | G29: 33 | H29: 0.6346153846 | I29: 29 | J29: 0.6126760563 | K29: 34 | L29: 0.6538461538 | M29: 35 | N29: 0.6730769231 | O29: 34 | P29: 0.6538461538 | Q29: 34 | R29: 0.6538461538 | S29: 29 | T29: 0.6126760563 | U29: 35 | V29: 0.7394366197 | W29: 35 | X29: 0.7394366197
A30: Sul | B30: Guaçuí | C30: 406 | D30: 131 | E30: 407 | F30: 135.6666667 | G30: 138 | H30: 1.053435115 | I30: 42 | J30: 0.3095823096 | K30: 145 | L30: 1.106870229 | M30: 153 | N30: 1.167938931 | O30: 141 | P30: 1.076335878 | Q30: 130 | R30: 0.9923664122 | S30: 91 | T30: 0.6707616708 | U30: 86 | V30: 0.6339066339 | W30: 81 | X30: 0.5970515971
A31: Metropolitana | B31: Guarapari | C31: 1741 | D31: 578 | E31: 1557 | F31: 519 | G31: 370 | H31: 0.6401384083 | I31: 258 | J31: 0.4971098266 | K31: 530 | L31: 0.9169550173 | M31: 540 | N31: 0.9342560554 | O31: 456 | P31: 0.7889273356 | Q31: 473 | R31: 0.8183391003 | S31: 305 | T31: 0.5876685934 | U31: 404 | V31: 0.7784200385 | W31: 452 | X31: 0.8709055877
A32: Metropolitana | B32: Ibatiba | C32: 361 | D32: 112 | E32: 354 | F32: 118 | G32: 68 | H32: 0.6071428571 | I32: 39 | J32: 0.3305084746 | K32: 107 | L32: 0.9553571429 | M32: 116 | N32: 1.035714286 | O32: 104 | P32: 0.9285714286 | Q32: 106 | R32: 0.9464285714 | S32: 74 | T32: 0.6271186441 | U32: 95 | V32: 0.8050847458 | W32: 97 | X32: 0.8220338983
A33: Metropolitana | B33: Ibiraçu | C33: 153 | D33: 58 | E33: 160 | F33: 53.33333333 | G33: 19 | H33: 0.3275862069 | I33: 33 | J33: 0.61875 | K33: 42 | L33: 0.724137931 | M33: 42 | N33: 0.724137931 | O33: 25 | P33: 0.4310344828 | Q33: 25 | R33: 0.4310344828 | S33: 32 | T33: 0.6 | U33: 38 | V33: 0.7125 | W33: 38 | X33: 0.7125
A34: Sul | B34: Ibitirama | C34: 127 | D34: 37 | E34: 148 | F34: 49.33333333 | G34: 33 | H34: 0.8918918919 | I34: 19 | J34: 0.3851351351 | K34: 40 | L34: 1.081081081 | M34: 41 | N34: 1.108108108 | O34: 36 | P34: 0.972972973 | Q34: 34 | R34: 0.9189189189 | S34: 19 | T34: 0.3851351351 | U34: 24 | V34: 0.4864864865 | W34: 23 | X34: 0.4662162162
A35: Sul | B35: Iconha | C35: 115 | D35: 36 | E35: 156 | F35: 52 | G35: 39 | H35: =G35/D35 -> 1.083333333 | I35: 14 | J35: =I35/F35 -> 0.2692307692 | K35: 59 | L35: =K35/D35 -> 1.638888889 | M35: 62 | N35: =M35/D35 -> 1.722222222 | O35: 36 | P35: =O35/D35 -> 1 | Q35: 36 | R35: =Q35/D35 -> 1 | S35: 37 | T35: =S35/F35 -> 0.7115384615 | U35: 36 | V35: =U35/F35 -> 0.6923076923 | W35: 35 | X35: =W35/F35 -> 0.6730769231
A36: Sul | B36: Irupi | C36: 195 | D36: 59 | E36: 200 | F36: 66.66666667 | G36: 48 | H36: 0.813559322 | I36: 41 | J36: 0.615 | K36: 90 | L36: 1.525423729 | M36: 90 | N36: 1.525423729 | O36: 64 | P36: 1.084745763 | Q36: 64 | R36: 1.084745763 | S36: 62 | T36: 0.93 | U36: 65 | V36: 0.975 | W36: 71 | X36: 1.065
A37: Metropolitana | B37: Itaguaçu | C37: 129 | D37: 37 | E37: 154 | F37: 51.33333333 | G37: 56 | H37: 1.513513514 | I37: 20 | J37: 0.3896103896 | K37: 49 | L37: 1.324324324 | M37: 50 | N37: 1.351351351 | O37: 50 | P37: 1.351351351 | Q37: 51 | R37: 1.378378378 | S37: 35 | T37: 0.6818181818 | U37: 37 | V37: 0.7207792208 | W37: 37 | X37: 0.7207792208
A38: Sul | B38: Itapemirim | C38: 543 | D38: 157 | E38: 556 | F38: 185.3333333 | G38: 123 | H38: 0.7834394904 | I38: 82 | J38: 0.4424460432 | K38: 183 | L38: 1.165605096 | M38: 190 | N38: 1.210191083 | O38: 167 | P38: 1.063694268 | Q38: 173 | R38: 1.101910828 | S38: 85 | T38: 0.4586330935 | U38: 172 | V38: 0.928057554 | W38: 169 | X38: 0.9118705036
A39: Metropolitana | B39: Itarana | C39: 143 | D39: 51 | E39: 128 | F39: 42.66666667 | G39: 34 | H39: 0.6666666667 | I39: 35 | J39: 0.8203125 | K39: 38 | L39: 0.7450980392 | M39: 37 | N39: 0.7254901961 | O39: 36 | P39: 0.7058823529 | Q39: 34 | R39: 0.6666666667 | S39: 31 | T39: 0.7265625 | U39: 39 | V39: 0.9140625 | W39: 36 | X39: 0.84375
A40: Sul | B40: Iúna | C40: 481 | D40: 154 | E40: 410 | F40: 136.6666667 | G40: 112 | H40: 0.7272727273 | I40: 71 | J40: 0.5195121951 | K40: 155 | L40: 1.006493506 | M40: 169 | N40: 1.097402597 | O40: 116 | P40: 0.7532467532 | Q40: 115 | R40: 0.7467532468 | S40: 86 | T40: 0.6292682927 | U40: 123 | V40: 0.9 | W40: 118 | X40: 0.8634146341
A41: Norte | B41: Jaguaré | C41: 487 | D41: 154 | E41: 445 | F41: 148.3333333 | G41: 134 | H41: 0.8701298701 | I41: 78 | J41: 0.5258426966 | K41: 152 | L41: 0.987012987 | M41: 151 | N41: 0.9805194805 | O41: 143 | P41: 0.9285714286 | Q41: 145 | R41: 0.9415584416 | S41: 113 | T41: 0.7617977528 | U41: 128 | V41: 0.8629213483 | W41: 154 | X41: 1.038202247
A42: Sul | B42: Jerônimo Monteiro | C42: 160 | D42: 49 | E42: 157 | F42: 52.33333333 | G42: 36 | H42: 0.7346938776 | I42: 19 | J42: 0.3630573248 | K42: 52 | L42: 1.06122449 | M42: 52 | N42: 1.06122449 | O42: 40 | P42: 0.8163265306 | Q42: 41 | R42: 0.8367346939 | S42: 33 | T42: 0.6305732484 | U42: 35 | V42: 0.6687898089 | W42: 38 | X42: 0.7261146497
A43: Metropolitana | B43: João Neiva | C43: 180 | D43: 59 | E43: 142 | F43: 47.33333333 | G43: 38 | H43: 0.6440677966 | I43: 27 | J43: 0.5704225352 | K43: 59 | L43: 1 | M43: 64 | N43: 1.084745763 | O43: 41 | P43: 0.6949152542 | Q43: 41 | R43: 0.6949152542 | S43: 35 | T43: 0.7394366197 | U43: 40 | V43: 0.8450704225 | W43: 40 | X43: 0.8450704225
A44: Metropolitana | B44: Laranja da Terra | C44: 98 | D44: 37 | E44: 133 | F44: 44.33333333 | G44: 28 | H44: 0.7567567568 | I44: 28 | J44: 0.6315789474 | K44: 49 | L44: 1.324324324 | M44: 48 | N44: 1.297297297 | O44: 30 | P44: 0.8108108108 | Q44: 29 | R44: 0.7837837838 | S44: 30 | T44: 0.6766917293 | U44: 32 | V44: 0.7218045113 | W44: 31 | X44: 0.6992481203
A45: Central | B45: Linhares | C45: 2574 | D45: 863 | E45: 2452 | F45: 817.3333333 | G45: 600 | H45: 0.6952491309 | I45: 419 | J45: 0.5126427406 | K45: 715 | L45: 0.8285052144 | M45: 711 | N45: 0.8238702202 | O45: 650 | P45: 0.7531865585 | Q45: 689 | R45: 0.798377752 | S45: 562 | T45: 0.6876019576 | U45: 718 | V45: 0.8784665579 | W45: 772 | X45: 0.9445350734
A46: Central | B46: Mantenópolis | C46: 156 | D46: 51 | E46: 166 | F46: 55.33333333 | G46: 40 | H46: 0.7843137255 | I46: 29 | J46: 0.5240963855 | K46: 58 | L46: 1.137254902 | M46: 53 | N46: 1.039215686 | O46: 46 | P46: 0.9019607843 | Q46: 48 | R46: 0.9411764706 | S46: 31 | T46: 0.5602409639 | U46: 45 | V46: 0.813253012 | W46: 44 | X46: 0.7951807229
A47: Sul | B47: Marataízes | C47: 556 | D47: 206 | E47: 579 | F47: 193 | G47: 142 | H47: 0.6893203883 | I47: 87 | J47: 0.4507772021 | K47: 189 | L47: 0.9174757282 | M47: 192 | N47: 0.932038835 | O47: 161 | P47: 0.7815533981 | Q47: 165 | R47: 0.8009708738 | S47: 87 | T47: 0.4507772021 | U47: 143 | V47: 0.7409326425 | W47: 151 | X47: 0.7823834197
A48: Metropolitana | B48: Marechal Floriano | C48: 237 | D48: 88 | E48: 236 | F48: 78.66666667 | G48: 56 | H48: 0.6363636364 | I48: 44 | J48: 0.5593220339 | K48: 80 | L48: 0.9090909091 | M48: 76 | N48: 0.8636363636 | O48: 58 | P48: 0.6590909091 | Q48: 58 | R48: 0.6590909091 | S48: 40 | T48: 0.5084745763 | U48: 46 | V48: 0.5847457627 | W48: 49 | X48: 0.6228813559
A49: Central | B49: Marilândia | C49: 157 | D49: 37 | E49: 164 | F49: 54.66666667 | G49: 43 | H49: 1.162162162 | I49: 38 | J49: 0.6951219512 | K49: 49 | L49: 1.324324324 | M49: 49 | N49: 1.324324324 | O49: 48 | P49: 1.297297297 | Q49: 48 | R49: 1.297297297 | S49: 41 | T49: 0.75 | U49: 42 | V49: 0.7682926829 | W49: 45 | X49: 0.8231707317
A50: Sul | B50: Mimoso do Sul | C50: 254 | D50: 71 | E50: 276 | F50: 92 | G50: 44 | H50: 0.6197183099 | I50: 68 | J50: 0.7391304348 | K50: 64 | L50: 0.9014084507 | M50: 70 | N50: 0.985915493 | O50: 55 | P50: 0.7746478873 | Q50: 58 | R50: 0.8169014085 | S50: 72 | T50: 0.7826086957 | U50: 76 | V50: 0.8260869565 | W50: 78 | X50: 0.847826087
A51: Norte | B51: Montanha | C51: 259 | D51: 77 | E51: 278 | F51: 92.66666667 | G51: 74 | H51: 0.961038961 | I51: 56 | J51: 0.6043165468 | K51: 77 | L51: 1 | M51: 81 | N51: 1.051948052 | O51: 82 | P51: 1.064935065 | Q51: 85 | R51: 1.103896104 | S51: 74 | T51: 0.7985611511 | U51: 80 | V51: 0.8633093525 | W51: 83 | X51: 0.8956834532
A52: Norte | B52: Mucurici | C52: 73 | D52: 19 | E52: 97 | F52: 32.33333333 | G52: 15 | H52: 0.7894736842 | I52: 23 | J52: 0.7113402062 | K52: 31 | L52: 1.631578947 | M52: 31 | N52: 1.631578947 | O52: 16 | P52: 0.8421052632 | Q52: 16 | R52: 0.8421052632 | S52: 23 | T52: 0.7113402062 | U52: 27 | V52: 0.8350515464 | W52: 27 | X52: 0.8350515464
A53: Sul | B53: Muniz Freire | C53: 221 | D53: 72 | E53: 275 | F53: 91.66666667 | G53: 73 | H53: 1.013888889 | I53: 31 | J53: 0.3381818182 | K53: 83 | L53: 1.152777778 | M53: 82 | N53: 1.138888889 | O53: 71 | P53: 0.9861111111 | Q53: 72 | R53: 1 | S53: 73 | T53: 0.7963636364 | U53: 75 | V53: 0.8181818182 | W53: 71 | X53: 0.7745454545
A54: Sul | B54: Muqui | C54: 165 | D54: 43 | E54: 152 | F54: 50.66666667 | G54: 38 | H54: 0.8837209302 | I54: 34 | J54: 0.6710526316 | K54: 51 | L54: 1.186046512 | M54: 52 | N54: 1.209302326 | O54: 37 | P54: 0.8604651163 | Q54: 36 | R54: 0.8372093023 | S54: 34 | T54: 0.6710526316 | U54: 36 | V54: 0.7105263158 | W54: 37 | X54: 0.7302631579
A55: Norte | B55: Nova Venécia | C55: 683 | D55: 225 | E55: 656 | F55: 218.6666667 | G55: 194 | H55: 0.8622222222 | I55: 99 | J55: 0.4527439024 | K55: 214 | L55: 0.9511111111 | M55: 210 | N55: 0.9333333333 | O55: 199 | P55: 0.8844444444 | Q55: 207 | R55: 0.92 | S55: 137 | T55: 0.6265243902 | U55: 168 | V55: 0.7682926829 | W55: 173 | X55: 0.7911585366
A56: Central | B56: Pancas | C56: 208 | D56: 56 | E56: 244 | F56: 81.33333333 | G56: 73 | H56: 1.303571429 | I56: 45 | J56: 0.5532786885 | K56: 77 | L56: 1.375 | M56: 78 | N56: 1.392857143 | O56: 73 | P56: 1.303571429 | Q56: 74 | R56: 1.321428571 | S56: 67 | T56: 0.8237704918 | U56: 67 | V56: 0.8237704918 | W56: 68 | X56: 0.8360655738
A57: Norte | B57: Pedro Canário | C57: 335 | D57: 129 | E57: 338 | F57: 112.6666667 | G57: 96 | H57: 0.7441860465 | I57: 84 | J57: 0.7455621302 | K57: 130 | L57: 1.007751938 | M57: 129 | N57: 1 | O57: 111 | P57: 0.8604651163 | Q57: 116 | R57: 0.8992248062 | S57: 98 | T57: 0.8698224852 | U57: 111 | V57: 0.9852071006 | W57: 117 | X57: 1.038461538
A58: Norte | B58: Pinheiros | C58: 330 | D58: 109 | E58: 383 | F58: 127.6666667 | G58: 60 | H58: 0.5504587156 | I58: 61 | J58: 0.4778067885 | K58: 98 | L58: 0.8990825688 | M58: 92 | N58: 0.8440366972 | O58: 77 | P58: 0.7064220183 | Q58: 74 | R58: 0.6788990826 | S58: 82 | T58: 0.6422976501 | U58: 97 | V58: 0.7597911227 | W58: 95 | X58: 0.7441253264
A59: Sul | B59: Piúma | C59: 292 | D59: 83 | E59: 311 | F59: 103.6666667 | G59: 57 | H59: 0.686746988 | I59: 36 | J59: 0.347266881 | K59: 101 | L59: 1.21686747 | M59: 96 | N59: 1.156626506 | O59: 90 | P59: 1.084337349 | Q59: 91 | R59: 1.096385542 | S59: 40 | T59: 0.38585209 | U59: 63 | V59: 0.6077170418 | W59: 74 | X59: 0.7138263666
A60: Norte | B60: Ponto Belo | C60: 81 | D60: 21 | E60: 85 | F60: 28.33333333 | G60: 13 | H60: 0.619047619 | I60: 15 | J60: 0.5294117647 | K60: 19 | L60: 0.9047619048 | M60: 19 | N60: 0.9047619048 | O60: 14 | P60: 0.6666666667 | Q60: 13 | R60: 0.619047619 | S60: 12 | T60: 0.4235294118 | U60: 14 | V60: 0.4941176471 | W60: 15 | X60: 0.5294117647
A61: Sul | B61: Presidente Kennedy | C61: 193 | D61: 73 | E61: 239 | F61: 79.66666667 | G61: 65 | H61: 0.8904109589 | I61: 34 | J61: 0.4267782427 | K61: 82 | L61: 1.123287671 | M61: 83 | N61: 1.136986301 | O61: 62 | P61: 0.8493150685 | Q61: 63 | R61: 0.8630136986 | S61: 63 | T61: 0.7907949791 | U61: 75 | V61: 0.9414225941 | W61: 76 | X61: 0.9539748954
A62: Central | B62: Rio Bananal | C62: 297 | D62: 99 | E62: 229 | F62: 76.33333333 | G62: 80 | H62: 0.8080808081 | I62: 60 | J62: 0.7860262009 | K62: 91 | L62: 0.9191919192 | M62: 101 | N62: 1.02020202 | O62: 88 | P62: 0.8888888889 | Q62: 88 | R62: 0.8888888889 | S62: 80 | T62: 1.048034934 | U62: 84 | V62: 1.100436681 | W62: 80 | X62: 1.048034934
A63: Sul | B63: Rio Novo do Sul | C63: 121 | D63: 35 | E63: 144 | F63: 48 | G63: 27 | H63: 0.7714285714 | I63: 32 | J63: 0.6666666667 | K63: 38 | L63: 1.085714286 | M63: 40 | N63: 1.142857143 | O63: 27 | P63: 0.7714285714 | Q63: 28 | R63: 0.8 | S63: 30 | T63: 0.625 | U63: 39 | V63: 0.8125 | W63: 39 | X63: 0.8125
A64: Metropolitana | B64: Santa Leopoldina | C64: 100 | D64: 32 | E64: 155 | F64: 51.66666667 | G64: 21 | H64: 0.65625 | I64: 16 | J64: 0.3096774194 | K64: 49 | L64: 1.53125 | M64: 51 | N64: 1.59375 | O64: 28 | P64: 0.875 | Q64: 29 | R64: 0.90625 | S64: 34 | T64: 0.6580645161 | U64: 38 | V64: 0.735483871 | W64: 39 | X64: 0.7548387097
A65: Metropolitana | B65: Santa Maria de Jetibá | C65: 667 | D65: 234 | E65: 685 | F65: 228.3333333 | G65: 180 | H65: 0.7692307692 | I65: 99 | J65: 0.4335766423 | K65: 214 | L65: 0.9145299145 | M65: 222 | N65: 0.9487179487 | O65: 213 | P65: 0.9102564103 | Q65: 203 | R65: 0.8675213675 | S65: 137 | T65: 0.6 | U65: 177 | V65: 0.7751824818 | W65: 180 | X65: 0.7883211679
A66: Metropolitana | B66: Santa Teresa | C66: 293 | D66: 87 | E66: 260 | F66: 86.66666667 | G66: 69 | H66: 0.7931034483 | I66: 57 | J66: 0.6576923077 | K66: 85 | L66: 0.9770114943 | M66: 95 | N66: 1.091954023 | O66: 73 | P66: 0.8390804598 | Q66: 70 | R66: 0.8045977011 | S66: 70 | T66: 0.8076923077 | U66: 72 | V66: 0.8307692308 | W66: 67 | X66: 0.7730769231
A67: Central | B67: São Domingos do Norte | C67: 125 | D67: 44 | E67: 117 | F67: 39 | G67: 22 | H67: =G67/D67 -> 0.5 | I67: 15 | J67: =I67/F67 -> 0.3846153846 | K67: 27 | L67: =K67/D67 -> 0.6136363636 | M67: 27 | N67: =M67/D67 -> 0.6136363636 | O67: 21 | P67: =O67/D67 -> 0.4772727273 | Q67: 22 | R67: =Q67/D67 -> 0.5 | S67: 26 | T67: =S67/F67 -> 0.6666666667 | U67: 26 | V67: =U67/F67 -> 0.6666666667 | W67: 28 | X67: =W67/F67 -> 0.7179487179
A68: Central | B68: São Gabriel da Palha | C68: 430 | D68: 132 | E68: 426 | F68: =E68/12*4 -> 142 | G68: 91 | H68: 0.6893939394 | I68: 78 | J68: 0.5492957746 | K68: 121 | L68: 0.9166666667 | M68: 125 | N68: 0.946969697 | O68: 100 | P68: 0.7575757576 | Q68: 99 | R68: 0.75 | S68: 113 | T68: 0.7957746479 | U68: 110 | V68: 0.7746478873 | W68: 110 | X68: 0.7746478873
A69: Sul | B69: São José do Calçado | C69: 106 | D69: 39 | E69: 150 | F69: 50 | G69: 37 | H69: 0.9487179487 | I69: 15 | J69: 0.3 | K69: 45 | L69: 1.153846154 | M69: 45 | N69: 1.153846154 | O69: 43 | P69: 1.102564103 | Q69: 40 | R69: 1.025641026 | S69: 43 | T69: 0.86 | U69: 43 | V69: 0.86 | W69: 43 | X69: 0.86
A70: Norte | B70: São Mateus | C70: 1931 | D70: 650 | E70: 1766 | F70: 588.6666667 | G70: 342 | H70: 0.5261538462 | I70: 338 | J70: 0.5741789354 | K70: 528 | L70: 0.8123076923 | M70: 535 | N70: 0.8230769231 | O70: 459 | P70: 0.7061538462 | Q70: 450 | R70: 0.6923076923 | S70: 395 | T70: 0.6710079275 | U70: 476 | V70: 0.8086070215 | W70: 464 | X70: 0.7882219706
A71: Central | B71: São Roque do Canaã | C71: 122 | D71: 50 | E71: 100 | F71: 33.33333333 | G71: 30 | H71: 0.6 | I71: 30 | J71: 0.9 | K71: 39 | L71: 0.78 | M71: 43 | N71: 0.86 | O71: 31 | P71: 0.62 | Q71: 31 | R71: 0.62 | S71: 30 | T71: 0.9 | U71: 31 | V71: 0.93 | W71: 33 | X71: 0.99
A72: Metropolitana | B72: Serra | C72: 7437 | D72: 2622 | E72: 7550 | F72: 2516.666667 | G72: 1506 | H72: 0.5743707094 | I72: 1008 | J72: 0.4005298013 | K72: 2062 | L72: 0.7864225782 | M72: 2084 | N72: 0.7948131198 | O72: 1899 | P72: 0.7242562929 | Q72: 1895 | R72: 0.7227307399 | S72: 1920 | T72: 0.7629139073 | U72: 2161 | V72: 0.8586754967 | W72: 2139 | X72: 0.8499337748
A73: Central | B73: Sooretama | C73: 432 | D73: 150 | E73: 415 | F73: 138.3333333 | G73: 103 | H73: 0.6866666667 | I73: 82 | J73: 0.5927710843 | K73: 116 | L73: 0.7733333333 | M73: 109 | N73: 0.7266666667 | O73: 129 | P73: 0.86 | Q73: 128 | R73: 0.8533333333 | S73: 138 | T73: 0.9975903614 | U73: 135 | V73: 0.9759036145 | W73: 142 | X73: 1.026506024
A74: Sul | B74: Vargem Alta | C74: 256 | D74: 89 | E74: 278 | F74: 92.66666667 | G74: 69 | H74: 0.7752808989 | I74: 52 | J74: 0.5611510791 | K74: 97 | L74: 1.08988764 | M74: 97 | N74: 1.08988764 | O74: 84 | P74: 0.9438202247 | Q74: 87 | R74: 0.9775280899 | S74: 62 | T74: 0.6690647482 | U74: 78 | V74: 0.8417266187 | W74: 80 | X74: 0.8633093525
A75: Metropolitana | B75: Venda Nova do Imigrante | C75: 406 | D75: 130 | E75: 328 | F75: 109.3333333 | G75: 113 | H75: 0.8692307692 | I75: 48 | J75: 0.4390243902 | K75: 121 | L75: 0.9307692308 | M75: 124 | N75: 0.9538461538 | O75: 112 | P75: 0.8615384615 | Q75: 111 | R75: 0.8538461538 | S75: 62 | T75: 0.5670731707 | U75: 66 | V75: 0.6036585366 | W75: 71 | X75: 0.6493902439
A76: Metropolitana | B76: Viana | C76: 1005 | D76: 360 | E76: 1064 | F76: 354.6666667 | G76: 148 | H76: 0.4111111111 | I76: 155 | J76: 0.4370300752 | K76: 331 | L76: 0.9194444444 | M76: 336 | N76: 0.9333333333 | O76: 244 | P76: 0.6777777778 | Q76: 253 | R76: 0.7027777778 | S76: 251 | T76: 0.7077067669 | U76: 304 | V76: 0.8571428571 | W76: 309 | X76: 0.8712406015
A77: Norte | B77: Vila Pavão | C77: 88 | D77: 34 | E77: 127 | F77: 42.33333333 | G77: 26 | H77: 0.7647058824 | I77: 20 | J77: 0.4724409449 | K77: 41 | L77: 1.205882353 | M77: 41 | N77: 1.205882353 | O77: 28 | P77: 0.8235294118 | Q77: 25 | R77: 0.7352941176 | S77: 41 | T77: 0.968503937 | U77: 44 | V77: 1.039370079 | W77: 44 | X77: 1.039370079
A78: Central | B78: Vila Valério | C78: 241 | D78: 79 | E78: 169 | F78: 56.33333333 | G78: 59 | H78: 0.746835443 | I78: 29 | J78: 0.5147928994 | K78: 58 | L78: 0.7341772152 | M78: 54 | N78: 0.6835443038 | O78: 65 | P78: 0.8227848101 | Q78: 70 | R78: 0.8860759494 | S78: 37 | T78: 0.6568047337 | U78: 55 | V78: 0.9763313609 | W78: 55 | X78: 0.9763313609
A79: Metropolitana | B79: Vila Velha | C79: 5756 | D79: 1942 | E79: 5675 | F79: 1891.666667 | G79: 1181 | H79: 0.6081359423 | I79: 746 | J79: 0.3943612335 | K79: 1579 | L79: 0.8130792997 | M79: 1659 | N79: 0.8542739444 | O79: 1358 | P79: 0.6992790937 | Q79: 1343 | R79: 0.6915550978 | S79: 1363 | T79: 0.7205286344 | U79: 1510 | V79: 0.7982378855 | W79: 1470 | X79: 0.777092511
A80: Metropolitana | B80: Vitória | C80: 3725 | D80: 1218 | E80: 3833 | F80: 1277.666667 | G80: 655 | H80: 0.5377668309 | I80: 502 | J80: 0.3929037308 | K80: 936 | L80: 0.7684729064 | M80: 1008 | N80: 0.8275862069 | O80: 911 | P80: 0.7479474548 | Q80: 900 | R80: 0.7389162562 | S80: 864 | T80: 0.6762327159 | U80: 1077 | V80: 0.8429428646 | W80: 1075 | X80: 0.8413775111
B82: Total Norte | C82: =SUMIF($A$3:$A$80,"Norte",C$3:C$80) -> 5815 | D82: =SUMIF($A$3:$A$80,"Norte",D$3:D$80) -> 1942 | E82: =SUMIF($A$3:$A$80,"Norte",E$3:E$80) -> 5789 | F82: =SUMIF($A$3:$A$80,"Norte",F$3:F$80) -> 1929.666667 | G82: =SUMIF($A$3:$A$80,"Norte",G$3:G$80) -> 1380 | H82: =G82/D82 -> 0.710607621 | I82: =SUMIF($A$3:$A$80,"Norte",I$3:I$80) -> 1103 | J82: =I82/F82 -> 0.5716013128 | K82: =SUMIF($A$3:$A$80,"Norte",K$3:K$80) -> 1813 | L82: =K82/D82 -> 0.9335736354 | M82: =SUMIF($A$3:$A$80,"Norte",M$3:M$80) -> 1823 | N82: =M82/D82 -> 0.938722966 | O82: =SUMIF($A$3:$A$80,"Norte",O$3:O$80) -> 1589 | P82: =O82/D82 -> 0.8182286303 | Q82: =SUMIF($A$3:$A$80,"Norte",Q$3:Q$80) -> 1587 | R82: =Q82/D82 -> 0.8171987642 | S82: =SUMIF($A$3:$A$80,"Norte",S$3:S$80) -> 1358 | T82: =S82/F82 -> 0.7037484885 | U82: =SUMIF($A$3:$A$80,"Norte",U$3:U$80) -> 1587 | V82: =U82/F82 -> 0.8224218345 | W82: =SUMIF($A$3:$A$80,"Norte",W$3:W$80) -> 1617 | X82: =W82/F82 -> 0.8379685611
B83: Total Central | C83: =SUMIF($A$3:$A$80,"Central",C$3:C$80) -> 7014 | D83: =SUMIF($A$3:$A$80,"Central",D$3:D$80) -> 2274 | E83: =SUMIF($A$3:$A$80,"Central",E$3:E$80) -> 6843 | F83: =SUMIF($A$3:$A$80,"Central",F$3:F$80) -> 2281 | G83: =SUMIF($A$3:$A$80,"Central",G$3:G$80) -> 1694 | H83: =G83/D83 -> 0.744942832 | I83: =SUMIF($A$3:$A$80,"Central",I$3:I$80) -> 1142 | J83: =I83/F83 -> 0.5006576063 | K83: =SUMIF($A$3:$A$80,"Central",K$3:K$80) -> 2035 | L83: =K83/D83 -> 0.8948988566 | M83: =SUMIF($A$3:$A$80,"Central",M$3:M$80) -> 2072 | N83: =M83/D83 -> 0.9111697449 | O83: =SUMIF($A$3:$A$80,"Central",O$3:O$80) -> 1864 | P83: =O83/D83 -> 0.8197009675 | Q83: =SUMIF($A$3:$A$80,"Central",Q$3:Q$80) -> 1919 | R83: =Q83/D83 -> 0.843887423 | S83: =SUMIF($A$3:$A$80,"Central",S$3:S$80) -> 1551 | T83: =S83/F83 -> 0.6799649277 | U83: =SUMIF($A$3:$A$80,"Central",U$3:U$80) -> 1878 | V83: =U83/F83 -> 0.8233231039 | W83: =SUMIF($A$3:$A$80,"Central",W$3:W$80) -> 1943 | X83: =W83/F83 -> 0.8518193775
B84: Total Metropolitana | C84: =SUMIF($A$3:$A$80,"Metropolitana",C$3:C$80) -> 30199 | D84: =SUMIF($A$3:$A$80,"Metropolitana",D$3:D$80) -> 10284 | E84: =SUMIF($A$3:$A$80,"Metropolitana",E$3:E$80) -> 30197 | F84: =SUMIF($A$3:$A$80,"Metropolitana",F$3:F$80) -> 10065.66667 | G84: =SUMIF($A$3:$A$80,"Metropolitana",G$3:G$80) -> 6408 | H84: =G84/D84 -> 0.6231038506 | I84: =SUMIF($A$3:$A$80,"Metropolitana",I$3:I$80) -> 4548 | J84: =I84/F84 -> 0.4518329635 | K84: =SUMIF($A$3:$A$80,"Metropolitana",K$3:K$80) -> 8814 | L84: =K84/D84 -> 0.8570595099 | M84: =SUMIF($A$3:$A$80,"Metropolitana",M$3:M$80) -> 9098 | N84: =M84/D84 -> 0.8846752236 | O84: =SUMIF($A$3:$A$80,"Metropolitana",O$3:O$80) -> 7881 | P84: =O84/D84 -> 0.766336056 | Q84: =SUMIF($A$3:$A$80,"Metropolitana",Q$3:Q$80) -> 7861 | R84: =Q84/D84 -> 0.7643912874 | S84: =SUMIF($A$3:$A$80,"Metropolitana",S$3:S$80) -> 7100 | T84: =S84/F84 -> 0.7053680829 | U84: =SUMIF($A$3:$A$80,"Metropolitana",U$3:U$80) -> 8426 | V84: =U84/F84 -> 0.8371030235 | W84: =SUMIF($A$3:$A$80,"Metropolitana",W$3:W$80) -> 8415 | X84: =W84/F84 -> 0.8360101997
B85: Total Sul | C85: =SUMIF($A$3:$A$80,"sul",C$3:C$80) -> 8398 | D85: =SUMIF($A$3:$A$80,"sul",D$3:D$80) -> 2747 | E85: =SUMIF($A$3:$A$80,"sul",E$3:E$80) -> 8688 | F85: =SUMIF($A$3:$A$80,"sul",F$3:F$80) -> 2896 | G85: =SUMIF($A$3:$A$80,"sul",G$3:G$80) -> 2119 | H85: =G85/D85 -> 0.7713869676 | I85: =SUMIF($A$3:$A$80,"sul",I$3:I$80) -> 1397 | J85: =I85/F85 -> 0.4823895028 | K85: =SUMIF($A$3:$A$80,"sul",K$3:K$80) -> 2847 | L85: =K85/D85 -> 1.036403349 | M85: =SUMIF($A$3:$A$80,"sul",M$3:M$80) -> 2920 | N85: =M85/D85 -> 1.062977794 | O85: =SUMIF($A$3:$A$80,"sul",O$3:O$80) -> 2444 | P85: =O85/D85 -> 0.8896978522 | Q85: =SUMIF($A$3:$A$80,"sul",Q$3:Q$80) -> 2447 | R85: =Q85/D85 -> 0.8907899527 | S85: =SUMIF($A$3:$A$80,"sul",S$3:S$80) -> 1813 | T85: =S85/F85 -> 0.6260359116 | U85: =SUMIF($A$3:$A$80,"sul",U$3:U$80) -> 2325 | V85: =U85/F85 -> 0.8028314917 | W85: =SUMIF($A$3:$A$80,"sul",W$3:W$80) -> 2380 | X85: =W85/F85 -> 0.8218232044
B86: Total Espírito Santo | C86: =SUM(C3:C80) -> 51426 | D86: =SUM(D3:D80) -> 17247 | E86: =SUM(E3:E80) -> 51517 | F86: =SUM(F3:F80) -> 17172.33333 | G86: =SUM(G3:G80) -> 11601 | H86: =G86/D86 -> 0.6726387198 | I86: =SUM(I3:I80) -> 8190 | J86: =I86/F86 -> 0.4769299455 | K86: =SUM(K3:K80) -> 15509 | L86: =K86/D86 -> 0.8992288514 | M86: =SUM(M3:M80) -> 15913 | N86: =M86/D86 -> 0.9226532151 | O86: =SUM(O3:O80) -> 13778 | P86: =O86/D86 -> 0.7988635705 | Q86: =SUM(Q3:Q80) -> 13814 | R86: =Q86/D86 -> 0.80095089 | S86: =SUM(S3:S80) -> 11822 | T86: =S86/F86 -> 0.6884329445 | U86: =SUM(U3:U80) -> 14216 | V86: =U86/F86 -> 0.8278432362 | W86: =SUM(W3:W80) -> 14355 | X86: =W86/F86 -> 0.8359376516
A90: FonteVacina e Confia, em 09 de Maio de 2024.**
A91: **Dados referente às doses aplicadas no período de Abril de 2024
A92: Cobertura Calculada por município de residência do cidadão (no Vacina e Confia, a origem da informação é o endereço que consta no cadastro do cidadão preenchido manualmente por meio do autocadastro ou pelo cadastro realizado por um profissional de saúde no momento do atendimento).
A94: 1 População anual extraída do MS/SVS/DASIS - SINASC/DASIS/SVS/MS 2023 (hoje preliminares) referente ao período de março a dezembro de 2023 e SINASC/DASIS/SVS/MS 2024 referente ao período de janeiro a fevereiro de 2024.
A96: ² População proporcional extraída do MS/SVS/DASIS - SINASC/DASIS/SVS/MS 2023 (hoje preliminares) referente ao período de março e abril de 2023 somada a população extraída do SINASC/DASIS/SVS/MS 2024 referente ao período de janeiro e fevereiro de 2024.
A97: ³ População anual e proporcional extraída do Censo IBGE 2022.
A99: Observações:
A100: Imunobiológicos que foram recebidos parcialmente pelo estado no mês da análise, sendo distribuídos em quantidades reduzidas às regionais e municípios: Varicela, Febre Amarela e HPV Quadrivalente.
A101: Imunobiológicos que não foram recebidos pelo estado no mês da análise, não sendo possível a distribuição às regionais e municípios: Meningo C, Hepatite A (CRIE), HIB, Hepatite A Rotina Pediátrica, DTPa (CRIE).
A102: Imunobiológicos com indisponibilidade de aquisição e distribuição no mês da análise: Tetra Viral.

Sheet Cobert. COVID-19 Menores 4 anos (hidden)
A1: Regional | B1: Município | C1: Série Histórica
A2: Região Metropolitana | B2: Afonso Cláudio
A3: Região Norte | B3: Água Doce do Norte
A4: Região Central | B4: Águia Branca
A5: Região Sul | B5: Alegre
A6: Região Sul | B6: Alfredo Chaves
A7: Região Central | B7: Alto Rio Novo
A8: Região Sul | B8: Anchieta
A9: Região Sul | B9: Apiacá
A10: Região Metropolitana | B10: Aracruz
A11: Região Sul | B11: Atilio Vivacqua
A12: Região Central | B12: Baixo Guandu
A13: Região Norte | B13: Barra de São Francisco
A14: Região Norte | B14: Boa Esperança
A15: Região Sul | B15: Bom Jesus do Norte
A16: Região Metropolitana | B16: Brejetuba
A17: Região Sul | B17: Cachoeiro de Itapemirim
A18: Região Metropolitana | B18: Cariacica
A19: Região Sul | B19: Castelo
A20: Região Central | B20: Colatina
A21: Região Norte | B21: Conceição da Barra
A22: Região Metropolitana | B22: Conceição do Castelo
A23: Região Sul | B23: Divino de São Lourenço
A24: Região Metropolitana | B24: Domingos Martins
A25: Região Sul | B25: Dores do Rio Preto
A26: Região Norte | B26: Ecoporanga
A27: Região Metropolitana | B27: Fundão
A28: Região Central | B28: Governador Lindenberg
A29: Região Sul | B29: Guaçuí
A30: Região Metropolitana | B30: Guarapari
A31: Região Metropolitana | B31: Ibatiba
A32: Região Metropolitana | B32: Ibiraçu
A33: Região Sul | B33: Ibitirama
A34: Região Sul | B34: Iconha
A35: Região Sul | B35: Irupi
A36: Região Metropolitana | B36: Itaguaçu
A37: Região Sul | B37: Itapemirim
A38: Região Metropolitana | B38: Itarana
A39: Região Sul | B39: Iúna
A40: Região Norte | B40: Jaguaré
A41: Região Sul | B41: Jerônimo Monteiro
A42: Região Metropolitana | B42: João Neiva
A43: Região Metropolitana | B43: Laranja da Terra
A44: Região Central | B44: Linhares
A45: Região Central | B45: Mantenópolis
A46: Região Sul | B46: Marataízes
A47: Região Metropolitana | B47: Marechal Floriano
A48: Região Central | B48: Marilândia
A49: Região Sul | B49: Mimoso do Sul
A50: Região Norte | B50: Montanha
A51: Região Norte | B51: Mucurici
A52: Região Sul | B52: Muniz Freire
A53: Região Sul | B53: Muqui
A54: Região Norte | B54: Nova Venécia
A55: Região Central | B55: Pancas
A56: Região Norte | B56: Pedro Canário
A57: Região Norte | B57: Pinheiros
A58: Região Sul | B58: Piúma
A59: Região Norte | B59: Ponto Belo
A60: Região Sul | B60: Presidente Kennedy
A61: Região Central | B61: Rio Bananal
A62: Região Sul | B62: Rio Novo do Sul
A63: Região Metropolitana | B63: Santa Leopoldina
A64: Região Metropolitana | B64: Santa Maria de Jetibá
A65: Região Metropolitana | B65: Santa Teresa
A66: Região Central | B66: São Domingos do Norte
A67: Região Central | B67: São Gabriel da Palha
A68: Região Sul | B68: São José do Calçado
A69: Região Norte | B69: São Mateus
A70: Região Central | B70: São Roque do Canaã
A71: Região Metropolitana | B71: Serra
A72: Região Central | B72: Sooretama
A73: Região Sul | B73: Vargem Alta
A74: Região Metropolitana | B74: Venda Nova do Imigrante
A75: Região Metropolitana | B75: Viana
A76: Região Norte | B76: Vila Pavão
A77: Região Central | B77: Vila Valério
A78: Região Metropolitana | B78: Vila Velha
A79: Região Metropolitana | B79: Vitória
B81: Espírito Santo
B82: Região Norte
B83: Região Central
B84: Região Metropolitana
B85: Região Sul
A87: Pfizer Pediátrica Menor de 5 anos e Coronavac
A88: Período avaliado: 2021-2024
A89: Fonte: https://www.vacinaeconfia.es.gov.br
A90: *Dados de janeiro/2024 extraídos do Vacina e Confia em 04/01/2024
A91: População proporcional extraída do SINASC 2022 (menores de 1 ano) e Censo IBGE 2022 (demais idades)
A92: Cobertura Calculada por município de procedência da vacinação

Sheet Cobert. Meningo C Adolescentes
A1: Regional | B1: Município | C1: Série Histórica
A2: Metropolitana | B2: Afonso Cláudio | C2: 55.25507068
A3: Central Norte | B3: Água Doce do Norte | C3: 62.34939759
A4: Central Norte | B4: Águia Branca | C4: 55.95238095
A5: Sul | B5: Alegre | C5: 66.98741673
A6: Sul | B6: Alfredo Chaves | C6: 37.1835443
A7: Central Norte | B7: Alto Rio Novo | C7: 82.76699029
A8: Sul | B8: Anchieta | C8: 71.75925926
A9: Sul | B9: Apiacá | C9: 29.3956044
A10: Metropolitana | B10: Aracruz | C10: 73.54575769
A11: Sul | B11: Atilio Vivacqua | C11: 71.09375
A12: Central Norte | B12: Baixo Guandu | C12: 57.68725361
A13: Central Norte | B13: Barra de São Francisco | C13: 62.22896791
A14: Central Norte | B14: Boa Esperança | C14: 54.97896213
A15: Sul | B15: Bom Jesus do Norte | C15: 47.79270633
A16: Metropolitana | B16: Brejetuba | C16: 75.96281541
A17: Sul | B17: Cachoeiro de Itapemirim | C17: 72.80168123
A18: Metropolitana | B18: Cariacica | C18: 66.6194547
A19: Sul | B19: Castelo | C19: 73.86649874
A20: Central Norte | B20: Colatina | C20: 56.6702625
A21: Central Norte | B21: Conceição da Barra | C21: 51.60734788
A22: Metropolitana | B22: Conceição do Castelo | C22: 70.60810811
A23: Sul | B23: Divino de São Lourenço | C23: 54.04411765
A24: Metropolitana | B24: Domingos Martins | C24: 73.05458769
A25: Sul | B25: Dores do Rio Preto | C25: 72.17847769
A26: Central Norte | B26: Ecoporanga | C26: 57.78364116
A27: Metropolitana | B27: Fundão | C27: 69.81132075
A28: Central Norte | B28: Governador Lindenberg | C28: 68.54545455
A29: Sul | B29: Guaçuí | C29: 61.14058355
A30: Metropolitana | B30: Guarapari | C30: 64.08612002
A31: Metropolitana | B31: Ibatiba | C31: 67.72334294
A32: Metropolitana | B32: Ibiraçu | C32: 71.2543554
A33: Sul | B33: Ibitirama | C33: 64.39790576
A34: Sul | B34: Iconha | C34: 69.29133858
A35: Sul | B35: Irupi | C35: 62.28419655
A36: Metropolitana | B36: Itaguaçu | C36: 61.2012987
A37: Sul | B37: Itapemirim | C37: 54.30038511
A38: Metropolitana | B38: Itarana | C38: 60.98130841
A39: Sul | B39: Iúna | C39: 58.56777494
A40: Central Norte | B40: Jaguaré | C40: 56.29877369
A41: Sul | B41: Jerônimo Monteiro | C41: 76.55417407
A42: Metropolitana | B42: João Neiva | C42: 69.04400607
A43: Metropolitana | B43: Laranja da Terra | C43: 61.8852459
A44: Central Norte | B44: Linhares | C44: 65.56937594
A45: Central Norte | B45: Mantenópolis | C45: 75.49295775
A46: Sul | B46: Marataízes | C46: 76.50736936
A47: Metropolitana | B47: Marechal Floriano | C47: 73.31887202
A48: Central Norte | B48: Marilândia | C48: 66.36363636
A49: Sul | B49: Mimoso do Sul | C49: 62.46764452
A50: Central Norte | B50: Montanha | C50: 70.38095238
A51: Central Norte | B51: Mucurici | C51: 62.05533597
A52: Sul | B52: Muniz Freire | C52: 60.17316017
A53: Sul | B53: Muqui | C53: 61.93353474
A54: Central Norte | B54: Nova Venécia | C54: 46.59793814
A55: Central Norte | B55: Pancas | C55: 63.53065539
A56: Central Norte | B56: Pedro Canário | C56: 68.23623304
A57: Central Norte | B57: Pinheiros | C57: 57.72759351
A58: Sul | B58: Piúma | C58: 62.61510129
A59: Central Norte | B59: Ponto Belo | C59: 55.55555556
A60: Sul | B60: Presidente Kennedy | C60: 82.32876712
A61: Central Norte | B61: Rio Bananal | C61: 72.72727273
A62: Sul | B62: Rio Novo do Sul | C62: 54.40613027
A63: Metropolitana | B63: Santa Leopoldina | C63: 45.82677165
A64: Metropolitana | B64: Santa Maria de Jetibá | C64: 68.88784608
A65: Metropolitana | B65: Santa Teresa | C65: 72.29601518
A66: Central Norte | B66: São Domingos do Norte | C66: 67.56097561
A67: Central Norte | B67: São Gabriel da Palha | C67: 52.04207921
A68: Sul | B68: São José do Calçado | C68: 62.86231884
A69: Central Norte | B69: São Mateus | C69: 55.47820823
A70: Central Norte | B70: São Roque do Canaã | C70: 76.12903226
A71: Metropolitana | B71: Serra | C71: 62.96907784
A72: Central Norte | B72: Sooretama | C72: 73.87755102
A73: Sul | B73: Vargem Alta | C73: 68.62934363
A74: Metropolitana | B74: Venda Nova do Imigrante | C74: 67.11229947
A75: Metropolitana | B75: Viana | C75: 67.19457014
A76: Central Norte | B76: Vila Pavão | C76: 78.16593886
A77: Central Norte | B77: Vila Valério | C77: 80.67846608
A78: Metropolitana | B78: Vila Velha | C78: 70.15040669
A79: Metropolitana | B79: Vitória | C79: 73.75936166
A80: Total | C80: 71.56955933
A82: Meningocócica Conjudada C e Meningocócica ACWY
A83: Período avaliado: 2016-2024
A84: Fonte: http://tabnet.datasus.gov.br/ e https://www.vacinaeconfia.es.gov.br
A85: *Dados parciais. Dados de janeiro/2022 a abril/2022 extraídos do TABNET em 10/05/2024
A86: *Dados de Abril/2024 extraídos do Vacina e Confia em Maio/2024
A87: População proporcional extraída do Censo IBGE 2022
A88: Cobertura Calculada por município de procedência da vacinação
A90: Observações:
A91: Imunobiológicos que foram recebidos parcialmente pelo estado no mês da análise, sendo distribuídos em quantidades reduzidas às regionais e municípios: Varicela, Febre Amarela e HPV Quadrivalente.
A92: Imunobiológicos que não foram recebidos pelo estado no mês da análise, não sendo possível a distribuição às regionais e municípios: Meningo C, Hepatite A (CRIE), HIB, Hepatite A Rotina Pediátrica, DTPa (CRIE).
A93: Imunobiológicos com indisponibilidade de aquisição e distribuição no mês da análise: Tetra Viral.

Sheet Cobert. HPV
A1: REGIONAL | B1: MUNICÍPIO | C1: HPV* Quadrivalente D1 Total - Feminino | D1: HPV* Quadrivalente D1 Total - Masculino
A2: METROPOLITANA | B2: Afonso Cláudio | C2: 83.11688312 | D2: 78.92752409
A3: CENTRAL-NORTE | B3: Água Doce do Norte | C3: 84.90374873 | D3: 57.75075988
A4: CENTRAL-NORTE | B4: Águia Branca | C4: 69.22024624 | D4: 73.32421341
A5: SUL | B5: Alegre | C5: 81.25305923 | D5: 60.49926579
A6: SUL | B6: Alfredo Chaves | C6: 78.67494824 | D6: 56.93581781
A7: CENTRAL-NORTE | B7: Alto Rio Novo | C7: 101.1608624 | D7: 88.55721393
A8: SUL | B8: Anchieta | C8: 91.39645482 | D8: 79.89623865
A9: SUL | B9: Apiacá | C9: 68.29268293 | D9: 49.53095685
A10: METROPOLITANA | B10: Aracruz | C10: 83.25183374 | D10: 71.66259169
A11: SUL | B11: Atílio Vivácqua | C11: 100.5025126 | D11: 91.20603015
A12: CENTRAL-NORTE | B12: Baixo Guandu | C12: 80.59310946 | D12: 63.23593546
A13: CENTRAL-NORTE | B13: Barra de São Francisco | C13: 73.74173138 | D13: 57.40580961
A14: CENTRAL-NORTE | B14: Boa Esperança | C14: 86.55862726 | D14: 48.23641563
A15: SUL | B15: Bom Jesus do Norte | C15: 82.29166667 | D15: 61.97916667
A16: METROPOLITANA | B16: Brejetuba | C16: 89.66725044 | D16: 73.55516637
A17: SUL | B17: Cachoeiro de Itapemirim | C17: 86.34659216 | D17: 84.37614881
A18: METROPOLITANA | B18: Cariacica | C18: 80.7265186 | D18: 48.78244581
A19: SUL | B19: Castelo | C19: 92.01331115 | D19: 84.77537438
A20: CENTRAL-NORTE | B20: Colatina | C20: 51.94308263 | D20: 42.23364821
A21: CENTRAL-NORTE | B21: Conceição da Barra | C21: 81.04524181 | D21: 66.38065523
A22: METROPOLITANA | B22: Conceição do Castelo | C22: 97.26177437 | D22: 84.3373494
A23: SUL | B23: Divino de São Lourenço | C23: 76.26262626 | D23: 82.82828283
A24: METROPOLITANA | B24: Domingos Martins | C24: 90.81122645 | D24: 78.04690504
A25: SUL | B25: Dores do Rio Preto | C25: 92.8440367 | D25: 82.93577982
A26: CENTRAL-NORTE | B26: Ecoporanga | C26: 81.68498168 | D26: 65.81196581
A27: METROPOLITANA | B27: Fundão | C27: 81.28941836 | D27: 65.03153469
A28: CENTRAL-NORTE | B28: Governador Lindenberg | C28: 86.94581281 | D28: 79.80295567
A29: SUL | B29: Guaçuí | C29: 83.41399032 | D29: 64.49626045
A30: METROPOLITANA | B30: Guarapari | C30: 75.53876009 | D30: 44.08129915
A31: METROPOLITANA | B31: Ibatiba | C31: 86.80351906 | D31: 77.81036168
A32: METROPOLITANA | B32: Ibiraçu | C32: 89.76377953 | D32: 67.0416198
A33: SUL | B33: Ibitirama | C33: 49.2343934 | D33: 59.3639576
A34: SUL | B34: Iconha | C34: 92.54498715 | D34: 85.86118252
A35: SUL | B35: Irupi | C35: 67.6731794 | D35: 81.88277087
A36: METROPOLITANA | B36: Itaguaçu | C36: 92.08144796 | D36: 47.28506787
A37: SUL | B37: Itapemirim | C37: 67.26639582 | D37: 66.51189785
A38: METROPOLITANA | B38: Itarana | C38: 82.29813665 | D38: 77.63975155
A39: SUL | B39: Iúna | C39: 75.35362195 | D39: 79.55422203
A40: CENTRAL-NORTE | B40: Jaguaré | C40: 89.46975355 | D40: 73.93577296
A41: SUL | B41: Jerônimo Monteiro | C41: 90.37758831 | D41: 80.14616322
A42: METROPOLITANA | B42: João Neiva | C42: 94.60580913 | D42: 75.10373444
A43: METROPOLITANA | B43: Laranja da Terra | C43: 79.24528302 | D43: 64.95956873
A44: CENTRAL-NORTE | B44: Linhares | C44: 75.61585148 | D44: 59.20742592
A45: CENTRAL-NORTE | B45: Mantenópolis | C45: 89.72142171 | D45: 58.5975024
A46: SUL | B46: Marataízes | C46: 93.66936694 | D46: 94.74947495
A47: METROPOLITANA | B47: Marechal Floriano | C47: 94.7761194 | D47: 67.91044776
A48: CENTRAL-NORTE | B48: Marilândia | C48: 100.2493766 | D48: 87.28179551
A49: SUL | B49: Mimoso do Sul | C49: 79.0725327 | D49: 69.32223543
A50: CENTRAL-NORTE | B50: Montanha | C50: 92.44558259 | D50: 83.73879641
A51: CENTRAL-NORTE | B51: Mucurici | C51: 96.08938547 | D51: 73.74301676
A52: SUL | B52: Muniz Freire | C52: 90.98837209 | D52: 89.68023256
A53: SUL | B53: Muqui | C53: 80.56112224 | D53: 69.13827655
A54: CENTRAL-NORTE | B54: Nova Venécia | C54: 86.49685018 | D54: 76.85565598
A55: CENTRAL-NORTE | B55: Pancas | C55: 85.69405099 | D55: 75.63739377
A56: CENTRAL-NORTE | B56: Pedro Canário | C56: 89.59227468 | D56: 74.67811159
A57: CENTRAL-NORTE | B57: Pinheiros | C57: 78.19047619 | D57: 57.71428571
A58: SUL | B58: Piúma | C58: 70.98657326 | D58: 60.82895505
A59: CENTRAL-NORTE | B59: Ponto Belo | C59: 91.57894737 | D59: 77.19298246
A60: SUL | B60: Presidente Kennedy | C60: 84.80138169 | D60: 83.41968912
A61: CENTRAL-NORTE | B61: Rio Bananal | C61: 98.34765367 | D61: 96.76140119
A62: SUL | B62: Rio Novo do Sul | C62: 72.08121827 | D62: 80.45685279
A63: METROPOLITANA | B63: Santa Leopoldina | C63: 61.58730159 | D63: 36.82539683
A64: METROPOLITANA | B64: Santa Maria de Jetibá | C64: 88.86798369 | D64: 54.87613672
A65: METROPOLITANA | B65: Santa Teresa | C65: 101.2491782 | D65: 74.1617357
A66: CENTRAL-NORTE | B66: São Domingos do Norte | C66: 96.85950413 | D66: 78.67768595
A67: CENTRAL-NORTE | B67: São Gabriel da Palha | C67: 79.37447168 | D67: 70.58326289
A68: SUL | B68: São José do Calçado | C68: 80.63337393 | D68: 83.06942753
A69: CENTRAL-NORTE | B69: São Mateus | C69: 82.13461731 | D69: 60.26682716
A70: CENTRAL-NORTE | B70: São Roque do Canaã | C70: 103.7572254 | D70: 74.27745665
A71: METROPOLITANA | B71: Serra | C71: 78.32589336 | D71: 41.05957264
A72: CENTRAL-NORTE | B72: Sooretama | C72: 81.82172051 | D72: 76.37212923
A73: SUL | B73: Vargem Alta | C73: 85.52456839 | D73: 85.12616202
A74: METROPOLITANA | B74: Venda Nova do Imigrante | C74: 96.98461538 | D74: 88.61538462
A75: METROPOLITANA | B75: Viana | C75: 88.36583726 | D75: 68.59448554
A76: CENTRAL-NORTE | B76: Vila Pavão | C76: 95.38904899 | D76: 68.87608069
A77: CENTRAL-NORTE | B77: Vila Valério | C77: 102.7888446 | D77: 80.67729084
A78: METROPOLITANA | B78: Vila Velha | C78: 87.45251733 | D78: 64.55833585
A79: METROPOLITANA | B79: Vitória | C79: 97.51657175 | D79: 65.29735786
A80: TOTAL | C80: 83.04 | D80: 76.67
A83: Cobertura Vacinal HPV 2024
A84: Período avaliado: 2013-2024
A85: Fonte: http://tabnet.datasus.gov.br/
A86: Fonte: https://www.vacinaeconfia.es.gov.br
A87: *Dados parciais gerados em 10/05/2024 (TABNET) e Maio/2024 (VeC)
A88: População proporcional extraída do Censo IBGE 2022
A89: Cobertura Calculada por município de procedência da vacinação
A91: Observações:
A92: Imunobiológicos que foram recebidos parcialmente pelo estado no mês da análise, sendo distribuídos em quantidades reduzidas às regionais e municípios: Varicela, Febre Amarela e HPV Quadrivalente.
A93: Imunobiológicos que não foram recebidos pelo estado no mês da análise, não sendo possível a distribuição às regionais e municípios: Meningo C, Hepatite A (CRIE), HIB, Hepatite A Rotina Pediátrica, DTPa (CRIE).
A94: Imunobiológicos com indisponibilidade de aquisição e distribuição no mês da análise: Tetra Viral.

Sheet dTpa gestantes - procedência
A1: REGIONAL | B1: MUNICÍPIO | C1: ¹POPULAÇÃO GESTANTE ANUAL | D1: ²POPULAÇÃO PROPORCIONAL | E1: DOSES APLICADAS dTpa GESTANTES | F1: COBERTURA VACINAL dTpa GESTANTES
A2: Metropolitana | B2: Afonso Cláudio | C2: 384 | D2: 126 | E2: 103 | F2: =E2/D2 -> 0.8174603175
A3: Norte | B3: Água Doce do Norte | C3: 170 | D3: 61 | E3: 70 | F3: =E3/D3 -> 1.147540984
A4: Central | B4: Águia Branca | C4: 149 | D4: 39 | E4: 45 | F4: 1.153846154
A5: Sul | B5: Alegre | C5: 327 | D5: 93 | E5: 109 | F5: 1.172043011
A6: Sul | B6: Alfredo Chaves | C6: 146 | D6: 46 | E6: 45 | F6: 0.9782608696
A7: Central | B7: Alto Rio Novo | C7: 80 | D7: 21 | E7: 31 | F7: 1.476190476
A8: Sul | B8: Anchieta | C8: 365 | D8: 109 | E8: 116 | F8: 1.064220183
A9: Sul | B9: Apiacá | C9: 64 | D9: 20 | E9: 24 | F9: 1.2
A10: Metropolitana | B10: Aracruz | C10: 1456 | D10: 490 | E10: 434 | F10: 0.8857142857
A11: Sul | B11: Atilio Vivacqua | C11: 133 | D11: 42 | E11: 51 | F11: 1.214285714
A12: Central | B12: Baixo Guandu | C12: 364 | D12: 105 | E12: 110 | F12: 1.047619048
A13: Norte | B13: Barra de São Francisco | C13: 534 | D13: 166 | E13: 164 | F13: 0.9879518072
A14: Norte | B14: Boa Esperança | C14: 199 | D14: 72 | E14: 62 | F14: 0.8611111111
A15: Sul | B15: Bom Jesus do Norte | C15: 83 | D15: 23 | E15: 34 | F15: 1.47826087
A16: Metropolitana | B16: Brejetuba | C16: 212 | D16: 70 | E16: 61 | F16: 0.8714285714
A17: Sul | B17: Cachoeiro de Itapemirim | C17: 2473 | D17: 863 | E17: 716 | F17: 0.8296639629
A18: Metropolitana | B18: Cariacica | C18: 4917 | D18: 1679 | E18: 1339 | F18: 0.797498511
A19: Sul | B19: Castelo | C19: 454 | D19: 160 | E19: 127 | F19: 0.79375
A20: Central | B20: Colatina | C20: 1532 | D20: 496 | E20: 483 | F20: 0.9737903226
A21: Norte | B21: Conceição da Barra | C21: 389 | D21: 136 | E21: 136 | F21: 1
A22: Metropolitana | B22: Conceição do Castelo | C22: 168 | D22: 60 | E22: 46 | F22: 0.7666666667
A23: Sul | B23: Divino de São Lourenço | C23: 65 | D23: 21 | E23: 14 | F23: 0.6666666667
A24: Metropolitana | B24: Domingos Martins | C24: 411 | D24: 133 | E24: 155 | F24: 1.165413534
A25: Sul | B25: Dores do Rio Preto | C25: 97 | D25: 36 | E25: 25 | F25: 0.6944444444
A26: Norte | B26: Ecoporanga | C26: 256 | D26: 89 | E26: 81 | F26: 0.9101123596
A27: Metropolitana | B27: Fundão | C27: 220 | D27: 81 | E27: 62 | F27: 0.7654320988
A28: Central | B28: Governador Lindenberg | C28: 147 | D28: 52 | E28: 42 | F28: 0.8076923077
A29: Sul | B29: Guaçuí | C29: 406 | D29: 131 | E29: 97 | F29: 0.7404580153
A30: Metropolitana | B30: Guarapari | C30: 1741 | D30: 578 | E30: 521 | F30: 0.901384083
A31: Metropolitana | B31: Ibatiba | C31: 361 | D31: 112 | E31: 129 | F31: 1.151785714
A32: Metropolitana | B32: Ibiraçu | C32: 153 | D32: 58 | E32: 55 | F32: 0.9482758621
A33: Sul | B33: Ibitirama | C33: 127 | D33: 37 | E33: 39 | F33: 1.054054054
A34: Sul | B34: Iconha | C34: 115 | D34: 36 | E34: 36 | F34: 1
A35: Sul | B35: Irupi | C35: 195 | D35: 59 | E35: 78 | F35: 1.322033898
A36: Metropolitana | B36: Itaguaçu | C36: 129 | D36: 37 | E36: 47 | F36: 1.27027027
A37: Sul | B37: Itapemirim | C37: 543 | D37: 157 | E37: 147 | F37: 0.9363057325
A38: Metropolitana | B38: Itarana | C38: 143 | D38: 51 | E38: 54 | F38: 1.058823529
A39: Sul | B39: Iúna | C39: 481 | D39: 154 | E39: 127 | F39: 0.8246753247
A40: Norte | B40: Jaguaré | C40: 487 | D40: 154 | E40: 158 | F40: 1.025974026
A41: Sul | B41: Jerônimo Monteiro | C41: 160 | D41: 49 | E41: 41 | F41: 0.8367346939
A42: Metropolitana | B42: João Neiva | C42: 180 | D42: 59 | E42: 50 | F42: 0.8474576271
A43: Metropolitana | B43: Laranja da Terra | C43: 98 | D43: 37 | E43: 29 | F43: 0.7837837838
A44: Central | B44: Linhares | C44: 2574 | D44: 863 | E44: 742 | F44: 0.8597914253
A45: Central | B45: Mantenópolis | C45: 156 | D45: 51 | E45: 49 | F45: 0.9607843137
A46: Sul | B46: Marataízes | C46: 556 | D46: 206 | E46: 167 | F46: 0.8106796117
A47: Metropolitana | B47: Marechal Floriano | C47: 237 | D47: 88 | E47: 72 | F47: 0.8181818182
A48: Central | B48: Marilândia | C48: 157 | D48: 37 | E48: 47 | F48: 1.27027027
A49: Sul | B49: Mimoso do Sul | C49: 254 | D49: 71 | E49: 76 | F49: 1.070422535
A50: Norte | B50: Montanha | C50: 259 | D50: 77 | E50: 68 | F50: 0.8831168831
A51: Norte | B51: Mucurici | C51: 73 | D51: 19 | E51: 27 | F51: 1.421052632
A52: Sul | B52: Muniz Freire | C52: 221 | D52: 72 | E52: 73 | F52: 1.013888889
A53: Sul | B53: Muqui | C53: 165 | D53: 43 | E53: 57 | F53: 1.325581395
A54: Norte | B54: Nova Venécia | C54: 683 | D54: 225 | E54: 187 | F54: 0.8311111111
A55: Central | B55: Pancas | C55: 208 | D55: 56 | E55: 60 | F55: 1.071428571
A56: Norte | B56: Pedro Canário | C56: 335 | D56: 129 | E56: 95 | F56: 0.7364341085
A57: Norte | B57: Pinheiros | C57: 330 | D57: 109 | E57: 87 | F57: 0.7981651376
A58: Sul | B58: Piúma | C58: 292 | D58: 83 | E58: 103 | F58: 1.240963855
A59: Norte | B59: Ponto Belo | C59: 81 | D59: 21 | E59: 25 | F59: 1.19047619
A60: Sul | B60: Presidente Kennedy | C60: 193 | D60: 73 | E60: 66 | F60: 0.904109589
A61: Central | B61: Rio Bananal | C61: 297 | D61: 99 | E61: 96 | F61: 0.9696969697
A62: Sul | B62: Rio Novo do Sul | C62: 121 | D62: 35 | E62: 31 | F62: 0.8857142857
A63: Metropolitana | B63: Santa Leopoldina | C63: 100 | D63: 32 | E63: 26 | F63: 0.8125
A64: Metropolitana | B64: Santa Maria de Jetibá | C64: 667 | D64: 234 | E64: 206 | F64: 0.8803418803
A65: Metropolitana | B65: Santa Teresa | C65: 293 | D65: 87 | E65: 80 | F65: 0.9195402299
A66: Central | B66: São Domingos do Norte | C66: 125 | D66: 44 | E66: 25 | F66: 0.5681818182
A67: Central | B67: São Gabriel da Palha | C67: 430 | D67: 132 | E67: 150 | F67: =E67/D67 -> 1.136363636
A68: Sul | B68: São José do Calçado | C68: 106 | D68: 39 | E68: 27 | F68: 0.6923076923
A69: Norte | B69: São Mateus | C69: 1931 | D69: 650 | E69: 476 | F69: 0.7323076923
A70: Central | B70: São Roque do Canaã | C70: 122 | D70: 50 | E70: 41 | F70: 0.82
A71: Metropolitana | B71: Serra | C71: 7437 | D71: 2622 | E71: 2004 | F71: 0.7643020595
A72: Central | B72: Sooretama | C72: 432 | D72: 150 | E72: 144 | F72: 0.96
A73: Sul | B73: Vargem Alta | C73: 256 | D73: 89 | E73: 85 | F73: 0.9550561798
A74: Metropolitana | B74: Venda Nova do Imigrante | C74: 406 | D74: 130 | E74: 96 | F74: 0.7384615385
A75: Metropolitana | B75: Viana | C75: 1005 | D75: 360 | E75: 281 | F75: 0.7805555556
A76: Norte | B76: Vila Pavão | C76: 88 | D76: 34 | E76: 41 | F76: 1.205882353
A77: Central | B77: Vila Valério | C77: 241 | D77: 79 | E77: 68 | F77: 0.8607594937
A78: Metropolitana | B78: Vila Velha | C78: 5756 | D78: 1942 | E78: 1538 | F78: 0.7919670443
A79: Metropolitana | B79: Vitória | C79: 3725 | D79: 1218 | E79: 1128 | F79: 0.9261083744
B81: Total Norte | C81: =SUMIF($A$2:$A$79,"Norte",C$2:C$79) -> 5815 | D81: =SUMIF($A$2:$A$79,"Norte",D$2:D$79) -> 1942 | E81: =SUMIF($A$2:$A$79,"Norte",E$2:E$79) -> 1677 | F81: 0.8635427394
B82: Total Central | C82: =SUMIF($A$2:$A$79,"CENTRAL",C$2:C$79) -> 7014 | D82: =SUMIF($A$2:$A$79,"CENTRAL",D$2:D$79) -> 2274 | E82: =SUMIF($A$2:$A$79,"CENTRAL",E$2:E$79) -> 2133 | F82: 0.937994723
B83: Total Metropolitana | C83: =SUMIF($A$2:$A$79,"METROPOLITANA",C$2:C$79) -> 30199 | D83: =SUMIF($A$2:$A$79,"METROPOLITANA",D$2:D$79) -> 10284 | E83: =SUMIF($A$2:$A$79,"METROPOLITANA",E$2:E$79) -> 8516 | F83: 0.8280824582
B84: Total Sul | C84: =SUMIF($A$2:$A$79,"SUL",C$2:C$79) -> 8398 | D84: =SUMIF($A$2:$A$79,"SUL",D$2:D$79) -> 2747 | E84: =SUMIF($A$2:$A$79,"SUL",E$2:E$79) -> 2511 | F84: 0.9140880961
B85: TOTAL ES | C85: =SUM(C2:C79) -> 51426 | D85: =SUM(D2:D79) -> 17247 | E85: =SUM(E2:E79) -> 14837 | F85: =E85/D85 -> 0.8602655534
B86: HOMOGENEIDADE ENTRE MUNICÍPIOS | E86: =COUNTIF(F2:F79,">=0,95") -> 35 | F86: =E86/78 -> 0.4487179487
A89: Vacina e Confia, em 10 de Maio de 2024.**
A90: **Dados referente às doses aplicadas no período de Abril de 2024
A91: Cobertura Calculada por município de procedência da vacinação
A92: 1 População anual extraída do MS/SVS/DASIS - SINASC/DASIS/SVS/MS 2023 (hoje preliminares) referente ao período de março a dezembro de 2023 e SINASC/DASIS/SVS/MS 2024 referente ao período de janeiro a fevereiro de 2024.
A94: ² População proporcional extraída do MS/SVS/DASIS - SINASC/DASIS/SVS/MS 2023 (hoje preliminares) referente ao período de março e abril de 2023 somada a população extraída do SINASC/DASIS/SVS/MS 2024 referente ao período de janeiro e fevereiro de 2024.
A96: Observações:
A97: Imunobiológicos que foram recebidos parcialmente pelo estado no mês da análise, sendo distribuídos em quantidades reduzidas às regionais e municípios: Varicela, Febre Amarela e HPV Quadrivalente.
A98: Imunobiológicos que não foram recebidos pelo estado no mês da análise, não sendo possível a distribuição às regionais e municípios: Meningo C, Hepatite A (CRIE), HIB, Hepatite A Rotina Pediátrica, DTPa (CRIE).
A99: Imunobiológicos com indisponibilidade de aquisição e distribuição no mês da análise: Tetra Viral.

Sheet dTpa gestantes - residência
A1: REGIONAL | B1: MUNICÍPIO | C1: ¹POPULAÇÃO GESTANTE ANUAL | D1: ¹POPULAÇÃO PROPORCIONAL | E1: DOSES APLICADAS dTpa GESTANTES | F1: COBERTURA VACINAL dTpa GESTANTES
A2: Metropolitana | B2: Afonso Cláudio | C2: 384 | D2: 110 | E2: 104 | F2: =E2/D2 -> 0.9454545455
A3: Norte | B3: Água Doce do Norte | C3: 170 | D3: 33 | E3: 48 | F3: =E3/D3 -> 1.454545455
A4: Central | B4: Águia Branca | C4: 149 | D4: 31 | E4: 34 | F4: 1.096774194
A5: Sul | B5: Alegre | C5: 327 | D5: 78 | E5: 121 | F5: 1.551282051
A6: Sul | B6: Alfredo Chaves | C6: 146 | D6: 40 | E6: 56 | F6: 1.4
A7: Central | B7: Alto Rio Novo | C7: 80 | D7: 24 | E7: 32 | F7: 1.333333333
A8: Sul | B8: Anchieta | C8: 365 | D8: 84 | E8: 109 | F8: 1.297619048
A9: Sul | B9: Apiacá | C9: 64 | D9: 13 | E9: 20 | F9: 1.538461538
A10: Metropolitana | B10: Aracruz | C10: 1456 | D10: 355 | E10: 392 | F10: 1.104225352
A11: Sul | B11: Atilio Vivacqua | C11: 133 | D11: 37 | E11: 44 | F11: 1.189189189
A12: Central | B12: Baixo Guandu | C12: 364 | D12: 76 | E12: 105 | F12: 1.381578947
A13: Norte | B13: Barra de São Francisco | C13: 534 | D13: 122 | E13: 168 | F13: 1.37704918
A14: Norte | B14: Boa Esperança | C14: 199 | D14: 54 | E14: 52 | F14: 0.962962963
A15: Sul | B15: Bom Jesus do Norte | C15: 83 | D15: 14 | E15: 24 | F15: 1.714285714
A16: Metropolitana | B16: Brejetuba | C16: 212 | D16: 39 | E16: 50 | F16: 1.282051282
A17: Sul | B17: Cachoeiro de Itapemirim | C17: 2473 | D17: 639 | E17: 713 | F17: 1.115805947
A18: Metropolitana | B18: Cariacica | C18: 4917 | D18: 1168 | E18: 1518 | F18: 1.299657534
A19: Sul | B19: Castelo | C19: 454 | D19: 125 | E19: 134 | F19: 1.072
A20: Central | B20: Colatina | C20: 1532 | D20: 360 | E20: 430 | F20: 1.194444444
A21: Norte | B21: Conceição da Barra | C21: 389 | D21: 88 | E21: 126 | F21: 1.431818182
A22: Metropolitana | B22: Conceição do Castelo | C22: 168 | D22: 29 | E22: 52 | F22: 1.793103448
A23: Sul | B23: Divino de São Lourenço | C23: 65 | D23: 9 | E23: 13 | F23: 1.444444444
A24: Metropolitana | B24: Domingos Martins | C24: 411 | D24: 94 | E24: 173 | F24: 1.840425532
A25: Sul | B25: Dores do Rio Preto | C25: 97 | D25: 28 | E25: 21 | F25: 0.75
A26: Norte | B26: Ecoporanga | C26: 256 | D26: 48 | E26: 89 | F26: 1.854166667
A27: Metropolitana | B27: Fundão | C27: 220 | D27: 58 | E27: 53 | F27: 0.9137931034
A28: Central | B28: Governador Lindenberg | C28: 147 | D28: 27 | E28: 48 | F28: 1.777777778
A29: Sul | B29: Guaçuí | C29: 406 | D29: 78 | E29: 84 | F29: 1.076923077
A30: Metropolitana | B30: Guarapari | C30: 1741 | D30: 452 | E30: 480 | F30: 1.061946903
A31: Metropolitana | B31: Ibatiba | C31: 361 | D31: 66 | E31: 131 | F31: 1.984848485
A32: Metropolitana | B32: Ibiraçu | C32: 153 | D32: 41 | E32: 60 | F32: 1.463414634
A33: Sul | B33: Ibitirama | C33: 127 | D33: 27 | E33: 38 | F33: 1.407407407
A34: Sul | B34: Iconha | C34: 115 | D34: 36 | E34: 43 | F34: 1.194444444
A35: Sul | B35: Irupi | C35: 195 | D35: 47 | E35: 57 | F35: 1.212765957
A36: Metropolitana | B36: Itaguaçu | C36: 129 | D36: 30 | E36: 41 | F36: 1.366666667
A37: Sul | B37: Itapemirim | C37: 543 | D37: 142 | E37: 159 | F37: 1.11971831
A38: Metropolitana | B38: Itarana | C38: 143 | D38: 33 | E38: 46 | F38: 1.393939394
A39: Sul | B39: Iúna | C39: 481 | D39: 103 | E39: 130 | F39: 1.262135922
A40: Norte | B40: Jaguaré | C40: 487 | D40: 114 | E40: 153 | F40: 1.342105263
A41: Sul | B41: Jerônimo Monteiro | C41: 160 | D41: 41 | E41: 32 | F41: 0.7804878049
A42: Metropolitana | B42: João Neiva | C42: 180 | D42: 41 | E42: 48 | F42: 1.170731707
A43: Metropolitana | B43: Laranja da Terra | C43: 98 | D43: 25 | E43: 25 | F43: 1
A44: Central | B44: Linhares | C44: 2574 | D44: 648 | E44: 710 | F44: 1.095679012
A45: Central | B45: Mantenópolis | C45: 156 | D45: 34 | E45: 45 | F45: 1.323529412
A46: Sul | B46: Marataízes | C46: 556 | D46: 156 | E46: 154 | F46: 0.9871794872
A47: Metropolitana | B47: Marechal Floriano | C47: 237 | D47: 65 | E47: 71 | F47: 1.092307692
A48: Central | B48: Marilândia | C48: 157 | D48: 28 | E48: 56 | F48: 2
A49: Sul | B49: Mimoso do Sul | C49: 254 | D49: 56 | E49: 78 | F49: 1.392857143
A50: Norte | B50: Montanha | C50: 259 | D50: 55 | E50: 67 | F50: 1.218181818
A51: Norte | B51: Mucurici | C51: 73 | D51: 12 | E51: 33 | F51: 2.75
A52: Sul | B52: Muniz Freire | C52: 221 | D52: 43 | E52: 60 | F52: 1.395348837
A53: Sul | B53: Muqui | C53: 165 | D53: 44 | E53: 62 | F53: 1.409090909
A54: Norte | B54: Nova Venécia | C54: 683 | D54: 163 | E54: 214 | F54: 1.312883436
A55: Central | B55: Pancas | C55: 208 | D55: 42 | E55: 65 | F55: 1.547619048
A56: Norte | B56: Pedro Canário | C56: 335 | D56: 78 | E56: 104 | F56: 1.333333333
A57: Norte | B57: Pinheiros | C57: 330 | D57: 70 | E57: 79 | F57: 1.128571429
A58: Sul | B58: Piúma | C58: 292 | D58: 67 | E58: 97 | F58: 1.447761194
A59: Norte | B59: Ponto Belo | C59: 81 | D59: 19 | E59: 30 | F59: 1.578947368
A60: Sul | B60: Presidente Kennedy | C60: 193 | D60: 57 | E60: 57 | F60: 1
A61: Central | B61: Rio Bananal | C61: 297 | D61: 77 | E61: 98 | F61: 1.272727273
A62: Sul | B62: Rio Novo do Sul | C62: 121 | D62: 34 | E62: 29 | F62: 0.8529411765
A63: Metropolitana | B63: Santa Leopoldina | C63: 100 | D63: 32 | E63: 26 | F63: 0.8125
A64: Metropolitana | B64: Santa Maria de Jetibá | C64: 667 | D64: 163 | E64: 174 | F64: 1.067484663
A65: Metropolitana | B65: Santa Teresa | C65: 293 | D65: 63 | E65: 95 | F65: 1.507936508
A66: Central | B66: São Domingos do Norte | C66: 125 | D66: 23 | E66: 26 | F66: 1.130434783
A67: Central | B67: São Gabriel da Palha | C67: 430 | D67: 88 | E67: 138 | F67: =E67/D67 -> 1.568181818
A68: Sul | B68: São José do Calçado | C68: 106 | D68: 23 | E68: 29 | F68: 1.260869565
A69: Norte | B69: São Mateus | C69: 1931 | D69: 396 | E69: 416 | F69: 1.050505051
A70: Central | B70: São Roque do Canaã | C70: 122 | D70: 40 | E70: 47 | F70: 1.175
A71: Metropolitana | B71: Serra | C71: 7437 | D71: 1921 | E71: 1896 | F71: 0.9869859448
A72: Central | B72: Sooretama | C72: 432 | D72: 110 | E72: 148 | F72: 1.345454545
A73: Sul | B73: Vargem Alta | C73: 256 | D73: 64 | E73: 83 | F73: 1.296875
A74: Metropolitana | B74: Venda Nova do Imigrante | C74: 406 | D74: 82 | E74: 92 | F74: 1.12195122
A75: Metropolitana | B75: Viana | C75: 1005 | D75: 241 | E75: 280 | F75: 1.161825726
A76: Norte | B76: Vila Pavão | C76: 88 | D76: 21 | E76: 41 | F76: 1.952380952
A77: Central | B77: Vila Valério | C77: 241 | D77: 54 | E77: 71 | F77: 1.314814815
A78: Metropolitana | B78: Vila Velha | C78: 5756 | D78: 1472 | E78: 1374 | F78: 0.933423913
A79: Metropolitana | B79: Vitória | C79: 3725 | D79: 910 | E79: 983 | F79: 1.08021978
B81: Total Norte | C81: =SUMIF($A$2:$A$79,"Norte",C$2:C$79) -> 5815 | D81: =SUMIF($A$2:$A$79,"Norte",D$2:D$79) -> 1273 | E81: =SUMIF($A$2:$A$79,"Norte",E$2:E$79) -> 1620 | F81: 1.272584446
B82: Total Central | C82: =SUMIF($A$2:$A$79,"CENTRAL",C$2:C$79) -> 7014 | D82: =SUMIF($A$2:$A$79,"CENTRAL",D$2:D$79) -> 1662 | E82: =SUMIF($A$2:$A$79,"CENTRAL",E$2:E$79) -> 2053 | F82: 1.235258724
B83: Total Metropolitana | C83: =SUMIF($A$2:$A$79,"METROPOLITANA",C$2:C$79) -> 30199 | D83: =SUMIF($A$2:$A$79,"METROPOLITANA",D$2:D$79) -> 7490 | E83: =SUMIF($A$2:$A$79,"METROPOLITANA",E$2:E$79) -> 8164 | F83: 1.089986649
B84: Total Sul | C84: =SUMIF($A$2:$A$79,"SUL",C$2:C$79) -> 8398 | D84: =SUMIF($A$2:$A$79,"SUL",D$2:D$79) -> 2085 | E84: =SUMIF($A$2:$A$79,"SUL",E$2:E$79) -> 2447 | F84: 1.173621103
B85: TOTAL ES | C85: =SUM(C2:C79) -> 51426 | D85: =SUM(D2:D79) -> 12510 | E85: =SUM(E2:E79) -> 14284 | F85: =E85/D85 -> 1.141806555
B86: HOMOGENEIDADE ENTRE MUNICÍPIOS | E86: =COUNTIF(F2:F79,">=0,95") -> 71 | F86: =E86/78 -> 0.9102564103
A89: Vacina e Confia, em 10 de Maio de 2024.**
A90: **Dados referente às doses aplicadas no período de Abril de 2024
A91: Cobertura Calculada por município de procedência da vacinação
A92: 1 População anual extraída do MS/SVS/DASIS - SINASC/DASIS/SVS/MS 2023 (hoje preliminares) referente ao período de março a dezembro de 2023 e SINASC/DASIS/SVS/MS 2024 referente ao período de janeiro a fevereiro de 2024.
A94: ² População proporcional extraída do MS/SVS/DASIS - SINASC/DASIS/SVS/MS 2023 (hoje preliminares) referente ao período de março e abril de 2023 somada a população extraída do SINASC/DASIS/SVS/MS 2024 referente ao período de janeiro e fevereiro de 2024.
A96: Observações:
A97: Imunobiológicos que foram recebidos parcialmente pelo estado no mês da análise, sendo distribuídos em quantidades reduzidas às regionais e municípios: Varicela, Febre Amarela e HPV Quadrivalente.
A98: Imunobiológicos que não foram recebidos pelo estado no mês da análise, não sendo possível a distribuição às regionais e municípios: Meningo C, Hepatite A (CRIE), HIB, Hepatite A Rotina Pediátrica, DTPa (CRIE).
A99: Imunobiológicos com indisponibilidade de aquisição e distribuição no mês da análise: Tetra Viral.

Sheet PROTEÇÃO

Sheet cálculos1 (hidden)
A1: Regional | B1: Município | C1: Cobertura Vacinal BCG | D1: Cobertura Vacinal Rotavírus | E1: Cobertura Vacinal COVID-19 | F1: Cobertura Vacinal Pentavalente | G1: Cobertura Vacinal Poliomielite | H1: Cobertura Vacinal Pneumo 10 | I1: Cobertura Vacinal Tríplice Viral | J1: Cobertura Vacinal Meningo C | K1: Cobertura Vacinal Febre Amarela | L1: Cobertura Vacinal Hepatite A | M1: Cobertura Varicela | N1: META 90% | O1: META 95% | P1: ATINGIRAM META | Q1: PQA-VS
A2: Metropolitana | B2: Afonso Cláudio | C2: ='CV Rotina <2A - procedência'!H3 -> 0.7857142857 | D2: ='CV Rotina <2A - procedência'!P3 -> 0.8571428571 | E2: ='CV Rotina <2A - procedência'!V3 -> 0 | F2: ='CV Rotina <2A - procedência'!J3 -> 0.9920634921 | G2: ='CV Rotina <2A - procedência'!L3 -> 0.9920634921 | H2: ='CV Rotina <2A - procedência'!N3 -> 0.8253968254 | I2: ='CV Rotina <2A - procedência'!Z3 -> 1.103174603 | J2: ='CV Rotina <2A - procedência'!R3 -> 0.9682539683 | K2: ='CV Rotina <2A - procedência'!T3 -> 0.8650793651 | L2: ='CV Rotina <2A - procedência'!X3 -> 0.7857142857 | M2: ='CV Rotina <2A - procedência'!AB3 -> 0.5634920635 | N2: =COUNTIF(C2:E2,">=0,9") -> 0 | O2: =COUNTIFS(F2:M2,">=0,95") -> 4 | P2: =SUM(N2:O2) -> 4 | Q2: =COUNTIF(F2:I2,">=0,95") -> 3
A3: Norte | B3: Água Doce do Norte | C3: ='CV Rotina <2A - procedência'!H4 -> 0.4426229508 | D3: ='CV Rotina <2A - procedência'!P4 -> 0.7540983607 | E3: ='CV Rotina <2A - procedência'!V4 -> 0 | F3: ='CV Rotina <2A - procedência'!J4 -> 0.8852459016 | G3: ='CV Rotina <2A - procedência'!L4 -> 0.9180327869 | H3: ='CV Rotina <2A - procedência'!N4 -> 0.8196721311 | I3: ='CV Rotina <2A - procedência'!Z4 -> 0.7540983607 | J3: ='CV Rotina <2A - procedência'!R4 -> 0.8524590164 | K3: ='CV Rotina <2A - procedência'!T4 -> 0.7868852459 | L3: ='CV Rotina <2A - procedência'!X4 -> 0.7540983607 | M3: ='CV Rotina <2A - procedência'!AB4 -> 0.4262295082 | N3: =COUNTIF(C3:E3,">=0,9") -> 0 | O3: 0 | P3: =SUM(N3:O3) -> 0 | Q3: =COUNTIF(F3:I3,">=0,95") -> 0
A4: Central | B4: Águia Branca | C4: ='CV Rotina <2A - procedência'!H5 -> 0.8717948718 | D4: ='CV Rotina <2A - procedência'!P5 -> 1.358974359 | E4: ='CV Rotina <2A - procedência'!V5 -> 0 | F4: ='CV Rotina <2A - procedência'!J5 -> 1.58974359 | G4: ='CV Rotina <2A - procedência'!L5 -> 1.564102564 | H4: ='CV Rotina <2A - procedência'!N5 -> 1.333333333 | I4: ='CV Rotina <2A - procedência'!Z5 -> 0.8717948718 | J4: ='CV Rotina <2A - procedência'!R5 -> 1.666666667 | K4: ='CV Rotina <2A - procedência'!T5 -> 1.179487179 | L4: ='CV Rotina <2A - procedência'!X5 -> 0.8974358974 | M4: ='CV Rotina <2A - procedência'!AB5 -> 0.5641025641 | N4: 1 | O4: 5 | P4: 6 | Q4: 3
A5: Sul | B5: Alegre | C5: ='CV Rotina <2A - procedência'!H6 -> 0.7956989247 | D5: ='CV Rotina <2A - procedência'!P6 -> 1.161290323 | E5: ='CV Rotina <2A - procedência'!V6 -> 0.01075268817 | F5: ='CV Rotina <2A - procedência'!J6 -> 1.172043011 | G5: ='CV Rotina <2A - procedência'!L6 -> 1.247311828 | H5: ='CV Rotina <2A - procedência'!N6 -> 1.215053763 | I5: ='CV Rotina <2A - procedência'!Z6 -> 1.021505376 | J5: ='CV Rotina <2A - procedência'!R6 -> 1.172043011 | K5: ='CV Rotina <2A - procedência'!T6 -> 1.172043011 | L5: ='CV Rotina <2A - procedência'!X6 -> 0.9139784946 | M5: ='CV Rotina <2A - procedência'!AB6 -> 0.4838709677 | N5: 1 | O5: 6 | P5: 7 | Q5: 4
A6: Sul | B6: Alfredo Chaves | C6: ='CV Rotina <2A - procedência'!H7 -> 0.5869565217 | D6: ='CV Rotina <2A - procedência'!P7 -> 1.347826087 | E6: ='CV Rotina <2A - procedência'!V7 -> 0 | F6: ='CV Rotina <2A - procedência'!J7 -> 1.152173913 | G6: ='CV Rotina <2A - procedência'!L7 -> 1.108695652 | H6: ='CV Rotina <2A - procedência'!N7 -> 1.282608696 | I6: ='CV Rotina <2A - procedência'!Z7 -> 1.086956522 | J6: ='CV Rotina <2A - procedência'!R7 -> 1.347826087 | K6: ='CV Rotina <2A - procedência'!T7 -> 1 | L6: ='CV Rotina <2A - procedência'!X7 -> 1.02173913 | M6: ='CV Rotina <2A - procedência'!AB7 -> 0.9347826087 | N6: 1 | O6: 7 | P6: 8 | Q6: 4
A7: Central | B7: Alto Rio Novo | C7: ='CV Rotina <2A - procedência'!H8 -> 0.4761904762 | D7: ='CV Rotina <2A - procedência'!P8 -> 1.619047619 | E7: ='CV Rotina <2A - procedência'!V8 -> 0 | F7: ='CV Rotina <2A - procedência'!J8 -> 1.666666667 | G7: ='CV Rotina <2A - procedência'!L8 -> 1.571428571 | H7: ='CV Rotina <2A - procedência'!N8 -> 1.571428571 | I7: ='CV Rotina <2A - procedência'!Z8 -> 1.523809524 | J7: ='CV Rotina <2A - procedência'!R8 -> 1.761904762 | K7: ='CV Rotina <2A - procedência'!T8 -> 1.380952381 | L7: ='CV Rotina <2A - procedência'!X8 -> 1.619047619 | M7: ='CV Rotina <2A - procedência'!AB8 -> 1.047619048 | N7: 1 | O7: 8 | P7: 9 | Q7: 4
A8: Sul | B8: Anchieta | C8: ='CV Rotina <2A - procedência'!H9 -> 0.6972477064 | D8: ='CV Rotina <2A - procedência'!P9 -> 1.28440367 | E8: ='CV Rotina <2A - procedência'!V9 -> 0.04587155963 | F8: ='CV Rotina <2A - procedência'!J9 -> 1.183486239 | G8: ='CV Rotina <2A - procedência'!L9 -> 1.201834862 | H8: ='CV Rotina <2A - procedência'!N9 -> 1.311926606 | I8: ='CV Rotina <2A - procedência'!Z9 -> 1.183486239 | J8: ='CV Rotina <2A - procedência'!R9 -> 1.266055046 | K8: ='CV Rotina <2A - procedência'!T9 -> 0.7798165138 | L8: ='CV Rotina <2A - procedência'!X9 -> 1 | M8: ='CV Rotina <2A - procedência'!AB9 -> 0.7155963303 | N8: 1 | O8: 6 | P8: 7 | Q8: 4
A9: Sul | B9: Apiacá | C9: ='CV Rotina <2A - procedência'!H10 -> 0.7 | D9: ='CV Rotina <2A - procedência'!P10 -> 1.15 | E9: ='CV Rotina <2A - procedência'!V10 -> 0 | F9: ='CV Rotina <2A - procedência'!J10 -> 0.8 | G9: ='CV Rotina <2A - procedência'!L10 -> 0.85 | H9: ='CV Rotina <2A - procedência'!N10 -> 1.2 | I9: ='CV Rotina <2A - procedência'!Z10 -> 0.85 | J9: ='CV Rotina <2A - procedência'!R10 -> 0.9 | K9: ='CV Rotina <2A - procedência'!T10 -> 1 | L9: ='CV Rotina <2A - procedência'!X10 -> 0.45 | M9: ='CV Rotina <2A - procedência'!AB10 -> 0.3 | N9: 1 | O9: 2 | P9: 3 | Q9: 1
A10: Metropolitana | B10: Aracruz | C10: ='CV Rotina <2A - procedência'!H11 -> 0.9367346939 | D10: ='CV Rotina <2A - procedência'!P11 -> 0.9102040816 | E10: ='CV Rotina <2A - procedência'!V11 -> 0.03265306122 | F10: ='CV Rotina <2A - procedência'!J11 -> 0.887755102 | G10: ='CV Rotina <2A - procedência'!L11 -> 0.8918367347 | H10: ='CV Rotina <2A - procedência'!N11 -> 0.912244898 | I10: ='CV Rotina <2A - procedência'!Z11 -> 1.079591837 | J10: ='CV Rotina <2A - procedência'!R11 -> 0.9244897959 | K10: ='CV Rotina <2A - procedência'!T11 -> 0.8387755102 | L10: ='CV Rotina <2A - procedência'!X11 -> 0.9265306122 | M10: ='CV Rotina <2A - procedência'!AB11 -> 0.7081632653 | N10: 2 | O10: 1 | P10: 3 | Q10: 1
A11: Sul | B11: Atilio Vivacqua | C11: ='CV Rotina <2A - procedência'!H12 -> 0 | D11: ='CV Rotina <2A - procedência'!P12 -> 0.9523809524 | E11: ='CV Rotina <2A - procedência'!V12 -> 0 | F11: ='CV Rotina <2A - procedência'!J12 -> 1 | G11: ='CV Rotina <2A - procedência'!L12 -> 0.9761904762 | H11: ='CV Rotina <2A - procedência'!N12 -> 0.9523809524 | I11: ='CV Rotina <2A - procedência'!Z12 -> 1.166666667 | J11: ='CV Rotina <2A - procedência'!R12 -> 1 | K11: ='CV Rotina <2A - procedência'!T12 -> 0.880952381 | L11: ='CV Rotina <2A - procedência'!X12 -> 0.8095238095 | M11: ='CV Rotina <2A - procedência'!AB12 -> 0.8333333333 | N11: 1 | O11: 5 | P11: 6 | Q11: 4
A12: Central | B12: Baixo Guandu | C12: ='CV Rotina <2A - procedência'!H13 -> 0.6857142857 | D12: ='CV Rotina <2A - procedência'!P13 -> 1.323809524 | E12: ='CV Rotina <2A - procedência'!V13 -> 0 | F12: ='CV Rotina <2A - procedência'!J13 -> 1.39047619 | G12: ='CV Rotina <2A - procedência'!L13 -> 1.4 | H12: ='CV Rotina <2A - procedência'!N13 -> 1.352380952 | I12: ='CV Rotina <2A - procedência'!Z13 -> 1.619047619 | J12: ='CV Rotina <2A - procedência'!R13 -> 1.323809524 | K12: ='CV Rotina <2A - procedência'!T13 -> 0.9904761905 | L12: ='CV Rotina <2A - procedência'!X13 -> 1.171428571 | M12: ='CV Rotina <2A - procedência'!AB13 -> 0.9047619048 | N12: 1 | O12: 7 | P12: 8 | Q12: 4
A13: Norte | B13: Barra de São Francisco | C13: ='CV Rotina <2A - procedência'!H14 -> 0.7831325301 | D13: ='CV Rotina <2A - procedência'!P14 -> 1.024096386 | E13: ='CV Rotina <2A - procedência'!V14 -> 0 | F13: ='CV Rotina <2A - procedência'!J14 -> 0.9518072289 | G13: ='CV Rotina <2A - procedência'!L14 -> 0.9337349398 | H13: ='CV Rotina <2A - procedência'!N14 -> 1.060240964 | I13: ='CV Rotina <2A - procedência'!Z14 -> 1.192771084 | J13: ='CV Rotina <2A - procedência'!R14 -> 1.024096386 | K13: ='CV Rotina <2A - procedência'!T14 -> 1.006024096 | L13: ='CV Rotina <2A - procedência'!X14 -> 0.8192771084 | M13: ='CV Rotina <2A - procedência'!AB14 -> 0.8373493976 | N13: 1 | O13: 5 | P13: 6 | Q13: 3
A14: Norte | B14: Boa Esperança | C14: ='CV Rotina <2A - procedência'!H15 -> 0.3888888889 | D14: ='CV Rotina <2A - procedência'!P15 -> 0.9444444444 | E14: ='CV Rotina <2A - procedência'!V15 -> 0.01388888889 | F14: ='CV Rotina <2A - procedência'!J15 -> 0.6944444444 | G14: ='CV Rotina <2A - procedência'!L15 -> 0.8194444444 | H14: ='CV Rotina <2A - procedência'!N15 -> 0.875 | I14: ='CV Rotina <2A - procedência'!Z15 -> 1.027777778 | J14: ='CV Rotina <2A - procedência'!R15 -> 0.8333333333 | K14: ='CV Rotina <2A - procedência'!T15 -> 0.7222222222 | L14: ='CV Rotina <2A - procedência'!X15 -> 0.6111111111 | M14: ='CV Rotina <2A - procedência'!AB15 -> 0.7361111111 | N14: 1 | O14: 1 | P14: 2 | Q14: 1
A15: Sul | B15: Bom Jesus do Norte | C15: ='CV Rotina <2A - procedência'!H16 -> 1.347826087 | D15: ='CV Rotina <2A - procedência'!P16 -> 1.608695652 | E15: ='CV Rotina <2A - procedência'!V16 -> 0.1739130435 | F15: ='CV Rotina <2A - procedência'!J16 -> 2.130434783 | G15: ='CV Rotina <2A - procedência'!L16 -> 2.043478261 | H15: ='CV Rotina <2A - procedência'!N16 -> 1.652173913 | I15: ='CV Rotina <2A - procedência'!Z16 -> 2.173913043 | J15: ='CV Rotina <2A - procedência'!R16 -> 1.739130435 | K15: ='CV Rotina <2A - procedência'!T16 -> 1.739130435 | L15: ='CV Rotina <2A - procedência'!X16 -> 0.4347826087 | M15: ='CV Rotina <2A - procedência'!AB16 -> 0.7391304348 | N15: 2 | O15: 6 | P15: 8 | Q15: 4
A16: Metropolitana | B16: Brejetuba | C16: ='CV Rotina <2A - procedência'!H17 -> 0.8428571429 | D16: ='CV Rotina <2A - procedência'!P17 -> 0.9571428571 | E16: ='CV Rotina <2A - procedência'!V17 -> 0 | F16: ='CV Rotina <2A - procedência'!J17 -> 0.9714285714 | G16: ='CV Rotina <2A - procedência'!L17 -> 0.9714285714 | H16: ='CV Rotina <2A - procedência'!N17 -> 0.9142857143 | I16: ='CV Rotina <2A - procedência'!Z17 -> 0.9142857143 | J16: ='CV Rotina <2A - procedência'!R17 -> 0.8428571429 | K16: ='CV Rotina <2A - procedência'!T17 -> 1 | L16: ='CV Rotina <2A - procedência'!X17 -> 0.8142857143 | M16: ='CV Rotina <2A - procedência'!AB17 -> 0.6142857143 | N16: 1 | O16: 3 | P16: 4 | Q16: 2
A17: Sul | B17: Cachoeiro de Itapemirim | C17: ='CV Rotina <2A - procedência'!H18 -> 2.00811124 | D17: ='CV Rotina <2A - procedência'!P18 -> 0.7972190035 | E17: ='CV Rotina <2A - procedência'!V18 -> 0.005793742758 | F17: ='CV Rotina <2A - procedência'!J18 -> 0.8482039397 | G17: ='CV Rotina <2A - procedência'!L18 -> 0.8354577057 | H17: ='CV Rotina <2A - procedência'!N18 -> 0.808806489 | I17: ='CV Rotina <2A - procedência'!Z18 -> 0.9142526072 | J17: ='CV Rotina <2A - procedência'!R18 -> 0.8169177289 | K17: ='CV Rotina <2A - procedência'!T18 -> 0.6500579374 | L17: ='CV Rotina <2A - procedência'!X18 -> 0.6940903824 | M17: ='CV Rotina <2A - procedência'!AB18 -> 0.4044032445 | N17: 1 | O17: 0 | P17: 1 | Q17: 0
A18: Metropolitana | B18: Cariacica | C18: ='CV Rotina <2A - procedência'!H19 -> 0.5288862418 | D18: ='CV Rotina <2A - procedência'!P19 -> 0.8243001787 | E18: ='CV Rotina <2A - procedência'!V19 -> 0.0202501489 | F18: ='CV Rotina <2A - procedência'!J19 -> 0.8695652174 | G18: ='CV Rotina <2A - procedência'!L19 -> 0.8564621799 | H18: ='CV Rotina <2A - procedência'!N19 -> 0.8653960691 | I18: ='CV Rotina <2A - procedência'!Z19 -> 0.9100655152 | J18: ='CV Rotina <2A - procedência'!R19 -> 0.8427635497 | K18: ='CV Rotina <2A - procedência'!T19 -> 0.7129243597 | L18: ='CV Rotina <2A - procedência'!X19 -> 0.4752829065 | M18: ='CV Rotina <2A - procedência'!AB19 -> 0.4455032758 | N18: 0 | O18: 0 | P18: 0 | Q18: 0
A19: Sul | B19: Castelo | C19: ='CV Rotina <2A - procedência'!H20 -> 0.575 | D19: ='CV Rotina <2A - procedência'!P20 -> 0.8 | E19: ='CV Rotina <2A - procedência'!V20 -> 0 | F19: ='CV Rotina <2A - procedência'!J20 -> 0.83125 | G19: ='CV Rotina <2A - procedência'!L20 -> 0.83125 | H19: ='CV Rotina <2A - procedência'!N20 -> 0.825 | I19: ='CV Rotina <2A - procedência'!Z20 -> 1.00625 | J19: ='CV Rotina <2A - procedência'!R20 -> 0.775 | K19: ='CV Rotina <2A - procedência'!T20 -> 0.85625 | L19: ='CV Rotina <2A - procedência'!X20 -> 0.43125 | M19: ='CV Rotina <2A - procedência'!AB20 -> 0.55 | N19: 0 | O19: 1 | P19: 1 | Q19: 1
A20: Central | B20: Colatina | C20: ='CV Rotina <2A - procedência'!H21 -> 2.334677419 | D20: ='CV Rotina <2A - procedência'!P21 -> 0.8366935484 | E20: ='CV Rotina <2A - procedência'!V21 -> 0.01008064516 | F20: ='CV Rotina <2A - procedência'!J21 -> 0.9536290323 | G20: ='CV Rotina <2A - procedência'!L21 -> 0.9294354839 | H20: ='CV Rotina <2A - procedência'!N21 -> 0.8447580645 | I20: ='CV Rotina <2A - procedência'!Z21 -> 0.9516129032 | J20: ='CV Rotina <2A - procedência'!R21 -> 0.8689516129 | K20: ='CV Rotina <2A - procedência'!T21 -> 0.7862903226 | L20: ='CV Rotina <2A - procedência'!X21 -> 0.3810483871 | M20: ='CV Rotina <2A - procedência'!AB21 -> 0.5262096774 | N20: 1 | O20: 2 | P20: 3 | Q20: 2
A21: Norte | B21: Conceição da Barra | C21: ='CV Rotina <2A - procedência'!H22 -> 0.07352941176 | D21: ='CV Rotina <2A - procedência'!P22 -> 0.8823529412 | E21: ='CV Rotina <2A - procedência'!V22 -> 0 | F21: ='CV Rotina <2A - procedência'!J22 -> 0.8014705882 | G21: ='CV Rotina <2A - procedência'!L22 -> 0.8014705882 | H21: ='CV Rotina <2A - procedência'!N22 -> 0.9044117647 | I21: ='CV Rotina <2A - procedência'!Z22 -> 0.9705882353 | J21: ='CV Rotina <2A - procedência'!R22 -> 0.8382352941 | K21: ='CV Rotina <2A - procedência'!T22 -> 0.9264705882 | L21: ='CV Rotina <2A - procedência'!X22 -> 0.5882352941 | M21: ='CV Rotina <2A - procedência'!AB22 -> 0.5882352941 | N21: 0 | O21: 1 | P21: 1 | Q21: 1
A22: Metropolitana | B22: Conceição do Castelo | C22: ='CV Rotina <2A - procedência'!H23 -> 0 | D22: ='CV Rotina <2A - procedência'!P23 -> 0.65 | E22: ='CV Rotina <2A - procedência'!V23 -> 0 | F22: ='CV Rotina <2A - procedência'!J23 -> 0.7833333333 | G22: ='CV Rotina <2A - procedência'!L23 -> 0.7666666667 | H22: ='CV Rotina <2A - procedência'!N23 -> 0.6666666667 | I22: ='CV Rotina <2A - procedência'!Z23 -> 0.6333333333 | J22: ='CV Rotina <2A - procedência'!R23 -> 0.7666666667 | K22: ='CV Rotina <2A - procedência'!T23 -> 0.9666666667 | L22: ='CV Rotina <2A - procedência'!X23 -> 0.7 | M22: ='CV Rotina <2A - procedência'!AB23 -> 0.5333333333 | N22: 0 | O22: 1 | P22: 1 | Q22: 0
A23: Sul | B23: Divino de São Lourenço | C23: ='CV Rotina <2A - procedência'!H24 -> 0.9523809524 | D23: ='CV Rotina <2A - procedência'!P24 -> 1.142857143 | E23: ='CV Rotina <2A - procedência'!V24 -> 0 | F23: ='CV Rotina <2A - procedência'!J24 -> 1.285714286 | G23: ='CV Rotina <2A - procedência'!L24 -> 1.285714286 | H23: ='CV Rotina <2A - procedência'!N24 -> 1.142857143 | I23: ='CV Rotina <2A - procedência'!Z24 -> 0.619047619 | J23: ='CV Rotina <2A - procedência'!R24 -> 1.380952381 | K23: ='CV Rotina <2A - procedência'!T24 -> 0.9523809524 | L23: ='CV Rotina <2A - procedência'!X24 -> 0.9523809524 | M23: ='CV Rotina <2A - procedência'!AB24 -> 0.8095238095 | N23: 2 | O23: 6 | P23: 8 | Q23: 3
A24: Metropolitana | B24: Domingos Martins | C24: ='CV Rotina <2A - procedência'!H25 -> 0.1729323308 | D24: ='CV Rotina <2A - procedência'!P25 -> 1.007518797 | E24: ='CV Rotina <2A - procedência'!V25 -> 0.02255639098 | F24: ='CV Rotina <2A - procedência'!J25 -> 0.8045112782 | G24: ='CV Rotina <2A - procedência'!L25 -> 0.7894736842 | H24: ='CV Rotina <2A - procedência'!N25 -> 1.052631579 | I24: ='CV Rotina <2A - procedência'!Z25 -> 1.052631579 | J24: ='CV Rotina <2A - procedência'!R25 -> 0.984962406 | K24: ='CV Rotina <2A - procedência'!T25 -> 0.9398496241 | L24: ='CV Rotina <2A - procedência'!X25 -> 0.5488721805 | M24: ='CV Rotina <2A - procedência'!AB25 -> 1.007518797 | N24: 1 | O24: 4 | P24: 5 | Q24: 2
A25: Sul | B25: Dores do Rio Preto | C25: ='CV Rotina <2A - procedência'!H26 -> 0.6388888889 | D25: ='CV Rotina <2A - procedência'!P26 -> 1.055555556 | E25: ='CV Rotina <2A - procedência'!V26 -> 0.02777777778 | F25: ='CV Rotina <2A - procedência'!J26 -> 1 | G25: ='CV Rotina <2A - procedência'!L26 -> 1.083333333 | H25: ='CV Rotina <2A - procedência'!N26 -> 1.111111111 | I25: ='CV Rotina <2A - procedência'!Z26 -> 1.083333333 | J25: ='CV Rotina <2A - procedência'!R26 -> 1.111111111 | K25: ='CV Rotina <2A - procedência'!T26 -> 0.8888888889 | L25: ='CV Rotina <2A - procedência'!X26 -> 0.5277777778 | M25: ='CV Rotina <2A - procedência'!AB26 -> 0.4722222222 | N25: 1 | O25: 5 | P25: 6 | Q25: 4
A26: Norte | B26: Ecoporanga | C26: ='CV Rotina <2A - procedência'!H27 -> 0.5617977528 | D26: ='CV Rotina <2A - procedência'!P27 -> 0.7865168539 | E26: ='CV Rotina <2A - procedência'!V27 -> 0 | F26: ='CV Rotina <2A - procedência'!J27 -> 1.033707865 | G26: ='CV Rotina <2A - procedência'!L27 -> 1.02247191 | H26: ='CV Rotina <2A - procedência'!N27 -> 0.808988764 | I26: ='CV Rotina <2A - procedência'!Z27 -> 1 | J26: ='CV Rotina <2A - procedência'!R27 -> 0.808988764 | K26: ='CV Rotina <2A - procedência'!T27 -> 0.8651685393 | L26: ='CV Rotina <2A - procedência'!X27 -> 0.6853932584 | M26: ='CV Rotina <2A - procedência'!AB27 -> 0.797752809 | N26: 0 | O26: 3 | P26: 3 | Q26: 3
A27: Metropolitana | B27: Fundão | C27: ='CV Rotina <2A - procedência'!H28 -> 0.4074074074 | D27: ='CV Rotina <2A - procedência'!P28 -> 0.987654321 | E27: ='CV Rotina <2A - procedência'!V28 -> 0.02469135802 | F27: ='CV Rotina <2A - procedência'!J28 -> 0.975308642 | G27: ='CV Rotina <2A - procedência'!L28 -> 0.962962963 | H27: ='CV Rotina <2A - procedência'!N28 -> 0.950617284 | I27: ='CV Rotina <2A - procedência'!Z28 -> 0.7283950617 | J27: ='CV Rotina <2A - procedência'!R28 -> 0.9135802469 | K27: ='CV Rotina <2A - procedência'!T28 -> 0.8271604938 | L27: ='CV Rotina <2A - procedência'!X28 -> 0.8765432099 | M27: ='CV Rotina <2A - procedência'!AB28 -> 0.8024691358 | N27: 1 | O27: 3 | P27: 4 | Q27: 3
A28: Central | B28: Governador Lindenberg | C28: ='CV Rotina <2A - procedência'!H29 -> 0.25 | D28: ='CV Rotina <2A - procedência'!P29 -> 0.8461538462 | E28: ='CV Rotina <2A - procedência'!V29 -> 0.01923076923 | F28: ='CV Rotina <2A - procedência'!J29 -> 0.7884615385 | G28: ='CV Rotina <2A - procedência'!L29 -> 0.7307692308 | H28: ='CV Rotina <2A - procedência'!N29 -> 0.8269230769 | I28: ='CV Rotina <2A - procedência'!Z29 -> 0.6923076923 | J28: ='CV Rotina <2A - procedência'!R29 -> 0.8076923077 | K28: ='CV Rotina <2A - procedência'!T29 -> 0.8461538462 | L28: ='CV Rotina <2A - procedência'!X29 -> 0.7307692308 | M28: ='CV Rotina <2A - procedência'!AB29 -> 0.5961538462 | N28: 0 | O28: 0 | P28: 0 | Q28: 0
A29: Sul | B29: Guaçuí | C29: ='CV Rotina <2A - procedência'!H30 -> 0.5801526718 | D29: ='CV Rotina <2A - procedência'!P30 -> 0.9083969466 | E29: ='CV Rotina <2A - procedência'!V30 -> 0 | F29: ='CV Rotina <2A - procedência'!J30 -> 1.106870229 | G29: ='CV Rotina <2A - procedência'!L30 -> 1.06870229 | H29: ='CV Rotina <2A - procedência'!N30 -> 0.9847328244 | I29: ='CV Rotina <2A - procedência'!Z30 -> 1.114503817 | J29: ='CV Rotina <2A - procedência'!R30 -> 0.9694656489 | K29: ='CV Rotina <2A - procedência'!T30 -> 0.8778625954 | L29: ='CV Rotina <2A - procedência'!X30 -> 0.8015267176 | M29: ='CV Rotina <2A - procedência'!AB30 -> 0.534351145 | N29: 1 | O29: 5 | P29: 6 | Q29: 4
A30: Metropolitana | B30: Guarapari | C30: ='CV Rotina <2A - procedência'!H31 -> 0.8356401384 | D30: ='CV Rotina <2A - procedência'!P31 -> 0.8321799308 | E30: ='CV Rotina <2A - procedência'!V31 -> 0.003460207612 | F30: ='CV Rotina <2A - procedência'!J31 -> 0.8546712803 | G30: ='CV Rotina <2A - procedência'!L31 -> 0.821799308 | H30: ='CV Rotina <2A - procedência'!N31 -> 0.8702422145 | I30: ='CV Rotina <2A - procedência'!Z31 -> 0.8529411765 | J30: ='CV Rotina <2A - procedência'!R31 -> 0.8546712803 | K30: ='CV Rotina <2A - procedência'!T31 -> 0.6349480969 | L30: ='CV Rotina <2A - procedência'!X31 -> 0.6591695502 | M30: ='CV Rotina <2A - procedência'!AB31 -> 0.5553633218 | N30: 0 | O30: 0 | P30: 0 | Q30: 0
A31: Metropolitana | B31: Ibatiba | C31: ='CV Rotina <2A - procedência'!H32 -> 1.035714286 | D31: ='CV Rotina <2A - procedência'!P32 -> 0.9910714286 | E31: ='CV Rotina <2A - procedência'!V32 -> 0.04464285714 | F31: ='CV Rotina <2A - procedência'!J32 -> 1.142857143 | G31: ='CV Rotina <2A - procedência'!L32 -> 1.125 | H31: ='CV Rotina <2A - procedência'!N32 -> 1.080357143 | I31: ='CV Rotina <2A - procedência'!Z32 -> 0.9732142857 | J31: ='CV Rotina <2A - procedência'!R32 -> 1.205357143 | K31: ='CV Rotina <2A - procedência'!T32 -> 0.9375 | L31: ='CV Rotina <2A - procedência'!X32 -> 0.7857142857 | M31: ='CV Rotina <2A - procedência'!AB32 -> 0.2589285714 | N31: 2 | O31: 5 | P31: 7 | Q31: 4
A32: Metropolitana | B32: Ibiraçu | C32: ='CV Rotina <2A - procedência'!H33 -> 0.1551724138 | D32: ='CV Rotina <2A - procedência'!P33 -> 0.6379310345 | E32: ='CV Rotina <2A - procedência'!V33 -> 0.05172413793 | F32: ='CV Rotina <2A - procedência'!J33 -> 0.724137931 | G32: ='CV Rotina <2A - procedência'!L33 -> 0.7068965517 | H32: ='CV Rotina <2A - procedência'!N33 -> 0.6724137931 | I32: ='CV Rotina <2A - procedência'!Z33 -> 0.6896551724 | J32: ='CV Rotina <2A - procedência'!R33 -> 0.7586206897 | K32: ='CV Rotina <2A - procedência'!T33 -> 0.8275862069 | L32: ='CV Rotina <2A - procedência'!X33 -> 0.4482758621 | M32: ='CV Rotina <2A - procedência'!AB33 -> 0.4827586207 | N32: 0 | O32: 0 | P32: 0 | Q32: 0
A33: Sul | B33: Ibitirama | C33: ='CV Rotina <2A - procedência'!H34 -> 0.7567567568 | D33: ='CV Rotina <2A - procedência'!P34 -> 1.162162162 | E33: ='CV Rotina <2A - procedência'!V34 -> 0 | F33: ='CV Rotina <2A - procedência'!J34 -> 1.027027027 | G33: ='CV Rotina <2A - procedência'!L34 -> 1.054054054 | H33: ='CV Rotina <2A - procedência'!N34 -> 1.108108108 | I33: ='CV Rotina <2A - procedência'!Z34 -> 1.351351351 | J33: ='CV Rotina <2A - procedência'!R34 -> 0.9459459459 | K33: ='CV Rotina <2A - procedência'!T34 -> 0.6756756757 | L33: ='CV Rotina <2A - procedência'!X34 -> 0.8378378378 | M33: ='CV Rotina <2A - procedência'!AB34 -> 0.8918918919 | N33: 1 | O33: 4 | P33: 5 | Q33: 4
A34: Sul | B34: Iconha | C34: ='CV Rotina <2A - procedência'!H35 -> 0.4444444444 | D34: ='CV Rotina <2A - procedência'!P35 -> 1.111111111 | E34: ='CV Rotina <2A - procedência'!V35 -> 0.02777777778 | F34: ='CV Rotina <2A - procedência'!J35 -> 1.083333333 | G34: ='CV Rotina <2A - procedência'!L35 -> 1.027777778 | H34: ='CV Rotina <2A - procedência'!N35 -> 1.083333333 | I34: ='CV Rotina <2A - procedência'!Z35 -> 1.583333333 | J34: ='CV Rotina <2A - procedência'!R35 -> 1.027777778 | K34: ='CV Rotina <2A - procedência'!T35 -> 1.333333333 | L34: ='CV Rotina <2A - procedência'!X35 -> 0.75 | M34: ='CV Rotina <2A - procedência'!AB35 -> 0.3055555556 | N34: 1 | O34: =COUNTIFS(F34:M34,">=0,95") -> 6 | P34: 7 | Q34: 4
A35: Sul | B35: Irupi | C35: ='CV Rotina <2A - procedência'!H36 -> 0.6949152542 | D35: ='CV Rotina <2A - procedência'!P36 -> 1.322033898 | E35: ='CV Rotina <2A - procedência'!V36 -> 0.06779661017 | F35: ='CV Rotina <2A - procedência'!J36 -> 1.220338983 | G35: ='CV Rotina <2A - procedência'!L36 -> 1.203389831 | H35: ='CV Rotina <2A - procedência'!N36 -> 1.406779661 | I35: ='CV Rotina <2A - procedência'!Z36 -> 1.593220339 | J35: ='CV Rotina <2A - procedência'!R36 -> 1.389830508 | K35: ='CV Rotina <2A - procedência'!T36 -> 0.9322033898 | L35: ='CV Rotina <2A - procedência'!X36 -> 1.033898305 | M35: ='CV Rotina <2A - procedência'!AB36 -> 0.3559322034 | N35: 1 | O35: 6 | P35: 7 | Q35: 4
A36: Metropolitana | B36: Itaguaçu | C36: ='CV Rotina <2A - procedência'!H37 -> 0.8918918919 | D36: ='CV Rotina <2A - procedência'!P37 -> 1.108108108 | E36: ='CV Rotina <2A - procedência'!V37 -> 0 | F36: ='CV Rotina <2A - procedência'!J37 -> 1.081081081 | G36: ='CV Rotina <2A - procedência'!L37 -> 1.081081081 | H36: ='CV Rotina <2A - procedência'!N37 -> 1.108108108 | I36: ='CV Rotina <2A - procedência'!Z37 -> 1.297297297 | J36: ='CV Rotina <2A - procedência'!R37 -> 1.162162162 | K36: ='CV Rotina <2A - procedência'!T37 -> 1.243243243 | L36: ='CV Rotina <2A - procedência'!X37 -> 1.351351351 | M36: ='CV Rotina <2A - procedência'!AB37 -> 1.243243243 | N36: 1 | O36: 8 | P36: 9 | Q36: 4
A37: Sul | B37: Itapemirim | C37: ='CV Rotina <2A - procedência'!H38 -> 0.5286624204 | D37: ='CV Rotina <2A - procedência'!P38 -> 1.006369427 | E37: ='CV Rotina <2A - procedência'!V38 -> 0 | F37: ='CV Rotina <2A - procedência'!J38 -> 0.9426751592 | G37: ='CV Rotina <2A - procedência'!L38 -> 0.923566879 | H37: ='CV Rotina <2A - procedência'!N38 -> 1.121019108 | I37: ='CV Rotina <2A - procedência'!Z38 -> 1.114649682 | J37: ='CV Rotina <2A - procedência'!R38 -> 0.9108280255 | K37: ='CV Rotina <2A - procedência'!T38 -> 0.6050955414 | L37: ='CV Rotina <2A - procedência'!X38 -> 0.847133758 | M37: ='CV Rotina <2A - procedência'!AB38 -> 0.6050955414 | N37: 1 | O37: 2 | P37: 3 | Q37: 2
A38: Metropolitana | B38: Itarana | C38: ='CV Rotina <2A - procedência'!H39 -> 0.8823529412 | D38: ='CV Rotina <2A - procedência'!P39 -> 0.7843137255 | E38: ='CV Rotina <2A - procedência'!V39 -> 0 | F38: ='CV Rotina <2A - procedência'!J39 -> 0.8235294118 | G38: ='CV Rotina <2A - procedência'!L39 -> 0.8431372549 | H38: ='CV Rotina <2A - procedência'!N39 -> 0.7450980392 | I38: ='CV Rotina <2A - procedência'!Z39 -> 0.8235294118 | J38: ='CV Rotina <2A - procedência'!R39 -> 0.6862745098 | K38: ='CV Rotina <2A - procedência'!T39 -> 1.019607843 | L38: ='CV Rotina <2A - procedência'!X39 -> 0.2352941176 | M38: ='CV Rotina <2A - procedência'!AB39 -> 0.7450980392 | N38: 0 | O38: 1 | P38: 1 | Q38: 0
A39: Sul | B39: Iúna | C39: ='CV Rotina <2A - procedência'!H40 -> 0.6753246753 | D39: ='CV Rotina <2A - procedência'!P40 -> 1.038961039 | E39: ='CV Rotina <2A - procedência'!V40 -> 0.006493506494 | F39: ='CV Rotina <2A - procedência'!J40 -> 1.032467532 | G39: ='CV Rotina <2A - procedência'!L40 -> 1.012987013 | H39: ='CV Rotina <2A - procedência'!N40 -> 1.045454545 | I39: ='CV Rotina <2A - procedência'!Z40 -> 1.025974026 | J39: ='CV Rotina <2A - procedência'!R40 -> 1.038961039 | K39: ='CV Rotina <2A - procedência'!T40 -> 0.9155844156 | L39: ='CV Rotina <2A - procedência'!X40 -> 0.5714285714 | M39: ='CV Rotina <2A - procedência'!AB40 -> 0.5649350649 | N39: 1 | O39: 5 | P39: 6 | Q39: 4
A40: Norte | B40: Jaguaré | C40: ='CV Rotina <2A - procedência'!H41 -> 0.7077922078 | D40: ='CV Rotina <2A - procedência'!P41 -> 1 | E40: ='CV Rotina <2A - procedência'!V41 -> 0.01948051948 | F40: ='CV Rotina <2A - procedência'!J41 -> 0.9805194805 | G40: ='CV Rotina <2A - procedência'!L41 -> 1.038961039 | H40: ='CV Rotina <2A - procedência'!N41 -> 1.012987013 | I40: ='CV Rotina <2A - procedência'!Z41 -> 1.051948052 | J40: ='CV Rotina <2A - procedência'!R41 -> 0.974025974 | K40: ='CV Rotina <2A - procedência'!T41 -> 1.012987013 | L40: ='CV Rotina <2A - procedência'!X41 -> 0.7012987013 | M40: ='CV Rotina <2A - procedência'!AB41 -> 0.6298701299 | N40: 1 | O40: 6 | P40: 7 | Q40: 4
A41: Sul | B41: Jerônimo Monteiro | C41: ='CV Rotina <2A - procedência'!H42 -> 0.1224489796 | D41: ='CV Rotina <2A - procedência'!P42 -> 1.020408163 | E41: ='CV Rotina <2A - procedência'!V42 -> 0.04081632653 | F41: ='CV Rotina <2A - procedência'!J42 -> 1.285714286 | G41: ='CV Rotina <2A - procedência'!L42 -> 1.285714286 | H41: ='CV Rotina <2A - procedência'!N42 -> 0.9795918367 | I41: ='CV Rotina <2A - procedência'!Z42 -> 0.9591836735 | J41: ='CV Rotina <2A - procedência'!R42 -> 0.9591836735 | K41: ='CV Rotina <2A - procedência'!T42 -> 0.9795918367 | L41: ='CV Rotina <2A - procedência'!X42 -> 0.6734693878 | M41: ='CV Rotina <2A - procedência'!AB42 -> 0.3673469388 | N41: 1 | O41: 6 | P41: 7 | Q41: 4
A42: Metropolitana | B42: João Neiva | C42: ='CV Rotina <2A - procedência'!H43 -> 0.3050847458 | D42: ='CV Rotina <2A - procedência'!P43 -> 0.9322033898 | E42: ='CV Rotina <2A - procedência'!V43 -> 0.01694915254 | F42: ='CV Rotina <2A - procedência'!J43 -> 1.033898305 | G42: ='CV Rotina <2A - procedência'!L43 -> 1.016949153 | H42: ='CV Rotina <2A - procedência'!N43 -> 0.9830508475 | I42: ='CV Rotina <2A - procedência'!Z43 -> 1.186440678 | J42: ='CV Rotina <2A - procedência'!R43 -> 0.9491525424 | K42: ='CV Rotina <2A - procedência'!T43 -> 1.050847458 | L42: ='CV Rotina <2A - procedência'!X43 -> 0.7288135593 | M42: ='CV Rotina <2A - procedência'!AB43 -> 0.5423728814 | N42: 1 | O42: 5 | P42: 6 | Q42: 4
A43: Metropolitana | B43: Laranja da Terra | C43: ='CV Rotina <2A - procedência'!H44 -> 0.6216216216 | D43: ='CV Rotina <2A - procedência'!P44 -> 0.7027027027 | E43: ='CV Rotina <2A - procedência'!V44 -> 0.1351351351 | F43: ='CV Rotina <2A - procedência'!J44 -> 0.9459459459 | G43: ='CV Rotina <2A - procedência'!L44 -> 0.972972973 | H43: ='CV Rotina <2A - procedência'!N44 -> 0.6756756757 | I43: ='CV Rotina <2A - procedência'!Z44 -> 1.432432432 | J43: ='CV Rotina <2A - procedência'!R44 -> 0.8378378378 | K43: ='CV Rotina <2A - procedência'!T44 -> 1.162162162 | L43: ='CV Rotina <2A - procedência'!X44 -> 0.8108108108 | M43: ='CV Rotina <2A - procedência'!AB44 -> 0.8108108108 | N43: 0 | O43: 3 | P43: 3 | Q43: 2
A44: Central | B44: Linhares | C44: ='CV Rotina <2A - procedência'!H45 -> 1.115874855 | D44: ='CV Rotina <2A - procedência'!P45 -> 0.8273464658 | E44: ='CV Rotina <2A - procedência'!V45 -> 0 | F44: ='CV Rotina <2A - procedência'!J45 -> 0.8366164542 | G44: ='CV Rotina <2A - procedência'!L45 -> 0.8308227115 | H44: ='CV Rotina <2A - procedência'!N45 -> 0.8064889919 | I44: ='CV Rotina <2A - procedência'!Z45 -> 0.8261877173 | J44: ='CV Rotina <2A - procedência'!R45 -> 0.7763615295 | K44: ='CV Rotina <2A - procedência'!T45 -> 0.7369640788 | L44: ='CV Rotina <2A - procedência'!X45 -> 0.5144843569 | M44: ='CV Rotina <2A - procedência'!AB45 -> 0.5144843569 | N44: 1 | O44: 0 | P44: 1 | Q44: 0
A45: Central | B45: Mantenópolis | C45: ='CV Rotina <2A - procedência'!H46 -> 0.5098039216 | D45: ='CV Rotina <2A - procedência'!P46 -> 0.7843137255 | E45: ='CV Rotina <2A - procedência'!V46 -> 0 | F45: ='CV Rotina <2A - procedência'!J46 -> 1.019607843 | G45: ='CV Rotina <2A - procedência'!L46 -> 1.117647059 | H45: ='CV Rotina <2A - procedência'!N46 -> 0.8235294118 | I45: ='CV Rotina <2A - procedência'!Z46 -> 1.098039216 | J45: ='CV Rotina <2A - procedência'!R46 -> 0.7647058824 | K45: ='CV Rotina <2A - procedência'!T46 -> 0.9607843137 | L45: ='CV Rotina <2A - procedência'!X46 -> 0.8431372549 | M45: ='CV Rotina <2A - procedência'!AB46 -> 0.6666666667 | N45: 0 | O45: 4 | P45: 4 | Q45: 3
A46: Sul | B46: Marataízes | C46: ='CV Rotina <2A - procedência'!H47 -> 0.4029126214 | D46: ='CV Rotina <2A - procedência'!P47 -> 0.854368932 | E46: ='CV Rotina <2A - procedência'!V47 -> 0 | F46: ='CV Rotina <2A - procedência'!J47 -> 0.8980582524 | G46: ='CV Rotina <2A - procedência'!L47 -> 0.9223300971 | H46: ='CV Rotina <2A - procedência'!N47 -> 0.8689320388 | I46: ='CV Rotina <2A - procedência'!Z47 -> 0.9514563107 | J46: ='CV Rotina <2A - procedência'!R47 -> 0.9077669903 | K46: ='CV Rotina <2A - procedência'!T47 -> 0.6747572816 | L46: ='CV Rotina <2A - procedência'!X47 -> 0.9077669903 | M46: ='CV Rotina <2A - procedência'!AB47 -> 0.5436893204 | N46: 0 | O46: 1 | P46: 1 | Q46: 1
A47: Metropolitana | B47: Marechal Floriano | C47: ='CV Rotina <2A - procedência'!H48 -> 0.2159090909 | D47: ='CV Rotina <2A - procedência'!P48 -> 0.875 | E47: ='CV Rotina <2A - procedência'!V48 -> 0.02272727273 | F47: ='CV Rotina <2A - procedência'!J48 -> 0.6136363636 | G47: ='CV Rotina <2A - procedência'!L48 -> 0.625 | H47: ='CV Rotina <2A - procedência'!N48 -> 0.8977272727 | I47: ='CV Rotina <2A - procedência'!Z48 -> 0.8977272727 | J47: ='CV Rotina <2A - procedência'!R48 -> 0.7954545455 | K47: ='CV Rotina <2A - procedência'!T48 -> 0.6136363636 | L47: ='CV Rotina <2A - procedência'!X48 -> 0.7272727273 | M47: ='CV Rotina <2A - procedência'!AB48 -> 0.6136363636 | N47: 0 | O47: 0 | P47: 0 | Q47: 0
A48: Central | B48: Marilândia | C48: ='CV Rotina <2A - procedência'!H49 -> 0.5675675676 | D48: ='CV Rotina <2A - procedência'!P49 -> 1.324324324 | E48: ='CV Rotina <2A - procedência'!V49 -> 0 | F48: ='CV Rotina <2A - procedência'!J49 -> 1.324324324 | G48: ='CV Rotina <2A - procedência'!L49 -> 1.324324324 | H48: ='CV Rotina <2A - procedência'!N49 -> 1.216216216 | I48: ='CV Rotina <2A - procedência'!Z49 -> 1.297297297 | J48: ='CV Rotina <2A - procedência'!R49 -> 1.486486486 | K48: ='CV Rotina <2A - procedência'!T49 -> 1.216216216 | L48: ='CV Rotina <2A - procedência'!X49 -> 1.081081081 | M48: ='CV Rotina <2A - procedência'!AB49 -> 1.162162162 | N48: 1 | O48: 8 | P48: 9 | Q48: 4
A49: Sul | B49: Mimoso do Sul | C49: ='CV Rotina <2A - procedência'!H50 -> 0.2253521127 | D49: ='CV Rotina <2A - procedência'!P50 -> 0.9295774648 | E49: ='CV Rotina <2A - procedência'!V50 -> 0 | F49: ='CV Rotina <2A - procedência'!J50 -> 0.9577464789 | G49: ='CV Rotina <2A - procedência'!L50 -> 0.9436619718 | H49: ='CV Rotina <2A - procedência'!N50 -> 0.9718309859 | I49: ='CV Rotina <2A - procedência'!Z50 -> 0.9577464789 | J49: ='CV Rotina <2A - procedência'!R50 -> 0.9436619718 | K49: ='CV Rotina <2A - procedência'!T50 -> 0.8169014085 | L49: ='CV Rotina <2A - procedência'!X50 -> 0.676056338 | M49: ='CV Rotina <2A - procedência'!AB50 -> 0.5915492958 | N49: 1 | O49: 3 | P49: 4 | Q49: 3
A50: Norte | B50: Montanha | C50: ='CV Rotina <2A - procedência'!H51 -> 0.3116883117 | D50: ='CV Rotina <2A - procedência'!P51 -> 1.064935065 | E50: ='CV Rotina <2A - procedência'!V51 -> 0.01298701299 | F50: ='CV Rotina <2A - procedência'!J51 -> 1.311688312 | G50: ='CV Rotina <2A - procedência'!L51 -> 1.337662338 | H50: ='CV Rotina <2A - procedência'!N51 -> 1.064935065 | I50: ='CV Rotina <2A - procedência'!Z51 -> 1.142857143 | J50: ='CV Rotina <2A - procedência'!R51 -> 1.12987013 | K50: ='CV Rotina <2A - procedência'!T51 -> 1.090909091 | L50: ='CV Rotina <2A - procedência'!X51 -> 1.090909091 | M50: ='CV Rotina <2A - procedência'!AB51 -> 0.8571428571 | N50: 1 | O50: 7 | P50: 8 | Q50: 4
A51: Norte | B51: Mucurici | C51: ='CV Rotina <2A - procedência'!H52 -> 0.2105263158 | D51: ='CV Rotina <2A - procedência'!P52 -> 1.526315789 | E51: ='CV Rotina <2A - procedência'!V52 -> 0 | F51: ='CV Rotina <2A - procedência'!J52 -> 1.526315789 | G51: ='CV Rotina <2A - procedência'!L52 -> 1.526315789 | H51: ='CV Rotina <2A - procedência'!N52 -> 1.578947368 | I51: ='CV Rotina <2A - procedência'!Z52 -> 1.631578947 | J51: ='CV Rotina <2A - procedência'!R52 -> 1.368421053 | K51: ='CV Rotina <2A - procedência'!T52 -> 1.736842105 | L51: ='CV Rotina <2A - procedência'!X52 -> 0.6842105263 | M51: ='CV Rotina <2A - procedência'!AB52 -> 0.6315789474 | N51: 1 | O51: 6 | P51: 7 | Q51: 4
A52: Sul | B52: Muniz Freire | C52: ='CV Rotina <2A - procedência'!H53 -> 0.6527777778 | D52: ='CV Rotina <2A - procedência'!P53 -> 1.055555556 | E52: ='CV Rotina <2A - procedência'!V53 -> 0 | F52: ='CV Rotina <2A - procedência'!J53 -> 1.111111111 | G52: ='CV Rotina <2A - procedência'!L53 -> 1.041666667 | H52: ='CV Rotina <2A - procedência'!N53 -> 1.055555556 | I52: ='CV Rotina <2A - procedência'!Z53 -> 1.305555556 | J52: ='CV Rotina <2A - procedência'!R53 -> 1.041666667 | K52: ='CV Rotina <2A - procedência'!T53 -> 1.138888889 | L52: ='CV Rotina <2A - procedência'!X53 -> 0.8888888889 | M52: ='CV Rotina <2A - procedência'!AB53 -> 0.5694444444 | N52: 1 | O52: 6 | P52: 7 | Q52: 4
A53: Sul | B53: Muqui | C53: ='CV Rotina <2A - procedência'!H54 -> 0.1627906977 | D53: ='CV Rotina <2A - procedência'!P54 -> 1.11627907 | E53: ='CV Rotina <2A - procedência'!V54 -> 0.09302325581 | F53: ='CV Rotina <2A - procedência'!J54 -> 1.534883721 | G53: ='CV Rotina <2A - procedência'!L54 -> 1.558139535 | H53: ='CV Rotina <2A - procedência'!N54 -> 1.162790698 | I53: ='CV Rotina <2A - procedência'!Z54 -> 1.093023256 | J53: ='CV Rotina <2A - procedência'!R54 -> 1.325581395 | K53: ='CV Rotina <2A - procedência'!T54 -> 1.139534884 | L53: ='CV Rotina <2A - procedência'!X54 -> 0.7441860465 | M53: ='CV Rotina <2A - procedência'!AB54 -> 0.8139534884 | N53: 1 | O53: 6 | P53: 7 | Q53: 4
A54: Norte | B54: Nova Venécia | C54: ='CV Rotina <2A - procedência'!H55 -> 0.5555555556 | D54: ='CV Rotina <2A - procedência'!P55 -> 0.7822222222 | E54: ='CV Rotina <2A - procedência'!V55 -> 0 | F54: ='CV Rotina <2A - procedência'!J55 -> 1.008888889 | G54: ='CV Rotina <2A - procedência'!L55 -> 1.008888889 | H54: ='CV Rotina <2A - procedência'!N55 -> 0.8 | I54: ='CV Rotina <2A - procedência'!Z55 -> 0.9688888889 | J54: ='CV Rotina <2A - procedência'!R55 -> 0.8666666667 | K54: ='CV Rotina <2A - procedência'!T55 -> 0.9955555556 | L54: ='CV Rotina <2A - procedência'!X55 -> 0.7244444444 | M54: ='CV Rotina <2A - procedência'!AB55 -> 0.6844444444 | N54: 0 | O54: 4 | P54: 4 | Q54: 3
A55: Central | B55: Pancas | C55: ='CV Rotina <2A - procedência'!H56 -> 0.5357142857 | D55: ='CV Rotina <2A - procedência'!P56 -> 1.267857143 | E55: ='CV Rotina <2A - procedência'!V56 -> 0.01785714286 | F55: ='CV Rotina <2A - procedência'!J56 -> 1.375 | G55: ='CV Rotina <2A - procedência'!L56 -> 1.357142857 | H55: ='CV Rotina <2A - procedência'!N56 -> 1.303571429 | I55: ='CV Rotina <2A - procedência'!Z56 -> 1.107142857 | J55: ='CV Rotina <2A - procedência'!R56 -> 1.357142857 | K55: ='CV Rotina <2A - procedência'!T56 -> 1.142857143 | L55: ='CV Rotina <2A - procedência'!X56 -> 0.9285714286 | M55: ='CV Rotina <2A - procedência'!AB56 -> 1.303571429 | N55: 1 | O55: 7 | P55: 8 | Q55: 4
A56: Norte | B56: Pedro Canário | C56: ='CV Rotina <2A - procedência'!H57 -> 0.05426356589 | D56: ='CV Rotina <2A - procedência'!P57 -> 0.6821705426 | E56: ='CV Rotina <2A - procedência'!V57 -> 0 | F56: ='CV Rotina <2A - procedência'!J57 -> 0.8217054264 | G56: ='CV Rotina <2A - procedência'!L57 -> 0.8449612403 | H56: ='CV Rotina <2A - procedência'!N57 -> 0.6976744186 | I56: ='CV Rotina <2A - procedência'!Z57 -> 0.976744186 | J56: ='CV Rotina <2A - procedência'!R57 -> 0.7131782946 | K56: ='CV Rotina <2A - procedência'!T57 -> 0.8217054264 | L56: ='CV Rotina <2A - procedência'!X57 -> 0.488372093 | M56: ='CV Rotina <2A - procedência'!AB57 -> 0.6201550388 | N56: 0 | O56: 1 | P56: 1 | Q56: 1
A57: Norte | B57: Pinheiros | C57: ='CV Rotina <2A - procedência'!H58 -> 0.04587155963 | D57: ='CV Rotina <2A - procedência'!P58 -> 0.9541284404 | E57: ='CV Rotina <2A - procedência'!V58 -> 0 | F57: ='CV Rotina <2A - procedência'!J58 -> 1.064220183 | G57: ='CV Rotina <2A - procedência'!L58 -> 1.055045872 | H57: ='CV Rotina <2A - procedência'!N58 -> 0.9724770642 | I57: ='CV Rotina <2A - procedência'!Z58 -> 0.9541284404 | J57: ='CV Rotina <2A - procedência'!R58 -> 0.9357798165 | K57: ='CV Rotina <2A - procedência'!T58 -> 0.9816513761 | L57: ='CV Rotina <2A - procedência'!X58 -> 0.6422018349 | M57: ='CV Rotina <2A - procedência'!AB58 -> 0.4036697248 | N57: 1 | O57: 5 | P57: 6 | Q57: 4
A58: Sul | B58: Piúma | C58: ='CV Rotina <2A - procedência'!H59 -> 0.7469879518 | D58: ='CV Rotina <2A - procedência'!P59 -> 1 | E58: ='CV Rotina <2A - procedência'!V59 -> 0.01204819277 | F58: ='CV Rotina <2A - procedência'!J59 -> 1.096385542 | G58: ='CV Rotina <2A - procedência'!L59 -> 1.096385542 | H58: ='CV Rotina <2A - procedência'!N59 -> 1.108433735 | I58: ='CV Rotina <2A - procedência'!Z59 -> 1.192771084 | J58: ='CV Rotina <2A - procedência'!R59 -> 0.8554216867 | K58: ='CV Rotina <2A - procedência'!T59 -> 0.7469879518 | L58: ='CV Rotina <2A - procedência'!X59 -> 0.8674698795 | M58: ='CV Rotina <2A - procedência'!AB59 -> 0.5903614458 | N58: 1 | O58: 4 | P58: 5 | Q58: 4
A59: Norte | B59: Ponto Belo | C59: ='CV Rotina <2A - procedência'!H60 -> 0.1904761905 | D59: ='CV Rotina <2A - procedência'!P60 -> 1.047619048 | E59: ='CV Rotina <2A - procedência'!V60 -> 0 | F59: ='CV Rotina <2A - procedência'!J60 -> 0.7619047619 | G59: ='CV Rotina <2A - procedência'!L60 -> 0.7619047619 | H59: ='CV Rotina <2A - procedência'!N60 -> 1.095238095 | I59: ='CV Rotina <2A - procedência'!Z60 -> 1.142857143 | J59: ='CV Rotina <2A - procedência'!R60 -> 0.7142857143 | K59: ='CV Rotina <2A - procedência'!T60 -> 1.238095238 | L59: ='CV Rotina <2A - procedência'!X60 -> 0.619047619 | M59: ='CV Rotina <2A - procedência'!AB60 -> 0.7619047619 | N59: 1 | O59: 3 | P59: 4 | Q59: 2
A60: Sul | B60: Presidente Kennedy | C60: ='CV Rotina <2A - procedência'!H61 -> 0.1095890411 | D60: ='CV Rotina <2A - procedência'!P61 -> 0.5616438356 | E60: ='CV Rotina <2A - procedência'!V61 -> 0 | F60: ='CV Rotina <2A - procedência'!J61 -> 0.8219178082 | G60: ='CV Rotina <2A - procedência'!L61 -> 0.8630136986 | H60: ='CV Rotina <2A - procedência'!N61 -> 0.5753424658 | I60: ='CV Rotina <2A - procedência'!Z61 -> 1.123287671 | J60: ='CV Rotina <2A - procedência'!R61 -> 0.698630137 | K60: ='CV Rotina <2A - procedência'!T61 -> 0.698630137 | L60: ='CV Rotina <2A - procedência'!X61 -> 0.6438356164 | M60: ='CV Rotina <2A - procedência'!AB61 -> 0.4657534247 | N60: 0 | O60: 1 | P60: 1 | Q60: 1
A61: Central | B61: Rio Bananal | C61: ='CV Rotina <2A - procedência'!H62 -> 0.2121212121 | D61: ='CV Rotina <2A - procedência'!P62 -> 0.9595959596 | E61: ='CV Rotina <2A - procedência'!V62 -> 0.05050505051 | F61: ='CV Rotina <2A - procedência'!J62 -> 0.9898989899 | G61: ='CV Rotina <2A - procedência'!L62 -> 0.9898989899 | H61: ='CV Rotina <2A - procedência'!N62 -> 0.9090909091 | I61: ='CV Rotina <2A - procedência'!Z62 -> 1.060606061 | J61: ='CV Rotina <2A - procedência'!R62 -> 0.8383838384 | K61: ='CV Rotina <2A - procedência'!T62 -> 1.050505051 | L61: ='CV Rotina <2A - procedência'!X62 -> 0.7373737374 | M61: ='CV Rotina <2A - procedência'!AB62 -> 0.7373737374 | N61: 1 | O61: 4 | P61: 5 | Q61: 3
A62: Sul | B62: Rio Novo do Sul | C62: ='CV Rotina <2A - procedência'!H63 -> 0.3714285714 | D62: ='CV Rotina <2A - procedência'!P63 -> 1.085714286 | E62: ='CV Rotina <2A - procedência'!V63 -> 0 | F62: ='CV Rotina <2A - procedência'!J63 -> 1.4 | G62: ='CV Rotina <2A - procedência'!L63 -> 1.4 | H62: ='CV Rotina <2A - procedência'!N63 -> 1.057142857 | I62: ='CV Rotina <2A - procedência'!Z63 -> 1.114285714 | J62: ='CV Rotina <2A - procedência'!R63 -> 1.228571429 | K62: ='CV Rotina <2A - procedência'!T63 -> 0.9428571429 | L62: ='CV Rotina <2A - procedência'!X63 -> 0.7428571429 | M62: ='CV Rotina <2A - procedência'!AB63 -> 1 | N62: 1 | O62: 6 | P62: 7 | Q62: 4
A63: Metropolitana | B63: Santa Leopoldina | C63: ='CV Rotina <2A - procedência'!H64 -> 0.15625 | D63: ='CV Rotina <2A - procedência'!P64 -> 1.1875 | E63: ='CV Rotina <2A - procedência'!V64 -> 0 | F63: ='CV Rotina <2A - procedência'!J64 -> 1.03125 | G63: ='CV Rotina <2A - procedência'!L64 -> 1.03125 | H63: ='CV Rotina <2A - procedência'!N64 -> 1.15625 | I63: ='CV Rotina <2A - procedência'!Z64 -> 1.3125 | J63: ='CV Rotina <2A - procedência'!R64 -> 1.21875 | K63: ='CV Rotina <2A - procedência'!T64 -> 1.15625 | L63: ='CV Rotina <2A - procedência'!X64 -> 0.9375 | M63: ='CV Rotina <2A - procedência'!AB64 -> 0.40625 | N63: 1 | O63: 6 | P63: 7 | Q63: 4
A64: Metropolitana | B64: Santa Maria de Jetibá | C64: ='CV Rotina <2A - procedência'!H65 -> 0.7307692308 | D64: ='CV Rotina <2A - procedência'!P65 -> 0.8632478632 | E64: ='CV Rotina <2A - procedência'!V65 -> 0.008547008547 | F64: ='CV Rotina <2A - procedência'!J65 -> 0.7905982906 | G64: ='CV Rotina <2A - procedência'!L65 -> 0.7905982906 | H64: ='CV Rotina <2A - procedência'!N65 -> 0.8418803419 | I64: ='CV Rotina <2A - procedência'!Z65 -> 0.9914529915 | J64: ='CV Rotina <2A - procedência'!R65 -> 0.8162393162 | K64: ='CV Rotina <2A - procedência'!T65 -> 0.7735042735 | L64: ='CV Rotina <2A - procedência'!X65 -> 0.8931623932 | M64: ='CV Rotina <2A - procedência'!AB65 -> 0.5299145299 | N64: 0 | O64: 1 | P64: 1 | Q64: 1
A65: Metropolitana | B65: Santa Teresa | C65: ='CV Rotina <2A - procedência'!H66 -> 0.8735632184 | D65: ='CV Rotina <2A - procedência'!P66 -> 0.9770114943 | E65: ='CV Rotina <2A - procedência'!V66 -> 0 | F65: ='CV Rotina <2A - procedência'!J66 -> 1.195402299 | G65: ='CV Rotina <2A - procedência'!L66 -> 1.195402299 | H65: ='CV Rotina <2A - procedência'!N66 -> 1.011494253 | I65: ='CV Rotina <2A - procedência'!Z66 -> 0.9655172414 | J65: ='CV Rotina <2A - procedência'!R66 -> 0.9540229885 | K65: ='CV Rotina <2A - procedência'!T66 -> 0.8850574713 | L65: ='CV Rotina <2A - procedência'!X66 -> 0.7701149425 | M65: ='CV Rotina <2A - procedência'!AB66 -> 0.7471264368 | N65: 1 | O65: 5 | P65: 6 | Q65: 4
A66: Central | B66: São Domingos do Norte | C66: ='CV Rotina <2A - procedência'!H67 -> 0.4090909091 | D66: ='CV Rotina <2A - procedência'!P67 -> 0.8863636364 | E66: ='CV Rotina <2A - procedência'!V67 -> 0 | F66: ='CV Rotina <2A - procedência'!J67 -> 0.8181818182 | G66: ='CV Rotina <2A - procedência'!L67 -> 0.8181818182 | H66: ='CV Rotina <2A - procedência'!N67 -> 0.8863636364 | I66: ='CV Rotina <2A - procedência'!Z67 -> 0.5 | J66: ='CV Rotina <2A - procedência'!R67 -> 0.75 | K66: ='CV Rotina <2A - procedência'!T67 -> 0.9772727273 | L66: ='CV Rotina <2A - procedência'!X67 -> 0.3863636364 | M66: ='CV Rotina <2A - procedência'!AB67 -> 0.4772727273 | N66: 0 | O66: =COUNTIFS(F66:M66,">=0,95") -> 1 | P66: 1 | Q66: 0
A67: Central | B67: São Gabriel da Palha | C67: ='CV Rotina <2A - procedência'!H68 -> 0.6136363636 | D67: ='CV Rotina <2A - procedência'!P68 -> 1.022727273 | E67: ='CV Rotina <2A - procedência'!V68 -> 0.007575757576 | F67: ='CV Rotina <2A - procedência'!J68 -> 1.037878788 | G67: ='CV Rotina <2A - procedência'!L68 -> 1.053030303 | H67: ='CV Rotina <2A - procedência'!N68 -> 1.075757576 | I67: ='CV Rotina <2A - procedência'!Z68 -> 0.9848484848 | J67: ='CV Rotina <2A - procedência'!R68 -> 0.9772727273 | K67: ='CV Rotina <2A - procedência'!T68 -> 0.9242424242 | L67: ='CV Rotina <2A - procedência'!X68 -> 0.5681818182 | M67: ='CV Rotina <2A - procedência'!AB68 -> 0.6363636364 | N67: =COUNTIF(C67:E67,">=0,9") -> 1 | O67: 5 | P67: =SUM(N67:O67) -> 6 | Q67: =COUNTIF(F67:I67,">=0,95") -> 4
A68: Sul | B68: São José do Calçado | C68: ='CV Rotina <2A - procedência'!H69 -> 0.7435897436 | D68: ='CV Rotina <2A - procedência'!P69 -> 0.8205128205 | E68: ='CV Rotina <2A - procedência'!V69 -> 0 | F68: ='CV Rotina <2A - procedência'!J69 -> 1.358974359 | G68: ='CV Rotina <2A - procedência'!L69 -> 1.333333333 | H68: ='CV Rotina <2A - procedência'!N69 -> 0.8974358974 | I68: ='CV Rotina <2A - procedência'!Z69 -> 1.179487179 | J68: ='CV Rotina <2A - procedência'!R69 -> 1.102564103 | K68: ='CV Rotina <2A - procedência'!T69 -> 0.7948717949 | L68: ='CV Rotina <2A - procedência'!X69 -> 0.8205128205 | M68: ='CV Rotina <2A - procedência'!AB69 -> 0.6923076923 | N68: 0 | O68: 4 | P68: 4 | Q68: 3
A69: Norte | B69: São Mateus | C69: ='CV Rotina <2A - procedência'!H70 -> 1.352307692 | D69: ='CV Rotina <2A - procedência'!P70 -> 0.8138461538 | E69: ='CV Rotina <2A - procedência'!V70 -> 0.004615384615 | F69: ='CV Rotina <2A - procedência'!J70 -> 0.9353846154 | G69: ='CV Rotina <2A - procedência'!L70 -> 0.9138461538 | H69: ='CV Rotina <2A - procedência'!N70 -> 0.8692307692 | I69: ='CV Rotina <2A - procedência'!Z70 -> 0.7815384615 | J69: ='CV Rotina <2A - procedência'!R70 -> 0.7676923077 | K69: ='CV Rotina <2A - procedência'!T70 -> 0.6769230769 | L69: ='CV Rotina <2A - procedência'!X70 -> 0.6292307692 | M69: ='CV Rotina <2A - procedência'!AB70 -> 0.4492307692 | N69: 1 | O69: 0 | P69: 1 | Q69: 0
A70: Central | B70: São Roque do Canaã | C70: ='CV Rotina <2A - procedência'!H71 -> 0.4 | D70: ='CV Rotina <2A - procedência'!P71 -> 0.56 | E70: ='CV Rotina <2A - procedência'!V71 -> 0.02 | F70: ='CV Rotina <2A - procedência'!J71 -> 0.66 | G70: ='CV Rotina <2A - procedência'!L71 -> 0.64 | H70: ='CV Rotina <2A - procedência'!N71 -> 0.5 | I70: ='CV Rotina <2A - procedência'!Z71 -> 0.9 | J70: ='CV Rotina <2A - procedência'!R71 -> 0.6 | K70: ='CV Rotina <2A - procedência'!T71 -> 0.86 | L70: ='CV Rotina <2A - procedência'!X71 -> 0.46 | M70: ='CV Rotina <2A - procedência'!AB71 -> 0.56 | N70: 0 | O70: 0 | P70: 0 | Q70: 0
A71: Metropolitana | B71: Serra | C71: ='CV Rotina <2A - procedência'!H72 -> 1.095347063 | D71: ='CV Rotina <2A - procedência'!P72 -> 0.7616323417 | E71: ='CV Rotina <2A - procedência'!V72 -> 0.008771929825 | F71: ='CV Rotina <2A - procedência'!J72 -> 0.7978642258 | G71: ='CV Rotina <2A - procedência'!L72 -> 0.7993897788 | H71: ='CV Rotina <2A - procedência'!N72 -> 0.7772692601 | I71: ='CV Rotina <2A - procedência'!Z72 -> 0.7688787185 | J71: ='CV Rotina <2A - procedência'!R72 -> 0.768115942 | K71: ='CV Rotina <2A - procedência'!T72 -> 0.6700991609 | L71: ='CV Rotina <2A - procedência'!X72 -> 0.3970251716 | M71: ='CV Rotina <2A - procedência'!AB72 -> 0.3146453089 | N71: 1 | O71: 0 | P71: 1 | Q71: 0
A72: Central | B72: Sooretama | C72: ='CV Rotina <2A - procedência'!H73 -> 0.04 | D72: ='CV Rotina <2A - procedência'!P73 -> 0.7666666667 | E72: ='CV Rotina <2A - procedência'!V73 -> 0 | F72: ='CV Rotina <2A - procedência'!J73 -> 0.92 | G72: ='CV Rotina <2A - procedência'!L73 -> 0.92 | H72: ='CV Rotina <2A - procedência'!N73 -> 0.78 | I72: ='CV Rotina <2A - procedência'!Z73 -> 0.8466666667 | J72: ='CV Rotina <2A - procedência'!R73 -> 0.74 | K72: ='CV Rotina <2A - procedência'!T73 -> 0.8333333333 | L72: ='CV Rotina <2A - procedência'!X73 -> 0.7933333333 | M72: ='CV Rotina <2A - procedência'!AB73 -> 0.46 | N72: 0 | O72: 0 | P72: 0 | Q72: 0
A73: Sul | B73: Vargem Alta | C73: ='CV Rotina <2A - procedência'!H74 -> 0.08988764045 | D73: ='CV Rotina <2A - procedência'!P74 -> 0.9101123596 | E73: ='CV Rotina <2A - procedência'!V74 -> 0.01123595506 | F73: ='CV Rotina <2A - procedência'!J74 -> 0.808988764 | G73: ='CV Rotina <2A - procedência'!L74 -> 0.808988764 | H73: ='CV Rotina <2A - procedência'!N74 -> 0.8876404494 | I73: ='CV Rotina <2A - procedência'!Z74 -> 1.056179775 | J73: ='CV Rotina <2A - procedência'!R74 -> 0.9213483146 | K73: ='CV Rotina <2A - procedência'!T74 -> 0.8876404494 | L73: ='CV Rotina <2A - procedência'!X74 -> 0.808988764 | M73: ='CV Rotina <2A - procedência'!AB74 -> 0.5730337079 | N73: 1 | O73: 1 | P73: 2 | Q73: 1
A74: Metropolitana | B74: Venda Nova do Imigrante | C74: ='CV Rotina <2A - procedência'!H75 -> 1 | D74: ='CV Rotina <2A - procedência'!P75 -> 0.8769230769 | E74: ='CV Rotina <2A - procedência'!V75 -> 0.02307692308 | F74: ='CV Rotina <2A - procedência'!J75 -> 1.038461538 | G74: ='CV Rotina <2A - procedência'!L75 -> 1.038461538 | H74: ='CV Rotina <2A - procedência'!N75 -> 0.8923076923 | I74: ='CV Rotina <2A - procedência'!Z75 -> 1.069230769 | J74: ='CV Rotina <2A - procedência'!R75 -> 0.9538461538 | K74: ='CV Rotina <2A - procedência'!T75 -> 0.9846153846 | L74: ='CV Rotina <2A - procedência'!X75 -> 0.5769230769 | M74: ='CV Rotina <2A - procedência'!AB75 -> 0.4846153846 | N74: 1 | O74: 5 | P74: 6 | Q74: 3
A75: Metropolitana | B75: Viana | C75: ='CV Rotina <2A - procedência'!H76 -> 0.1888888889 | D75: ='CV Rotina <2A - procedência'!P76 -> 0.7333333333 | E75: ='CV Rotina <2A - procedência'!V76 -> 0.008333333333 | F75: ='CV Rotina <2A - procedência'!J76 -> 0.85 | G75: ='CV Rotina <2A - procedência'!L76 -> 0.8166666667 | H75: ='CV Rotina <2A - procedência'!N76 -> 0.7777777778 | I75: ='CV Rotina <2A - procedência'!Z76 -> 0.8361111111 | J75: ='CV Rotina <2A - procedência'!R76 -> 0.8333333333 | K75: ='CV Rotina <2A - procedência'!T76 -> 0.6111111111 | L75: ='CV Rotina <2A - procedência'!X76 -> 0.5638888889 | M75: ='CV Rotina <2A - procedência'!AB76 -> 0.3527777778 | N75: 0 | O75: 0 | P75: 0 | Q75: 0
A76: Norte | B76: Vila Pavão | C76: ='CV Rotina <2A - procedência'!H77 -> 0.4411764706 | D76: ='CV Rotina <2A - procedência'!P77 -> 0.8529411765 | E76: ='CV Rotina <2A - procedência'!V77 -> 0 | F76: ='CV Rotina <2A - procedência'!J77 -> 0.9705882353 | G76: ='CV Rotina <2A - procedência'!L77 -> 0.9411764706 | H76: ='CV Rotina <2A - procedência'!N77 -> 0.8529411765 | I76: ='CV Rotina <2A - procedência'!Z77 -> 1.5 | J76: ='CV Rotina <2A - procedência'!R77 -> 0.7941176471 | K76: ='CV Rotina <2A - procedência'!T77 -> 1.235294118 | L76: ='CV Rotina <2A - procedência'!X77 -> 0.8823529412 | M76: ='CV Rotina <2A - procedência'!AB77 -> 0.8529411765 | N76: 0 | O76: 3 | P76: 3 | Q76: 2
A77: Central | B77: Vila Valério | C77: ='CV Rotina <2A - procedência'!H78 -> 0.3037974684 | D77: ='CV Rotina <2A - procedência'!P78 -> 0.835443038 | E77: ='CV Rotina <2A - procedência'!V78 -> 0 | F77: ='CV Rotina <2A - procedência'!J78 -> 0.746835443 | G77: ='CV Rotina <2A - procedência'!L78 -> 0.746835443 | H77: ='CV Rotina <2A - procedência'!N78 -> 0.7594936709 | I77: ='CV Rotina <2A - procedência'!Z78 -> 0.6835443038 | J77: ='CV Rotina <2A - procedência'!R78 -> 0.9113924051 | K77: ='CV Rotina <2A - procedência'!T78 -> 0.835443038 | L77: ='CV Rotina <2A - procedência'!X78 -> 0.5949367089 | M77: ='CV Rotina <2A - procedência'!AB78 -> 0.6075949367 | N77: 0 | O77: 0 | P77: 0 | Q77: 0
A78: Metropolitana | B78: Vila Velha | C78: ='CV Rotina <2A - procedência'!H79 -> 0.7476828012 | D78: ='CV Rotina <2A - procedência'!P79 -> 0.8043254377 | E78: ='CV Rotina <2A - procedência'!V79 -> 0.01699279094 | F78: ='CV Rotina <2A - procedência'!J79 -> 0.7924819773 | G78: ='CV Rotina <2A - procedência'!L79 -> 0.7888774459 | H78: ='CV Rotina <2A - procedência'!N79 -> 0.7914521112 | I78: ='CV Rotina <2A - procedência'!Z79 -> 0.8264675592 | J78: ='CV Rotina <2A - procedência'!R79 -> 0.7919670443 | K78: ='CV Rotina <2A - procedência'!T79 -> 0.675592173 | L78: ='CV Rotina <2A - procedência'!X79 -> 0.4243048404 | M78: ='CV Rotina <2A - procedência'!AB79 -> 0.4006179197 | N78: 0 | O78: 0 | P78: 0 | Q78: 0
A79: Metropolitana | B79: Vitória | C79: ='CV Rotina <2A - procedência'!H80 -> 1.893267652 | D79: ='CV Rotina <2A - procedência'!P80 -> 0.9162561576 | E79: ='CV Rotina <2A - procedência'!V80 -> 0.03612479475 | F79: ='CV Rotina <2A - procedência'!J80 -> 1.054187192 | G79: ='CV Rotina <2A - procedência'!L80 -> 1.05500821 | H79: ='CV Rotina <2A - procedência'!N80 -> 0.8776683087 | I79: ='CV Rotina <2A - procedência'!Z80 -> 0.9302134647 | J79: ='CV Rotina <2A - procedência'!R80 -> 0.9761904762 | K79: ='CV Rotina <2A - procedência'!T80 -> 0.749589491 | L79: ='CV Rotina <2A - procedência'!X80 -> 0.9622331691 | M79: ='CV Rotina <2A - procedência'!AB80 -> 0.4934318555 | N79: 2 | O79: 4 | P79: 6 | Q79: 2
B81: Total Norte | C81: ='CV Rotina <2A - procedência'!H82 -> 0.7296601442 | D81: ='CV Rotina <2A - procedência'!P82 -> 0.86869207 | E81: ='CV Rotina <2A - procedência'!V82 -> 0.00411946447 | F81: ='CV Rotina <2A - procedência'!J82 -> 0.9526261586 | G81: ='CV Rotina <2A - procedência'!L82 -> 0.9552008239 | H81: ='CV Rotina <2A - procedência'!N82 -> 0.8985581874 | I81: ='CV Rotina <2A - procedência'!Z82 -> 0.9531410917 | J81: ='CV Rotina <2A - procedência'!R82 -> 0.8553038105 | K81: ='CV Rotina <2A - procedência'!T82 -> 0.8692070031 | L81: ='CV Rotina <2A - procedência'!X82 -> 0.6797116375 | M81: ='CV Rotina <2A - procedência'!AB82 -> 0.596807415 | N81: =COUNTIF(C81:E81,">=0,9") -> 0 | O81: =COUNTIFS(F81:M81,">=0,95") -> 3 | P81: =SUM(N81:O81) -> 3 | Q81: =COUNTIF(F81:I81,">=0,95") -> 3
B82: Total Central | C82: ='CV Rotina <2A - procedência'!H83 -> 1.098065084 | D82: ='CV Rotina <2A - procedência'!P83 -> 0.8957783641 | E82: ='CV Rotina <2A - procedência'!V83 -> 0.006156552331 | F82: ='CV Rotina <2A - procedência'!J83 -> 0.9489885664 | G82: ='CV Rotina <2A - procedência'!L83 -> 0.9415127529 | H82: ='CV Rotina <2A - procedência'!N83 -> 0.8874230431 | I82: ='CV Rotina <2A - procedência'!Z83 -> 0.926121372 | J82: ='CV Rotina <2A - procedência'!R83 -> 0.8847845207 | K82: ='CV Rotina <2A - procedência'!T83 -> 0.8399296394 | L82: ='CV Rotina <2A - procedência'!X83 -> 0.5945470536 | M82: ='CV Rotina <2A - procedência'!AB83 -> 0.5927880387 | N82: =COUNTIF(C82:E82,">=0,9") -> 1 | O82: =COUNTIFS(F82:M82,">=0,95") -> 0 | P82: =SUM(N82:O82) -> 1 | Q82: =COUNTIF(F82:I82,">=0,95") -> 0
B83: Total Metropolitana | C83: ='CV Rotina <2A - procedência'!H84 -> 0.9127771295 | D83: ='CV Rotina <2A - procedência'!P84 -> 0.826915597 | E83: ='CV Rotina <2A - procedência'!V84 -> 0.01760015558 | F83: ='CV Rotina <2A - procedência'!J84 -> 0.8649358226 | G83: ='CV Rotina <2A - procedência'!L84 -> 0.8592959938 | H83: ='CV Rotina <2A - procedência'!N84 -> 0.8353753403 | I83: ='CV Rotina <2A - procedência'!Z84 -> 0.8734928044 | J83: ='CV Rotina <2A - procedência'!R84 -> 0.8446129911 | K83: ='CV Rotina <2A - procedência'!T84 -> 0.7233566706 | L83: ='CV Rotina <2A - procedência'!X84 -> 0.5745818748 | M83: ='CV Rotina <2A - procedência'!AB84 -> 0.4486581097 | N83: 1 | O83: =COUNTIFS(F83:M83,">=0,95") -> 0 | P83: =SUM(N83:O83) -> 1 | Q83: =COUNTIF(F83:I83,">=0,95") -> 0
B84: Total Sul | C84: ='CV Rotina <2A - procedência'!H85 -> 0.9890789953 | D84: ='CV Rotina <2A - procedência'!P85 -> 0.9381143065 | E84: ='CV Rotina <2A - procedência'!V85 -> 0.01092100473 | F84: ='CV Rotina <2A - procedência'!J85 -> 0.9879868948 | G84: ='CV Rotina <2A - procedência'!L85 -> 0.9828904259 | H84: ='CV Rotina <2A - procedência'!N85 -> 0.9635966509 | I84: ='CV Rotina <2A - procedência'!Z85 -> 1.049872588 | J84: ='CV Rotina <2A - procedência'!R85 -> 0.9515835457 | K84: ='CV Rotina <2A - procedência'!T85 -> 0.8001456134 | L84: ='CV Rotina <2A - procedência'!X85 -> 0.7495449581 | M84: ='CV Rotina <2A - procedência'!AB85 -> 0.530032763 | N84: 2 | O84: =COUNTIFS(F84:M84,">=0,95") -> 5 | P84: =SUM(N84:O84) -> 7 | Q84: =COUNTIF(F84:I84,">=0,95") -> 4
B85: Total Espírito Santo | C85: ='CV Rotina <2A - procedência'!H86 -> 0.9287412304 | D85: ='CV Rotina <2A - procedência'!P86 -> 0.8584101583 | E85: ='CV Rotina <2A - procedência'!V86 -> 0.01350959587 | F85: ='CV Rotina <2A - procedência'!J86 -> 0.90549081 | G85: ='CV Rotina <2A - procedência'!L86 -> 0.9006203978 | H85: ='CV Rotina <2A - procedência'!N86 -> 0.8697744535 | I85: ='CV Rotina <2A - procedência'!Z86 -> 0.9174928973 | J85: ='CV Rotina <2A - procedência'!R86 -> 0.8681509828 | K85: ='CV Rotina <2A - procedência'!T86 -> 0.7673798342 | L85: ='CV Rotina <2A - procedência'!X86 -> 0.6169188844 | M85: ='CV Rotina <2A - procedência'!AB86 -> 0.4973038789 | N85: 1 | O85: =COUNTIFS(F85:M85,">=0,95") -> 0 | P85: =SUM(N85:O85) -> 1 | Q85: =COUNTIF(F85:I85,">=0,95") -> 0
A88: Fonte: SIPNI/DATASUS, em 09 de junho de 2023.*
A89: Vacina e Confia, em 12 de junho de 2023.**
A90: *Dados referentes às doses aplicadas pelas clínicas particulares de janeiro a maio de 2023
A91: **Dados referente às doses aplicadas no período de janeiro a maio de 2023
A92: Cobertura Calculada por município de vacinação
A93: 1 População proporcional extraída do MS/SVS/DASIS - Sistema de Informações sobre Nascidos Vivos - SINASC
A94: 2000 a 2021 – Estimativas preliminares elaboradas pelo Ministério da Saúde/SVS/DASNT/CGIAE
A95: Nota: Dados preliminares 2021

Sheet cálculos2 (hidden)
A1: Regional | B1: Município | C1: Cobertura Vacinal BCG | D1: Cobertura Vacinal Rotavírus | E1: Cobertura Vacinal COVID-19 | F1: Cobertura Vacinal Pentavalente | G1: Cobertura Vacinal Poliomielite | H1: Cobertura Vacinal Pneumo 10 | I1: Cobertura Vacinal Tríplice Viral | J1: Cobertura Vacinal Meningo C | K1: Cobertura Vacinal Febre Amarela | L1: Cobertura Vacinal Hepatite A | M1: Cobertura Varicela | N1: META 90% | O1: META 95% | P1: ATINGIRAM META | Q1: PQA-VS
A2: Metropolitana | B2: Afonso Cláudio | C2: ='CV Rotina <2A - residência'!H3 -> 0.8571428571 | D2: ='CV Rotina <2A - residência'!P3 -> 0.9523809524 | E2: ='CV Rotina <2A - residência'!V3 -> 0 | F2: ='CV Rotina <2A - residência'!J3 -> 1.063492063 | G2: ='CV Rotina <2A - residência'!L3 -> 1.063492063 | H2: ='CV Rotina <2A - residência'!N3 -> 0.9206349206 | I2: ='CV Rotina <2A - residência'!Z3 -> 1.198412698 | J2: ='CV Rotina <2A - residência'!R3 -> 1.007936508 | K2: ='CV Rotina <2A - residência'!T3 -> 0.9126984127 | L2: ='CV Rotina <2A - residência'!X3 -> 0.8571428571 | M2: ='CV Rotina <2A - residência'!AB3 -> 0.6031746032 | N2: =COUNTIF(C2:E2,">=0,9") -> 1 | O2: =COUNTIFS(F2:M2,">=0,95") -> 4 | P2: =SUM(N2:O2) -> 5 | Q2: =COUNTIF(F2:I2,">=0,95") -> 3
A3: Norte | B3: Água Doce do Norte | C3: ='CV Rotina <2A - residência'!H4 -> 1.163934426 | D3: ='CV Rotina <2A - residência'!P4 -> 0.8032786885 | E3: ='CV Rotina <2A - residência'!V4 -> 0 | F3: ='CV Rotina <2A - residência'!J4 -> 0.9016393443 | G3: ='CV Rotina <2A - residência'!L4 -> 0.9344262295 | H3: ='CV Rotina <2A - residência'!N4 -> 0.868852459 | I3: ='CV Rotina <2A - residência'!Z4 -> 0.7704918033 | J3: ='CV Rotina <2A - residência'!R4 -> 0.9344262295 | K3: ='CV Rotina <2A - residência'!T4 -> 0.8196721311 | L3: ='CV Rotina <2A - residência'!X4 -> 0.6885245902 | M3: ='CV Rotina <2A - residência'!AB4 -> 0.3606557377 | N3: =COUNTIF(C3:E3,">=0,9") -> 1 | O3: 0 | P3: =SUM(N3:O3) -> 1 | Q3: =COUNTIF(F3:I3,">=0,95") -> 0
A4: Central | B4: Águia Branca | C4: ='CV Rotina <2A - residência'!H5 -> 1.358974359 | D4: ='CV Rotina <2A - residência'!P5 -> 1.333333333 | E4: ='CV Rotina <2A - residência'!V5 -> 0 | F4: ='CV Rotina <2A - residência'!J5 -> 1.564102564 | G4: ='CV Rotina <2A - residência'!L5 -> 1.564102564 | H4: ='CV Rotina <2A - residência'!N5 -> 1.358974359 | I4: ='CV Rotina <2A - residência'!Z5 -> 0.9743589744 | J4: ='CV Rotina <2A - residência'!R5 -> 1.615384615 | K4: ='CV Rotina <2A - residência'!T5 -> 1.205128205 | L4: ='CV Rotina <2A - residência'!X5 -> 0.8974358974 | M4: ='CV Rotina <2A - residência'!AB5 -> 0.5641025641 | N4: 2 | O4: 6 | P4: 8 | Q4: 4
A5: Sul | B5: Alegre | C5: ='CV Rotina <2A - residência'!H6 -> 1.096774194 | D5: ='CV Rotina <2A - residência'!P6 -> 1.150537634 | E5: ='CV Rotina <2A - residência'!V6 -> 0.01075268817 | F5: ='CV Rotina <2A - residência'!J6 -> 1.086021505 | G5: ='CV Rotina <2A - residência'!L6 -> 1.150537634 | H5: ='CV Rotina <2A - residência'!N6 -> 1.182795699 | I5: ='CV Rotina <2A - residência'!Z6 -> 1.086021505 | J5: ='CV Rotina <2A - residência'!R6 -> 1.129032258 | K5: ='CV Rotina <2A - residência'!T6 -> 1.161290323 | L5: ='CV Rotina <2A - residência'!X6 -> 0.8602150538 | M5: ='CV Rotina <2A - residência'!AB6 -> 0.4731182796 | N5: 2 | O5: 6 | P5: 8 | Q5: 4
A6: Sul | B6: Alfredo Chaves | C6: ='CV Rotina <2A - residência'!H7 -> 0.7173913043 | D6: ='CV Rotina <2A - residência'!P7 -> 1.304347826 | E6: ='CV Rotina <2A - residência'!V7 -> 0 | F6: ='CV Rotina <2A - residência'!J7 -> 1.130434783 | G6: ='CV Rotina <2A - residência'!L7 -> 1.086956522 | H6: ='CV Rotina <2A - residência'!N7 -> 1.239130435 | I6: ='CV Rotina <2A - residência'!Z7 -> 1.065217391 | J6: ='CV Rotina <2A - residência'!R7 -> 1.326086957 | K6: ='CV Rotina <2A - residência'!T7 -> 1.043478261 | L6: ='CV Rotina <2A - residência'!X7 -> 0.8913043478 | M6: ='CV Rotina <2A - residência'!AB7 -> 0.7826086957 | N6: 1 | O6: 6 | P6: 7 | Q6: 4
A7: Central | B7: Alto Rio Novo | C7: ='CV Rotina <2A - residência'!H8 -> 1.047619048 | D7: ='CV Rotina <2A - residência'!P8 -> 1.523809524 | E7: ='CV Rotina <2A - residência'!V8 -> 0 | F7: ='CV Rotina <2A - residência'!J8 -> 1.571428571 | G7: ='CV Rotina <2A - residência'!L8 -> 1.523809524 | H7: ='CV Rotina <2A - residência'!N8 -> 1.476190476 | I7: ='CV Rotina <2A - residência'!Z8 -> 1.476190476 | J7: ='CV Rotina <2A - residência'!R8 -> 1.476190476 | K7: ='CV Rotina <2A - residência'!T8 -> 1.238095238 | L7: ='CV Rotina <2A - residência'!X8 -> 1.19047619 | M7: ='CV Rotina <2A - residência'!AB8 -> 0.7619047619 | N7: 2 | O7: 7 | P7: 9 | Q7: 4
A8: Sul | B8: Anchieta | C8: ='CV Rotina <2A - residência'!H9 -> 1.100917431 | D8: ='CV Rotina <2A - residência'!P9 -> 1.247706422 | E8: ='CV Rotina <2A - residência'!V9 -> 0.04587155963 | F8: ='CV Rotina <2A - residência'!J9 -> 1.229357798 | G8: ='CV Rotina <2A - residência'!L9 -> 1.247706422 | H8: ='CV Rotina <2A - residência'!N9 -> 1.247706422 | I8: ='CV Rotina <2A - residência'!Z9 -> 1.201834862 | J8: ='CV Rotina <2A - residência'!R9 -> 1.256880734 | K8: ='CV Rotina <2A - residência'!T9 -> 0.8532110092 | L8: ='CV Rotina <2A - residência'!X9 -> 0.9633027523 | M8: ='CV Rotina <2A - residência'!AB9 -> 0.7155963303 | N8: 2 | O8: 6 | P8: 8 | Q8: 4
A9: Sul | B9: Apiacá | C9: ='CV Rotina <2A - residência'!H10 -> 1 | D9: ='CV Rotina <2A - residência'!P10 -> 1.05 | E9: ='CV Rotina <2A - residência'!V10 -> 0 | F9: ='CV Rotina <2A - residência'!J10 -> 0.85 | G9: ='CV Rotina <2A - residência'!L10 -> 0.85 | H9: ='CV Rotina <2A - residência'!N10 -> 1.1 | I9: ='CV Rotina <2A - residência'!Z10 -> 0.75 | J9: ='CV Rotina <2A - residência'!R10 -> 0.85 | K9: ='CV Rotina <2A - residência'!T10 -> 1 | L9: ='CV Rotina <2A - residência'!X10 -> 0.2 | M9: ='CV Rotina <2A - residência'!AB10 -> 0.2 | N9: 2 | O9: 2 | P9: 4 | Q9: 1
A10: Metropolitana | B10: Aracruz | C10: ='CV Rotina <2A - residência'!H11 -> 0.9795918367 | D10: ='CV Rotina <2A - residência'!P11 -> 0.9040816327 | E10: ='CV Rotina <2A - residência'!V11 -> 0.02448979592 | F10: ='CV Rotina <2A - residência'!J11 -> 0.8693877551 | G10: ='CV Rotina <2A - residência'!L11 -> 0.8734693878 | H10: ='CV Rotina <2A - residência'!N11 -> 0.906122449 | I10: ='CV Rotina <2A - residência'!Z11 -> 1.055102041 | J10: ='CV Rotina <2A - residência'!R11 -> 0.9040816327 | K10: ='CV Rotina <2A - residência'!T11 -> 0.8163265306 | L10: ='CV Rotina <2A - residência'!X11 -> 0.8775510204 | M10: ='CV Rotina <2A - residência'!AB11 -> 0.6816326531 | N10: 2 | O10: 1 | P10: 3 | Q10: 1
A11: Sul | B11: Atilio Vivacqua | C11: ='CV Rotina <2A - residência'!H12 -> 0.9047619048 | D11: ='CV Rotina <2A - residência'!P12 -> 0.9285714286 | E11: ='CV Rotina <2A - residência'!V12 -> 0 | F11: ='CV Rotina <2A - residência'!J12 -> 0.9047619048 | G11: ='CV Rotina <2A - residência'!L12 -> 0.880952381 | H11: ='CV Rotina <2A - residência'!N12 -> 0.9285714286 | I11: ='CV Rotina <2A - residência'!Z12 -> 1.023809524 | J11: ='CV Rotina <2A - residência'!R12 -> 1 | K11: ='CV Rotina <2A - residência'!T12 -> 0.7619047619 | L11: ='CV Rotina <2A - residência'!X12 -> 0.7142857143 | M11: ='CV Rotina <2A - residência'!AB12 -> 0.7380952381 | N11: 2 | O11: 2 | P11: 4 | Q11: 1
A12: Central | B12: Baixo Guandu | C12: ='CV Rotina <2A - residência'!H13 -> 1.238095238 | D12: ='CV Rotina <2A - residência'!P13 -> 1.247619048 | E12: ='CV Rotina <2A - residência'!V13 -> 0 | F12: ='CV Rotina <2A - residência'!J13 -> 1.342857143 | G12: ='CV Rotina <2A - residência'!L13 -> 1.352380952 | H12: ='CV Rotina <2A - residência'!N13 -> 1.266666667 | I12: ='CV Rotina <2A - residência'!Z13 -> 1.561904762 | J12: ='CV Rotina <2A - residência'!R13 -> 1.304761905 | K12: ='CV Rotina <2A - residência'!T13 -> 1.019047619 | L12: ='CV Rotina <2A - residência'!X13 -> 1.142857143 | M12: ='CV Rotina <2A - residência'!AB13 -> 0.9142857143 | N12: 2 | O12: 7 | P12: 9 | Q12: 4
A13: Norte | B13: Barra de São Francisco | C13: ='CV Rotina <2A - residência'!H14 -> 0.9457831325 | D13: ='CV Rotina <2A - residência'!P14 -> 1 | E13: ='CV Rotina <2A - residência'!V14 -> 0 | F13: ='CV Rotina <2A - residência'!J14 -> 0.9879518072 | G13: ='CV Rotina <2A - residência'!L14 -> 0.9578313253 | H13: ='CV Rotina <2A - residência'!N14 -> 1.036144578 | I13: ='CV Rotina <2A - residência'!Z14 -> 1.174698795 | J13: ='CV Rotina <2A - residência'!R14 -> 1.060240964 | K13: ='CV Rotina <2A - residência'!T14 -> 1.024096386 | L13: ='CV Rotina <2A - residência'!X14 -> 0.8614457831 | M13: ='CV Rotina <2A - residência'!AB14 -> 0.843373494 | N13: 2 | O13: 6 | P13: 8 | Q13: 4
A14: Norte | B14: Boa Esperança | C14: ='CV Rotina <2A - residência'!H15 -> 0.7916666667 | D14: ='CV Rotina <2A - residência'!P15 -> 0.9861111111 | E14: ='CV Rotina <2A - residência'!V15 -> 0.01388888889 | F14: ='CV Rotina <2A - residência'!J15 -> 0.7083333333 | G14: ='CV Rotina <2A - residência'!L15 -> 0.8472222222 | H14: ='CV Rotina <2A - residência'!N15 -> 0.9444444444 | I14: ='CV Rotina <2A - residência'!Z15 -> 1.013888889 | J14: ='CV Rotina <2A - residência'!R15 -> 0.8888888889 | K14: ='CV Rotina <2A - residência'!T15 -> 0.7916666667 | L14: ='CV Rotina <2A - residência'!X15 -> 0.6111111111 | M14: ='CV Rotina <2A - residência'!AB15 -> 0.6805555556 | N14: 1 | O14: 1 | P14: 2 | Q14: 1
A15: Sul | B15: Bom Jesus do Norte | C15: ='CV Rotina <2A - residência'!H16 -> 1.086956522 | D15: ='CV Rotina <2A - residência'!P16 -> 1.52173913 | E15: ='CV Rotina <2A - residência'!V16 -> 0.1739130435 | F15: ='CV Rotina <2A - residência'!J16 -> 2.043478261 | G15: ='CV Rotina <2A - residência'!L16 -> 1.956521739 | H15: ='CV Rotina <2A - residência'!N16 -> 1.565217391 | I15: ='CV Rotina <2A - residência'!Z16 -> 1.52173913 | J15: ='CV Rotina <2A - residência'!R16 -> 1.52173913 | K15: ='CV Rotina <2A - residência'!T16 -> 1.652173913 | L15: ='CV Rotina <2A - residência'!X16 -> 0.2173913043 | M15: ='CV Rotina <2A - residência'!AB16 -> 0.2173913043 | N15: 2 | O15: 6 | P15: 8 | Q15: 4
A16: Metropolitana | B16: Brejetuba | C16: ='CV Rotina <2A - residência'!H17 -> 1 | D16: ='CV Rotina <2A - residência'!P17 -> 0.8857142857 | E16: ='CV Rotina <2A - residência'!V17 -> 0 | F16: ='CV Rotina <2A - residência'!J17 -> 0.9571428571 | G16: ='CV Rotina <2A - residência'!L17 -> 0.9571428571 | H16: ='CV Rotina <2A - residência'!N17 -> 0.8571428571 | I16: ='CV Rotina <2A - residência'!Z17 -> 0.9428571429 | J16: ='CV Rotina <2A - residência'!R17 -> 0.8142857143 | K16: ='CV Rotina <2A - residência'!T17 -> 0.9857142857 | L16: ='CV Rotina <2A - residência'!X17 -> 0.8428571429 | M16: ='CV Rotina <2A - residência'!AB17 -> 0.5857142857 | N16: 1 | O16: 3 | P16: 4 | Q16: 2
A17: Sul | B17: Cachoeiro de Itapemirim | C17: ='CV Rotina <2A - residência'!H18 -> 1.10428737 | D17: ='CV Rotina <2A - residência'!P18 -> 0.7902665122 | E17: ='CV Rotina <2A - residência'!V18 -> 0.005793742758 | F17: ='CV Rotina <2A - residência'!J18 -> 0.8505214368 | G17: ='CV Rotina <2A - residência'!L18 -> 0.8354577057 | H17: ='CV Rotina <2A - residência'!N18 -> 0.8018539977 | I17: ='CV Rotina <2A - residência'!Z18 -> 0.9385863268 | J17: ='CV Rotina <2A - residência'!R18 -> 0.8006952491 | K17: ='CV Rotina <2A - residência'!T18 -> 0.6790266512 | L17: ='CV Rotina <2A - residência'!X18 -> 0.7114716107 | M17: ='CV Rotina <2A - residência'!AB18 -> 0.4310544612 | N17: 1 | O17: 0 | P17: 1 | Q17: 0
A18: Metropolitana | B18: Cariacica | C18: ='CV Rotina <2A - residência'!H19 -> 0.8689696248 | D18: ='CV Rotina <2A - residência'!P19 -> 0.839189994 | E18: ='CV Rotina <2A - residência'!V19 -> 0.01905896367 | F18: ='CV Rotina <2A - residência'!J19 -> 0.8969624777 | G18: ='CV Rotina <2A - residência'!L19 -> 0.8820726623 | H18: ='CV Rotina <2A - residência'!N19 -> 0.8790946992 | I18: ='CV Rotina <2A - residência'!Z19 -> 0.9070875521 | J18: ='CV Rotina <2A - residência'!R19 -> 0.8552709946 | K18: ='CV Rotina <2A - residência'!T19 -> 0.714115545 | L18: ='CV Rotina <2A - residência'!X19 -> 0.5080405003 | M18: ='CV Rotina <2A - residência'!AB19 -> 0.4550327576 | N18: 0 | O18: 0 | P18: 0 | Q18: 0
A19: Sul | B19: Castelo | C19: ='CV Rotina <2A - residência'!H20 -> 0.81875 | D19: ='CV Rotina <2A - residência'!P20 -> 0.825 | E19: ='CV Rotina <2A - residência'!V20 -> 0 | F19: ='CV Rotina <2A - residência'!J20 -> 0.875 | G19: ='CV Rotina <2A - residência'!L20 -> 0.88125 | H19: ='CV Rotina <2A - residência'!N20 -> 0.85625 | I19: ='CV Rotina <2A - residência'!Z20 -> 0.96875 | J19: ='CV Rotina <2A - residência'!R20 -> 0.8125 | K19: ='CV Rotina <2A - residência'!T20 -> 0.8375 | L19: ='CV Rotina <2A - residência'!X20 -> 0.4375 | M19: ='CV Rotina <2A - residência'!AB20 -> 0.525 | N19: 0 | O19: 1 | P19: 1 | Q19: 1
A20: Central | B20: Colatina | C20: ='CV Rotina <2A - residência'!H21 -> 1.064516129 | D20: ='CV Rotina <2A - residência'!P21 -> 0.8649193548 | E20: ='CV Rotina <2A - residência'!V21 -> 0.01008064516 | F20: ='CV Rotina <2A - residência'!J21 -> 0.9758064516 | G20: ='CV Rotina <2A - residência'!L21 -> 0.9495967742 | H20: ='CV Rotina <2A - residência'!N21 -> 0.8588709677 | I20: ='CV Rotina <2A - residência'!Z21 -> 0.9717741935 | J20: ='CV Rotina <2A - residência'!R21 -> 0.9112903226 | K20: ='CV Rotina <2A - residência'!T21 -> 0.8185483871 | L20: ='CV Rotina <2A - residência'!X21 -> 0.4435483871 | M20: ='CV Rotina <2A - residência'!AB21 -> 0.5725806452 | N20: 1 | O20: 2 | P20: 3 | Q20: 2
A21: Norte | B21: Conceição da Barra | C21: ='CV Rotina <2A - residência'!H22 -> 0.5 | D21: ='CV Rotina <2A - residência'!P22 -> 0.8529411765 | E21: ='CV Rotina <2A - residência'!V22 -> 0 | F21: ='CV Rotina <2A - residência'!J22 -> 0.7941176471 | G21: ='CV Rotina <2A - residência'!L22 -> 0.8088235294 | H21: ='CV Rotina <2A - residência'!N22 -> 0.9044117647 | I21: ='CV Rotina <2A - residência'!Z22 -> 0.9705882353 | J21: ='CV Rotina <2A - residência'!R22 -> 0.8308823529 | K21: ='CV Rotina <2A - residência'!T22 -> 0.9411764706 | L21: ='CV Rotina <2A - residência'!X22 -> 0.5882352941 | M21: ='CV Rotina <2A - residência'!AB22 -> 0.5735294118 | N21: 0 | O21: 1 | P21: 1 | Q21: 1
A22: Metropolitana | B22: Conceição do Castelo | C22: ='CV Rotina <2A - residência'!H23 -> 0.8 | D22: ='CV Rotina <2A - residência'!P23 -> 0.5666666667 | E22: ='CV Rotina <2A - residência'!V23 -> 0 | F22: ='CV Rotina <2A - residência'!J23 -> 0.7166666667 | G22: ='CV Rotina <2A - residência'!L23 -> 0.6833333333 | H22: ='CV Rotina <2A - residência'!N23 -> 0.5833333333 | I22: ='CV Rotina <2A - residência'!Z23 -> 0.7 | J22: ='CV Rotina <2A - residência'!R23 -> 0.6333333333 | K22: ='CV Rotina <2A - residência'!T23 -> 0.85 | L22: ='CV Rotina <2A - residência'!X23 -> 0.6166666667 | M22: ='CV Rotina <2A - residência'!AB23 -> 0.4666666667 | N22: 0 | O22: 0 | P22: 0 | Q22: 0
A23: Sul | B23: Divino de São Lourenço | C23: ='CV Rotina <2A - residência'!H24 -> 1.238095238 | D23: ='CV Rotina <2A - residência'!P24 -> 1.285714286 | E23: ='CV Rotina <2A - residência'!V24 -> 0 | F23: ='CV Rotina <2A - residência'!J24 -> 1.19047619 | G23: ='CV Rotina <2A - residência'!L24 -> 1.19047619 | H23: ='CV Rotina <2A - residência'!N24 -> 1.285714286 | I23: ='CV Rotina <2A - residência'!Z24 -> 0.619047619 | J23: ='CV Rotina <2A - residência'!R24 -> 1.238095238 | K23: ='CV Rotina <2A - residência'!T24 -> 0.9047619048 | L23: ='CV Rotina <2A - residência'!X24 -> 0.8095238095 | M23: ='CV Rotina <2A - residência'!AB24 -> 0.619047619 | N23: 2 | O23: 4 | P23: 6 | Q23: 3
A24: Metropolitana | B24: Domingos Martins | C24: ='CV Rotina <2A - residência'!H25 -> 0.9248120301 | D24: ='CV Rotina <2A - residência'!P25 -> 0.962406015 | E24: ='CV Rotina <2A - residência'!V25 -> 0.02255639098 | F24: ='CV Rotina <2A - residência'!J25 -> 0.8421052632 | G24: ='CV Rotina <2A - residência'!L25 -> 0.8345864662 | H24: ='CV Rotina <2A - residência'!N25 -> 0.992481203 | I24: ='CV Rotina <2A - residência'!Z25 -> 1.060150376 | J24: ='CV Rotina <2A - residência'!R25 -> 0.9398496241 | K24: ='CV Rotina <2A - residência'!T25 -> 0.9172932331 | L24: ='CV Rotina <2A - residência'!X25 -> 0.6315789474 | M24: ='CV Rotina <2A - residência'!AB25 -> 1.022556391 | N24: 2 | O24: 3 | P24: 5 | Q24: 2
A25: Sul | B25: Dores do Rio Preto | C25: ='CV Rotina <2A - residência'!H26 -> 0.5555555556 | D25: ='CV Rotina <2A - residência'!P26 -> 0.9444444444 | E25: ='CV Rotina <2A - residência'!V26 -> 0.02777777778 | F25: ='CV Rotina <2A - residência'!J26 -> 0.8888888889 | G25: ='CV Rotina <2A - residência'!L26 -> 0.9722222222 | H25: ='CV Rotina <2A - residência'!N26 -> 1 | I25: ='CV Rotina <2A - residência'!Z26 -> 0.9444444444 | J25: ='CV Rotina <2A - residência'!R26 -> 1 | K25: ='CV Rotina <2A - residência'!T26 -> 0.8333333333 | L25: ='CV Rotina <2A - residência'!X26 -> 0.4444444444 | M25: ='CV Rotina <2A - residência'!AB26 -> 0.3611111111 | N25: 1 | O25: 3 | P25: 4 | Q25: 2
A26: Norte | B26: Ecoporanga | C26: ='CV Rotina <2A - residência'!H27 -> 1.179775281 | D26: ='CV Rotina <2A - residência'!P27 -> 0.8202247191 | E26: ='CV Rotina <2A - residência'!V27 -> 0 | F26: ='CV Rotina <2A - residência'!J27 -> 1.056179775 | G26: ='CV Rotina <2A - residência'!L27 -> 1.033707865 | H26: ='CV Rotina <2A - residência'!N27 -> 0.8426966292 | I26: ='CV Rotina <2A - residência'!Z27 -> 0.9438202247 | J26: ='CV Rotina <2A - residência'!R27 -> 0.8314606742 | K26: ='CV Rotina <2A - residência'!T27 -> 0.8876404494 | L26: ='CV Rotina <2A - residência'!X27 -> 0.6966292135 | M26: ='CV Rotina <2A - residência'!AB27 -> 0.797752809 | N26: 1 | O26: 2 | P26: 3 | Q26: 2
A27: Metropolitana | B27: Fundão | C27: ='CV Rotina <2A - residência'!H28 -> 0.7777777778 | D27: ='CV Rotina <2A - residência'!P28 -> 0.8641975309 | E27: ='CV Rotina <2A - residência'!V28 -> 0.01234567901 | F27: ='CV Rotina <2A - residência'!J28 -> 1.024691358 | G27: ='CV Rotina <2A - residência'!L28 -> 1 | H27: ='CV Rotina <2A - residência'!N28 -> 0.8395061728 | I27: ='CV Rotina <2A - residência'!Z28 -> 0.8271604938 | J27: ='CV Rotina <2A - residência'!R28 -> 0.8888888889 | K27: ='CV Rotina <2A - residência'!T28 -> 0.8395061728 | L27: ='CV Rotina <2A - residência'!X28 -> 0.8024691358 | M27: ='CV Rotina <2A - residência'!AB28 -> 0.7283950617 | N27: 0 | O27: 2 | P27: 2 | Q27: 2
A28: Central | B28: Governador Lindenberg | C28: ='CV Rotina <2A - residência'!H29 -> 0.6923076923 | D28: ='CV Rotina <2A - residência'!P29 -> 0.8846153846 | E28: ='CV Rotina <2A - residência'!V29 -> 0.01923076923 | F28: ='CV Rotina <2A - residência'!J29 -> 0.8653846154 | G28: ='CV Rotina <2A - residência'!L29 -> 0.8269230769 | H28: ='CV Rotina <2A - residência'!N29 -> 0.8653846154 | I28: ='CV Rotina <2A - residência'!Z29 -> 0.6153846154 | J28: ='CV Rotina <2A - residência'!R29 -> 0.8461538462 | K28: ='CV Rotina <2A - residência'!T29 -> 0.9615384615 | L28: ='CV Rotina <2A - residência'!X29 -> 0.6346153846 | M28: ='CV Rotina <2A - residência'!AB29 -> 0.5961538462 | N28: 0 | O28: 1 | P28: 1 | Q28: 0
A29: Sul | B29: Guaçuí | C29: ='CV Rotina <2A - residência'!H30 -> 0.8702290076 | D29: ='CV Rotina <2A - residência'!P30 -> 0.9389312977 | E29: ='CV Rotina <2A - residência'!V30 -> 0 | F29: ='CV Rotina <2A - residência'!J30 -> 1.13740458 | G29: ='CV Rotina <2A - residência'!L30 -> 1.106870229 | H29: ='CV Rotina <2A - residência'!N30 -> 1.015267176 | I29: ='CV Rotina <2A - residência'!Z30 -> 1.099236641 | J29: ='CV Rotina <2A - residência'!R30 -> 1.038167939 | K29: ='CV Rotina <2A - residência'!T30 -> 0.8702290076 | L29: ='CV Rotina <2A - residência'!X30 -> 0.8549618321 | M29: ='CV Rotina <2A - residência'!AB30 -> 0.5877862595 | N29: 1 | O29: 5 | P29: 6 | Q29: 4
A30: Metropolitana | B30: Guarapari | C30: ='CV Rotina <2A - residência'!H31 -> 0.9342560554 | D30: ='CV Rotina <2A - residência'!P31 -> 0.8719723183 | E30: ='CV Rotina <2A - residência'!V31 -> 0.003460207612 | F30: ='CV Rotina <2A - residência'!J31 -> 0.8719723183 | G30: ='CV Rotina <2A - residência'!L31 -> 0.8425605536 | H30: ='CV Rotina <2A - residência'!N31 -> 0.8979238754 | I30: ='CV Rotina <2A - residência'!Z31 -> 0.8477508651 | J30: ='CV Rotina <2A - residência'!R31 -> 0.8771626298 | K30: ='CV Rotina <2A - residência'!T31 -> 0.660899654 | L30: ='CV Rotina <2A - residência'!X31 -> 0.660899654 | M30: ='CV Rotina <2A - residência'!AB31 -> 0.5415224913 | N30: 1 | O30: 0 | P30: 1 | Q30: 0
A31: Metropolitana | B31: Ibatiba | C31: ='CV Rotina <2A - residência'!H32 -> 1.133928571 | D31: ='CV Rotina <2A - residência'!P32 -> 0.9821428571 | E31: ='CV Rotina <2A - residência'!V32 -> 0.03571428571 | F31: ='CV Rotina <2A - residência'!J32 -> 1.142857143 | G31: ='CV Rotina <2A - residência'!L32 -> 1.133928571 | H31: ='CV Rotina <2A - residência'!N32 -> 1.0625 | I31: ='CV Rotina <2A - residência'!Z32 -> 0.9821428571 | J31: ='CV Rotina <2A - residência'!R32 -> 1.196428571 | K31: ='CV Rotina <2A - residência'!T32 -> 0.9285714286 | L31: ='CV Rotina <2A - residência'!X32 -> 0.7321428571 | M31: ='CV Rotina <2A - residência'!AB32 -> 0.2946428571 | N31: 2 | O31: 5 | P31: 7 | Q31: 4
A32: Metropolitana | B32: Ibiraçu | C32: ='CV Rotina <2A - residência'!H33 -> 0.7413793103 | D32: ='CV Rotina <2A - residência'!P33 -> 0.6379310345 | E32: ='CV Rotina <2A - residência'!V33 -> 0.05172413793 | F32: ='CV Rotina <2A - residência'!J33 -> 0.7413793103 | G32: ='CV Rotina <2A - residência'!L33 -> 0.7068965517 | H32: ='CV Rotina <2A - residência'!N33 -> 0.6724137931 | I32: ='CV Rotina <2A - residência'!Z33 -> 0.7068965517 | J32: ='CV Rotina <2A - residência'!R33 -> 0.7586206897 | K32: ='CV Rotina <2A - residência'!T33 -> 0.8103448276 | L32: ='CV Rotina <2A - residência'!X33 -> 0.4310344828 | M32: ='CV Rotina <2A - residência'!AB33 -> 0.3620689655 | N32: 0 | O32: 0 | P32: 0 | Q32: 0
A33: Sul | B33: Ibitirama | C33: ='CV Rotina <2A - residência'!H34 -> 1.108108108 | D33: ='CV Rotina <2A - residência'!P34 -> 1.081081081 | E33: ='CV Rotina <2A - residência'!V34 -> 0 | F33: ='CV Rotina <2A - residência'!J34 -> 1 | G33: ='CV Rotina <2A - residência'!L34 -> 1 | H33: ='CV Rotina <2A - residência'!N34 -> 1.027027027 | I33: ='CV Rotina <2A - residência'!Z34 -> 1.135135135 | J33: ='CV Rotina <2A - residência'!R34 -> 0.972972973 | K33: ='CV Rotina <2A - residência'!T34 -> 0.6216216216 | L33: ='CV Rotina <2A - residência'!X34 -> 0.7837837838 | M33: ='CV Rotina <2A - residência'!AB34 -> 0.7567567568 | N33: 2 | O33: 5 | P33: 7 | Q33: 4
A34: Sul | B34: Iconha | C34: ='CV Rotina <2A - residência'!H35 -> 0.7777777778 | D34: ='CV Rotina <2A - residência'!P35 -> 1.166666667 | E34: ='CV Rotina <2A - residência'!V35 -> 0.02777777778 | F34: ='CV Rotina <2A - residência'!J35 -> 1.083333333 | G34: ='CV Rotina <2A - residência'!L35 -> 1 | H34: ='CV Rotina <2A - residência'!N35 -> 1.166666667 | I34: ='CV Rotina <2A - residência'!Z35 -> 1.638888889 | J34: ='CV Rotina <2A - residência'!R35 -> 0.9166666667 | K34: ='CV Rotina <2A - residência'!T35 -> 1.166666667 | L34: ='CV Rotina <2A - residência'!X35 -> 0.7777777778 | M34: ='CV Rotina <2A - residência'!AB35 -> 0.4722222222 | N34: 1 | O34: 5 | P34: =SUM(N34:O34) -> 6 | Q34: 4
A35: Sul | B35: Irupi | C35: ='CV Rotina <2A - residência'!H36 -> 0.9322033898 | D35: ='CV Rotina <2A - residência'!P36 -> 1.220338983 | E35: ='CV Rotina <2A - residência'!V36 -> 0.08474576271 | F35: ='CV Rotina <2A - residência'!J36 -> 1.152542373 | G35: ='CV Rotina <2A - residência'!L36 -> 1.13559322 | H35: ='CV Rotina <2A - residência'!N36 -> 1.305084746 | I35: ='CV Rotina <2A - residência'!Z36 -> 1.593220339 | J35: ='CV Rotina <2A - residência'!R36 -> 1.322033898 | K35: ='CV Rotina <2A - residência'!T36 -> 0.9661016949 | L35: ='CV Rotina <2A - residência'!X36 -> 0.9830508475 | M35: ='CV Rotina <2A - residência'!AB36 -> 0.4406779661 | N35: 2 | O35: 7 | P35: 9 | Q35: 4
A36: Metropolitana | B36: Itaguaçu | C36: ='CV Rotina <2A - residência'!H37 -> 1.351351351 | D36: ='CV Rotina <2A - residência'!P37 -> 1.081081081 | E36: ='CV Rotina <2A - residência'!V37 -> 0 | F36: ='CV Rotina <2A - residência'!J37 -> 1.135135135 | G36: ='CV Rotina <2A - residência'!L37 -> 1.108108108 | H36: ='CV Rotina <2A - residência'!N37 -> 1.081081081 | I36: ='CV Rotina <2A - residência'!Z37 -> 1.297297297 | J36: ='CV Rotina <2A - residência'!R37 -> 1.216216216 | K36: ='CV Rotina <2A - residência'!T37 -> 1.135135135 | L36: ='CV Rotina <2A - residência'!X37 -> 1.27027027 | M36: ='CV Rotina <2A - residência'!AB37 -> 1.162162162 | N36: 2 | O36: 8 | P36: 10 | Q36: 4
A37: Sul | B37: Itapemirim | C37: ='CV Rotina <2A - residência'!H38 -> 0.9299363057 | D37: ='CV Rotina <2A - residência'!P38 -> 1.01910828 | E37: ='CV Rotina <2A - residência'!V38 -> 0 | F37: ='CV Rotina <2A - residência'!J38 -> 0.9808917197 | G37: ='CV Rotina <2A - residência'!L38 -> 0.974522293 | H37: ='CV Rotina <2A - residência'!N38 -> 1.140127389 | I37: ='CV Rotina <2A - residência'!Z38 -> 1.133757962 | J37: ='CV Rotina <2A - residência'!R38 -> 0.9872611465 | K37: ='CV Rotina <2A - residência'!T38 -> 0.6878980892 | L37: ='CV Rotina <2A - residência'!X38 -> 0.9872611465 | M37: ='CV Rotina <2A - residência'!AB38 -> 0.6369426752 | N37: 2 | O37: 6 | P37: 8 | Q37: 4
A38: Metropolitana | B38: Itarana | C38: ='CV Rotina <2A - residência'!H39 -> 1.098039216 | D38: ='CV Rotina <2A - residência'!P39 -> 0.7254901961 | E38: ='CV Rotina <2A - residência'!V39 -> 0 | F38: ='CV Rotina <2A - residência'!J39 -> 0.7843137255 | G38: ='CV Rotina <2A - residência'!L39 -> 0.8039215686 | H38: ='CV Rotina <2A - residência'!N39 -> 0.7254901961 | I38: ='CV Rotina <2A - residência'!Z39 -> 0.7843137255 | J38: ='CV Rotina <2A - residência'!R39 -> 0.6666666667 | K38: ='CV Rotina <2A - residência'!T39 -> 1.039215686 | L38: ='CV Rotina <2A - residência'!X39 -> 0.3725490196 | M38: ='CV Rotina <2A - residência'!AB39 -> 0.7058823529 | N38: 1 | O38: 1 | P38: 2 | Q38: 0
A39: Sul | B39: Iúna | C39: ='CV Rotina <2A - residência'!H40 -> 0.6818181818 | D39: ='CV Rotina <2A - residência'!P40 -> 1.038961039 | E39: ='CV Rotina <2A - residência'!V40 -> 0 | F39: ='CV Rotina <2A - residência'!J40 -> 1.032467532 | G39: ='CV Rotina <2A - residência'!L40 -> 1.006493506 | H39: ='CV Rotina <2A - residência'!N40 -> 1.051948052 | I39: ='CV Rotina <2A - residência'!Z40 -> 1.051948052 | J39: ='CV Rotina <2A - residência'!R40 -> 1.019480519 | K39: ='CV Rotina <2A - residência'!T40 -> 0.9220779221 | L39: ='CV Rotina <2A - residência'!X40 -> 0.5909090909 | M39: ='CV Rotina <2A - residência'!AB40 -> 0.525974026 | N39: 1 | O39: 5 | P39: 6 | Q39: 4
A40: Norte | B40: Jaguaré | C40: ='CV Rotina <2A - residência'!H41 -> 0.9285714286 | D40: ='CV Rotina <2A - residência'!P41 -> 0.9935064935 | E40: ='CV Rotina <2A - residência'!V41 -> 0.01948051948 | F40: ='CV Rotina <2A - residência'!J41 -> 1.019480519 | G40: ='CV Rotina <2A - residência'!L41 -> 1.077922078 | H40: ='CV Rotina <2A - residência'!N41 -> 1.019480519 | I40: ='CV Rotina <2A - residência'!Z41 -> 1.006493506 | J40: ='CV Rotina <2A - residência'!R41 -> 0.974025974 | K40: ='CV Rotina <2A - residência'!T41 -> 0.974025974 | L40: ='CV Rotina <2A - residência'!X41 -> 0.6818181818 | M40: ='CV Rotina <2A - residência'!AB41 -> 0.6103896104 | N40: 2 | O40: 6 | P40: 8 | Q40: 4
A41: Sul | B41: Jerônimo Monteiro | C41: ='CV Rotina <2A - residência'!H42 -> 1.040816327 | D41: ='CV Rotina <2A - residência'!P42 -> 1.102040816 | E41: ='CV Rotina <2A - residência'!V42 -> 0.04081632653 | F41: ='CV Rotina <2A - residência'!J42 -> 1.306122449 | G41: ='CV Rotina <2A - residência'!L42 -> 1.306122449 | H41: ='CV Rotina <2A - residência'!N42 -> 1.102040816 | I41: ='CV Rotina <2A - residência'!Z42 -> 0.9591836735 | J41: ='CV Rotina <2A - residência'!R42 -> 0.9591836735 | K41: ='CV Rotina <2A - residência'!T42 -> 1.020408163 | L41: ='CV Rotina <2A - residência'!X42 -> 0.5918367347 | M41: ='CV Rotina <2A - residência'!AB42 -> 0.3673469388 | N41: 2 | O41: 6 | P41: 8 | Q41: 4
A42: Metropolitana | B42: João Neiva | C42: ='CV Rotina <2A - residência'!H43 -> 0.7627118644 | D42: ='CV Rotina <2A - residência'!P43 -> 0.9830508475 | E42: ='CV Rotina <2A - residência'!V43 -> 0.01694915254 | F42: ='CV Rotina <2A - residência'!J43 -> 1 | G42: ='CV Rotina <2A - residência'!L43 -> 0.9661016949 | H42: ='CV Rotina <2A - residência'!N43 -> 1 | I42: ='CV Rotina <2A - residência'!Z43 -> 1.13559322 | J42: ='CV Rotina <2A - residência'!R43 -> 0.9322033898 | K42: ='CV Rotina <2A - residência'!T43 -> 0.9661016949 | L42: ='CV Rotina <2A - residência'!X43 -> 0.6440677966 | M42: ='CV Rotina <2A - residência'!AB43 -> 0.5084745763 | N42: 1 | O42: 5 | P42: 6 | Q42: 4
A43: Metropolitana | B43: Laranja da Terra | C43: ='CV Rotina <2A - residência'!H44 -> 0.7567567568 | D43: ='CV Rotina <2A - residência'!P44 -> 0.6216216216 | E43: ='CV Rotina <2A - residência'!V44 -> 0.1351351351 | F43: ='CV Rotina <2A - residência'!J44 -> 0.7837837838 | G43: ='CV Rotina <2A - residência'!L44 -> 0.7837837838 | H43: ='CV Rotina <2A - residência'!N44 -> 0.5945945946 | I43: ='CV Rotina <2A - residência'!Z44 -> 1.351351351 | J43: ='CV Rotina <2A - residência'!R44 -> 0.7297297297 | K43: ='CV Rotina <2A - residência'!T44 -> 1.081081081 | L43: ='CV Rotina <2A - residência'!X44 -> 0.7837837838 | M43: ='CV Rotina <2A - residência'!AB44 -> 0.7567567568 | N43: 0 | O43: 2 | P43: 2 | Q43: 1
A44: Central | B44: Linhares | C44: ='CV Rotina <2A - residência'!H45 -> 0.8505214368 | D44: ='CV Rotina <2A - residência'!P45 -> 0.8493626883 | E44: ='CV Rotina <2A - residência'!V45 -> 0.001158748552 | F44: ='CV Rotina <2A - residência'!J45 -> 0.8516801854 | G44: ='CV Rotina <2A - residência'!L45 -> 0.8482039397 | H44: ='CV Rotina <2A - residência'!N45 -> 0.8157589803 | I44: ='CV Rotina <2A - residência'!Z45 -> 0.865585168 | J44: ='CV Rotina <2A - residência'!R45 -> 0.7949015064 | K44: ='CV Rotina <2A - residência'!T45 -> 0.7624565469 | L44: ='CV Rotina <2A - residência'!X45 -> 0.5307068366 | M44: ='CV Rotina <2A - residência'!AB45 -> 0.5156431054 | N44: 0 | O44: 0 | P44: 0 | Q44: 0
A45: Central | B45: Mantenópolis | C45: ='CV Rotina <2A - residência'!H46 -> 1.078431373 | D45: ='CV Rotina <2A - residência'!P46 -> 0.7843137255 | E45: ='CV Rotina <2A - residência'!V46 -> 0 | F45: ='CV Rotina <2A - residência'!J46 -> 0.9607843137 | G45: ='CV Rotina <2A - residência'!L46 -> 1.039215686 | H45: ='CV Rotina <2A - residência'!N46 -> 0.8235294118 | I45: ='CV Rotina <2A - residência'!Z46 -> 1.058823529 | J45: ='CV Rotina <2A - residência'!R46 -> 0.7843137255 | K45: ='CV Rotina <2A - residência'!T46 -> 0.9411764706 | L45: ='CV Rotina <2A - residência'!X46 -> 0.8039215686 | M45: ='CV Rotina <2A - residência'!AB46 -> 0.6666666667 | N45: 1 | O45: 3 | P45: 4 | Q45: 3
A46: Sul | B46: Marataízes | C46: ='CV Rotina <2A - residência'!H47 -> 0.8640776699 | D46: ='CV Rotina <2A - residência'!P47 -> 0.8349514563 | E46: ='CV Rotina <2A - residência'!V47 -> 0 | F46: ='CV Rotina <2A - residência'!J47 -> 0.8300970874 | G46: ='CV Rotina <2A - residência'!L47 -> 0.8495145631 | H46: ='CV Rotina <2A - residência'!N47 -> 0.8495145631 | I46: ='CV Rotina <2A - residência'!Z47 -> 0.8737864078 | J46: ='CV Rotina <2A - residência'!R47 -> 0.8689320388 | K46: ='CV Rotina <2A - residência'!T47 -> 0.6019417476 | L46: ='CV Rotina <2A - residência'!X47 -> 0.7427184466 | M46: ='CV Rotina <2A - residência'!AB47 -> 0.4660194175 | N46: 0 | O46: 0 | P46: 0 | Q46: 0
A47: Metropolitana | B47: Marechal Floriano | C47: ='CV Rotina <2A - residência'!H48 -> 0.6704545455 | D47: ='CV Rotina <2A - residência'!P48 -> 0.8636363636 | E47: ='CV Rotina <2A - residência'!V48 -> 0.02272727273 | F47: ='CV Rotina <2A - residência'!J48 -> 0.6477272727 | G47: ='CV Rotina <2A - residência'!L48 -> 0.6590909091 | H47: ='CV Rotina <2A - residência'!N48 -> 0.875 | I47: ='CV Rotina <2A - residência'!Z48 -> 0.9090909091 | J47: ='CV Rotina <2A - residência'!R48 -> 0.8181818182 | K47: ='CV Rotina <2A - residência'!T48 -> 0.5681818182 | L47: ='CV Rotina <2A - residência'!X48 -> 0.625 | M47: ='CV Rotina <2A - residência'!AB48 -> 0.5340909091 | N47: 0 | O47: 0 | P47: 0 | Q47: 0
A48: Central | B48: Marilândia | C48: ='CV Rotina <2A - residência'!H49 -> 1.324324324 | D48: ='CV Rotina <2A - residência'!P49 -> 1.324324324 | E48: ='CV Rotina <2A - residência'!V49 -> 0 | F48: ='CV Rotina <2A - residência'!J49 -> 1.540540541 | G48: ='CV Rotina <2A - residência'!L49 -> 1.540540541 | H48: ='CV Rotina <2A - residência'!N49 -> 1.297297297 | I48: ='CV Rotina <2A - residência'!Z49 -> 1.378378378 | J48: ='CV Rotina <2A - residência'!R49 -> 1.594594595 | K48: ='CV Rotina <2A - residência'!T49 -> 1.27027027 | L48: ='CV Rotina <2A - residência'!X49 -> 1.135135135 | M48: ='CV Rotina <2A - residência'!AB49 -> 1.162162162 | N48: 2 | O48: 8 | P48: 10 | Q48: 4
A49: Sul | B49: Mimoso do Sul | C49: ='CV Rotina <2A - residência'!H50 -> 0.985915493 | D49: ='CV Rotina <2A - residência'!P50 -> 1.084507042 | E49: ='CV Rotina <2A - residência'!V50 -> 0 | F49: ='CV Rotina <2A - residência'!J50 -> 1.112676056 | G49: ='CV Rotina <2A - residência'!L50 -> 1.112676056 | H49: ='CV Rotina <2A - residência'!N50 -> 1.126760563 | I49: ='CV Rotina <2A - residência'!Z50 -> 1 | J49: ='CV Rotina <2A - residência'!R50 -> 1.098591549 | K49: ='CV Rotina <2A - residência'!T50 -> 0.8309859155 | L49: ='CV Rotina <2A - residência'!X50 -> 0.7605633803 | M49: ='CV Rotina <2A - residência'!AB50 -> 0.6197183099 | N49: 2 | O49: 5 | P49: 7 | Q49: 4
A50: Norte | B50: Montanha | C50: ='CV Rotina <2A - residência'!H51 -> 0.5974025974 | D50: ='CV Rotina <2A - residência'!P51 -> 1.064935065 | E50: ='CV Rotina <2A - residência'!V51 -> 0.01298701299 | F50: ='CV Rotina <2A - residência'!J51 -> 1.25974026 | G50: ='CV Rotina <2A - residência'!L51 -> 1.285714286 | H50: ='CV Rotina <2A - residência'!N51 -> 1.051948052 | I50: ='CV Rotina <2A - residência'!Z51 -> 1.090909091 | J50: ='CV Rotina <2A - residência'!R51 -> 1.064935065 | K50: ='CV Rotina <2A - residência'!T51 -> 1.038961039 | L50: ='CV Rotina <2A - residência'!X51 -> 1.025974026 | M50: ='CV Rotina <2A - residência'!AB51 -> 0.8311688312 | N50: 1 | O50: 7 | P50: 8 | Q50: 4
A51: Norte | B51: Mucurici | C51: ='CV Rotina <2A - residência'!H52 -> 0.6315789474 | D51: ='CV Rotina <2A - residência'!P52 -> 1.578947368 | E51: ='CV Rotina <2A - residência'!V52 -> 0 | F51: ='CV Rotina <2A - residência'!J52 -> 1.473684211 | G51: ='CV Rotina <2A - residência'!L52 -> 1.473684211 | H51: ='CV Rotina <2A - residência'!N52 -> 1.578947368 | I51: ='CV Rotina <2A - residência'!Z52 -> 1.631578947 | J51: ='CV Rotina <2A - residência'!R52 -> 1.263157895 | K51: ='CV Rotina <2A - residência'!T52 -> 1.684210526 | L51: ='CV Rotina <2A - residência'!X52 -> 0.8421052632 | M51: ='CV Rotina <2A - residência'!AB52 -> 0.7894736842 | N51: 1 | O51: 6 | P51: 7 | Q51: 4
A52: Sul | B52: Muniz Freire | C52: ='CV Rotina <2A - residência'!H53 -> 0.8888888889 | D52: ='CV Rotina <2A - residência'!P53 -> 1.027777778 | E52: ='CV Rotina <2A - residência'!V53 -> 0 | F52: ='CV Rotina <2A - residência'!J53 -> 1.152777778 | G52: ='CV Rotina <2A - residência'!L53 -> 1.083333333 | H52: ='CV Rotina <2A - residência'!N53 -> 1.069444444 | I52: ='CV Rotina <2A - residência'!Z53 -> 1.194444444 | J52: ='CV Rotina <2A - residência'!R53 -> 1.055555556 | K52: ='CV Rotina <2A - residência'!T53 -> 1.125 | L52: ='CV Rotina <2A - residência'!X53 -> 0.8611111111 | M52: ='CV Rotina <2A - residência'!AB53 -> 0.5416666667 | N52: 1 | O52: 6 | P52: 7 | Q52: 4
A53: Sul | B53: Muqui | C53: ='CV Rotina <2A - residência'!H54 -> 1 | D53: ='CV Rotina <2A - residência'!P54 -> 1 | E53: ='CV Rotina <2A - residência'!V54 -> 0.09302325581 | F53: ='CV Rotina <2A - residência'!J54 -> 1.465116279 | G53: ='CV Rotina <2A - residência'!L54 -> 1.488372093 | H53: ='CV Rotina <2A - residência'!N54 -> 1.046511628 | I53: ='CV Rotina <2A - residência'!Z54 -> 1.23255814 | J53: ='CV Rotina <2A - residência'!R54 -> 1.255813953 | K53: ='CV Rotina <2A - residência'!T54 -> 1.11627907 | L53: ='CV Rotina <2A - residência'!X54 -> 0.7441860465 | M53: ='CV Rotina <2A - residência'!AB54 -> 0.7441860465 | N53: 2 | O53: 6 | P53: 8 | Q53: 4
A54: Norte | B54: Nova Venécia | C54: ='CV Rotina <2A - residência'!H55 -> 0.8844444444 | D54: ='CV Rotina <2A - residência'!P55 -> 0.8444444444 | E54: ='CV Rotina <2A - residência'!V55 -> 0 | F54: ='CV Rotina <2A - residência'!J55 -> 1.08 | G54: ='CV Rotina <2A - residência'!L55 -> 1.084444444 | H54: ='CV Rotina <2A - residência'!N55 -> 0.88 | I54: ='CV Rotina <2A - residência'!Z55 -> 0.96 | J54: ='CV Rotina <2A - residência'!R55 -> 0.9422222222 | K54: ='CV Rotina <2A - residência'!T55 -> 0.9555555556 | L54: ='CV Rotina <2A - residência'!X55 -> 0.7333333333 | M54: ='CV Rotina <2A - residência'!AB55 -> 0.68 | N54: 0 | O54: 4 | P54: 4 | Q54: 3
A55: Central | B55: Pancas | C55: ='CV Rotina <2A - residência'!H56 -> 1.107142857 | D55: ='CV Rotina <2A - residência'!P56 -> 1.375 | E55: ='CV Rotina <2A - residência'!V56 -> 0.01785714286 | F55: ='CV Rotina <2A - residência'!J56 -> 1.517857143 | G55: ='CV Rotina <2A - residência'!L56 -> 1.5 | H55: ='CV Rotina <2A - residência'!N56 -> 1.428571429 | I55: ='CV Rotina <2A - residência'!Z56 -> 1.214285714 | J55: ='CV Rotina <2A - residência'!R56 -> 1.464285714 | K55: ='CV Rotina <2A - residência'!T56 -> 1.160714286 | L55: ='CV Rotina <2A - residência'!X56 -> 0.8928571429 | M55: ='CV Rotina <2A - residência'!AB56 -> 1.339285714 | N55: 2 | O55: 7 | P55: 9 | Q55: 4
A56: Norte | B56: Pedro Canário | C56: ='CV Rotina <2A - residência'!H57 -> 0.511627907 | D56: ='CV Rotina <2A - residência'!P57 -> 0.6511627907 | E56: ='CV Rotina <2A - residência'!V57 -> 0 | F56: ='CV Rotina <2A - residência'!J57 -> 0.8372093023 | G56: ='CV Rotina <2A - residência'!L57 -> 0.8449612403 | H56: ='CV Rotina <2A - residência'!N57 -> 0.6821705426 | I56: ='CV Rotina <2A - residência'!Z57 -> 1.031007752 | J56: ='CV Rotina <2A - residência'!R57 -> 0.6821705426 | K56: ='CV Rotina <2A - residência'!T57 -> 0.7984496124 | L56: ='CV Rotina <2A - residência'!X57 -> 0.511627907 | M56: ='CV Rotina <2A - residência'!AB57 -> 0.6434108527 | N56: 0 | O56: 1 | P56: 1 | Q56: 1
A57: Norte | B57: Pinheiros | C57: ='CV Rotina <2A - residência'!H58 -> 0.4311926606 | D57: ='CV Rotina <2A - residência'!P58 -> 0.8532110092 | E57: ='CV Rotina <2A - residência'!V58 -> 0 | F57: ='CV Rotina <2A - residência'!J58 -> 1 | G57: ='CV Rotina <2A - residência'!L58 -> 0.9908256881 | H57: ='CV Rotina <2A - residência'!N58 -> 0.8899082569 | I57: ='CV Rotina <2A - residência'!Z58 -> 0.9816513761 | J57: ='CV Rotina <2A - residência'!R58 -> 0.880733945 | K57: ='CV Rotina <2A - residência'!T58 -> 0.9266055046 | L57: ='CV Rotina <2A - residência'!X58 -> 0.6605504587 | M57: ='CV Rotina <2A - residência'!AB58 -> 0.4036697248 | N57: 0 | O57: 3 | P57: 3 | Q57: 3
A58: Sul | B58: Piúma | C58: ='CV Rotina <2A - residência'!H59 -> 1 | D58: ='CV Rotina <2A - residência'!P59 -> 1.048192771 | E58: ='CV Rotina <2A - residência'!V59 -> 0.02409638554 | F58: ='CV Rotina <2A - residência'!J59 -> 1.13253012 | G58: ='CV Rotina <2A - residência'!L59 -> 1.120481928 | H58: ='CV Rotina <2A - residência'!N59 -> 1.156626506 | I58: ='CV Rotina <2A - residência'!Z59 -> 1.289156627 | J58: ='CV Rotina <2A - residência'!R59 -> 0.9518072289 | K58: ='CV Rotina <2A - residência'!T59 -> 0.7710843373 | L58: ='CV Rotina <2A - residência'!X59 -> 0.9036144578 | M58: ='CV Rotina <2A - residência'!AB59 -> 0.6506024096 | N58: 2 | O58: 5 | P58: 7 | Q58: 4
A59: Norte | B59: Ponto Belo | C59: ='CV Rotina <2A - residência'!H60 -> 0.619047619 | D59: ='CV Rotina <2A - residência'!P60 -> 1.047619048 | E59: ='CV Rotina <2A - residência'!V60 -> 0 | F59: ='CV Rotina <2A - residência'!J60 -> 0.619047619 | G59: ='CV Rotina <2A - residência'!L60 -> 0.619047619 | H59: ='CV Rotina <2A - residência'!N60 -> 1.095238095 | I59: ='CV Rotina <2A - residência'!Z60 -> 1.047619048 | J59: ='CV Rotina <2A - residência'!R60 -> 0.7619047619 | K59: ='CV Rotina <2A - residência'!T60 -> 1.238095238 | L59: ='CV Rotina <2A - residência'!X60 -> 0.619047619 | M59: ='CV Rotina <2A - residência'!AB60 -> 0.7142857143 | N59: 1 | O59: 3 | P59: 4 | Q59: 2
A60: Sul | B60: Presidente Kennedy | C60: ='CV Rotina <2A - residência'!H61 -> 1.082191781 | D60: ='CV Rotina <2A - residência'!P61 -> 0.6164383562 | E60: ='CV Rotina <2A - residência'!V61 -> 0 | F60: ='CV Rotina <2A - residência'!J61 -> 0.8493150685 | G60: ='CV Rotina <2A - residência'!L61 -> 0.904109589 | H60: ='CV Rotina <2A - residência'!N61 -> 0.5890410959 | I60: ='CV Rotina <2A - residência'!Z61 -> 1.109589041 | J60: ='CV Rotina <2A - residência'!R61 -> 0.7260273973 | K60: ='CV Rotina <2A - residência'!T61 -> 0.698630137 | L60: ='CV Rotina <2A - residência'!X61 -> 0.7123287671 | M60: ='CV Rotina <2A - residência'!AB61 -> 0.5342465753 | N60: 1 | O60: 1 | P60: 2 | Q60: 1
A61: Central | B61: Rio Bananal | C61: ='CV Rotina <2A - residência'!H62 -> 0.8787878788 | D61: ='CV Rotina <2A - residência'!P62 -> 0.8686868687 | E61: ='CV Rotina <2A - residência'!V62 -> 0.05050505051 | F61: ='CV Rotina <2A - residência'!J62 -> 0.9090909091 | G61: ='CV Rotina <2A - residência'!L62 -> 0.9090909091 | H61: ='CV Rotina <2A - residência'!N62 -> 0.797979798 | I61: ='CV Rotina <2A - residência'!Z62 -> 0.9696969697 | J61: ='CV Rotina <2A - residência'!R62 -> 0.8080808081 | K61: ='CV Rotina <2A - residência'!T62 -> 1 | L61: ='CV Rotina <2A - residência'!X62 -> 0.7070707071 | M61: ='CV Rotina <2A - residência'!AB62 -> 0.6868686869 | N61: 0 | O61: 2 | P61: 2 | Q61: 1
A62: Sul | B62: Rio Novo do Sul | C62: ='CV Rotina <2A - residência'!H63 -> 0.8285714286 | D62: ='CV Rotina <2A - residência'!P63 -> 1.085714286 | E62: ='CV Rotina <2A - residência'!V63 -> 0 | F62: ='CV Rotina <2A - residência'!J63 -> 1.2 | G62: ='CV Rotina <2A - residência'!L63 -> 1.171428571 | H62: ='CV Rotina <2A - residência'!N63 -> 1.028571429 | I62: ='CV Rotina <2A - residência'!Z63 -> 1.085714286 | J62: ='CV Rotina <2A - residência'!R63 -> 1.114285714 | K62: ='CV Rotina <2A - residência'!T63 -> 1.057142857 | L62: ='CV Rotina <2A - residência'!X63 -> 0.5714285714 | M62: ='CV Rotina <2A - residência'!AB63 -> 0.8285714286 | N62: 1 | O62: 6 | P62: 7 | Q62: 4
A63: Metropolitana | B63: Santa Leopoldina | C63: ='CV Rotina <2A - residência'!H64 -> 0.34375 | D63: ='CV Rotina <2A - residência'!P64 -> 1.15625 | E63: ='CV Rotina <2A - residência'!V64 -> 0 | F63: ='CV Rotina <2A - residência'!J64 -> 1.15625 | G63: ='CV Rotina <2A - residência'!L64 -> 1.15625 | H63: ='CV Rotina <2A - residência'!N64 -> 1.125 | I63: ='CV Rotina <2A - residência'!Z64 -> 1.53125 | J63: ='CV Rotina <2A - residência'!R64 -> 1.21875 | K63: ='CV Rotina <2A - residência'!T64 -> 1.125 | L63: ='CV Rotina <2A - residência'!X64 -> 0.90625 | M63: ='CV Rotina <2A - residência'!AB64 -> 0.4375 | N63: 1 | O63: 6 | P63: 7 | Q63: 4
